Workbook

Sheet ACCUEILPRO
A1: Accueil
F7: =ACCUEIL!F7 -> 2021-08-29

Sheet ACCUEILPREM
A1: Accueil
F7: =ACCUEIL!F7 -> 2021-08-29

Sheet ACCUEILGP
A1: Accueil
F7: =ACCUEIL!F7 -> 2021-08-29

Sheet ACCUEIL
F7: 2021-08-29
C21: Item mensuels: ETP, satisfaction clientèle, remises commerciales, marges et accessoires crédits
E22: arrêtés au | F22: 2021-06-30

Sheet Accueilagence
A1: Accueil
E7: =ACCUEIL!F7 -> 2021-08-29

Sheet Accueilsecteur
A1: Accueil
E7: =ACCUEIL!F7 -> 2021-08-29

Sheet AccueilDircom
A1: Accueil
E7: =ACCUEIL!F7 -> 2021-08-29

Sheet DC_FICHE
A1: Accueil
A2: BAROMETRE BDD
A4: UNITE: | B4: DIRECTION REGIONALE | E4: ETP perf : | F4: =VLOOKUP(A5,'RECAP DIRCOM'!$G$6:$I$12,3,FALSE) -> 252.56
A5: =VLOOKUP(B5,LISTES!$M$6:$N$12,2,FALSE) -> 262 | B5: BAS-RHIN
C6: Coefficient du critére | E6: Résultats | I6: Ecart au 1ier | M6: Evolution | O6: Rang
E7: du 1ier | G7: DIRECTION | I7: Du mois | K7: Au 31/12/2019
A9: RANG au CLASSEMENT GENERAL | K9: =VLOOKUP($A$5,#REF!,168,FALSE) ->  | M9: =+K9-O9 ->  | O9: =VLOOKUP($A$5,'RECAP DIRCOM'!$G$6:$DG$312,168,FALSE) -> 
A11: CRITERE CLIENTS | C11: 15% | O11: =VLOOKUP($A$5,'RECAP DIRCOM'!$G$6:$DG$312,23,FALSE) -> 28.82841731
B12: PNB Evolution nette Clients BP | C12: 4% | E12: ='RECAP DIRCOM'!#REF! ->  | G12: =VLOOKUP($A$5,'RECAP DIRCOM'!$G$6:$DG$312,6,FALSE) -> 0.4 | I12: =VLOOKUP($A$5,'RECAP DIRCOM'!$G$6:$DG$312,7,FALSE) -> 500% | K12: =VLOOKUP($A$5,#REF!,7,FALSE) ->  | M12: =+K12-I12 ->  | O12: =VLOOKUP($A$5,'RECAP DIRCOM'!$G$6:$DG$312,8,FALSE) -> 0.5242498595
B13: PNB Evolution nette Clients PREMIUM | C13: 5% | E13: ='RECAP DIRCOM'!#REF! ->  | G13: =VLOOKUP($A$5,'RECAP DIRCOM'!$G$6:$DG$312,10,FALSE) -> 6.0 | I13: =VLOOKUP($A$5,'RECAP DIRCOM'!$G$6:$DG$312,11,FALSE) -> 33% | K13: =VLOOKUP($A$5,#REF!,11,FALSE) ->  | M13: =+K13-I13 ->  | O13: =VLOOKUP($A$5,'RECAP DIRCOM'!$G$6:$DG$312,12,FALSE) -> 0.3331958739
B14: PNB Evolution nette Clients Jeunes Equipés | C14: 3% | E14: ='RECAP DIRCOM'!#REF! ->  | G14: =VLOOKUP($A$5,'RECAP DIRCOM'!$G$6:$DG$312,14,FALSE) -> 0.0 | I14: =VLOOKUP($A$5,'RECAP DIRCOM'!$G$6:$DG$312,15,FALSE) -> 0% | K14: =VLOOKUP($A$5,#REF!,15,FALSE) ->  | M14: =+K14-I14 ->  | O14: =VLOOKUP($A$5,'RECAP DIRCOM'!$G$6:$DG$312,16,FALSE) -> 0
B15: PNB Evolution nette Clients Pro Actifs Equipés | C15: 3% | E15: ='RECAP DIRCOM'!W4 -> 0.0 | G15: =VLOOKUP($A$5,'RECAP DIRCOM'!$G$6:$DG$312,18,FALSE) -> 12392.0 | I15: =VLOOKUP($A$5,'RECAP DIRCOM'!$G$6:$DG$312,19,FALSE) -> 4906% | K15: =VLOOKUP($A$5,#REF!,19,FALSE) ->  | M15: =+K15-I15 ->  | O15: =VLOOKUP($A$5,'RECAP DIRCOM'!$G$6:$DG$312,20,FALSE) -> 0.1120863619
A17: CRITERE BANCARISATION | C17: 15% | O17: =VLOOKUP($A$5,'RECAP DIRCOM'!$G$6:$DG$312,48,FALSE) -> 1
B18: PNB Ventes nettes forfaits | C18: 4% | E18: ='RECAP DIRCOM'!X4 -> 55.3 | G18: =VLOOKUP($A$5,'RECAP DIRCOM'!$G$6:$DG$312,31,FALSE) -> -1.9 | I18: =VLOOKUP($A$5,'RECAP DIRCOM'!$G$6:$DG$312,32,FALSE) -> 23% | K18: =VLOOKUP($A$5,#REF!,32,FALSE) ->  | M18: =+K18-I18 ->  | O18: =VLOOKUP($A$5,'RECAP DIRCOM'!$G$6:$DG$312,33,FALSE) -> 7
B19: PNB Ventes nettes IZICARTES Débit Différé | C19: 4% | E19: ='RECAP DIRCOM'!AB4 -> 33.3 | G19: =VLOOKUP($A$5,'RECAP DIRCOM'!$G$6:$DG$312,35,FALSE) -> 0.2 | I19: =VLOOKUP($A$5,'RECAP DIRCOM'!$G$6:$DG$312,36,FALSE) -> 300% | K19: =VLOOKUP($A$5,#REF!,36,FALSE) ->  | M19: =+K19-I19 ->  | O19: =VLOOKUP($A$5,'RECAP DIRCOM'!$G$6:$DG$312,37,FALSE) -> 0
B20: PNB Ventes nettes cartes HDG Débit Différé | C20: 4% | E20: ='RECAP DIRCOM'!AF4 -> 9.5 | G20: =VLOOKUP($A$5,'RECAP DIRCOM'!$G$6:$DG$312,39,FALSE) -> 0.0 | I20: =VLOOKUP($A$5,'RECAP DIRCOM'!$G$6:$DG$312,40,FALSE) -> 0% | K20: =VLOOKUP($A$5,#REF!,40,FALSE) ->  | M20: =+K20-I20 ->  | O20: =VLOOKUP($A$5,'RECAP DIRCOM'!$G$6:$DG$312,41,FALSE) -> 99955.15154
B21: PNB Ventes nettes Forfaits Pro, Carte pro | C21: 3% | E21: ='RECAP DIRCOM'!AJ4 -> -1.5 | G21: =VLOOKUP($A$5,'RECAP DIRCOM'!$G$6:$DG$312,43,FALSE) -> 0.0 | I21: =VLOOKUP($A$5,'RECAP DIRCOM'!$G$6:$DG$312,44,FALSE) -> 200% | K21: =VLOOKUP($A$5,#REF!,44,FALSE) ->  | M21: =+K21-I21 ->  | O21: =VLOOKUP($A$5,'RECAP DIRCOM'!$G$6:$DG$312,45,FALSE) -> 4386
A23: CRITERE EPARGNE | C23: 10% | O23: =VLOOKUP($A$5,'RECAP DIRCOM'!$G$6:$DG$312,69,FALSE) -> 0.3282521856
B24: PNB Epargne Liquide | C24: 3% | E24: ='RECAP DIRCOM'!AU4 -> 405.7 | G24: =VLOOKUP($A$5,'RECAP DIRCOM'!$G$6:$DG$312,56,FALSE) -> 18134.8 | I24: =VLOOKUP($A$5,'RECAP DIRCOM'!$G$6:$DG$312,57,FALSE) -> 7180% | K24: =VLOOKUP($A$5,#REF!,57,FALSE) ->  | M24: =+K24-I24 ->  | O24: =VLOOKUP($A$5,'RECAP DIRCOM'!$G$6:$DG$312,58,FALSE) -> 0.4765963214
B25: PNB CA UC + arbitrage | C25: 4% | E25: ='RECAP DIRCOM'!AY4 -> 17.4 | G25: =VLOOKUP($A$5,'RECAP DIRCOM'!$G$6:$DG$312,60,FALSE) -> 9542.1 | I25: =VLOOKUP($A$5,'RECAP DIRCOM'!$G$6:$DG$312,61,FALSE) -> 3778% | K25: =VLOOKUP($A$5,#REF!,61,FALSE) ->  | M25: =+K25-I25 ->  | O25: =VLOOKUP($A$5,'RECAP DIRCOM'!$G$6:$DG$312,62,FALSE) -> 0.1232186207
B26: PNB Excédent assurance vie | C26: 3% | E26: ='RECAP DIRCOM'!#REF! ->  | G26: =VLOOKUP($A$5,'RECAP DIRCOM'!$G$6:$DG$312,64,FALSE) -> 2445.0 | I26: =VLOOKUP($A$5,'RECAP DIRCOM'!$G$6:$DG$312,65,FALSE) -> 968% | K26: =VLOOKUP($A$5,#REF!,65,FALSE) ->  | M26: =+K26-I26 ->  | O26: =VLOOKUP($A$5,'RECAP DIRCOM'!$G$6:$DG$312,66,FALSE) -> 0.3354935695
A28: CRITERE CREDITS | C28: 15% | O28: =VLOOKUP($A$5,'RECAP DIRCOM'!$G$6:$DG$312,102,FALSE) -> 0.1868156086
B29: PNB crédit conso | C29: 4% | E29: ='RECAP DIRCOM'!BJ4 -> 137.2 | G29: =VLOOKUP($A$5,'RECAP DIRCOM'!$G$6:$DG$312,77,FALSE) -> 0.1 | I29: =VLOOKUP($A$5,'RECAP DIRCOM'!$G$6:$DG$312,78,FALSE) -> 300% | K29: =VLOOKUP($A$5,#REF!,78,FALSE) ->  | M29: =+K29-I29 ->  | O29: =VLOOKUP($A$5,'RECAP DIRCOM'!$G$6:$DG$312,79,FALSE) -> 5947
B30: PNB ADE crédit conso | C30: 1% | E30: ='RECAP DIRCOM'!#REF! ->  | G30: =VLOOKUP($A$5,'RECAP DIRCOM'!$G$6:$DG$312,81,FALSE) -> 0.2 | I30: =VLOOKUP($A$5,'RECAP DIRCOM'!$G$6:$DG$312,82,FALSE) -> 400% | K30: =VLOOKUP($A$5,#REF!,82,FALSE) ->  | O30: =VLOOKUP($A$5,'RECAP DIRCOM'!$G$6:$DG$312,83,FALSE) -> 0.1259573718
B31: PNB crédit immo | C31: 4% | E31: ='RECAP DIRCOM'!BN4 -> 43.1 | G31: =VLOOKUP($A$5,'RECAP DIRCOM'!$G$6:$DG$312,85,FALSE) -> 3.0 | I31: =VLOOKUP($A$5,'RECAP DIRCOM'!$G$6:$DG$312,86,FALSE) -> 0% | K31: =VLOOKUP($A$5,#REF!,86,FALSE) ->  | O31: =VLOOKUP($A$5,'RECAP DIRCOM'!$G$6:$DG$312,87,FALSE) -> 0
B32: PNB ADE crédit immo | C32: 2% | E32: ='RECAP DIRCOM'!#REF! ->  | G32: =VLOOKUP($A$5,'RECAP DIRCOM'!$G$6:$DG$312,89,FALSE) -> 0.0 | I32: =VLOOKUP($A$5,'RECAP DIRCOM'!$G$6:$DG$312,90,FALSE) -> 0% | K32: =VLOOKUP($A$5,#REF!,90,FALSE) ->  | O32: =VLOOKUP($A$5,'RECAP DIRCOM'!$G$6:$DG$312,91,FALSE) -> 0
B33: PNB SACCEF | C33: 2% | E33: ='RECAP DIRCOM'!#REF! ->  | G33: =VLOOKUP($A$5,'RECAP DIRCOM'!$G$6:$DG$312,93,FALSE) -> 0.0 | I33: =VLOOKUP($A$5,'RECAP DIRCOM'!$G$6:$DG$312,94,FALSE) -> 0% | K33: =VLOOKUP($A$5,#REF!,94,FALSE) ->  | O33: =VLOOKUP($A$5,'RECAP DIRCOM'!$G$6:$DG$312,95,FALSE) -> 0
B34: PNB Crédit MLT + Crédit Bail | C34: 2% | E34: ='RECAP DIRCOM'!BR4 -> 14.6 | G34: =VLOOKUP($A$5,'RECAP DIRCOM'!$G$6:$DG$312,97,FALSE) -> 0.0 | I34: =VLOOKUP($A$5,'RECAP DIRCOM'!$G$6:$DG$312,98,FALSE) -> 0% | K34: =VLOOKUP($A$5,#REF!,98,FALSE) ->  | O34: =VLOOKUP($A$5,'RECAP DIRCOM'!$G$6:$DG$312,99,FALSE) -> 0
A36: CRITERE IARD PREVOYANCE | C36: 15% | O36: =VLOOKUP($A$5,'RECAP DIRCOM'!$G$6:$DG$312,119,FALSE) -> 
B37: PNB Ventes nettes IARD | C37: 9% | E37: ='RECAP DIRCOM'!CC4 -> 152.7 | G37: =VLOOKUP($A$5,'RECAP DIRCOM'!$G$6:$DG$312,110,FALSE) ->  | I37: =VLOOKUP($A$5,'RECAP DIRCOM'!$G$6:$DG$312,111,FALSE) ->  | K37: =VLOOKUP($A$5,#REF!,111,FALSE) ->  | M37: =+K37-I37 ->  | O37: =VLOOKUP($A$5,'RECAP DIRCOM'!$G$6:$DG$312,112,FALSE) -> 
B38: PNB Ventes nettes Prévoyance | C38: 6% | E38: ='RECAP DIRCOM'!CG4 -> 29.1 | G38: =VLOOKUP($A$5,'RECAP DIRCOM'!$G$6:$DG$312,114,FALSE) ->  | I38: =VLOOKUP($A$5,'RECAP DIRCOM'!$G$6:$DG$312,115,FALSE) ->  | K38: =VLOOKUP($A$5,#REF!,115,FALSE) ->  | M38: =+K38-I38 ->  | O38: =VLOOKUP($A$5,'RECAP DIRCOM'!$G$6:$DG$312,116,FALSE) -> 
A40: CRITERE ACCELERATEURS PNB | C40: 15% | O40: =VLOOKUP($A$5,'RECAP DIRCOM'!$G$6:$DG$312,144,FALSE) -> 
B41: PNB Ventes brutes SED Finalisées | C41: 6% | E41: ='RECAP DIRCOM'!#REF! ->  | G41: =VLOOKUP($A$5,'RECAP DIRCOM'!$G$6:$DG$312,127,FALSE) ->  | I41: =VLOOKUP($A$5,'RECAP DIRCOM'!$G$6:$DG$312,128,FALSE) ->  | K41: =VLOOKUP($A$5,#REF!,128,FALSE) ->  | M41: =+K41-I41 ->  | O41: =VLOOKUP($A$5,'RECAP DIRCOM'!$G$6:$DG$312,129,FALSE) -> 
B42: PNB clients équipés E documents | C42: 3% | E42: ='RECAP DIRCOM'!#REF! ->  | G42: =VLOOKUP($A$5,'RECAP DIRCOM'!$G$6:$DG$312,131,FALSE) ->  | I42: =VLOOKUP($A$5,'RECAP DIRCOM'!$G$6:$DG$312,132,FALSE) ->  | K42: =VLOOKUP($A$5,#REF!,132,FALSE) ->  | M42: =+K42-I42 ->  | O42: =VLOOKUP($A$5,'RECAP DIRCOM'!$G$6:$DG$312,133,FALSE) -> 
B43: Economie opt'in | C43: 3% | E43: ='RECAP DIRCOM'!#REF! ->  | G43: =VLOOKUP($A$5,'RECAP DIRCOM'!$G$6:$DG$312,135,FALSE) ->  | I43: =VLOOKUP($A$5,'RECAP DIRCOM'!$G$6:$DG$312,136,FALSE) ->  | K43: =VLOOKUP($A$5,#REF!,136,FALSE) ->  | M43: =+K43-I43 ->  | O43: =VLOOKUP($A$5,'RECAP DIRCOM'!$G$6:$DG$312,137,FALSE) -> 
B44: Remises commerciales | C44: 3% | E44: ='RECAP DIRCOM'!#REF! ->  | G44: =VLOOKUP($A$5,'RECAP DIRCOM'!$G$6:$DG$312,139,FALSE) ->  | I44: =VLOOKUP($A$5,'RECAP DIRCOM'!$G$6:$DG$312,140,FALSE) ->  | K44: =VLOOKUP($A$5,#REF!,140,FALSE) ->  | M44: =+K44-I44 ->  | O44: =VLOOKUP($A$5,'RECAP DIRCOM'!$G$6:$DG$312,141,FALSE) -> 
A46: CRITERE Qualité-Satisfaction Clients | C46: 15% | O46: =VLOOKUP($A$5,'RECAP DIRCOM'!$G$6:$DG$312,159,FALSE) -> 
B47: Objectifs NPS* | C47: 8% | E47: ='RECAP DIRCOM'!K4 -> 23 | G47: =VLOOKUP($A$5,'RECAP DIRCOM'!$G$6:$DG$312,151,FALSE) ->  | I47: =VLOOKUP($A$5,'RECAP DIRCOM'!$G$6:$DG$312,152,FALSE) ->  | K47: =VLOOKUP($A$5,#REF!,152,FALSE) ->  | M47: =+K47-I47 ->  | O47: =VLOOKUP($A$5,'RECAP DIRCOM'!$G$6:$DG$312,153,FALSE) -> 
B48: Enquête Qualité Haute Définition | C48: 7% | E48: ='RECAP DIRCOM'!N4 -> 68% | G48: =VLOOKUP($A$5,'RECAP DIRCOM'!$G$6:$DG$312,154,FALSE) ->  | I48: =VLOOKUP($A$5,'RECAP DIRCOM'!$G$6:$DG$312,155,FALSE) ->  | K48: =VLOOKUP($A$5,#REF!,155,FALSE) ->  | M48: =+K48-I48 ->  | O48: =VLOOKUP($A$5,'RECAP DIRCOM'!$G$6:$DG$312,156,FALSE) -> 

Sheet DC_TOTAL
B1: Accueil | D1: BAROMETRE BDD - DIRECTIONS REGIONALES
D2: TOTAL GENERAL
D3: =ACCUEIL!F7 -> 2021-08-29
D7: TOTAL GENERAL | G7: Total Satisfaction Clients | J7: Total Bancarisation | M7: Total Epargne | P7: Total IARD Prévoyance | S7: Total Crédits
E8: coef | F8: 100% | H8: coef | I8: =DC_SATISFACTION!L8 -> 20% | K8: coef | L8: =DC_BANCA!V8 -> 20% | N8: coef | O8: =DC_EPARGNE!N8 -> 20% | Q8: coef | R8: =DC_IARD!N8 -> 20% | T8: coef | U8: =DC_CREDIT!R8 -> 20%
A9: eds | B9: Direction | C9: ="ETP perf "&DATEMAJ!$C$28 -> ETP perf 30-juin | D9: Moyenne ecart au 1er | E9: % Ecart au 1er | F9: Rang CEGEE | G9: Moyenne ecart au 1er | H9: % Ecart au 1er | I9: Rang CEGEE | J9: Moyenne ecart au 1er | K9: % Ecart au 1er | L9: Rang CEGEE | M9: Moyenne ecart au 1er | N9: % Ecart au 1er | O9: Rang CEGEE | P9: Moyenne ecart au 1er | Q9: % Ecart au 1er | R9: Rang CEGEE | S9: Moyenne ecart au 1er | T9: % Ecart au 1er | U9: Rang CEGEE
A10: 50 | B10: Meurthe et Moselle Meuse | C10: 243 | D10: 6% | E10: 0% | F10: 1 | G10: 29% | H10: 29% | I10: 4 | J10: 2% | K10: 0% | L10: 1 | M10: 2% | N10: 0% | O10: 2 | P10: 4% | Q10: 2% | R10: 2 | S10: 0% | T10: 0% | U10: 1
A11: 262 | B11: Marne-Ardennes | C11: 227 | D11: 11% | E11: 4% | F11: 2 | G11: 17% | H11: 17% | I11: 2 | J11: 17% | K11: 15% | L11: 2 | M11: 14% | N11: 12% | O11: 4 | P11: 3% | Q11: 0% | R11: 1 | S11: 9% | T11: 9% | U11: 2
A12: 264 | B12: Vosges | C12: 133 | D12: 18% | E12: 12% | F12: 3 | G12: 0% | H12: 0% | I12: 1 | J12: 31% | K12: 29% | L12: 6 | M12: 19% | N12: 18% | O12: 5 | P12: 19% | Q12: 16% | R12: 5 | S12: 28% | T12: 28% | U12: 4
A13: 30 | B13: Bas-Rhin | C13: 253 | D13: 19% | E13: 13% | F13: 4 | G13: 33% | H13: 33% | I13: 6 | J13: 19% | K13: 17% | L13: 3 | M13: 2% | N13: 0% | O13: 1 | P13: 13% | Q13: 10% | R13: 3 | S13: 33% | T13: 33% | U13: 6
A14: 110 | B14: Moselle | C14: 265 | D14: 19% | E14: 13% | F14: 5 | G14: 32% | H14: 32% | I14: 5 | J14: 23% | K14: 21% | L14: 4 | M14: 13% | N14: 11% | O14: 3 | P14: 15% | Q14: 12% | R14: 4 | S14: 21% | T14: 21% | U14: 3
A15: 160 | B15: Aube Haute Marne | C15: 128 | D15: 32% | E15: 26% | F15: 6 | G15: 24% | H15: 24% | I15: 3 | J15: 28% | K15: 26% | L15: 5 | M15: 56% | N15: 54% | O15: 7 | P15: 30% | Q15: 27% | R15: 6 | S15: 29% | T15: 29% | U15: 5
A16: 80 | B16: Haut-Rhin | C16: 158 | D16: 44% | E16: 38% | F16: 7 | G16: 58% | H16: 58% | I16: 7 | J16: 46% | K16: 45% | L16: 7 | M16: 43% | N16: 41% | O16: 6 | P16: 35% | Q16: 32% | R16: 7 | S16: 46% | T16: 46% | U16: 7
B17: Total CEGEE Directions Régionales | C17: =SUM(C10:C16) -> 1406

Sheet DC_BANCA
B1: Accueil | D1: BAROMETRE BDD - DIRECTIONS REGIONALES
D2: BANCARISATION
D3: =ACCUEIL!F7 -> 2021-08-29
D7: Ventes Nettes produits pondérés | H7: Ventes sur client non détenteur de l’univers | L7: Mobilité Macron | P7: Remises commerciales | T7: Total Bancarisation
D8: =DATEMAJ!C8 -> au 29/08 | F8: coef | G8: ='RECAP DIRCOM'!AA4 -> 10% | H8: =DATEMAJ!C9 -> au 29/08 | J8: coef | K8: ='RECAP DIRCOM'!AE4 -> 4% | L8: =DATEMAJ!C10 -> au 29/08 | N8: coef | O8: ='RECAP DIRCOM'!AI4 -> 3% | P8: =DATEMAJ!C11 -> au 30/06 | R8: coef | S8: ='RECAP DIRCOM'!AM4 -> 3% | U8: coef | V8: ='RECAP DIRCOM'!AP4 -> 20%
B9: Direction | C9: ="ETP perf "&DATEMAJ!$C$28 -> ETP perf 30-juin | D9: VN | E9: VN / ETP | F9: % Ecart au 1er | G9: Rang | H9: VB | I9: VB / ETP | J9: % Ecart au 1er | K9: Rang | L9: Nb | M9: Nb / ETP | N9: % Ecart au 1er | O9: Rang | P9: Montant | Q9: Montant / ETP | R9: % Ecart au 1er | S9: Rang | T9: Moyenne ecart au 1er | U9: % Ecart au 1er | V9: Rang CEGEE
A10: 50 | B10: Aube Haute Marne | C10: =VLOOKUP($A10,'RECAP DIRCOM'!$G$6:$DC$12,3,FALSE) -> 128 | D10: =VLOOKUP($A10,'RECAP DIRCOM'!$G$6:$DC$12,18,FALSE) -> 4,566 | E10: =VLOOKUP($A10,'RECAP DIRCOM'!$G$6:$DC$12,19,FALSE) -> 35.75 | F10: =VLOOKUP($A10,'RECAP DIRCOM'!$G$6:$DC$12,20,FALSE) -> 35% | G10: =VLOOKUP($A10,'RECAP DIRCOM'!$G$6:$DC$12,21,FALSE) -> 5 | H10: =VLOOKUP($A10,'RECAP DIRCOM'!$G$6:$DC$12,22,FALSE) -> 3,564 | I10: =VLOOKUP($A10,'RECAP DIRCOM'!$G$6:$DC$12,23,FALSE) -> 27.91 | J10: =VLOOKUP($A10,'RECAP DIRCOM'!$G$6:$DC$12,24,FALSE) -> 16% | K10: =VLOOKUP($A10,'RECAP DIRCOM'!$G$6:$DC$12,25,FALSE) -> 5 | L10: =VLOOKUP($A10,'RECAP DIRCOM'!$G$6:$DC$12,26,FALSE) -> 652 | M10: =VLOOKUP($A10,'RECAP DIRCOM'!$G$6:$DC$12,27,FALSE) -> 5.11 | N10: =VLOOKUP($A10,'RECAP DIRCOM'!$G$6:$DC$12,28,FALSE) -> 46% | O10: =VLOOKUP($A10,'RECAP DIRCOM'!$G$6:$DC$12,29,FALSE) -> 3 | P10: =VLOOKUP($A10,'RECAP DIRCOM'!$G$6:$DC$12,30,FALSE) -> -193 | Q10: =VLOOKUP($A10,'RECAP DIRCOM'!$G$6:$DC$12,31,FALSE) -> -1.51 | R10: =VLOOKUP($A10,'RECAP DIRCOM'!$G$6:$DC$12,32,FALSE) -> 0% | S10: =VLOOKUP($A10,'RECAP DIRCOM'!$G$6:$DC$12,33,FALSE) -> 1 | T10: =VLOOKUP($A10,'RECAP DIRCOM'!$G$6:$DC$12,34,FALSE) -> 28% | U10: =VLOOKUP($A10,'RECAP DIRCOM'!$G$6:$DC$12,35,FALSE) -> 26% | V10: =VLOOKUP($A10,'RECAP DIRCOM'!$G$6:$DC$12,36,FALSE) -> 5
A11: 262 | B11: Bas-Rhin | C11: =VLOOKUP($A11,'RECAP DIRCOM'!$G$6:$DC$12,3,FALSE) -> 253 | D11: =VLOOKUP($A11,'RECAP DIRCOM'!$G$6:$DC$12,18,FALSE) -> 12,392 | E11: =VLOOKUP($A11,'RECAP DIRCOM'!$G$6:$DC$12,19,FALSE) -> 49.06 | F11: =VLOOKUP($A11,'RECAP DIRCOM'!$G$6:$DC$12,20,FALSE) -> 11% | G11: =VLOOKUP($A11,'RECAP DIRCOM'!$G$6:$DC$12,21,FALSE) -> 2 | H11: =VLOOKUP($A11,'RECAP DIRCOM'!$G$6:$DC$12,22,FALSE) -> 7,281 | I11: =VLOOKUP($A11,'RECAP DIRCOM'!$G$6:$DC$12,23,FALSE) -> 28.83 | J11: =VLOOKUP($A11,'RECAP DIRCOM'!$G$6:$DC$12,24,FALSE) -> 13% | K11: =VLOOKUP($A11,'RECAP DIRCOM'!$G$6:$DC$12,25,FALSE) -> 3 | L11: =VLOOKUP($A11,'RECAP DIRCOM'!$G$6:$DC$12,26,FALSE) -> 1,242 | M11: =VLOOKUP($A11,'RECAP DIRCOM'!$G$6:$DC$12,27,FALSE) -> 4.92 | N11: =VLOOKUP($A11,'RECAP DIRCOM'!$G$6:$DC$12,28,FALSE) -> 48% | O11: =VLOOKUP($A11,'RECAP DIRCOM'!$G$6:$DC$12,29,FALSE) -> 4 | P11: =VLOOKUP($A11,'RECAP DIRCOM'!$G$6:$DC$12,30,FALSE) -> -468 | Q11: =VLOOKUP($A11,'RECAP DIRCOM'!$G$6:$DC$12,31,FALSE) -> -1.85 | R11: =VLOOKUP($A11,'RECAP DIRCOM'!$G$6:$DC$12,32,FALSE) -> 23% | S11: =VLOOKUP($A11,'RECAP DIRCOM'!$G$6:$DC$12,33,FALSE) -> 7 | T11: =VLOOKUP($A11,'RECAP DIRCOM'!$G$6:$DC$12,34,FALSE) -> 19% | U11: =VLOOKUP($A11,'RECAP DIRCOM'!$G$6:$DC$12,35,FALSE) -> 17% | V11: =VLOOKUP($A11,'RECAP DIRCOM'!$G$6:$DC$12,36,FALSE) -> 3
A12: 264 | B12: Haut-Rhin | C12: =VLOOKUP($A12,'RECAP DIRCOM'!$G$6:$DC$12,3,FALSE) -> 158 | D12: =VLOOKUP($A12,'RECAP DIRCOM'!$G$6:$DC$12,18,FALSE) -> 3,531 | E12: =VLOOKUP($A12,'RECAP DIRCOM'!$G$6:$DC$12,19,FALSE) -> 22.42 | F12: =VLOOKUP($A12,'RECAP DIRCOM'!$G$6:$DC$12,20,FALSE) -> 59% | G12: =VLOOKUP($A12,'RECAP DIRCOM'!$G$6:$DC$12,21,FALSE) -> 7 | H12: =VLOOKUP($A12,'RECAP DIRCOM'!$G$6:$DC$12,22,FALSE) -> 3,846 | I12: =VLOOKUP($A12,'RECAP DIRCOM'!$G$6:$DC$12,23,FALSE) -> 24.41 | J12: =VLOOKUP($A12,'RECAP DIRCOM'!$G$6:$DC$12,24,FALSE) -> 27% | K12: =VLOOKUP($A12,'RECAP DIRCOM'!$G$6:$DC$12,25,FALSE) -> 7 | L12: =VLOOKUP($A12,'RECAP DIRCOM'!$G$6:$DC$12,26,FALSE) -> 426 | M12: =VLOOKUP($A12,'RECAP DIRCOM'!$G$6:$DC$12,27,FALSE) -> 2.70 | N12: =VLOOKUP($A12,'RECAP DIRCOM'!$G$6:$DC$12,28,FALSE) -> 72% | O12: =VLOOKUP($A12,'RECAP DIRCOM'!$G$6:$DC$12,29,FALSE) -> 7 | P12: =VLOOKUP($A12,'RECAP DIRCOM'!$G$6:$DC$12,30,FALSE) -> -247 | Q12: =VLOOKUP($A12,'RECAP DIRCOM'!$G$6:$DC$12,31,FALSE) -> -1.57 | R12: =VLOOKUP($A12,'RECAP DIRCOM'!$G$6:$DC$12,32,FALSE) -> 4% | S12: =VLOOKUP($A12,'RECAP DIRCOM'!$G$6:$DC$12,33,FALSE) -> 3 | T12: =VLOOKUP($A12,'RECAP DIRCOM'!$G$6:$DC$12,34,FALSE) -> 46% | U12: =VLOOKUP($A12,'RECAP DIRCOM'!$G$6:$DC$12,35,FALSE) -> 45% | V12: =VLOOKUP($A12,'RECAP DIRCOM'!$G$6:$DC$12,36,FALSE) -> 7
A13: 30 | B13: Marne-Ardennes | C13: =VLOOKUP($A13,'RECAP DIRCOM'!$G$6:$DC$12,3,FALSE) -> 227 | D13: =VLOOKUP($A13,'RECAP DIRCOM'!$G$6:$DC$12,18,FALSE) -> 8,748 | E13: =VLOOKUP($A13,'RECAP DIRCOM'!$G$6:$DC$12,19,FALSE) -> 38.53 | F13: =VLOOKUP($A13,'RECAP DIRCOM'!$G$6:$DC$12,20,FALSE) -> 30% | G13: =VLOOKUP($A13,'RECAP DIRCOM'!$G$6:$DC$12,21,FALSE) -> 4 | H13: =VLOOKUP($A13,'RECAP DIRCOM'!$G$6:$DC$12,22,FALSE) -> 7,152 | I13: =VLOOKUP($A13,'RECAP DIRCOM'!$G$6:$DC$12,23,FALSE) -> 31.50 | J13: =VLOOKUP($A13,'RECAP DIRCOM'!$G$6:$DC$12,24,FALSE) -> 5% | K13: =VLOOKUP($A13,'RECAP DIRCOM'!$G$6:$DC$12,25,FALSE) -> 2 | L13: =VLOOKUP($A13,'RECAP DIRCOM'!$G$6:$DC$12,26,FALSE) -> 2,162 | M13: =VLOOKUP($A13,'RECAP DIRCOM'!$G$6:$DC$12,27,FALSE) -> 9.52 | N13: =VLOOKUP($A13,'RECAP DIRCOM'!$G$6:$DC$12,28,FALSE) -> 0% | O13: =VLOOKUP($A13,'RECAP DIRCOM'!$G$6:$DC$12,29,FALSE) -> 1 | P13: =VLOOKUP($A13,'RECAP DIRCOM'!$G$6:$DC$12,30,FALSE) -> -364 | Q13: =VLOOKUP($A13,'RECAP DIRCOM'!$G$6:$DC$12,31,FALSE) -> -1.60 | R13: =VLOOKUP($A13,'RECAP DIRCOM'!$G$6:$DC$12,32,FALSE) -> 6% | S13: =VLOOKUP($A13,'RECAP DIRCOM'!$G$6:$DC$12,33,FALSE) -> 4 | T13: =VLOOKUP($A13,'RECAP DIRCOM'!$G$6:$DC$12,34,FALSE) -> 17% | U13: =VLOOKUP($A13,'RECAP DIRCOM'!$G$6:$DC$12,35,FALSE) -> 15% | V13: =VLOOKUP($A13,'RECAP DIRCOM'!$G$6:$DC$12,36,FALSE) -> 2
A14: 110 | B14: Meurthe et Moselle Meuse | C14: =VLOOKUP($A14,'RECAP DIRCOM'!$G$6:$DC$12,3,FALSE) -> 243 | D14: =VLOOKUP($A14,'RECAP DIRCOM'!$G$6:$DC$12,18,FALSE) -> 13,412 | E14: =VLOOKUP($A14,'RECAP DIRCOM'!$G$6:$DC$12,19,FALSE) -> 55.26 | F14: =VLOOKUP($A14,'RECAP DIRCOM'!$G$6:$DC$12,20,FALSE) -> 0% | G14: =VLOOKUP($A14,'RECAP DIRCOM'!$G$6:$DC$12,21,FALSE) -> 1 | H14: =VLOOKUP($A14,'RECAP DIRCOM'!$G$6:$DC$12,22,FALSE) -> 8,074 | I14: =VLOOKUP($A14,'RECAP DIRCOM'!$G$6:$DC$12,23,FALSE) -> 33.26 | J14: =VLOOKUP($A14,'RECAP DIRCOM'!$G$6:$DC$12,24,FALSE) -> 0% | K14: =VLOOKUP($A14,'RECAP DIRCOM'!$G$6:$DC$12,25,FALSE) -> 1 | L14: =VLOOKUP($A14,'RECAP DIRCOM'!$G$6:$DC$12,26,FALSE) -> 2,243 | M14: =VLOOKUP($A14,'RECAP DIRCOM'!$G$6:$DC$12,27,FALSE) -> 9.24 | N14: =VLOOKUP($A14,'RECAP DIRCOM'!$G$6:$DC$12,28,FALSE) -> 3% | O14: =VLOOKUP($A14,'RECAP DIRCOM'!$G$6:$DC$12,29,FALSE) -> 2 | P14: =VLOOKUP($A14,'RECAP DIRCOM'!$G$6:$DC$12,30,FALSE) -> -397 | Q14: =VLOOKUP($A14,'RECAP DIRCOM'!$G$6:$DC$12,31,FALSE) -> -1.64 | R14: =VLOOKUP($A14,'RECAP DIRCOM'!$G$6:$DC$12,32,FALSE) -> 9% | S14: =VLOOKUP($A14,'RECAP DIRCOM'!$G$6:$DC$12,33,FALSE) -> 6 | T14: =VLOOKUP($A14,'RECAP DIRCOM'!$G$6:$DC$12,34,FALSE) -> 2% | U14: =VLOOKUP($A14,'RECAP DIRCOM'!$G$6:$DC$12,35,FALSE) -> 0% | V14: =VLOOKUP($A14,'RECAP DIRCOM'!$G$6:$DC$12,36,FALSE) -> 1
A15: 160 | B15: Moselle | C15: =VLOOKUP($A15,'RECAP DIRCOM'!$G$6:$DC$12,3,FALSE) -> 265 | D15: =VLOOKUP($A15,'RECAP DIRCOM'!$G$6:$DC$12,18,FALSE) -> 11,207 | E15: =VLOOKUP($A15,'RECAP DIRCOM'!$G$6:$DC$12,19,FALSE) -> 42.22 | F15: =VLOOKUP($A15,'RECAP DIRCOM'!$G$6:$DC$12,20,FALSE) -> 24% | G15: =VLOOKUP($A15,'RECAP DIRCOM'!$G$6:$DC$12,21,FALSE) -> 3 | H15: =VLOOKUP($A15,'RECAP DIRCOM'!$G$6:$DC$12,22,FALSE) -> 7,583 | I15: =VLOOKUP($A15,'RECAP DIRCOM'!$G$6:$DC$12,23,FALSE) -> 28.57 | J15: =VLOOKUP($A15,'RECAP DIRCOM'!$G$6:$DC$12,24,FALSE) -> 14% | K15: =VLOOKUP($A15,'RECAP DIRCOM'!$G$6:$DC$12,25,FALSE) -> 4 | L15: =VLOOKUP($A15,'RECAP DIRCOM'!$G$6:$DC$12,26,FALSE) -> 1,143 | M15: =VLOOKUP($A15,'RECAP DIRCOM'!$G$6:$DC$12,27,FALSE) -> 4.31 | N15: =VLOOKUP($A15,'RECAP DIRCOM'!$G$6:$DC$12,28,FALSE) -> 55% | O15: =VLOOKUP($A15,'RECAP DIRCOM'!$G$6:$DC$12,29,FALSE) -> 6 | P15: =VLOOKUP($A15,'RECAP DIRCOM'!$G$6:$DC$12,30,FALSE) -> -408 | Q15: =VLOOKUP($A15,'RECAP DIRCOM'!$G$6:$DC$12,31,FALSE) -> -1.54 | R15: =VLOOKUP($A15,'RECAP DIRCOM'!$G$6:$DC$12,32,FALSE) -> 2% | S15: =VLOOKUP($A15,'RECAP DIRCOM'!$G$6:$DC$12,33,FALSE) -> 2 | T15: =VLOOKUP($A15,'RECAP DIRCOM'!$G$6:$DC$12,34,FALSE) -> 23% | U15: =VLOOKUP($A15,'RECAP DIRCOM'!$G$6:$DC$12,35,FALSE) -> 21% | V15: =VLOOKUP($A15,'RECAP DIRCOM'!$G$6:$DC$12,36,FALSE) -> 4
A16: 80 | B16: Vosges | C16: =VLOOKUP($A16,'RECAP DIRCOM'!$G$6:$DC$12,3,FALSE) -> 133 | D16: =VLOOKUP($A16,'RECAP DIRCOM'!$G$6:$DC$12,18,FALSE) -> 4,639 | E16: =VLOOKUP($A16,'RECAP DIRCOM'!$G$6:$DC$12,19,FALSE) -> 34.87 | F16: =VLOOKUP($A16,'RECAP DIRCOM'!$G$6:$DC$12,20,FALSE) -> 37% | G16: =VLOOKUP($A16,'RECAP DIRCOM'!$G$6:$DC$12,21,FALSE) -> 6 | H16: =VLOOKUP($A16,'RECAP DIRCOM'!$G$6:$DC$12,22,FALSE) -> 3,602 | I16: =VLOOKUP($A16,'RECAP DIRCOM'!$G$6:$DC$12,23,FALSE) -> 27.07 | J16: =VLOOKUP($A16,'RECAP DIRCOM'!$G$6:$DC$12,24,FALSE) -> 19% | K16: =VLOOKUP($A16,'RECAP DIRCOM'!$G$6:$DC$12,25,FALSE) -> 6 | L16: =VLOOKUP($A16,'RECAP DIRCOM'!$G$6:$DC$12,26,FALSE) -> 623 | M16: =VLOOKUP($A16,'RECAP DIRCOM'!$G$6:$DC$12,27,FALSE) -> 4.68 | N16: =VLOOKUP($A16,'RECAP DIRCOM'!$G$6:$DC$12,28,FALSE) -> 51% | O16: =VLOOKUP($A16,'RECAP DIRCOM'!$G$6:$DC$12,29,FALSE) -> 5 | P16: =VLOOKUP($A16,'RECAP DIRCOM'!$G$6:$DC$12,30,FALSE) -> -218 | Q16: =VLOOKUP($A16,'RECAP DIRCOM'!$G$6:$DC$12,31,FALSE) -> -1.64 | R16: =VLOOKUP($A16,'RECAP DIRCOM'!$G$6:$DC$12,32,FALSE) -> 8% | S16: =VLOOKUP($A16,'RECAP DIRCOM'!$G$6:$DC$12,33,FALSE) -> 5 | T16: =VLOOKUP($A16,'RECAP DIRCOM'!$G$6:$DC$12,34,FALSE) -> 31% | U16: =VLOOKUP($A16,'RECAP DIRCOM'!$G$6:$DC$12,35,FALSE) -> 29% | V16: =VLOOKUP($A16,'RECAP DIRCOM'!$G$6:$DC$12,36,FALSE) -> 6
B17: Total CEGEE Directions Régionales | C17: =SUM(C10:C16) -> 1406

Sheet DC_EPARGNE
B1: Accueil | D1: BAROMETRE BDD - DIRECTIONS REGIONALES
D2: EPARGNE
D3: =ACCUEIL!F7 -> 2021-08-29
D7: Excédent Epargne y/c DAV pondéré | H7: Ventes sur client non détenteur de l’univers | L7: Total Epargne
D8: =DATEMAJ!C14 -> au 29/08 | F8: coef | G8: ='RECAP DIRCOM'!AX4 -> 14% | H8: =DATEMAJ!C15 -> au 29/08 | J8: coef | K8: ='RECAP DIRCOM'!BB4 -> 6% | M8: coef | N8: ='RECAP DIRCOM'!BE4 -> 20%
B9: Direction | C9: ="ETP perf "&DATEMAJ!$C$28 -> ETP perf 30-juin | D9: Excédent | E9: Excédent / ETP | F9: % Ecart au 1er | G9: Rang | H9: VB | I9: VB / ETP | J9: % Ecart au 1er | K9: Rang | L9: Moyenne ecart au 1er | M9: % Ecart au 1er | N9: Rang CEGEE
A10: 50 | B10: Aube Haute Marne | C10: =VLOOKUP($A10,'RECAP DIRCOM'!$G$6:$DC$12,3,FALSE) -> 128 | D10: =VLOOKUP($A10,'RECAP DIRCOM'!$G$6:$DC$12,41,FALSE) -> 15,600 | E10: =VLOOKUP($A10,'RECAP DIRCOM'!$G$6:$DC$12,42,FALSE) -> 122.15 | F10: =VLOOKUP($A10,'RECAP DIRCOM'!$G$6:$DC$12,43,FALSE) -> 70% | G10: =VLOOKUP($A10,'RECAP DIRCOM'!$G$6:$DC$12,44,FALSE) -> 7 | H10: =VLOOKUP($A10,'RECAP DIRCOM'!$G$6:$DC$12,45,FALSE) -> 1,725 | I10: =VLOOKUP($A10,'RECAP DIRCOM'!$G$6:$DC$12,46,FALSE) -> 13.51 | J10: =VLOOKUP($A10,'RECAP DIRCOM'!$G$6:$DC$12,47,FALSE) -> 22% | K10: =VLOOKUP($A10,'RECAP DIRCOM'!$G$6:$DC$12,48,FALSE) -> 5 | L10: =VLOOKUP($A10,'RECAP DIRCOM'!$G$6:$DC$12,49,FALSE) -> 56% | M10: =VLOOKUP($A10,'RECAP DIRCOM'!$G$6:$DC$12,50,FALSE) -> 54% | N10: =VLOOKUP($A10,'RECAP DIRCOM'!$G$6:$DC$12,51,FALSE) -> 7
A11: 262 | B11: Bas-Rhin | C11: =VLOOKUP($A11,'RECAP DIRCOM'!$G$6:$DC$12,3,FALSE) -> 253 | D11: =VLOOKUP($A11,'RECAP DIRCOM'!$G$6:$DC$12,41,FALSE) -> 99,955 | E11: =VLOOKUP($A11,'RECAP DIRCOM'!$G$6:$DC$12,42,FALSE) -> 395.76 | F11: =VLOOKUP($A11,'RECAP DIRCOM'!$G$6:$DC$12,43,FALSE) -> 2% | G11: =VLOOKUP($A11,'RECAP DIRCOM'!$G$6:$DC$12,44,FALSE) -> 2 | H11: =VLOOKUP($A11,'RECAP DIRCOM'!$G$6:$DC$12,45,FALSE) -> 4,386 | I11: =VLOOKUP($A11,'RECAP DIRCOM'!$G$6:$DC$12,46,FALSE) -> 17.37 | J11: =VLOOKUP($A11,'RECAP DIRCOM'!$G$6:$DC$12,47,FALSE) -> 0% | K11: =VLOOKUP($A11,'RECAP DIRCOM'!$G$6:$DC$12,48,FALSE) -> 1 | L11: =VLOOKUP($A11,'RECAP DIRCOM'!$G$6:$DC$12,49,FALSE) -> 2% | M11: =VLOOKUP($A11,'RECAP DIRCOM'!$G$6:$DC$12,50,FALSE) -> 0% | N11: =VLOOKUP($A11,'RECAP DIRCOM'!$G$6:$DC$12,51,FALSE) -> 1
A12: 264 | B12: Haut-Rhin | C12: =VLOOKUP($A12,'RECAP DIRCOM'!$G$6:$DC$12,3,FALSE) -> 158 | D12: =VLOOKUP($A12,'RECAP DIRCOM'!$G$6:$DC$12,41,FALSE) -> 31,688 | E12: =VLOOKUP($A12,'RECAP DIRCOM'!$G$6:$DC$12,42,FALSE) -> 201.16 | F12: =VLOOKUP($A12,'RECAP DIRCOM'!$G$6:$DC$12,43,FALSE) -> 50% | G12: =VLOOKUP($A12,'RECAP DIRCOM'!$G$6:$DC$12,44,FALSE) -> 6 | H12: =VLOOKUP($A12,'RECAP DIRCOM'!$G$6:$DC$12,45,FALSE) -> 2,038 | I12: =VLOOKUP($A12,'RECAP DIRCOM'!$G$6:$DC$12,46,FALSE) -> 12.94 | J12: =VLOOKUP($A12,'RECAP DIRCOM'!$G$6:$DC$12,47,FALSE) -> 26% | K12: =VLOOKUP($A12,'RECAP DIRCOM'!$G$6:$DC$12,48,FALSE) -> 6 | L12: =VLOOKUP($A12,'RECAP DIRCOM'!$G$6:$DC$12,49,FALSE) -> 43% | M12: =VLOOKUP($A12,'RECAP DIRCOM'!$G$6:$DC$12,50,FALSE) -> 41% | N12: =VLOOKUP($A12,'RECAP DIRCOM'!$G$6:$DC$12,51,FALSE) -> 6
A13: 30 | B13: Marne-Ardennes | C13: =VLOOKUP($A13,'RECAP DIRCOM'!$G$6:$DC$12,3,FALSE) -> 227 | D13: =VLOOKUP($A13,'RECAP DIRCOM'!$G$6:$DC$12,41,FALSE) -> 74,456 | E13: =VLOOKUP($A13,'RECAP DIRCOM'!$G$6:$DC$12,42,FALSE) -> 327.89 | F13: =VLOOKUP($A13,'RECAP DIRCOM'!$G$6:$DC$12,43,FALSE) -> 19% | G13: =VLOOKUP($A13,'RECAP DIRCOM'!$G$6:$DC$12,44,FALSE) -> 5 | H13: =VLOOKUP($A13,'RECAP DIRCOM'!$G$6:$DC$12,45,FALSE) -> 3,899 | I13: =VLOOKUP($A13,'RECAP DIRCOM'!$G$6:$DC$12,46,FALSE) -> 17.17 | J13: =VLOOKUP($A13,'RECAP DIRCOM'!$G$6:$DC$12,47,FALSE) -> 1% | K13: =VLOOKUP($A13,'RECAP DIRCOM'!$G$6:$DC$12,48,FALSE) -> 2 | L13: =VLOOKUP($A13,'RECAP DIRCOM'!$G$6:$DC$12,49,FALSE) -> 14% | M13: =VLOOKUP($A13,'RECAP DIRCOM'!$G$6:$DC$12,50,FALSE) -> 12% | N13: =VLOOKUP($A13,'RECAP DIRCOM'!$G$6:$DC$12,51,FALSE) -> 4
A14: 110 | B14: Meurthe et Moselle Meuse | C14: =VLOOKUP($A14,'RECAP DIRCOM'!$G$6:$DC$12,3,FALSE) -> 243 | D14: =VLOOKUP($A14,'RECAP DIRCOM'!$G$6:$DC$12,41,FALSE) -> 98,469 | E14: =VLOOKUP($A14,'RECAP DIRCOM'!$G$6:$DC$12,42,FALSE) -> 405.69 | F14: =VLOOKUP($A14,'RECAP DIRCOM'!$G$6:$DC$12,43,FALSE) -> 0% | G14: =VLOOKUP($A14,'RECAP DIRCOM'!$G$6:$DC$12,44,FALSE) -> 1 | H14: =VLOOKUP($A14,'RECAP DIRCOM'!$G$6:$DC$12,45,FALSE) -> 3,929 | I14: =VLOOKUP($A14,'RECAP DIRCOM'!$G$6:$DC$12,46,FALSE) -> 16.19 | J14: =VLOOKUP($A14,'RECAP DIRCOM'!$G$6:$DC$12,47,FALSE) -> 7% | K14: =VLOOKUP($A14,'RECAP DIRCOM'!$G$6:$DC$12,48,FALSE) -> 4 | L14: =VLOOKUP($A14,'RECAP DIRCOM'!$G$6:$DC$12,49,FALSE) -> 2% | M14: =VLOOKUP($A14,'RECAP DIRCOM'!$G$6:$DC$12,50,FALSE) -> 0% | N14: =VLOOKUP($A14,'RECAP DIRCOM'!$G$6:$DC$12,51,FALSE) -> 2
A15: 160 | B15: Moselle | C15: =VLOOKUP($A15,'RECAP DIRCOM'!$G$6:$DC$12,3,FALSE) -> 265 | D15: =VLOOKUP($A15,'RECAP DIRCOM'!$G$6:$DC$12,41,FALSE) -> 89,274 | E15: =VLOOKUP($A15,'RECAP DIRCOM'!$G$6:$DC$12,42,FALSE) -> 336.32 | F15: =VLOOKUP($A15,'RECAP DIRCOM'!$G$6:$DC$12,43,FALSE) -> 17% | G15: =VLOOKUP($A15,'RECAP DIRCOM'!$G$6:$DC$12,44,FALSE) -> 4 | H15: =VLOOKUP($A15,'RECAP DIRCOM'!$G$6:$DC$12,45,FALSE) -> 4,520 | I15: =VLOOKUP($A15,'RECAP DIRCOM'!$G$6:$DC$12,46,FALSE) -> 17.03 | J15: =VLOOKUP($A15,'RECAP DIRCOM'!$G$6:$DC$12,47,FALSE) -> 2% | K15: =VLOOKUP($A15,'RECAP DIRCOM'!$G$6:$DC$12,48,FALSE) -> 3 | L15: =VLOOKUP($A15,'RECAP DIRCOM'!$G$6:$DC$12,49,FALSE) -> 13% | M15: =VLOOKUP($A15,'RECAP DIRCOM'!$G$6:$DC$12,50,FALSE) -> 11% | N15: =VLOOKUP($A15,'RECAP DIRCOM'!$G$6:$DC$12,51,FALSE) -> 3
A16: 80 | B16: Vosges | C16: =VLOOKUP($A16,'RECAP DIRCOM'!$G$6:$DC$12,3,FALSE) -> 133 | D16: =VLOOKUP($A16,'RECAP DIRCOM'!$G$6:$DC$12,41,FALSE) -> 47,667 | E16: =VLOOKUP($A16,'RECAP DIRCOM'!$G$6:$DC$12,42,FALSE) -> 358.30 | F16: =VLOOKUP($A16,'RECAP DIRCOM'!$G$6:$DC$12,43,FALSE) -> 12% | G16: =VLOOKUP($A16,'RECAP DIRCOM'!$G$6:$DC$12,44,FALSE) -> 3 | H16: =VLOOKUP($A16,'RECAP DIRCOM'!$G$6:$DC$12,45,FALSE) -> 1,457 | I16: =VLOOKUP($A16,'RECAP DIRCOM'!$G$6:$DC$12,46,FALSE) -> 10.95 | J16: =VLOOKUP($A16,'RECAP DIRCOM'!$G$6:$DC$12,47,FALSE) -> 37% | K16: =VLOOKUP($A16,'RECAP DIRCOM'!$G$6:$DC$12,48,FALSE) -> 7 | L16: =VLOOKUP($A16,'RECAP DIRCOM'!$G$6:$DC$12,49,FALSE) -> 19% | M16: =VLOOKUP($A16,'RECAP DIRCOM'!$G$6:$DC$12,50,FALSE) -> 18% | N16: =VLOOKUP($A16,'RECAP DIRCOM'!$G$6:$DC$12,51,FALSE) -> 5
B17: Total CEGEE Directions Régionales | C17: =SUM(C10:C16) -> 1406

Sheet DC_CREDIT
B1: Accueil | D1: BAROMETRE BDD - DIRECTIONS REGIONALES
D2: CREDITS
D3: =ACCUEIL!F7 -> 2021-08-29
D7: Engagements et ventes accessoires pondérés Immo | H7: Engagements et ventes accessoires pondérés Conso | L7: Ventes sur client non détenteur de l’univers | P7: Total Crédits
D8: =DATEMAJ!C18 -> au 29/08 | F8: coef | G8: ='RECAP DIRCOM'!BM4 -> 8% | H8: =DATEMAJ!C19 -> au 29/08 | J8: coef | K8: ='RECAP DIRCOM'!BQ4 -> 6% | L8: =DATEMAJ!C20 -> au 29/08 | N8: coef | O8: ='RECAP DIRCOM'!BU4 -> 6% | Q8: coef | R8: ='RECAP DIRCOM'!BX4 -> 20%
B9: Direction | C9: ="ETP perf "&DATEMAJ!$C$28 -> ETP perf 30-juin | D9: PNB | E9: PNB / ETP | F9: % Ecart au 1er | G9: Rang | H9: PNB | I9: PNB / ETP | J9: % Ecart au 1er | K9: Rang | L9: VB | M9: VB / ETP | N9: % Ecart au 1er | O9: Rang | P9: Moyenne ecart au 1er | Q9: % Ecart au 1er | R9: Rang CEGEE
A10: 50 | B10: Aube Haute Marne | C10: =VLOOKUP($A10,'RECAP DIRCOM'!$G$6:$DC$12,3,FALSE) -> 128 | D10: =VLOOKUP($A10,'RECAP DIRCOM'!$G$6:$DC$12,56,FALSE) -> 8,596 | E10: =VLOOKUP($A10,'RECAP DIRCOM'!$G$6:$DC$12,57,FALSE) -> 67.30 | F10: =VLOOKUP($A10,'RECAP DIRCOM'!$G$6:$DC$12,58,FALSE) -> 51% | G10: =VLOOKUP($A10,'RECAP DIRCOM'!$G$6:$DC$12,59,FALSE) -> 6 | H10: =VLOOKUP($A10,'RECAP DIRCOM'!$G$6:$DC$12,60,FALSE) -> 5,235 | I10: =VLOOKUP($A10,'RECAP DIRCOM'!$G$6:$DC$12,61,FALSE) -> 40.99 | J10: =VLOOKUP($A10,'RECAP DIRCOM'!$G$6:$DC$12,62,FALSE) -> 5% | K10: =VLOOKUP($A10,'RECAP DIRCOM'!$G$6:$DC$12,63,FALSE) -> 3 | L10: =VLOOKUP($A10,'RECAP DIRCOM'!$G$6:$DC$12,64,FALSE) -> 1,392 | M10: =VLOOKUP($A10,'RECAP DIRCOM'!$G$6:$DC$12,65,FALSE) -> 10.90 | N10: =VLOOKUP($A10,'RECAP DIRCOM'!$G$6:$DC$12,66,FALSE) -> 25% | O10: =VLOOKUP($A10,'RECAP DIRCOM'!$G$6:$DC$12,67,FALSE) -> 5 | P10: =VLOOKUP($A10,'RECAP DIRCOM'!$G$6:$DC$12,68,FALSE) -> 29% | Q10: =VLOOKUP($A10,'RECAP DIRCOM'!$G$6:$DC$12,69,FALSE) -> 29% | R10: =VLOOKUP($A10,'RECAP DIRCOM'!$G$6:$DC$12,70,FALSE) -> 5
A11: 262 | B11: Bas-Rhin | C11: =VLOOKUP($A11,'RECAP DIRCOM'!$G$6:$DC$12,3,FALSE) -> 253 | D11: =VLOOKUP($A11,'RECAP DIRCOM'!$G$6:$DC$12,56,FALSE) -> 18,135 | E11: =VLOOKUP($A11,'RECAP DIRCOM'!$G$6:$DC$12,57,FALSE) -> 71.80 | F11: =VLOOKUP($A11,'RECAP DIRCOM'!$G$6:$DC$12,58,FALSE) -> 48% | G11: =VLOOKUP($A11,'RECAP DIRCOM'!$G$6:$DC$12,59,FALSE) -> 5 | H11: =VLOOKUP($A11,'RECAP DIRCOM'!$G$6:$DC$12,60,FALSE) -> 9,542 | I11: =VLOOKUP($A11,'RECAP DIRCOM'!$G$6:$DC$12,61,FALSE) -> 37.78 | J11: =VLOOKUP($A11,'RECAP DIRCOM'!$G$6:$DC$12,62,FALSE) -> 12% | K11: =VLOOKUP($A11,'RECAP DIRCOM'!$G$6:$DC$12,63,FALSE) -> 5 | L11: =VLOOKUP($A11,'RECAP DIRCOM'!$G$6:$DC$12,64,FALSE) -> 2,445 | M11: =VLOOKUP($A11,'RECAP DIRCOM'!$G$6:$DC$12,65,FALSE) -> 9.68 | N11: =VLOOKUP($A11,'RECAP DIRCOM'!$G$6:$DC$12,66,FALSE) -> 34% | O11: =VLOOKUP($A11,'RECAP DIRCOM'!$G$6:$DC$12,67,FALSE) -> 6 | P11: =VLOOKUP($A11,'RECAP DIRCOM'!$G$6:$DC$12,68,FALSE) -> 33% | Q11: =VLOOKUP($A11,'RECAP DIRCOM'!$G$6:$DC$12,69,FALSE) -> 33% | R11: =VLOOKUP($A11,'RECAP DIRCOM'!$G$6:$DC$12,70,FALSE) -> 6
A12: 264 | B12: Haut-Rhin | C12: =VLOOKUP($A12,'RECAP DIRCOM'!$G$6:$DC$12,3,FALSE) -> 158 | D12: =VLOOKUP($A12,'RECAP DIRCOM'!$G$6:$DC$12,56,FALSE) -> 7,830 | E12: =VLOOKUP($A12,'RECAP DIRCOM'!$G$6:$DC$12,57,FALSE) -> 49.71 | F12: =VLOOKUP($A12,'RECAP DIRCOM'!$G$6:$DC$12,58,FALSE) -> 64% | G12: =VLOOKUP($A12,'RECAP DIRCOM'!$G$6:$DC$12,59,FALSE) -> 7 | H12: =VLOOKUP($A12,'RECAP DIRCOM'!$G$6:$DC$12,60,FALSE) -> 5,266 | I12: =VLOOKUP($A12,'RECAP DIRCOM'!$G$6:$DC$12,61,FALSE) -> 33.43 | J12: =VLOOKUP($A12,'RECAP DIRCOM'!$G$6:$DC$12,62,FALSE) -> 22% | K12: =VLOOKUP($A12,'RECAP DIRCOM'!$G$6:$DC$12,63,FALSE) -> 7 | L12: =VLOOKUP($A12,'RECAP DIRCOM'!$G$6:$DC$12,64,FALSE) -> 1,213 | M12: =VLOOKUP($A12,'RECAP DIRCOM'!$G$6:$DC$12,65,FALSE) -> 7.70 | N12: =VLOOKUP($A12,'RECAP DIRCOM'!$G$6:$DC$12,66,FALSE) -> 47% | O12: =VLOOKUP($A12,'RECAP DIRCOM'!$G$6:$DC$12,67,FALSE) -> 7 | P12: =VLOOKUP($A12,'RECAP DIRCOM'!$G$6:$DC$12,68,FALSE) -> 46% | Q12: =VLOOKUP($A12,'RECAP DIRCOM'!$G$6:$DC$12,69,FALSE) -> 46% | R12: =VLOOKUP($A12,'RECAP DIRCOM'!$G$6:$DC$12,70,FALSE) -> 7
A13: 30 | B13: Marne-Ardennes | C13: =VLOOKUP($A13,'RECAP DIRCOM'!$G$6:$DC$12,3,FALSE) -> 227 | D13: =VLOOKUP($A13,'RECAP DIRCOM'!$G$6:$DC$12,56,FALSE) -> 28,824 | E13: =VLOOKUP($A13,'RECAP DIRCOM'!$G$6:$DC$12,57,FALSE) -> 126.93 | F13: =VLOOKUP($A13,'RECAP DIRCOM'!$G$6:$DC$12,58,FALSE) -> 7% | G13: =VLOOKUP($A13,'RECAP DIRCOM'!$G$6:$DC$12,59,FALSE) -> 2 | H13: =VLOOKUP($A13,'RECAP DIRCOM'!$G$6:$DC$12,60,FALSE) -> 8,533 | I13: =VLOOKUP($A13,'RECAP DIRCOM'!$G$6:$DC$12,61,FALSE) -> 37.58 | J13: =VLOOKUP($A13,'RECAP DIRCOM'!$G$6:$DC$12,62,FALSE) -> 13% | K13: =VLOOKUP($A13,'RECAP DIRCOM'!$G$6:$DC$12,63,FALSE) -> 6 | L13: =VLOOKUP($A13,'RECAP DIRCOM'!$G$6:$DC$12,64,FALSE) -> 3,079 | M13: =VLOOKUP($A13,'RECAP DIRCOM'!$G$6:$DC$12,65,FALSE) -> 13.56 | N13: =VLOOKUP($A13,'RECAP DIRCOM'!$G$6:$DC$12,66,FALSE) -> 7% | O13: =VLOOKUP($A13,'RECAP DIRCOM'!$G$6:$DC$12,67,FALSE) -> 2 | P13: =VLOOKUP($A13,'RECAP DIRCOM'!$G$6:$DC$12,68,FALSE) -> 9% | Q13: =VLOOKUP($A13,'RECAP DIRCOM'!$G$6:$DC$12,69,FALSE) -> 9% | R13: =VLOOKUP($A13,'RECAP DIRCOM'!$G$6:$DC$12,70,FALSE) -> 2
A14: 110 | B14: Meurthe et Moselle Meuse | C14: =VLOOKUP($A14,'RECAP DIRCOM'!$G$6:$DC$12,3,FALSE) -> 243 | D14: =VLOOKUP($A14,'RECAP DIRCOM'!$G$6:$DC$12,56,FALSE) -> 33,297 | E14: =VLOOKUP($A14,'RECAP DIRCOM'!$G$6:$DC$12,57,FALSE) -> 137.18 | F14: =VLOOKUP($A14,'RECAP DIRCOM'!$G$6:$DC$12,58,FALSE) -> 0% | G14: =VLOOKUP($A14,'RECAP DIRCOM'!$G$6:$DC$12,59,FALSE) -> 1 | H14: =VLOOKUP($A14,'RECAP DIRCOM'!$G$6:$DC$12,60,FALSE) -> 10,459 | I14: =VLOOKUP($A14,'RECAP DIRCOM'!$G$6:$DC$12,61,FALSE) -> 43.09 | J14: =VLOOKUP($A14,'RECAP DIRCOM'!$G$6:$DC$12,62,FALSE) -> 0% | K14: =VLOOKUP($A14,'RECAP DIRCOM'!$G$6:$DC$12,63,FALSE) -> 1 | L14: =VLOOKUP($A14,'RECAP DIRCOM'!$G$6:$DC$12,64,FALSE) -> 3,536 | M14: =VLOOKUP($A14,'RECAP DIRCOM'!$G$6:$DC$12,65,FALSE) -> 14.57 | N14: =VLOOKUP($A14,'RECAP DIRCOM'!$G$6:$DC$12,66,FALSE) -> 0% | O14: =VLOOKUP($A14,'RECAP DIRCOM'!$G$6:$DC$12,67,FALSE) -> 1 | P14: =VLOOKUP($A14,'RECAP DIRCOM'!$G$6:$DC$12,68,FALSE) -> 0% | Q14: =VLOOKUP($A14,'RECAP DIRCOM'!$G$6:$DC$12,69,FALSE) -> 0% | R14: =VLOOKUP($A14,'RECAP DIRCOM'!$G$6:$DC$12,70,FALSE) -> 1
A15: 160 | B15: Moselle | C15: =VLOOKUP($A15,'RECAP DIRCOM'!$G$6:$DC$12,3,FALSE) -> 265 | D15: =VLOOKUP($A15,'RECAP DIRCOM'!$G$6:$DC$12,56,FALSE) -> 24,076 | E15: =VLOOKUP($A15,'RECAP DIRCOM'!$G$6:$DC$12,57,FALSE) -> 90.70 | F15: =VLOOKUP($A15,'RECAP DIRCOM'!$G$6:$DC$12,58,FALSE) -> 34% | G15: =VLOOKUP($A15,'RECAP DIRCOM'!$G$6:$DC$12,59,FALSE) -> 3 | H15: =VLOOKUP($A15,'RECAP DIRCOM'!$G$6:$DC$12,60,FALSE) -> 11,308 | I15: =VLOOKUP($A15,'RECAP DIRCOM'!$G$6:$DC$12,61,FALSE) -> 42.60 | J15: =VLOOKUP($A15,'RECAP DIRCOM'!$G$6:$DC$12,62,FALSE) -> 1% | K15: =VLOOKUP($A15,'RECAP DIRCOM'!$G$6:$DC$12,63,FALSE) -> 2 | L15: =VLOOKUP($A15,'RECAP DIRCOM'!$G$6:$DC$12,64,FALSE) -> 2,935 | M15: =VLOOKUP($A15,'RECAP DIRCOM'!$G$6:$DC$12,65,FALSE) -> 11.06 | N15: =VLOOKUP($A15,'RECAP DIRCOM'!$G$6:$DC$12,66,FALSE) -> 24% | O15: =VLOOKUP($A15,'RECAP DIRCOM'!$G$6:$DC$12,67,FALSE) -> 4 | P15: =VLOOKUP($A15,'RECAP DIRCOM'!$G$6:$DC$12,68,FALSE) -> 21% | Q15: =VLOOKUP($A15,'RECAP DIRCOM'!$G$6:$DC$12,69,FALSE) -> 21% | R15: =VLOOKUP($A15,'RECAP DIRCOM'!$G$6:$DC$12,70,FALSE) -> 3
A16: 80 | B16: Vosges | C16: =VLOOKUP($A16,'RECAP DIRCOM'!$G$6:$DC$12,3,FALSE) -> 133 | D16: =VLOOKUP($A16,'RECAP DIRCOM'!$G$6:$DC$12,56,FALSE) -> 9,822 | E16: =VLOOKUP($A16,'RECAP DIRCOM'!$G$6:$DC$12,57,FALSE) -> 73.83 | F16: =VLOOKUP($A16,'RECAP DIRCOM'!$G$6:$DC$12,58,FALSE) -> 46% | G16: =VLOOKUP($A16,'RECAP DIRCOM'!$G$6:$DC$12,59,FALSE) -> 4 | H16: =VLOOKUP($A16,'RECAP DIRCOM'!$G$6:$DC$12,60,FALSE) -> 5,062 | I16: =VLOOKUP($A16,'RECAP DIRCOM'!$G$6:$DC$12,61,FALSE) -> 38.05 | J16: =VLOOKUP($A16,'RECAP DIRCOM'!$G$6:$DC$12,62,FALSE) -> 12% | K16: =VLOOKUP($A16,'RECAP DIRCOM'!$G$6:$DC$12,63,FALSE) -> 4 | L16: =VLOOKUP($A16,'RECAP DIRCOM'!$G$6:$DC$12,64,FALSE) -> 1,563 | M16: =VLOOKUP($A16,'RECAP DIRCOM'!$G$6:$DC$12,65,FALSE) -> 11.75 | N16: =VLOOKUP($A16,'RECAP DIRCOM'!$G$6:$DC$12,66,FALSE) -> 19% | O16: =VLOOKUP($A16,'RECAP DIRCOM'!$G$6:$DC$12,67,FALSE) -> 3 | P16: =VLOOKUP($A16,'RECAP DIRCOM'!$G$6:$DC$12,68,FALSE) -> 28% | Q16: =VLOOKUP($A16,'RECAP DIRCOM'!$G$6:$DC$12,69,FALSE) -> 28% | R16: =VLOOKUP($A16,'RECAP DIRCOM'!$G$6:$DC$12,70,FALSE) -> 4
B17: Total CEGEE Directions Régionales | C17: =SUM(C10:C16) -> 1406

Sheet DC_IARD
B1: Accueil | D1: BAROMETRE BDD - DIRECTIONS REGIONALES
D2: IARD ET PREVOYANCE
D3: =ACCUEIL!F7 -> 2021-08-29
D7: Ventes Nettes produits pondérés | H7: Ventes sur client non détenteur de l’univers | L7: Total IARD Prévoyance
D8: =DATEMAJ!C23 -> au 29/08 | F8: coef | G8: ='RECAP DIRCOM'!CF4 -> 14% | H8: =DATEMAJ!C24 -> au 29/08 | J8: coef | K8: ='RECAP DIRCOM'!CJ4 -> 6% | M8: coef | N8: ='RECAP DIRCOM'!CM4 -> 20%
B9: Direction | C9: ="ETP perf "&DATEMAJ!$C$28 -> ETP perf 30-juin | D9: VN | E9: VN / ETP | F9: % Ecart au 1er | G9: Rang | H9: VB | I9: VB / ETP | J9: % Ecart au 1er | K9: Rang | L9: Moyenne ecart au 1er | M9: % Ecart au 1er | N9: Rang CEGEE
A10: 50 | B10: Aube Haute Marne | C10: =VLOOKUP($A10,'RECAP DIRCOM'!$G$6:$DC$12,3,FALSE) -> 128 | D10: =VLOOKUP($A10,'RECAP DIRCOM'!$G$6:$DC$12,75,FALSE) -> 12,898 | E10: =VLOOKUP($A10,'RECAP DIRCOM'!$G$6:$DC$12,76,FALSE) -> 100.99 | F10: =VLOOKUP($A10,'RECAP DIRCOM'!$G$6:$DC$12,77,FALSE) -> 34% | G10: =VLOOKUP($A10,'RECAP DIRCOM'!$G$6:$DC$12,78,FALSE) -> 6 | H10: =VLOOKUP($A10,'RECAP DIRCOM'!$G$6:$DC$12,79,FALSE) -> 2,984 | I10: =VLOOKUP($A10,'RECAP DIRCOM'!$G$6:$DC$12,80,FALSE) -> 23.36 | J10: =VLOOKUP($A10,'RECAP DIRCOM'!$G$6:$DC$12,81,FALSE) -> 20% | K10: =VLOOKUP($A10,'RECAP DIRCOM'!$G$6:$DC$12,82,FALSE) -> 5 | L10: =VLOOKUP($A10,'RECAP DIRCOM'!$G$6:$DC$12,83,FALSE) -> 30% | M10: =VLOOKUP($A10,'RECAP DIRCOM'!$G$6:$DC$12,84,FALSE) -> 27% | N10: =VLOOKUP($A10,'RECAP DIRCOM'!$G$6:$DC$12,85,FALSE) -> 6
A11: 262 | B11: Bas-Rhin | C11: =VLOOKUP($A11,'RECAP DIRCOM'!$G$6:$DC$12,3,FALSE) -> 253 | D11: =VLOOKUP($A11,'RECAP DIRCOM'!$G$6:$DC$12,75,FALSE) -> 34,769 | E11: =VLOOKUP($A11,'RECAP DIRCOM'!$G$6:$DC$12,76,FALSE) -> 137.66 | F11: =VLOOKUP($A11,'RECAP DIRCOM'!$G$6:$DC$12,77,FALSE) -> 10% | G11: =VLOOKUP($A11,'RECAP DIRCOM'!$G$6:$DC$12,78,FALSE) -> 3 | H11: =VLOOKUP($A11,'RECAP DIRCOM'!$G$6:$DC$12,79,FALSE) -> 5,947 | I11: =VLOOKUP($A11,'RECAP DIRCOM'!$G$6:$DC$12,80,FALSE) -> 23.55 | J11: =VLOOKUP($A11,'RECAP DIRCOM'!$G$6:$DC$12,81,FALSE) -> 19% | K11: =VLOOKUP($A11,'RECAP DIRCOM'!$G$6:$DC$12,82,FALSE) -> 4 | L11: =VLOOKUP($A11,'RECAP DIRCOM'!$G$6:$DC$12,83,FALSE) -> 13% | M11: =VLOOKUP($A11,'RECAP DIRCOM'!$G$6:$DC$12,84,FALSE) -> 10% | N11: =VLOOKUP($A11,'RECAP DIRCOM'!$G$6:$DC$12,85,FALSE) -> 3
A12: 264 | B12: Haut-Rhin | C12: =VLOOKUP($A12,'RECAP DIRCOM'!$G$6:$DC$12,3,FALSE) -> 158 | D12: =VLOOKUP($A12,'RECAP DIRCOM'!$G$6:$DC$12,75,FALSE) -> 14,920 | E12: =VLOOKUP($A12,'RECAP DIRCOM'!$G$6:$DC$12,76,FALSE) -> 94.71 | F12: =VLOOKUP($A12,'RECAP DIRCOM'!$G$6:$DC$12,77,FALSE) -> 38% | G12: =VLOOKUP($A12,'RECAP DIRCOM'!$G$6:$DC$12,78,FALSE) -> 7 | H12: =VLOOKUP($A12,'RECAP DIRCOM'!$G$6:$DC$12,79,FALSE) -> 3,345 | I12: =VLOOKUP($A12,'RECAP DIRCOM'!$G$6:$DC$12,80,FALSE) -> 21.23 | J12: =VLOOKUP($A12,'RECAP DIRCOM'!$G$6:$DC$12,81,FALSE) -> 27% | K12: =VLOOKUP($A12,'RECAP DIRCOM'!$G$6:$DC$12,82,FALSE) -> 7 | L12: =VLOOKUP($A12,'RECAP DIRCOM'!$G$6:$DC$12,83,FALSE) -> 35% | M12: =VLOOKUP($A12,'RECAP DIRCOM'!$G$6:$DC$12,84,FALSE) -> 32% | N12: =VLOOKUP($A12,'RECAP DIRCOM'!$G$6:$DC$12,85,FALSE) -> 7
A13: 30 | B13: Marne-Ardennes | C13: =VLOOKUP($A13,'RECAP DIRCOM'!$G$6:$DC$12,3,FALSE) -> 227 | D13: =VLOOKUP($A13,'RECAP DIRCOM'!$G$6:$DC$12,75,FALSE) -> 34,674 | E13: =VLOOKUP($A13,'RECAP DIRCOM'!$G$6:$DC$12,76,FALSE) -> 152.70 | F13: =VLOOKUP($A13,'RECAP DIRCOM'!$G$6:$DC$12,77,FALSE) -> 0% | G13: =VLOOKUP($A13,'RECAP DIRCOM'!$G$6:$DC$12,78,FALSE) -> 1 | H13: =VLOOKUP($A13,'RECAP DIRCOM'!$G$6:$DC$12,79,FALSE) -> 6,039 | I13: =VLOOKUP($A13,'RECAP DIRCOM'!$G$6:$DC$12,80,FALSE) -> 26.59 | J13: =VLOOKUP($A13,'RECAP DIRCOM'!$G$6:$DC$12,81,FALSE) -> 9% | K13: =VLOOKUP($A13,'RECAP DIRCOM'!$G$6:$DC$12,82,FALSE) -> 2 | L13: =VLOOKUP($A13,'RECAP DIRCOM'!$G$6:$DC$12,83,FALSE) -> 3% | M13: =VLOOKUP($A13,'RECAP DIRCOM'!$G$6:$DC$12,84,FALSE) -> 0% | N13: =VLOOKUP($A13,'RECAP DIRCOM'!$G$6:$DC$12,85,FALSE) -> 1
A14: 110 | B14: Meurthe et Moselle Meuse | C14: =VLOOKUP($A14,'RECAP DIRCOM'!$G$6:$DC$12,3,FALSE) -> 243 | D14: =VLOOKUP($A14,'RECAP DIRCOM'!$G$6:$DC$12,75,FALSE) -> 34,758 | E14: =VLOOKUP($A14,'RECAP DIRCOM'!$G$6:$DC$12,76,FALSE) -> 143.20 | F14: =VLOOKUP($A14,'RECAP DIRCOM'!$G$6:$DC$12,77,FALSE) -> 6% | G14: =VLOOKUP($A14,'RECAP DIRCOM'!$G$6:$DC$12,78,FALSE) -> 2 | H14: =VLOOKUP($A14,'RECAP DIRCOM'!$G$6:$DC$12,79,FALSE) -> 7,057 | I14: =VLOOKUP($A14,'RECAP DIRCOM'!$G$6:$DC$12,80,FALSE) -> 29.07 | J14: =VLOOKUP($A14,'RECAP DIRCOM'!$G$6:$DC$12,81,FALSE) -> 0% | K14: =VLOOKUP($A14,'RECAP DIRCOM'!$G$6:$DC$12,82,FALSE) -> 1 | L14: =VLOOKUP($A14,'RECAP DIRCOM'!$G$6:$DC$12,83,FALSE) -> 4% | M14: =VLOOKUP($A14,'RECAP DIRCOM'!$G$6:$DC$12,84,FALSE) -> 2% | N14: =VLOOKUP($A14,'RECAP DIRCOM'!$G$6:$DC$12,85,FALSE) -> 2
A15: 160 | B15: Moselle | C15: =VLOOKUP($A15,'RECAP DIRCOM'!$G$6:$DC$12,3,FALSE) -> 265 | D15: =VLOOKUP($A15,'RECAP DIRCOM'!$G$6:$DC$12,75,FALSE) -> 34,281 | E15: =VLOOKUP($A15,'RECAP DIRCOM'!$G$6:$DC$12,76,FALSE) -> 129.15 | F15: =VLOOKUP($A15,'RECAP DIRCOM'!$G$6:$DC$12,77,FALSE) -> 15% | G15: =VLOOKUP($A15,'RECAP DIRCOM'!$G$6:$DC$12,78,FALSE) -> 4 | H15: =VLOOKUP($A15,'RECAP DIRCOM'!$G$6:$DC$12,79,FALSE) -> 6,703 | I15: =VLOOKUP($A15,'RECAP DIRCOM'!$G$6:$DC$12,80,FALSE) -> 25.25 | J15: =VLOOKUP($A15,'RECAP DIRCOM'!$G$6:$DC$12,81,FALSE) -> 13% | K15: =VLOOKUP($A15,'RECAP DIRCOM'!$G$6:$DC$12,82,FALSE) -> 3 | L15: =VLOOKUP($A15,'RECAP DIRCOM'!$G$6:$DC$12,83,FALSE) -> 15% | M15: =VLOOKUP($A15,'RECAP DIRCOM'!$G$6:$DC$12,84,FALSE) -> 12% | N15: =VLOOKUP($A15,'RECAP DIRCOM'!$G$6:$DC$12,85,FALSE) -> 4
A16: 80 | B16: Vosges | C16: =VLOOKUP($A16,'RECAP DIRCOM'!$G$6:$DC$12,3,FALSE) -> 133 | D16: =VLOOKUP($A16,'RECAP DIRCOM'!$G$6:$DC$12,75,FALSE) -> 16,920 | E16: =VLOOKUP($A16,'RECAP DIRCOM'!$G$6:$DC$12,76,FALSE) -> 127.18 | F16: =VLOOKUP($A16,'RECAP DIRCOM'!$G$6:$DC$12,77,FALSE) -> 17% | G16: =VLOOKUP($A16,'RECAP DIRCOM'!$G$6:$DC$12,78,FALSE) -> 5 | H16: =VLOOKUP($A16,'RECAP DIRCOM'!$G$6:$DC$12,79,FALSE) -> 2,928 | I16: =VLOOKUP($A16,'RECAP DIRCOM'!$G$6:$DC$12,80,FALSE) -> 22.01 | J16: =VLOOKUP($A16,'RECAP DIRCOM'!$G$6:$DC$12,81,FALSE) -> 24% | K16: =VLOOKUP($A16,'RECAP DIRCOM'!$G$6:$DC$12,82,FALSE) -> 6 | L16: =VLOOKUP($A16,'RECAP DIRCOM'!$G$6:$DC$12,83,FALSE) -> 19% | M16: =VLOOKUP($A16,'RECAP DIRCOM'!$G$6:$DC$12,84,FALSE) -> 16% | N16: =VLOOKUP($A16,'RECAP DIRCOM'!$G$6:$DC$12,85,FALSE) -> 5
B17: Total CEGEE Directions Régionales | C17: =SUM(C10:C16) -> 1406

Sheet DC_SATISFACTION
B1: Accueil | D1: BAROMETRE BDD - DIRECTIONS REGIONALES
D2: SATISFACTION
D3: =ACCUEIL!F7 -> 2021-08-29
D7: NPS à froid (SAE) | G7: NPS à chaud (QHD) | J7: Total Satisfaction Clients
D8: =DATEMAJ!E4 -> au 30/06 | E8: coef | F8: ='RECAP DIRCOM'!M4 -> 10% | G8: =DATEMAJ!C5 -> au 30/06 | H8: coef | I8: ='RECAP DIRCOM'!P4 -> 10% | K8: coef | L8: ='RECAP DIRCOM'!S4 -> 20%
B9: Direction | C9: ="ETP perf "&DATEMAJ!$C$28 -> ETP perf 30-juin | E9: % Ecart au 1er | F9: Rang | H9: % Ecart au 1er | I9: Rang | J9: Moyenne ecart au 1er | K9: % Ecart au 1er | L9: Rang CEGEE
A10: 50 | B10: Aube Haute Marne | C10: =VLOOKUP($A10,'RECAP DIRCOM'!$G$6:$DC$12,3,FALSE) -> 128 | D10: =VLOOKUP($A10,'RECAP DIRCOM'!$G$6:$DC$12,5,FALSE) -> 16 | E10: =VLOOKUP($A10,'RECAP DIRCOM'!$G$6:$DC$12,6,FALSE) -> 30% | F10: =VLOOKUP($A10,'RECAP DIRCOM'!$G$6:$DC$12,7,FALSE) -> 2 | G10: =VLOOKUP($A10,'RECAP DIRCOM'!$G$6:$DC$12,8,FALSE) -> 56% | H10: =VLOOKUP($A10,'RECAP DIRCOM'!$G$6:$DC$12,9,FALSE) -> 18% | I10: =VLOOKUP($A10,'RECAP DIRCOM'!$G$6:$DC$12,10,FALSE) -> 4 | J10: =VLOOKUP($A10,'RECAP DIRCOM'!$G$6:$DC$12,11,FALSE) -> 24% | K10: =VLOOKUP($A10,'RECAP DIRCOM'!$G$6:$DC$12,12,FALSE) -> 24% | L10: =VLOOKUP($A10,'RECAP DIRCOM'!$G$6:$DC$12,13,FALSE) -> 3
A11: 262 | B11: Bas-Rhin | C11: =VLOOKUP($A11,'RECAP DIRCOM'!$G$6:$DC$12,3,FALSE) -> 253 | D11: =VLOOKUP($A11,'RECAP DIRCOM'!$G$6:$DC$12,5,FALSE) -> 13 | E11: =VLOOKUP($A11,'RECAP DIRCOM'!$G$6:$DC$12,6,FALSE) -> 43% | F11: =VLOOKUP($A11,'RECAP DIRCOM'!$G$6:$DC$12,7,FALSE) -> 5 | G11: =VLOOKUP($A11,'RECAP DIRCOM'!$G$6:$DC$12,8,FALSE) -> 52% | H11: =VLOOKUP($A11,'RECAP DIRCOM'!$G$6:$DC$12,9,FALSE) -> 23% | I11: =VLOOKUP($A11,'RECAP DIRCOM'!$G$6:$DC$12,10,FALSE) -> 6 | J11: =VLOOKUP($A11,'RECAP DIRCOM'!$G$6:$DC$12,11,FALSE) -> 33% | K11: =VLOOKUP($A11,'RECAP DIRCOM'!$G$6:$DC$12,12,FALSE) -> 33% | L11: =VLOOKUP($A11,'RECAP DIRCOM'!$G$6:$DC$12,13,FALSE) -> 6
A12: 264 | B12: Haut-Rhin | C12: =VLOOKUP($A12,'RECAP DIRCOM'!$G$6:$DC$12,3,FALSE) -> 158 | D12: =VLOOKUP($A12,'RECAP DIRCOM'!$G$6:$DC$12,5,FALSE) -> 6 | E12: =VLOOKUP($A12,'RECAP DIRCOM'!$G$6:$DC$12,6,FALSE) -> 74% | F12: =VLOOKUP($A12,'RECAP DIRCOM'!$G$6:$DC$12,7,FALSE) -> 7 | G12: =VLOOKUP($A12,'RECAP DIRCOM'!$G$6:$DC$12,8,FALSE) -> 40% | H12: =VLOOKUP($A12,'RECAP DIRCOM'!$G$6:$DC$12,9,FALSE) -> 42% | I12: =VLOOKUP($A12,'RECAP DIRCOM'!$G$6:$DC$12,10,FALSE) -> 7 | J12: =VLOOKUP($A12,'RECAP DIRCOM'!$G$6:$DC$12,11,FALSE) -> 58% | K12: =VLOOKUP($A12,'RECAP DIRCOM'!$G$6:$DC$12,12,FALSE) -> 58% | L12: =VLOOKUP($A12,'RECAP DIRCOM'!$G$6:$DC$12,13,FALSE) -> 7
A13: 30 | B13: Marne-Ardennes | C13: =VLOOKUP($A13,'RECAP DIRCOM'!$G$6:$DC$12,3,FALSE) -> 227 | D13: =VLOOKUP($A13,'RECAP DIRCOM'!$G$6:$DC$12,5,FALSE) -> 16 | E13: =VLOOKUP($A13,'RECAP DIRCOM'!$G$6:$DC$12,6,FALSE) -> 30% | F13: =VLOOKUP($A13,'RECAP DIRCOM'!$G$6:$DC$12,7,FALSE) -> 2 | G13: =VLOOKUP($A13,'RECAP DIRCOM'!$G$6:$DC$12,8,FALSE) -> 66% | H13: =VLOOKUP($A13,'RECAP DIRCOM'!$G$6:$DC$12,9,FALSE) -> 3% | I13: =VLOOKUP($A13,'RECAP DIRCOM'!$G$6:$DC$12,10,FALSE) -> 2 | J13: =VLOOKUP($A13,'RECAP DIRCOM'!$G$6:$DC$12,11,FALSE) -> 17% | K13: =VLOOKUP($A13,'RECAP DIRCOM'!$G$6:$DC$12,12,FALSE) -> 17% | L13: =VLOOKUP($A13,'RECAP DIRCOM'!$G$6:$DC$12,13,FALSE) -> 2
A14: 110 | B14: Meurthe et Moselle Meuse | C14: =VLOOKUP($A14,'RECAP DIRCOM'!$G$6:$DC$12,3,FALSE) -> 243 | D14: =VLOOKUP($A14,'RECAP DIRCOM'!$G$6:$DC$12,5,FALSE) -> 14 | E14: =VLOOKUP($A14,'RECAP DIRCOM'!$G$6:$DC$12,6,FALSE) -> 39% | F14: =VLOOKUP($A14,'RECAP DIRCOM'!$G$6:$DC$12,7,FALSE) -> 4 | G14: =VLOOKUP($A14,'RECAP DIRCOM'!$G$6:$DC$12,8,FALSE) -> 56% | H14: =VLOOKUP($A14,'RECAP DIRCOM'!$G$6:$DC$12,9,FALSE) -> 18% | I14: =VLOOKUP($A14,'RECAP DIRCOM'!$G$6:$DC$12,10,FALSE) -> 5 | J14: =VLOOKUP($A14,'RECAP DIRCOM'!$G$6:$DC$12,11,FALSE) -> 29% | K14: =VLOOKUP($A14,'RECAP DIRCOM'!$G$6:$DC$12,12,FALSE) -> 29% | L14: =VLOOKUP($A14,'RECAP DIRCOM'!$G$6:$DC$12,13,FALSE) -> 4
A15: 160 | B15: Moselle | C15: =VLOOKUP($A15,'RECAP DIRCOM'!$G$6:$DC$12,3,FALSE) -> 265 | D15: =VLOOKUP($A15,'RECAP DIRCOM'!$G$6:$DC$12,5,FALSE) -> 12 | E15: =VLOOKUP($A15,'RECAP DIRCOM'!$G$6:$DC$12,6,FALSE) -> 48% | F15: =VLOOKUP($A15,'RECAP DIRCOM'!$G$6:$DC$12,7,FALSE) -> 6 | G15: =VLOOKUP($A15,'RECAP DIRCOM'!$G$6:$DC$12,8,FALSE) -> 57% | H15: =VLOOKUP($A15,'RECAP DIRCOM'!$G$6:$DC$12,9,FALSE) -> 16% | I15: =VLOOKUP($A15,'RECAP DIRCOM'!$G$6:$DC$12,10,FALSE) -> 3 | J15: =VLOOKUP($A15,'RECAP DIRCOM'!$G$6:$DC$12,11,FALSE) -> 32% | K15: =VLOOKUP($A15,'RECAP DIRCOM'!$G$6:$DC$12,12,FALSE) -> 32% | L15: =VLOOKUP($A15,'RECAP DIRCOM'!$G$6:$DC$12,13,FALSE) -> 5
A16: 80 | B16: Vosges | C16: =VLOOKUP($A16,'RECAP DIRCOM'!$G$6:$DC$12,3,FALSE) -> 133 | D16: =VLOOKUP($A16,'RECAP DIRCOM'!$G$6:$DC$12,5,FALSE) -> 23 | E16: =VLOOKUP($A16,'RECAP DIRCOM'!$G$6:$DC$12,6,FALSE) -> 0% | F16: =VLOOKUP($A16,'RECAP DIRCOM'!$G$6:$DC$12,7,FALSE) -> 1 | G16: =VLOOKUP($A16,'RECAP DIRCOM'!$G$6:$DC$12,8,FALSE) -> 68% | H16: =VLOOKUP($A16,'RECAP DIRCOM'!$G$6:$DC$12,9,FALSE) -> 0% | I16: =VLOOKUP($A16,'RECAP DIRCOM'!$G$6:$DC$12,10,FALSE) -> 1 | J16: =VLOOKUP($A16,'RECAP DIRCOM'!$G$6:$DC$12,11,FALSE) -> 0% | K16: =VLOOKUP($A16,'RECAP DIRCOM'!$G$6:$DC$12,12,FALSE) -> 0% | L16: =VLOOKUP($A16,'RECAP DIRCOM'!$G$6:$DC$12,13,FALSE) -> 1
B17: Total CEGEE Directions Régionales | C17: =SUM(C10:C16) -> 1406

Sheet SE_FICHE
A1: Accueil
A2: BAROMETRE BDD
A4: UNITE: | B4: TERRITOIRE | E4: ETP perf : | F4: =VLOOKUP(A5,'RECAP SECT'!$G$6:$I$23,3,FALSE) -> 61.54
A5: =VLOOKUP(B5,LISTES!$H$6:$I$23,2,FALSE) -> 5130 | B5: COLMAR
C6: Coefficient du critére | E6: Résultats | I6: Ecart au 1ier | M6: Evolution | O6: Rang
E7: du 1ier | G7: du territoire | I7: Du mois | K7: Au 31/12/2019
A9: RANG au CLASSEMENT GENERAL | K9: =VLOOKUP($A$5,#REF!,168,FALSE) ->  | M9: =+K9-O9 ->  | O9: =VLOOKUP($A$5,'RECAP SECT'!$G$6:$DG$312,168,FALSE) ->  | S9: =VLOOKUP($A$5,#REF!,154,FALSE) ->  | U9: =+S9-O9 -> 
A11: CRITERE CONQUETE | C11: 15% | O11: =VLOOKUP($A$5,'RECAP SECT'!$G$6:$DG$312,23,FALSE) -> 32.02860865
B12: PNB Evolution nette Clients BP | C12: 4% | E12: ='RECAP SECT'!#REF! ->  | G12: =VLOOKUP($A$5,'RECAP SECT'!$G$6:$DG$312,6,FALSE) -> 0.8 | I12: =VLOOKUP($A$5,'RECAP SECT'!$G$6:$DG$312,7,FALSE) -> 1700% | K12: =VLOOKUP($A$5,#REF!,7,FALSE) ->  | M12: =+K12-I12 ->  | O12: =VLOOKUP($A$5,'RECAP SECT'!$G$6:$DG$312,8,FALSE) -> 0.4737259781 | S12: =VLOOKUP($A$5,#REF!,6,FALSE) ->  | U12: =+S12-I12 -> 
B13: PNB Evolution nette Clients PREMIUM | C13: 5% | E13: ='RECAP SECT'!#REF! ->  | G13: =VLOOKUP($A$5,'RECAP SECT'!$G$6:$DG$312,10,FALSE) -> 17.0 | I13: =VLOOKUP($A$5,'RECAP SECT'!$G$6:$DG$312,11,FALSE) -> 55% | K13: =VLOOKUP($A$5,#REF!,11,FALSE) ->  | M13: =+K13-I13 ->  | O13: =VLOOKUP($A$5,'RECAP SECT'!$G$6:$DG$312,12,FALSE) -> 0.5126908682 | S13: =VLOOKUP($A$5,#REF!,9,FALSE) ->  | U13: =+S13-I13 -> 
B14: PNB Evolution nette Clients Jeunes Equipés | C14: 3% | E14: ='RECAP SECT'!#REF! ->  | G14: =VLOOKUP($A$5,'RECAP SECT'!$G$6:$DG$312,14,FALSE) -> 0.0 | I14: =VLOOKUP($A$5,'RECAP SECT'!$G$6:$DG$312,15,FALSE) -> 0% | K14: =VLOOKUP($A$5,#REF!,15,FALSE) ->  | M14: =+K14-I14 ->  | O14: =VLOOKUP($A$5,'RECAP SECT'!$G$6:$DG$312,16,FALSE) -> 0 | S14: =VLOOKUP($A$5,#REF!,12,FALSE) ->  | U14: =+S14-I14 -> 
B15: PNB Evolution nette Clients Pro Actifs Equipés | C15: 3% | E15: ='RECAP SECT'!W4 -> 0.0 | G15: =VLOOKUP($A$5,'RECAP SECT'!$G$6:$DG$312,18,FALSE) -> 2562.9 | I15: =VLOOKUP($A$5,'RECAP SECT'!$G$6:$DG$312,19,FALSE) -> 4165% | K15: =VLOOKUP($A$5,#REF!,19,FALSE) ->  | M15: =+K15-I15 ->  | O15: =VLOOKUP($A$5,'RECAP SECT'!$G$6:$DG$312,20,FALSE) -> 0.4216908773 | S15: =VLOOKUP($A$5,#REF!,15,FALSE) ->  | U15: =+S15-I15 -> 
A17: CRITERE BANCARISATION | C17: 15% | O17: =VLOOKUP($A$5,'RECAP SECT'!$G$6:$DG$312,48,FALSE) -> 16
B18: PNB Ventes nettes forfaits | C18: 4% | E18: ='RECAP SECT'!X4 -> 72.0 | G18: =VLOOKUP($A$5,'RECAP SECT'!$G$6:$DG$312,31,FALSE) -> -2.0 | I18: =VLOOKUP($A$5,'RECAP SECT'!$G$6:$DG$312,32,FALSE) -> 19% | K18: =VLOOKUP($A$5,#REF!,32,FALSE) ->  | M18: =+K18-I18 ->  | O18: =VLOOKUP($A$5,'RECAP SECT'!$G$6:$DG$312,33,FALSE) -> 8 | S18: =VLOOKUP($A$5,#REF!,27,FALSE) ->  | U18: =+S18-I18 -> 
B19: PNB Ventes nettes IZICARTES Débit Différé | C19: 4% | E19: ='RECAP SECT'!AB4 -> 44.8 | G19: =VLOOKUP($A$5,'RECAP SECT'!$G$6:$DG$312,35,FALSE) -> 0.3 | I19: =VLOOKUP($A$5,'RECAP SECT'!$G$6:$DG$312,36,FALSE) -> 1700% | K19: =VLOOKUP($A$5,#REF!,36,FALSE) ->  | M19: =+K19-I19 ->  | O19: =VLOOKUP($A$5,'RECAP SECT'!$G$6:$DG$312,37,FALSE) -> 0 | S19: =VLOOKUP($A$5,#REF!,30,FALSE) ->  | U19: =+S19-I19 -> 
B20: PNB Ventes nettes cartes HDG Débit Différé | C20: 4% | E20: ='RECAP SECT'!AF4 -> 15.1 | G20: =VLOOKUP($A$5,'RECAP SECT'!$G$6:$DG$312,39,FALSE) -> 0.0 | I20: =VLOOKUP($A$5,'RECAP SECT'!$G$6:$DG$312,40,FALSE) -> 0% | K20: =VLOOKUP($A$5,#REF!,40,FALSE) ->  | M20: =+K20-I20 ->  | O20: =VLOOKUP($A$5,'RECAP SECT'!$G$6:$DG$312,41,FALSE) -> 17747.44579 | S20: =VLOOKUP($A$5,#REF!,33,FALSE) ->  | U20: =+S20-I20 -> 
B21: PNB Ventes nettes Forfaits Pro, Carte pro | C21: 3% | E21: ='RECAP SECT'!AJ4 -> -1.6 | G21: =VLOOKUP($A$5,'RECAP SECT'!$G$6:$DG$312,43,FALSE) -> 0.5 | I21: =VLOOKUP($A$5,'RECAP SECT'!$G$6:$DG$312,44,FALSE) -> 1600% | K21: =VLOOKUP($A$5,#REF!,44,FALSE) ->  | M21: =+K21-I21 ->  | O21: =VLOOKUP($A$5,'RECAP SECT'!$G$6:$DG$312,45,FALSE) -> 942 | S21: =VLOOKUP($A$5,#REF!,39,FALSE) ->  | U21: =+S21-I21 -> 
A23: CRITERE EPARGNE | C23: 10% | O23: =VLOOKUP($A$5,'RECAP SECT'!$G$6:$DG$312,69,FALSE) -> 0.4706186649
B24: PNB Epargne Liquide | C24: 3% | E24: ='RECAP SECT'!AU4 -> 575.1 | G24: =VLOOKUP($A$5,'RECAP SECT'!$G$6:$DG$312,56,FALSE) -> 3586.1 | I24: =VLOOKUP($A$5,'RECAP SECT'!$G$6:$DG$312,57,FALSE) -> 5827% | K24: =VLOOKUP($A$5,#REF!,57,FALSE) ->  | M24: =+K24-I24 ->  | O24: =VLOOKUP($A$5,'RECAP SECT'!$G$6:$DG$312,58,FALSE) -> 0.692742615 | S24: =VLOOKUP($A$5,#REF!,51,FALSE) ->  | U24: =+S24-I24 -> 
B25: PNB CA UC + arbitrage | C25: 4% | E25: ='RECAP SECT'!AY4 -> 24.7 | G25: =VLOOKUP($A$5,'RECAP SECT'!$G$6:$DG$312,60,FALSE) -> 2595.3 | I25: =VLOOKUP($A$5,'RECAP SECT'!$G$6:$DG$312,61,FALSE) -> 4217% | K25: =VLOOKUP($A$5,#REF!,61,FALSE) ->  | M25: =+K25-I25 ->  | O25: =VLOOKUP($A$5,'RECAP SECT'!$G$6:$DG$312,62,FALSE) -> 0.2949798427 | S25: =VLOOKUP($A$5,#REF!,57,FALSE) ->  | U25: =+S25-I25 -> 
B26: PNB Excédent assurance vie | C26: 3% | E26: ='RECAP SECT'!#REF! ->  | G26: =VLOOKUP($A$5,'RECAP SECT'!$G$6:$DG$312,64,FALSE) -> 600.0 | I26: =VLOOKUP($A$5,'RECAP SECT'!$G$6:$DG$312,65,FALSE) -> 975% | K26: =VLOOKUP($A$5,#REF!,65,FALSE) ->  | M26: =+K26-I26 ->  | O26: =VLOOKUP($A$5,'RECAP SECT'!$G$6:$DG$312,66,FALSE) -> 0.5114610751 | S26: =VLOOKUP($A$5,#REF!,60,FALSE) ->  | U26: =+S26-I26 -> 
A28: CRITERE CREDITS | C28: 15% | O28: =VLOOKUP($A$5,'RECAP SECT'!$G$6:$DG$312,102,FALSE) -> 0.3931580259
B29: PNB crédit conso | C29: 4% | E29: ='RECAP SECT'!BJ4 -> 189.7 | G29: =VLOOKUP($A$5,'RECAP SECT'!$G$6:$DG$312,77,FALSE) -> 0.3 | I29: =VLOOKUP($A$5,'RECAP SECT'!$G$6:$DG$312,78,FALSE) -> 1200% | K29: =VLOOKUP($A$5,#REF!,78,FALSE) ->  | M29: =+K29-I29 ->  | O29: =VLOOKUP($A$5,'RECAP SECT'!$G$6:$DG$312,79,FALSE) -> 1618 | S29: =VLOOKUP($A$5,#REF!,75,FALSE) ->  | U29: =+S29-I29 -> 
B30: PNB ADE crédit conso | C30: 1% | E30: ='RECAP SECT'!#REF! ->  | G30: =VLOOKUP($A$5,'RECAP SECT'!$G$6:$DG$312,81,FALSE) -> 0.3 | I30: =VLOOKUP($A$5,'RECAP SECT'!$G$6:$DG$312,82,FALSE) -> 1600% | K30: =VLOOKUP($A$5,#REF!,82,FALSE) ->  | O30: =VLOOKUP($A$5,'RECAP SECT'!$G$6:$DG$312,83,FALSE) -> 0.2811582563 | S30: =VLOOKUP($A$5,#REF!,78,FALSE) -> 
B31: PNB crédit immo | C31: 4% | E31: ='RECAP SECT'!BN4 -> 59.8 | G31: =VLOOKUP($A$5,'RECAP SECT'!$G$6:$DG$312,85,FALSE) -> 13.0 | I31: =VLOOKUP($A$5,'RECAP SECT'!$G$6:$DG$312,86,FALSE) -> 0% | K31: =VLOOKUP($A$5,#REF!,86,FALSE) ->  | O31: =VLOOKUP($A$5,'RECAP SECT'!$G$6:$DG$312,87,FALSE) -> 0 | S31: =VLOOKUP($A$5,#REF!,81,FALSE) -> 
B32: PNB ADE crédit immo | C32: 2% | E32: ='RECAP SECT'!#REF! ->  | G32: =VLOOKUP($A$5,'RECAP SECT'!$G$6:$DG$312,89,FALSE) -> 0.0 | I32: =VLOOKUP($A$5,'RECAP SECT'!$G$6:$DG$312,90,FALSE) -> 0% | K32: =VLOOKUP($A$5,#REF!,90,FALSE) ->  | O32: =VLOOKUP($A$5,'RECAP SECT'!$G$6:$DG$312,91,FALSE) -> 0 | S32: =VLOOKUP($A$5,#REF!,84,FALSE) -> 
B33: PNB SACCEF | C33: 2% | E33: ='RECAP SECT'!#REF! ->  | G33: =VLOOKUP($A$5,'RECAP SECT'!$G$6:$DG$312,93,FALSE) -> 0.0 | I33: =VLOOKUP($A$5,'RECAP SECT'!$G$6:$DG$312,94,FALSE) -> 0% | K33: =VLOOKUP($A$5,#REF!,94,FALSE) ->  | O33: =VLOOKUP($A$5,'RECAP SECT'!$G$6:$DG$312,95,FALSE) -> 0 | S33: =VLOOKUP($A$5,#REF!,87,FALSE) -> 
B34: PNB Crédit MLT + Crédit Bail | C34: 2% | E34: ='RECAP SECT'!BR4 -> 20.0 | G34: =VLOOKUP($A$5,'RECAP SECT'!$G$6:$DG$312,97,FALSE) -> 0.0 | I34: =VLOOKUP($A$5,'RECAP SECT'!$G$6:$DG$312,98,FALSE) -> 0% | K34: =VLOOKUP($A$5,#REF!,98,FALSE) ->  | O34: =VLOOKUP($A$5,'RECAP SECT'!$G$6:$DG$312,99,FALSE) -> 0 | S34: =VLOOKUP($A$5,#REF!,90,FALSE) -> 
A36: CRITERE IARD PREVOYANCE | C36: 15% | O36: =VLOOKUP($A$5,'RECAP SECT'!$G$6:$DG$312,119,FALSE) -> 
B37: PNB Ventes nettes IARD | C37: 9% | E37: ='RECAP SECT'!CC4 -> 214.9 | G37: =VLOOKUP($A$5,'RECAP SECT'!$G$6:$DG$312,110,FALSE) ->  | I37: =VLOOKUP($A$5,'RECAP SECT'!$G$6:$DG$312,111,FALSE) ->  | K37: =VLOOKUP($A$5,#REF!,111,FALSE) ->  | M37: =+K37-I37 ->  | O37: =VLOOKUP($A$5,'RECAP SECT'!$G$6:$DG$312,112,FALSE) ->  | S37: =VLOOKUP($A$5,#REF!,102,FALSE) ->  | U37: =+S37-I37 -> 
B38: PNB Ventes nettes Prévoyance | C38: 6% | E38: ='RECAP SECT'!CG4 -> 38.9 | G38: =VLOOKUP($A$5,'RECAP SECT'!$G$6:$DG$312,114,FALSE) ->  | I38: =VLOOKUP($A$5,'RECAP SECT'!$G$6:$DG$312,115,FALSE) ->  | K38: =VLOOKUP($A$5,#REF!,115,FALSE) ->  | M38: =+K38-I38 ->  | O38: =VLOOKUP($A$5,'RECAP SECT'!$G$6:$DG$312,116,FALSE) ->  | S38: =VLOOKUP($A$5,#REF!,105,FALSE) ->  | U38: =+S38-I38 -> 
A40: CRITERE ACCELERATEURS PNB | C40: 15% | O40: =VLOOKUP($A$5,'RECAP SECT'!$G$6:$DG$312,144,FALSE) -> 
B41: PNB Ventes brutes SED Finalisées | C41: 6% | E41: ='RECAP SECT'!#REF! ->  | G41: =VLOOKUP($A$5,'RECAP SECT'!$G$6:$DG$312,127,FALSE) ->  | I41: =VLOOKUP($A$5,'RECAP SECT'!$G$6:$DG$312,128,FALSE) ->  | K41: =VLOOKUP($A$5,#REF!,128,FALSE) ->  | M41: =+K41-I41 ->  | O41: =VLOOKUP($A$5,'RECAP SECT'!$G$6:$DG$312,129,FALSE) ->  | S41: =VLOOKUP($A$5,#REF!,120,FALSE) ->  | U41: =+S41-I41 -> 
B42: PNB clients équipés E documents | C42: 3% | E42: ='RECAP SECT'!#REF! ->  | G42: =VLOOKUP($A$5,'RECAP SECT'!$G$6:$DG$312,131,FALSE) ->  | I42: =VLOOKUP($A$5,'RECAP SECT'!$G$6:$DG$312,132,FALSE) ->  | K42: =VLOOKUP($A$5,#REF!,132,FALSE) ->  | M42: =+K42-I42 ->  | O42: =VLOOKUP($A$5,'RECAP SECT'!$G$6:$DG$312,133,FALSE) ->  | S42: =VLOOKUP($A$5,#REF!,123,FALSE) ->  | U42: =+S42-I42 -> 
B43: Economie opt'in | C43: 3% | E43: ='RECAP SECT'!#REF! ->  | G43: =VLOOKUP($A$5,'RECAP SECT'!$G$6:$DG$312,135,FALSE) ->  | I43: =VLOOKUP($A$5,'RECAP SECT'!$G$6:$DG$312,136,FALSE) ->  | K43: =VLOOKUP($A$5,#REF!,136,FALSE) ->  | M43: =+K43-I43 ->  | O43: =VLOOKUP($A$5,'RECAP SECT'!$G$6:$DG$312,137,FALSE) -> 
B44: Remises commerciales | C44: 3% | E44: ='RECAP SECT'!#REF! ->  | G44: =VLOOKUP($A$5,'RECAP SECT'!$G$6:$DG$312,139,FALSE) ->  | I44: =VLOOKUP($A$5,'RECAP SECT'!$G$6:$DG$312,140,FALSE) ->  | K44: =VLOOKUP($A$5,#REF!,140,FALSE) ->  | M44: =+K44-I44 ->  | O44: =VLOOKUP($A$5,'RECAP SECT'!$G$6:$DG$312,141,FALSE) ->  | S44: =VLOOKUP($A$5,#REF!,126,FALSE) ->  | U44: =+S44-I44 -> 
A46: CRITERE Satisfaction Clients | C46: 15% | O46: =VLOOKUP($A$5,'RECAP SECT'!$G$6:$DG$312,159,FALSE) -> 
B47: Objectifs NPS* | C47: 8% | E47: ='RECAP SECT'!K4 -> 24 | G47: =VLOOKUP($A$5,'RECAP SECT'!$G$6:$DG$312,151,FALSE) ->  | I47: =VLOOKUP($A$5,'RECAP SECT'!$G$6:$DG$312,152,FALSE) ->  | K47: =VLOOKUP($A$5,#REF!,152,FALSE) ->  | M47: =+K47-I47 ->  | O47: =VLOOKUP($A$5,'RECAP SECT'!$G$6:$DG$312,153,FALSE) ->  | S47: =VLOOKUP($A$5,#REF!,138,FALSE) ->  | U47: =+S47-I47 -> 
B48: Enquête Qualité Haute Définition | C48: 7% | E48: ='RECAP SECT'!N4 -> 74% | G48: =VLOOKUP($A$5,'RECAP SECT'!$G$6:$DG$312,154,FALSE) ->  | I48: =VLOOKUP($A$5,'RECAP SECT'!$G$6:$DG$312,155,FALSE) ->  | K48: =VLOOKUP($A$5,#REF!,155,FALSE) ->  | M48: =+K48-I48 ->  | O48: =VLOOKUP($A$5,'RECAP SECT'!$G$6:$DG$312,156,FALSE) ->  | S48: =VLOOKUP($A$5,#REF!,141,FALSE) ->  | U48: =+S48-I48 -> 

Sheet SE_TOTAL
B1: Accueil | F1: BAROMETRE BDD - TERRITOIRES
F2: TOTAL GENERAL
F3: =ACCUEIL!F7 -> 2021-08-29
F7: TOTAL GENERAL | I7: Total Satisfaction Clients | L7: Total Bancarisation | O7: Total Epargne | R7: Total IARD Prévoyance | U7: Total Crédits
G8: coef | H8: 100% | J8: coef | K8: =SE_SATISFACTION!N8 -> 20% | M8: coef | N8: =SE_BANCA!X8 -> 20% | P8: coef | Q8: =SE_EPARGNE!P8 -> 20% | S8: coef | T8: =SE_IARD!P8 -> 20% | V8: coef | W8: =SE_CREDIT!T8 -> 20%
B9: Direction | C9: eds | D9: Territoire | E9: ="ETP perf "&DATEMAJ!$C$28 -> ETP perf 30-juin | F9: Moyenne ecart au 1er | G9: % Ecart au 1er | H9: Rang CEGEE | I9: Moyenne ecart au 1er | J9: % Ecart au 1er | K9: Rang CEGEE | L9: Moyenne ecart au 1er | M9: % Ecart au 1er | N9: Rang CEGEE | O9: Moyenne ecart au 1er | P9: % Ecart au 1er | Q9: Rang CEGEE | R9: Moyenne ecart au 1er | S9: % Ecart au 1er | T9: Rang CEGEE | U9: Moyenne ecart au 1er | V9: % Ecart au 1er | W9: Rang CEGEE
A10: 50 | B10: MEURTHE ET MOSELLE MEUSE | C10: 26 | D10: NANCY | E10: 66.2 | F10: 6% | G10: 0% | H10: 1 | I10: 32% | J10: 28% | K10: 10 | L10: 7% | M10: 0% | N10: 1 | O10: 10% | P10: 2% | Q10: 4 | R10: 3% | S10: 0% | T10: 1 | U10: 5% | V10: 0% | W10: 1
A11: 50 | B11: MARNE-ARDENNES | C11: 2 | D11: CHARLEVILLE MEZIERES | E11: 56.6 | F11: 12% | G11: 6% | H11: 2 | I11: 11% | J11: 7% | K11: 4 | L11: 28% | M11: 22% | N11: 8 | O11: 16% | P11: 8% | Q11: 5 | R11: 11% | S11: 9% | T11: 4 | U11: 19% | V11: 14% | W11: 4
A12: 262 | B12: MEURTHE ET MOSELLE MEUSE | C12: 27 | D12: PONT A MOUSSON | E12: 76.5 | F12: 12% | G12: 6% | H12: 3 | I12: 43% | J12: 39% | K12: 15 | L12: 10% | M12: 3% | N12: 2 | O12: 8% | P12: 0% | Q12: 2 | R12: 18% | S12: 16% | T12: 6 | U12: 9% | V12: 5% | W12: 2
A13: 262 | B13: BAS-RHIN | C13: 5006 | D13: STRASBOURG | E13: 75.2 | F13: 15% | G13: 9% | H13: 4 | I13: 29% | J13: 25% | K13: 8 | L13: 23% | M13: 16% | N13: 6 | O13: 8% | P13: 0% | Q13: 1 | R13: 4% | S13: 2% | T13: 2 | U13: 36% | V13: 31% | W13: 12
A14: 262 | B14: MARNE-ARDENNES | C14: 6 | D14: CHALONS EN CHAMPAGNE | E14: 44.7 | F14: 15% | G14: 9% | H14: 5 | I14: 6% | J14: 2% | K14: 3 | L14: 26% | M14: 19% | N14: 7 | O14: 28% | P14: 20% | Q14: 9 | R14: 17% | S14: 15% | T14: 5 | U14: 26% | V14: 21% | W14: 7
A15: 264 | B15: MARNE-ARDENNES | C15: 11 | D15: REIMS | E15: 79.7 | F15: 16% | G15: 10% | H15: 6 | I15: 37% | J15: 33% | K15: 12 | L15: 23% | M15: 16% | N15: 5 | O15: 27% | P15: 19% | Q15: 8 | R15: 9% | S15: 7% | T15: 3 | U15: 11% | V15: 6% | W15: 3
A16: 264 | B16: MEURTHE ET MOSELLE MEUSE | C16: 31 | D16: VERDUN | E16: 55.1 | F16: 19% | G16: 13% | H16: 7 | I16: 20% | J16: 16% | K16: 5 | L16: 21% | M16: 14% | N16: 3 | O16: 32% | P16: 24% | Q16: 12 | R16: 26% | S16: 24% | T16: 12 | U16: 21% | V16: 16% | W16: 5
A17: 30 | B17: VOSGES | C17: 57 | D17: EPINAL | E17: 61.1 | F17: 20% | G17: 14% | H17: 8 | I17: 4% | J17: 0% | K17: 1 | L17: 37% | M17: 30% | N17: 14 | O17: 29% | P17: 21% | Q17: 10 | R17: 22% | S17: 19% | T17: 9 | U17: 36% | V17: 31% | W17: 10
A18: 30 | B18: MOSELLE | C18: 44 | D18: MOSELLE NORD | E18: 65.8 | F18: 21% | G18: 15% | H18: 9 | I18: 46% | J18: 42% | K18: 16 | L18: 22% | M18: 15% | N18: 4 | O18: 19% | P18: 11% | Q18: 6 | R18: 20% | S18: 17% | T18: 7 | U18: 25% | V18: 20% | W18: 6
A19: 30 | B19: VOSGES | C19: 55 | D19: SAINT DIE | E19: 47.1 | F19: 25% | G19: 19% | H19: 10 | I19: 5% | J19: 1% | K19: 2 | L19: 40% | M19: 33% | N19: 15 | O19: 32% | P19: 24% | Q19: 13 | R19: 37% | S19: 34% | T19: 15 | U19: 36% | V19: 31% | W19: 11
A20: 110 | B20: MOSELLE | C20: 42 | D20: MOSELLE EST | E20: 70.2 | F20: 25% | G20: 19% | H20: 11 | I20: 27% | J20: 23% | K20: 7 | L20: 30% | M20: 23% | N20: 11 | O20: 33% | P20: 25% | Q20: 14 | R20: 25% | S20: 23% | T20: 11 | U20: 35% | V20: 30% | W20: 9
A21: 110 | B21: BAS-RHIN | C21: 5101 | D21: SELESTAT | E21: 59.9 | F21: 25% | G21: 19% | H21: 12 | I21: 43% | J21: 39% | K21: 14 | L21: 29% | M21: 22% | N21: 9 | O21: 10% | P21: 2% | Q21: 3 | R21: 25% | S21: 23% | T21: 10 | U21: 43% | V21: 39% | W21: 16
A22: 110 | B22: AUBE HAUTE MARNE | C22: 21 | D22: CHAUMONT | E22: 33.9 | F22: 28% | G22: 21% | H22: 13 | I22: 37% | J22: 33% | K22: 11 | L22: 33% | M22: 26% | N22: 12 | O22: 42% | P22: 34% | Q22: 15 | R22: 21% | S22: 18% | T22: 8 | U22: 32% | V22: 27% | W22: 8
A23: 160 | B23: MOSELLE | C23: 45 | D23: METZ | E23: 88.4 | F23: 29% | G23: 23% | H23: 14 | I23: 31% | J23: 27% | K23: 9 | L23: 40% | M23: 34% | N23: 16 | O23: 29% | P23: 21% | Q23: 11 | R23: 34% | S23: 32% | T23: 14 | U23: 36% | V23: 32% | W23: 13
A24: 160 | B24: BAS-RHIN | C24: 5060 | D24: HAGUENAU | E24: 70.0 | F24: 31% | G24: 24% | H24: 15 | I24: 42% | J24: 38% | K24: 13 | L24: 30% | M24: 23% | N24: 10 | O24: 26% | P24: 18% | Q24: 7 | R24: 39% | S24: 37% | T24: 16 | U24: 41% | V24: 36% | W24: 15
A25: 160 | B25: AUBE HAUTE MARNE | C25: 14 | D25: TROYES | E25: 67.1 | F25: 37% | G25: 30% | H25: 16 | I25: 25% | J25: 21% | K25: 6 | L25: 34% | M25: 28% | N25: 13 | O25: 70% | P25: 62% | Q25: 18 | R25: 43% | S25: 40% | T25: 17 | U25: 37% | V25: 32% | W25: 14
A26: 80 | B26: HAUT-RHIN | C26: 5130 | D26: COLMAR | E26: 61.5 | F26: 39% | G26: 33% | H26: 17 | I26: 55% | J26: 51% | K26: 17 | L26: 41% | M26: 34% | N26: 17 | O26: 46% | P26: 38% | Q26: 16 | R26: 28% | S26: 26% | T26: 13 | U26: 52% | V26: 47% | W26: 18
A27: 80 | B27: HAUT-RHIN | C27: 5169 | D27: MULHOUSE | E27: 61.1 | F27: 50% | G27: 44% | H27: 18 | I27: 66% | J27: 62% | K27: 18 | L27: 61% | M27: 54% | N27: 18 | O27: 51% | P27: 43% | Q27: 17 | R27: 51% | S27: 48% | T27: 18 | U27: 48% | V27: 44% | W27: 17
A28: Total CEGEE Directions Régionales | E28: =SUM(E10:E27) -> 1140

Sheet SE_BANCA
B1: Accueil | F1: BAROMETRE BDD - TERRITOIRES
F2: BANCARISATION
F3: =ACCUEIL!F7 -> 2021-08-29
F7: Ventes Nettes produits pondérés | J7: Ventes sur client non détenteur de l’univers | N7: Mobilité Macron | R7: Remises commerciales | V7: Total Bancarisation
F8: =DATEMAJ!C8 -> au 29/08 | H8: coef | I8: ='RECAP DIRCOM'!AA4 -> 10% | J8: =DATEMAJ!C9 -> au 29/08 | L8: coef | M8: ='RECAP DIRCOM'!AE4 -> 4% | N8: =DATEMAJ!C10 -> au 29/08 | P8: coef | Q8: ='RECAP DIRCOM'!AI4 -> 3% | R8: =DATEMAJ!C11 -> au 30/06 | T8: coef | U8: ='RECAP DIRCOM'!AM4 -> 3% | W8: coef | X8: ='RECAP DIRCOM'!AP4 -> 20%
B9: Direction | C9: eds | D9: Territoire | E9: ="ETP perf "&DATEMAJ!$C$28 -> ETP perf 30-juin | F9: VN | G9: VN / ETP | H9: % Ecart au 1er | I9: Rang | J9: VB | K9: VB / ETP | L9: % Ecart au 1er | M9: Rang | N9: Nb | O9: Nb / ETP | P9: % Ecart au 1er | Q9: Rang | R9: Montant | S9: Montant / ETP | T9: % Ecart au 1er | U9: Rang | V9: Moyenne ecart au 1er | W9: % Ecart au 1er | X9: Rang CEGEE
A10: 50 | B10: AUBE HAUTE MARNE | C10: 21 | D10: CHAUMONT | E10: =VLOOKUP($C10,'RECAP SECT'!$G$6:$DC$253,3,FALSE) -> 33.9 | F10: =VLOOKUP($C10,'RECAP SECT'!$G$6:$DC$253,18,FALSE) -> 1,583 | G10: =VLOOKUP($C10,'RECAP SECT'!$G$6:$DC$253,19,FALSE) -> 46.69 | H10: =VLOOKUP($C10,'RECAP SECT'!$G$6:$DC$253,20,FALSE) -> 35% | I10: =VLOOKUP($C10,'RECAP SECT'!$G$6:$DC$253,21,FALSE) -> 11 | J10: =VLOOKUP($C10,'RECAP SECT'!$G$6:$DC$253,22,FALSE) -> 1,282 | K10: =VLOOKUP($C10,'RECAP SECT'!$G$6:$DC$253,23,FALSE) -> 37.81 | L10: =VLOOKUP($C10,'RECAP SECT'!$G$6:$DC$253,24,FALSE) -> 16% | M10: =VLOOKUP($C10,'RECAP SECT'!$G$6:$DC$253,25,FALSE) -> 6 | N10: =VLOOKUP($C10,'RECAP SECT'!$G$6:$DC$253,26,FALSE) -> 221 | O10: =VLOOKUP($C10,'RECAP SECT'!$G$6:$DC$253,27,FALSE) -> 6.52 | P10: =VLOOKUP($C10,'RECAP SECT'!$G$6:$DC$253,28,FALSE) -> 57% | Q10: =VLOOKUP($C10,'RECAP SECT'!$G$6:$DC$253,29,FALSE) -> 9 | R10: =VLOOKUP($C10,'RECAP SECT'!$G$6:$DC$253,30,FALSE) -> -68.7 | S10: =VLOOKUP($C10,'RECAP SECT'!$G$6:$DC$253,31,FALSE) -> -2.03 | T10: =VLOOKUP($C10,'RECAP SECT'!$G$6:$DC$253,32,FALSE) -> 24% | U10: =VLOOKUP($C10,'RECAP SECT'!$G$6:$DC$253,33,FALSE) -> 11 | V10: =VLOOKUP($C10,'RECAP SECT'!$G$6:$DC$253,34,FALSE) -> 33% | W10: =VLOOKUP($C10,'RECAP SECT'!$G$6:$DC$253,35,FALSE) -> 26% | X10: =VLOOKUP($C10,'RECAP SECT'!$G$6:$DC$253,36,FALSE) -> 12
A11: 50 | B11: AUBE HAUTE MARNE | C11: 14 | D11: TROYES | E11: =VLOOKUP($C11,'RECAP SECT'!$G$6:$DC$253,3,FALSE) -> 67.1 | F11: =VLOOKUP($C11,'RECAP SECT'!$G$6:$DC$253,18,FALSE) -> 2,983 | G11: =VLOOKUP($C11,'RECAP SECT'!$G$6:$DC$253,19,FALSE) -> 44.48 | H11: =VLOOKUP($C11,'RECAP SECT'!$G$6:$DC$253,20,FALSE) -> 38% | I11: =VLOOKUP($C11,'RECAP SECT'!$G$6:$DC$253,21,FALSE) -> 12 | J11: =VLOOKUP($C11,'RECAP SECT'!$G$6:$DC$253,22,FALSE) -> 2,282 | K11: =VLOOKUP($C11,'RECAP SECT'!$G$6:$DC$253,23,FALSE) -> 34.03 | L11: =VLOOKUP($C11,'RECAP SECT'!$G$6:$DC$253,24,FALSE) -> 24% | M11: =VLOOKUP($C11,'RECAP SECT'!$G$6:$DC$253,25,FALSE) -> 11 | N11: =VLOOKUP($C11,'RECAP SECT'!$G$6:$DC$253,26,FALSE) -> 431 | O11: =VLOOKUP($C11,'RECAP SECT'!$G$6:$DC$253,27,FALSE) -> 6.43 | P11: =VLOOKUP($C11,'RECAP SECT'!$G$6:$DC$253,28,FALSE) -> 57% | Q11: =VLOOKUP($C11,'RECAP SECT'!$G$6:$DC$253,29,FALSE) -> 10 | R11: =VLOOKUP($C11,'RECAP SECT'!$G$6:$DC$253,30,FALSE) -> -123.8 | S11: =VLOOKUP($C11,'RECAP SECT'!$G$6:$DC$253,31,FALSE) -> -1.85 | T11: =VLOOKUP($C11,'RECAP SECT'!$G$6:$DC$253,32,FALSE) -> 13% | U11: =VLOOKUP($C11,'RECAP SECT'!$G$6:$DC$253,33,FALSE) -> 5 | V11: =VLOOKUP($C11,'RECAP SECT'!$G$6:$DC$253,34,FALSE) -> 34% | W11: =VLOOKUP($C11,'RECAP SECT'!$G$6:$DC$253,35,FALSE) -> 28% | X11: =VLOOKUP($C11,'RECAP SECT'!$G$6:$DC$253,36,FALSE) -> 13
A12: 262 | B12: BAS-RHIN | C12: 5060 | D12: HAGUENAU | E12: =VLOOKUP($C12,'RECAP SECT'!$G$6:$DC$253,3,FALSE) -> 70.0 | F12: =VLOOKUP($C12,'RECAP SECT'!$G$6:$DC$253,18,FALSE) -> 4,073 | G12: =VLOOKUP($C12,'RECAP SECT'!$G$6:$DC$253,19,FALSE) -> 58.20 | H12: =VLOOKUP($C12,'RECAP SECT'!$G$6:$DC$253,20,FALSE) -> 19% | I12: =VLOOKUP($C12,'RECAP SECT'!$G$6:$DC$253,21,FALSE) -> 7 | J12: =VLOOKUP($C12,'RECAP SECT'!$G$6:$DC$253,22,FALSE) -> 2,178 | K12: =VLOOKUP($C12,'RECAP SECT'!$G$6:$DC$253,23,FALSE) -> 31.12 | L12: =VLOOKUP($C12,'RECAP SECT'!$G$6:$DC$253,24,FALSE) -> 30% | M12: =VLOOKUP($C12,'RECAP SECT'!$G$6:$DC$253,25,FALSE) -> 16 | N12: =VLOOKUP($C12,'RECAP SECT'!$G$6:$DC$253,26,FALSE) -> 332 | O12: =VLOOKUP($C12,'RECAP SECT'!$G$6:$DC$253,27,FALSE) -> 4.74 | P12: =VLOOKUP($C12,'RECAP SECT'!$G$6:$DC$253,28,FALSE) -> 69% | Q12: =VLOOKUP($C12,'RECAP SECT'!$G$6:$DC$253,29,FALSE) -> 14 | R12: =VLOOKUP($C12,'RECAP SECT'!$G$6:$DC$253,30,FALSE) -> -143.3 | S12: =VLOOKUP($C12,'RECAP SECT'!$G$6:$DC$253,31,FALSE) -> -2.05 | T12: =VLOOKUP($C12,'RECAP SECT'!$G$6:$DC$253,32,FALSE) -> 25% | U12: =VLOOKUP($C12,'RECAP SECT'!$G$6:$DC$253,33,FALSE) -> 12 | V12: =VLOOKUP($C12,'RECAP SECT'!$G$6:$DC$253,34,FALSE) -> 30% | W12: =VLOOKUP($C12,'RECAP SECT'!$G$6:$DC$253,35,FALSE) -> 23% | X12: =VLOOKUP($C12,'RECAP SECT'!$G$6:$DC$253,36,FALSE) -> 10
A13: 262 | B13: BAS-RHIN | C13: 5101 | D13: SELESTAT | E13: =VLOOKUP($C13,'RECAP SECT'!$G$6:$DC$253,3,FALSE) -> 59.9 | F13: =VLOOKUP($C13,'RECAP SECT'!$G$6:$DC$253,18,FALSE) -> 3,618 | G13: =VLOOKUP($C13,'RECAP SECT'!$G$6:$DC$253,19,FALSE) -> 60.41 | H13: =VLOOKUP($C13,'RECAP SECT'!$G$6:$DC$253,20,FALSE) -> 16% | I13: =VLOOKUP($C13,'RECAP SECT'!$G$6:$DC$253,21,FALSE) -> 5 | J13: =VLOOKUP($C13,'RECAP SECT'!$G$6:$DC$253,22,FALSE) -> 1,850 | K13: =VLOOKUP($C13,'RECAP SECT'!$G$6:$DC$253,23,FALSE) -> 30.89 | L13: =VLOOKUP($C13,'RECAP SECT'!$G$6:$DC$253,24,FALSE) -> 31% | M13: =VLOOKUP($C13,'RECAP SECT'!$G$6:$DC$253,25,FALSE) -> 17 | N13: =VLOOKUP($C13,'RECAP SECT'!$G$6:$DC$253,26,FALSE) -> 292 | O13: =VLOOKUP($C13,'RECAP SECT'!$G$6:$DC$253,27,FALSE) -> 4.88 | P13: =VLOOKUP($C13,'RECAP SECT'!$G$6:$DC$253,28,FALSE) -> 68% | Q13: =VLOOKUP($C13,'RECAP SECT'!$G$6:$DC$253,29,FALSE) -> 13 | R13: =VLOOKUP($C13,'RECAP SECT'!$G$6:$DC$253,30,FALSE) -> -126.9 | S13: =VLOOKUP($C13,'RECAP SECT'!$G$6:$DC$253,31,FALSE) -> -2.12 | T13: =VLOOKUP($C13,'RECAP SECT'!$G$6:$DC$253,32,FALSE) -> 29% | U13: =VLOOKUP($C13,'RECAP SECT'!$G$6:$DC$253,33,FALSE) -> 15 | V13: =VLOOKUP($C13,'RECAP SECT'!$G$6:$DC$253,34,FALSE) -> 29% | W13: =VLOOKUP($C13,'RECAP SECT'!$G$6:$DC$253,35,FALSE) -> 22% | X13: =VLOOKUP($C13,'RECAP SECT'!$G$6:$DC$253,36,FALSE) -> 9
A14: 262 | B14: BAS-RHIN | C14: 5006 | D14: STRASBOURG | E14: =VLOOKUP($C14,'RECAP SECT'!$G$6:$DC$253,3,FALSE) -> 75.2 | F14: =VLOOKUP($C14,'RECAP SECT'!$G$6:$DC$253,18,FALSE) -> 4,701 | G14: =VLOOKUP($C14,'RECAP SECT'!$G$6:$DC$253,19,FALSE) -> 62.49 | H14: =VLOOKUP($C14,'RECAP SECT'!$G$6:$DC$253,20,FALSE) -> 13% | I14: =VLOOKUP($C14,'RECAP SECT'!$G$6:$DC$253,21,FALSE) -> 3 | J14: =VLOOKUP($C14,'RECAP SECT'!$G$6:$DC$253,22,FALSE) -> 3,253 | K14: =VLOOKUP($C14,'RECAP SECT'!$G$6:$DC$253,23,FALSE) -> 43.24 | L14: =VLOOKUP($C14,'RECAP SECT'!$G$6:$DC$253,24,FALSE) -> 3% | M14: =VLOOKUP($C14,'RECAP SECT'!$G$6:$DC$253,25,FALSE) -> 2 | N14: =VLOOKUP($C14,'RECAP SECT'!$G$6:$DC$253,26,FALSE) -> 618 | O14: =VLOOKUP($C14,'RECAP SECT'!$G$6:$DC$253,27,FALSE) -> 8.22 | P14: =VLOOKUP($C14,'RECAP SECT'!$G$6:$DC$253,28,FALSE) -> 45% | Q14: =VLOOKUP($C14,'RECAP SECT'!$G$6:$DC$253,29,FALSE) -> 6 | R14: =VLOOKUP($C14,'RECAP SECT'!$G$6:$DC$253,30,FALSE) -> -197.3 | S14: =VLOOKUP($C14,'RECAP SECT'!$G$6:$DC$253,31,FALSE) -> -2.62 | T14: =VLOOKUP($C14,'RECAP SECT'!$G$6:$DC$253,32,FALSE) -> 60% | U14: =VLOOKUP($C14,'RECAP SECT'!$G$6:$DC$253,33,FALSE) -> 18 | V14: =VLOOKUP($C14,'RECAP SECT'!$G$6:$DC$253,34,FALSE) -> 23% | W14: =VLOOKUP($C14,'RECAP SECT'!$G$6:$DC$253,35,FALSE) -> 16% | X14: =VLOOKUP($C14,'RECAP SECT'!$G$6:$DC$253,36,FALSE) -> 6
A15: 264 | B15: HAUT-RHIN | C15: 5130 | D15: COLMAR | E15: =VLOOKUP($C15,'RECAP SECT'!$G$6:$DC$253,3,FALSE) -> 61.5 | F15: =VLOOKUP($C15,'RECAP SECT'!$G$6:$DC$253,18,FALSE) -> 2,563 | G15: =VLOOKUP($C15,'RECAP SECT'!$G$6:$DC$253,19,FALSE) -> 41.65 | H15: =VLOOKUP($C15,'RECAP SECT'!$G$6:$DC$253,20,FALSE) -> 42% | I15: =VLOOKUP($C15,'RECAP SECT'!$G$6:$DC$253,21,FALSE) -> 15 | J15: =VLOOKUP($C15,'RECAP SECT'!$G$6:$DC$253,22,FALSE) -> 1,971 | K15: =VLOOKUP($C15,'RECAP SECT'!$G$6:$DC$253,23,FALSE) -> 32.03 | L15: =VLOOKUP($C15,'RECAP SECT'!$G$6:$DC$253,24,FALSE) -> 28% | M15: =VLOOKUP($C15,'RECAP SECT'!$G$6:$DC$253,25,FALSE) -> 14 | N15: =VLOOKUP($C15,'RECAP SECT'!$G$6:$DC$253,26,FALSE) -> 216 | O15: =VLOOKUP($C15,'RECAP SECT'!$G$6:$DC$253,27,FALSE) -> 3.51 | P15: =VLOOKUP($C15,'RECAP SECT'!$G$6:$DC$253,28,FALSE) -> 77% | Q15: =VLOOKUP($C15,'RECAP SECT'!$G$6:$DC$253,29,FALSE) -> 17 | R15: =VLOOKUP($C15,'RECAP SECT'!$G$6:$DC$253,30,FALSE) -> -120.0 | S15: =VLOOKUP($C15,'RECAP SECT'!$G$6:$DC$253,31,FALSE) -> -1.95 | T15: =VLOOKUP($C15,'RECAP SECT'!$G$6:$DC$253,32,FALSE) -> 19% | U15: =VLOOKUP($C15,'RECAP SECT'!$G$6:$DC$253,33,FALSE) -> 8 | V15: =VLOOKUP($C15,'RECAP SECT'!$G$6:$DC$253,34,FALSE) -> 41% | W15: =VLOOKUP($C15,'RECAP SECT'!$G$6:$DC$253,35,FALSE) -> 34% | X15: =VLOOKUP($C15,'RECAP SECT'!$G$6:$DC$253,36,FALSE) -> 17
A16: 264 | B16: HAUT-RHIN | C16: 5169 | D16: MULHOUSE | E16: =VLOOKUP($C16,'RECAP SECT'!$G$6:$DC$253,3,FALSE) -> 61.1 | F16: =VLOOKUP($C16,'RECAP SECT'!$G$6:$DC$253,18,FALSE) -> 969 | G16: =VLOOKUP($C16,'RECAP SECT'!$G$6:$DC$253,19,FALSE) -> 15.84 | H16: =VLOOKUP($C16,'RECAP SECT'!$G$6:$DC$253,20,FALSE) -> 78% | I16: =VLOOKUP($C16,'RECAP SECT'!$G$6:$DC$253,21,FALSE) -> 18 | J16: =VLOOKUP($C16,'RECAP SECT'!$G$6:$DC$253,22,FALSE) -> 1,875 | K16: =VLOOKUP($C16,'RECAP SECT'!$G$6:$DC$253,23,FALSE) -> 30.67 | L16: =VLOOKUP($C16,'RECAP SECT'!$G$6:$DC$253,24,FALSE) -> 31% | M16: =VLOOKUP($C16,'RECAP SECT'!$G$6:$DC$253,25,FALSE) -> 18 | N16: =VLOOKUP($C16,'RECAP SECT'!$G$6:$DC$253,26,FALSE) -> 210 | O16: =VLOOKUP($C16,'RECAP SECT'!$G$6:$DC$253,27,FALSE) -> 3.44 | P16: =VLOOKUP($C16,'RECAP SECT'!$G$6:$DC$253,28,FALSE) -> 77% | Q16: =VLOOKUP($C16,'RECAP SECT'!$G$6:$DC$253,29,FALSE) -> 18 | R16: =VLOOKUP($C16,'RECAP SECT'!$G$6:$DC$253,30,FALSE) -> -126.5 | S16: =VLOOKUP($C16,'RECAP SECT'!$G$6:$DC$253,31,FALSE) -> -2.07 | T16: =VLOOKUP($C16,'RECAP SECT'!$G$6:$DC$253,32,FALSE) -> 26% | U16: =VLOOKUP($C16,'RECAP SECT'!$G$6:$DC$253,33,FALSE) -> 14 | V16: =VLOOKUP($C16,'RECAP SECT'!$G$6:$DC$253,34,FALSE) -> 61% | W16: =VLOOKUP($C16,'RECAP SECT'!$G$6:$DC$253,35,FALSE) -> 54% | X16: =VLOOKUP($C16,'RECAP SECT'!$G$6:$DC$253,36,FALSE) -> 18
A17: 30 | B17: MARNE-ARDENNES | C17: 6 | D17: CHALONS EN CHAMPAGNE | E17: =VLOOKUP($C17,'RECAP SECT'!$G$6:$DC$253,3,FALSE) -> 44.7 | F17: =VLOOKUP($C17,'RECAP SECT'!$G$6:$DC$253,18,FALSE) -> 2,227 | G17: =VLOOKUP($C17,'RECAP SECT'!$G$6:$DC$253,19,FALSE) -> 49.85 | H17: =VLOOKUP($C17,'RECAP SECT'!$G$6:$DC$253,20,FALSE) -> 31% | I17: =VLOOKUP($C17,'RECAP SECT'!$G$6:$DC$253,21,FALSE) -> 10 | J17: =VLOOKUP($C17,'RECAP SECT'!$G$6:$DC$253,22,FALSE) -> 1,606 | K17: =VLOOKUP($C17,'RECAP SECT'!$G$6:$DC$253,23,FALSE) -> 35.95 | L17: =VLOOKUP($C17,'RECAP SECT'!$G$6:$DC$253,24,FALSE) -> 20% | M17: =VLOOKUP($C17,'RECAP SECT'!$G$6:$DC$253,25,FALSE) -> 8 | N17: =VLOOKUP($C17,'RECAP SECT'!$G$6:$DC$253,26,FALSE) -> 487 | O17: =VLOOKUP($C17,'RECAP SECT'!$G$6:$DC$253,27,FALSE) -> 10.90 | P17: =VLOOKUP($C17,'RECAP SECT'!$G$6:$DC$253,28,FALSE) -> 28% | Q17: =VLOOKUP($C17,'RECAP SECT'!$G$6:$DC$253,29,FALSE) -> 5 | R17: =VLOOKUP($C17,'RECAP SECT'!$G$6:$DC$253,30,FALSE) -> -83.2 | S17: =VLOOKUP($C17,'RECAP SECT'!$G$6:$DC$253,31,FALSE) -> -1.86 | T17: =VLOOKUP($C17,'RECAP SECT'!$G$6:$DC$253,32,FALSE) -> 14% | U17: =VLOOKUP($C17,'RECAP SECT'!$G$6:$DC$253,33,FALSE) -> 6 | V17: =VLOOKUP($C17,'RECAP SECT'!$G$6:$DC$253,34,FALSE) -> 26% | W17: =VLOOKUP($C17,'RECAP SECT'!$G$6:$DC$253,35,FALSE) -> 19% | X17: =VLOOKUP($C17,'RECAP SECT'!$G$6:$DC$253,36,FALSE) -> 7
A18: 30 | B18: MARNE-ARDENNES | C18: 2 | D18: CHARLEVILLE MEZIERES | E18: =VLOOKUP($C18,'RECAP SECT'!$G$6:$DC$253,3,FALSE) -> 56.6 | F18: =VLOOKUP($C18,'RECAP SECT'!$G$6:$DC$253,18,FALSE) -> 2,281 | G18: =VLOOKUP($C18,'RECAP SECT'!$G$6:$DC$253,19,FALSE) -> 40.30 | H18: =VLOOKUP($C18,'RECAP SECT'!$G$6:$DC$253,20,FALSE) -> 44% | I18: =VLOOKUP($C18,'RECAP SECT'!$G$6:$DC$253,21,FALSE) -> 17 | J18: =VLOOKUP($C18,'RECAP SECT'!$G$6:$DC$253,22,FALSE) -> 2,269 | K18: =VLOOKUP($C18,'RECAP SECT'!$G$6:$DC$253,23,FALSE) -> 40.09 | L18: =VLOOKUP($C18,'RECAP SECT'!$G$6:$DC$253,24,FALSE) -> 10% | M18: =VLOOKUP($C18,'RECAP SECT'!$G$6:$DC$253,25,FALSE) -> 4 | N18: =VLOOKUP($C18,'RECAP SECT'!$G$6:$DC$253,26,FALSE) -> 631 | O18: =VLOOKUP($C18,'RECAP SECT'!$G$6:$DC$253,27,FALSE) -> 11.15 | P18: =VLOOKUP($C18,'RECAP SECT'!$G$6:$DC$253,28,FALSE) -> 26% | Q18: =VLOOKUP($C18,'RECAP SECT'!$G$6:$DC$253,29,FALSE) -> 3 | R18: =VLOOKUP($C18,'RECAP SECT'!$G$6:$DC$253,30,FALSE) -> -95.3 | S18: =VLOOKUP($C18,'RECAP SECT'!$G$6:$DC$253,31,FALSE) -> -1.68 | T18: =VLOOKUP($C18,'RECAP SECT'!$G$6:$DC$253,32,FALSE) -> 3% | U18: =VLOOKUP($C18,'RECAP SECT'!$G$6:$DC$253,33,FALSE) -> 2 | V18: =VLOOKUP($C18,'RECAP SECT'!$G$6:$DC$253,34,FALSE) -> 28% | W18: =VLOOKUP($C18,'RECAP SECT'!$G$6:$DC$253,35,FALSE) -> 22% | X18: =VLOOKUP($C18,'RECAP SECT'!$G$6:$DC$253,36,FALSE) -> 8
A19: 30 | B19: MARNE-ARDENNES | C19: 11 | D19: REIMS | E19: =VLOOKUP($C19,'RECAP SECT'!$G$6:$DC$253,3,FALSE) -> 79.7 | F19: =VLOOKUP($C19,'RECAP SECT'!$G$6:$DC$253,18,FALSE) -> 4,240 | G19: =VLOOKUP($C19,'RECAP SECT'!$G$6:$DC$253,19,FALSE) -> 53.19 | H19: =VLOOKUP($C19,'RECAP SECT'!$G$6:$DC$253,20,FALSE) -> 26% | I19: =VLOOKUP($C19,'RECAP SECT'!$G$6:$DC$253,21,FALSE) -> 8 | J19: =VLOOKUP($C19,'RECAP SECT'!$G$6:$DC$253,22,FALSE) -> 3,277 | K19: =VLOOKUP($C19,'RECAP SECT'!$G$6:$DC$253,23,FALSE) -> 41.10 | L19: =VLOOKUP($C19,'RECAP SECT'!$G$6:$DC$253,24,FALSE) -> 8% | M19: =VLOOKUP($C19,'RECAP SECT'!$G$6:$DC$253,25,FALSE) -> 3 | N19: =VLOOKUP($C19,'RECAP SECT'!$G$6:$DC$253,26,FALSE) -> 1,044 | O19: =VLOOKUP($C19,'RECAP SECT'!$G$6:$DC$253,27,FALSE) -> 13.10 | P19: =VLOOKUP($C19,'RECAP SECT'!$G$6:$DC$253,28,FALSE) -> 13% | Q19: =VLOOKUP($C19,'RECAP SECT'!$G$6:$DC$253,29,FALSE) -> 2 | R19: =VLOOKUP($C19,'RECAP SECT'!$G$6:$DC$253,30,FALSE) -> -185.2 | S19: =VLOOKUP($C19,'RECAP SECT'!$G$6:$DC$253,31,FALSE) -> -2.32 | T19: =VLOOKUP($C19,'RECAP SECT'!$G$6:$DC$253,32,FALSE) -> 42% | U19: =VLOOKUP($C19,'RECAP SECT'!$G$6:$DC$253,33,FALSE) -> 17 | V19: =VLOOKUP($C19,'RECAP SECT'!$G$6:$DC$253,34,FALSE) -> 23% | W19: =VLOOKUP($C19,'RECAP SECT'!$G$6:$DC$253,35,FALSE) -> 16% | X19: =VLOOKUP($C19,'RECAP SECT'!$G$6:$DC$253,36,FALSE) -> 5
A20: 110 | B20: MEURTHE ET MOSELLE MEUSE | C20: 26 | D20: NANCY | E20: =VLOOKUP($C20,'RECAP SECT'!$G$6:$DC$253,3,FALSE) -> 66.2 | F20: =VLOOKUP($C20,'RECAP SECT'!$G$6:$DC$253,18,FALSE) -> 4,633 | G20: =VLOOKUP($C20,'RECAP SECT'!$G$6:$DC$253,19,FALSE) -> 69.95 | H20: =VLOOKUP($C20,'RECAP SECT'!$G$6:$DC$253,20,FALSE) -> 3% | I20: =VLOOKUP($C20,'RECAP SECT'!$G$6:$DC$253,21,FALSE) -> 2 | J20: =VLOOKUP($C20,'RECAP SECT'!$G$6:$DC$253,22,FALSE) -> 2,965 | K20: =VLOOKUP($C20,'RECAP SECT'!$G$6:$DC$253,23,FALSE) -> 44.76 | L20: =VLOOKUP($C20,'RECAP SECT'!$G$6:$DC$253,24,FALSE) -> 0% | M20: =VLOOKUP($C20,'RECAP SECT'!$G$6:$DC$253,25,FALSE) -> 1 | N20: =VLOOKUP($C20,'RECAP SECT'!$G$6:$DC$253,26,FALSE) -> 998 | O20: =VLOOKUP($C20,'RECAP SECT'!$G$6:$DC$253,27,FALSE) -> 15.07 | P20: =VLOOKUP($C20,'RECAP SECT'!$G$6:$DC$253,28,FALSE) -> 0% | Q20: =VLOOKUP($C20,'RECAP SECT'!$G$6:$DC$253,29,FALSE) -> 1 | R20: =VLOOKUP($C20,'RECAP SECT'!$G$6:$DC$253,30,FALSE) -> -147.7 | S20: =VLOOKUP($C20,'RECAP SECT'!$G$6:$DC$253,31,FALSE) -> -2.23 | T20: =VLOOKUP($C20,'RECAP SECT'!$G$6:$DC$253,32,FALSE) -> 36% | U20: =VLOOKUP($C20,'RECAP SECT'!$G$6:$DC$253,33,FALSE) -> 16 | V20: =VLOOKUP($C20,'RECAP SECT'!$G$6:$DC$253,34,FALSE) -> 7% | W20: =VLOOKUP($C20,'RECAP SECT'!$G$6:$DC$253,35,FALSE) -> 0% | X20: =VLOOKUP($C20,'RECAP SECT'!$G$6:$DC$253,36,FALSE) -> 1
A21: 110 | B21: MEURTHE ET MOSELLE MEUSE | C21: 27 | D21: PONT A MOUSSON | E21: =VLOOKUP($C21,'RECAP SECT'!$G$6:$DC$253,3,FALSE) -> 76.5 | F21: =VLOOKUP($C21,'RECAP SECT'!$G$6:$DC$253,18,FALSE) -> 5,510 | G21: =VLOOKUP($C21,'RECAP SECT'!$G$6:$DC$253,19,FALSE) -> 72.02 | H21: =VLOOKUP($C21,'RECAP SECT'!$G$6:$DC$253,20,FALSE) -> 0% | I21: =VLOOKUP($C21,'RECAP SECT'!$G$6:$DC$253,21,FALSE) -> 1 | J21: =VLOOKUP($C21,'RECAP SECT'!$G$6:$DC$253,22,FALSE) -> 3,065 | K21: =VLOOKUP($C21,'RECAP SECT'!$G$6:$DC$253,23,FALSE) -> 40.06 | L21: =VLOOKUP($C21,'RECAP SECT'!$G$6:$DC$253,24,FALSE) -> 10% | M21: =VLOOKUP($C21,'RECAP SECT'!$G$6:$DC$253,25,FALSE) -> 5 | N21: =VLOOKUP($C21,'RECAP SECT'!$G$6:$DC$253,26,FALSE) -> 850 | O21: =VLOOKUP($C21,'RECAP SECT'!$G$6:$DC$253,27,FALSE) -> 11.11 | P21: =VLOOKUP($C21,'RECAP SECT'!$G$6:$DC$253,28,FALSE) -> 26% | Q21: =VLOOKUP($C21,'RECAP SECT'!$G$6:$DC$253,29,FALSE) -> 4 | R21: =VLOOKUP($C21,'RECAP SECT'!$G$6:$DC$253,30,FALSE) -> -155.0 | S21: =VLOOKUP($C21,'RECAP SECT'!$G$6:$DC$253,31,FALSE) -> -2.03 | T21: =VLOOKUP($C21,'RECAP SECT'!$G$6:$DC$253,32,FALSE) -> 24% | U21: =VLOOKUP($C21,'RECAP SECT'!$G$6:$DC$253,33,FALSE) -> 10 | V21: =VLOOKUP($C21,'RECAP SECT'!$G$6:$DC$253,34,FALSE) -> 10% | W21: =VLOOKUP($C21,'RECAP SECT'!$G$6:$DC$253,35,FALSE) -> 3% | X21: =VLOOKUP($C21,'RECAP SECT'!$G$6:$DC$253,36,FALSE) -> 2
A22: 110 | B22: MEURTHE ET MOSELLE MEUSE | C22: 31 | D22: VERDUN | E22: =VLOOKUP($C22,'RECAP SECT'!$G$6:$DC$253,3,FALSE) -> 55.1 | F22: =VLOOKUP($C22,'RECAP SECT'!$G$6:$DC$253,18,FALSE) -> 3,269 | G22: =VLOOKUP($C22,'RECAP SECT'!$G$6:$DC$253,19,FALSE) -> 59.31 | H22: =VLOOKUP($C22,'RECAP SECT'!$G$6:$DC$253,20,FALSE) -> 18% | I22: =VLOOKUP($C22,'RECAP SECT'!$G$6:$DC$253,21,FALSE) -> 6 | J22: =VLOOKUP($C22,'RECAP SECT'!$G$6:$DC$253,22,FALSE) -> 2,044 | K22: =VLOOKUP($C22,'RECAP SECT'!$G$6:$DC$253,23,FALSE) -> 37.08 | L22: =VLOOKUP($C22,'RECAP SECT'!$G$6:$DC$253,24,FALSE) -> 17% | M22: =VLOOKUP($C22,'RECAP SECT'!$G$6:$DC$253,25,FALSE) -> 7 | N22: =VLOOKUP($C22,'RECAP SECT'!$G$6:$DC$253,26,FALSE) -> 395 | O22: =VLOOKUP($C22,'RECAP SECT'!$G$6:$DC$253,27,FALSE) -> 7.17 | P22: =VLOOKUP($C22,'RECAP SECT'!$G$6:$DC$253,28,FALSE) -> 52% | Q22: =VLOOKUP($C22,'RECAP SECT'!$G$6:$DC$253,29,FALSE) -> 7 | R22: =VLOOKUP($C22,'RECAP SECT'!$G$6:$DC$253,30,FALSE) -> -94.4 | S22: =VLOOKUP($C22,'RECAP SECT'!$G$6:$DC$253,31,FALSE) -> -1.71 | T22: =VLOOKUP($C22,'RECAP SECT'!$G$6:$DC$253,32,FALSE) -> 4% | U22: =VLOOKUP($C22,'RECAP SECT'!$G$6:$DC$253,33,FALSE) -> 3 | V22: =VLOOKUP($C22,'RECAP SECT'!$G$6:$DC$253,34,FALSE) -> 21% | W22: =VLOOKUP($C22,'RECAP SECT'!$G$6:$DC$253,35,FALSE) -> 14% | X22: =VLOOKUP($C22,'RECAP SECT'!$G$6:$DC$253,36,FALSE) -> 3
A23: 160 | B23: MOSELLE | C23: 45 | D23: METZ | E23: =VLOOKUP($C23,'RECAP SECT'!$G$6:$DC$253,3,FALSE) -> 88.4 | F23: =VLOOKUP($C23,'RECAP SECT'!$G$6:$DC$253,18,FALSE) -> 3,579 | G23: =VLOOKUP($C23,'RECAP SECT'!$G$6:$DC$253,19,FALSE) -> 40.47 | H23: =VLOOKUP($C23,'RECAP SECT'!$G$6:$DC$253,20,FALSE) -> 44% | I23: =VLOOKUP($C23,'RECAP SECT'!$G$6:$DC$253,21,FALSE) -> 16 | J23: =VLOOKUP($C23,'RECAP SECT'!$G$6:$DC$253,22,FALSE) -> 2,865 | K23: =VLOOKUP($C23,'RECAP SECT'!$G$6:$DC$253,23,FALSE) -> 32.39 | L23: =VLOOKUP($C23,'RECAP SECT'!$G$6:$DC$253,24,FALSE) -> 28% | M23: =VLOOKUP($C23,'RECAP SECT'!$G$6:$DC$253,25,FALSE) -> 13 | N23: =VLOOKUP($C23,'RECAP SECT'!$G$6:$DC$253,26,FALSE) -> 480 | O23: =VLOOKUP($C23,'RECAP SECT'!$G$6:$DC$253,27,FALSE) -> 5.43 | P23: =VLOOKUP($C23,'RECAP SECT'!$G$6:$DC$253,28,FALSE) -> 64% | Q23: =VLOOKUP($C23,'RECAP SECT'!$G$6:$DC$253,29,FALSE) -> 12 | R23: =VLOOKUP($C23,'RECAP SECT'!$G$6:$DC$253,30,FALSE) -> -178.5 | S23: =VLOOKUP($C23,'RECAP SECT'!$G$6:$DC$253,31,FALSE) -> -2.02 | T23: =VLOOKUP($C23,'RECAP SECT'!$G$6:$DC$253,32,FALSE) -> 23% | U23: =VLOOKUP($C23,'RECAP SECT'!$G$6:$DC$253,33,FALSE) -> 9 | V23: =VLOOKUP($C23,'RECAP SECT'!$G$6:$DC$253,34,FALSE) -> 40% | W23: =VLOOKUP($C23,'RECAP SECT'!$G$6:$DC$253,35,FALSE) -> 34% | X23: =VLOOKUP($C23,'RECAP SECT'!$G$6:$DC$253,36,FALSE) -> 16
A24: 160 | B24: MOSELLE | C24: 42 | D24: MOSELLE EST | E24: =VLOOKUP($C24,'RECAP SECT'!$G$6:$DC$253,3,FALSE) -> 70.2 | F24: =VLOOKUP($C24,'RECAP SECT'!$G$6:$DC$253,18,FALSE) -> 3,590 | G24: =VLOOKUP($C24,'RECAP SECT'!$G$6:$DC$253,19,FALSE) -> 51.12 | H24: =VLOOKUP($C24,'RECAP SECT'!$G$6:$DC$253,20,FALSE) -> 29% | I24: =VLOOKUP($C24,'RECAP SECT'!$G$6:$DC$253,21,FALSE) -> 9 | J24: =VLOOKUP($C24,'RECAP SECT'!$G$6:$DC$253,22,FALSE) -> 2,369 | K24: =VLOOKUP($C24,'RECAP SECT'!$G$6:$DC$253,23,FALSE) -> 33.73 | L24: =VLOOKUP($C24,'RECAP SECT'!$G$6:$DC$253,24,FALSE) -> 25% | M24: =VLOOKUP($C24,'RECAP SECT'!$G$6:$DC$253,25,FALSE) -> 12 | N24: =VLOOKUP($C24,'RECAP SECT'!$G$6:$DC$253,26,FALSE) -> 384 | O24: =VLOOKUP($C24,'RECAP SECT'!$G$6:$DC$253,27,FALSE) -> 5.47 | P24: =VLOOKUP($C24,'RECAP SECT'!$G$6:$DC$253,28,FALSE) -> 64% | Q24: =VLOOKUP($C24,'RECAP SECT'!$G$6:$DC$253,29,FALSE) -> 11 | R24: =VLOOKUP($C24,'RECAP SECT'!$G$6:$DC$253,30,FALSE) -> -121.5 | S24: =VLOOKUP($C24,'RECAP SECT'!$G$6:$DC$253,31,FALSE) -> -1.73 | T24: =VLOOKUP($C24,'RECAP SECT'!$G$6:$DC$253,32,FALSE) -> 6% | U24: =VLOOKUP($C24,'RECAP SECT'!$G$6:$DC$253,33,FALSE) -> 4 | V24: =VLOOKUP($C24,'RECAP SECT'!$G$6:$DC$253,34,FALSE) -> 30% | W24: =VLOOKUP($C24,'RECAP SECT'!$G$6:$DC$253,35,FALSE) -> 23% | X24: =VLOOKUP($C24,'RECAP SECT'!$G$6:$DC$253,36,FALSE) -> 11
A25: 160 | B25: MOSELLE | C25: 44 | D25: MOSELLE NORD | E25: =VLOOKUP($C25,'RECAP SECT'!$G$6:$DC$253,3,FALSE) -> 65.8 | F25: =VLOOKUP($C25,'RECAP SECT'!$G$6:$DC$253,18,FALSE) -> 4,037 | G25: =VLOOKUP($C25,'RECAP SECT'!$G$6:$DC$253,19,FALSE) -> 61.34 | H25: =VLOOKUP($C25,'RECAP SECT'!$G$6:$DC$253,20,FALSE) -> 15% | I25: =VLOOKUP($C25,'RECAP SECT'!$G$6:$DC$253,21,FALSE) -> 4 | J25: =VLOOKUP($C25,'RECAP SECT'!$G$6:$DC$253,22,FALSE) -> 2,349 | K25: =VLOOKUP($C25,'RECAP SECT'!$G$6:$DC$253,23,FALSE) -> 35.69 | L25: =VLOOKUP($C25,'RECAP SECT'!$G$6:$DC$253,24,FALSE) -> 20% | M25: =VLOOKUP($C25,'RECAP SECT'!$G$6:$DC$253,25,FALSE) -> 9 | N25: =VLOOKUP($C25,'RECAP SECT'!$G$6:$DC$253,26,FALSE) -> 279 | O25: =VLOOKUP($C25,'RECAP SECT'!$G$6:$DC$253,27,FALSE) -> 4.24 | P25: =VLOOKUP($C25,'RECAP SECT'!$G$6:$DC$253,28,FALSE) -> 72% | Q25: =VLOOKUP($C25,'RECAP SECT'!$G$6:$DC$253,29,FALSE) -> 16 | R25: =VLOOKUP($C25,'RECAP SECT'!$G$6:$DC$253,30,FALSE) -> -107.9 | S25: =VLOOKUP($C25,'RECAP SECT'!$G$6:$DC$253,31,FALSE) -> -1.64 | T25: =VLOOKUP($C25,'RECAP SECT'!$G$6:$DC$253,32,FALSE) -> 0% | U25: =VLOOKUP($C25,'RECAP SECT'!$G$6:$DC$253,33,FALSE) -> 1 | V25: =VLOOKUP($C25,'RECAP SECT'!$G$6:$DC$253,34,FALSE) -> 22% | W25: =VLOOKUP($C25,'RECAP SECT'!$G$6:$DC$253,35,FALSE) -> 15% | X25: =VLOOKUP($C25,'RECAP SECT'!$G$6:$DC$253,36,FALSE) -> 4
A26: 80 | B26: VOSGES | C26: 57 | D26: EPINAL | E26: =VLOOKUP($C26,'RECAP SECT'!$G$6:$DC$253,3,FALSE) -> 61.1 | F26: =VLOOKUP($C26,'RECAP SECT'!$G$6:$DC$253,18,FALSE) -> 2,668 | G26: =VLOOKUP($C26,'RECAP SECT'!$G$6:$DC$253,19,FALSE) -> 43.67 | H26: =VLOOKUP($C26,'RECAP SECT'!$G$6:$DC$253,20,FALSE) -> 39% | I26: =VLOOKUP($C26,'RECAP SECT'!$G$6:$DC$253,21,FALSE) -> 13 | J26: =VLOOKUP($C26,'RECAP SECT'!$G$6:$DC$253,22,FALSE) -> 2,110 | K26: =VLOOKUP($C26,'RECAP SECT'!$G$6:$DC$253,23,FALSE) -> 34.54 | L26: =VLOOKUP($C26,'RECAP SECT'!$G$6:$DC$253,24,FALSE) -> 23% | M26: =VLOOKUP($C26,'RECAP SECT'!$G$6:$DC$253,25,FALSE) -> 10 | N26: =VLOOKUP($C26,'RECAP SECT'!$G$6:$DC$253,26,FALSE) -> 407 | O26: =VLOOKUP($C26,'RECAP SECT'!$G$6:$DC$253,27,FALSE) -> 6.66 | P26: =VLOOKUP($C26,'RECAP SECT'!$G$6:$DC$253,28,FALSE) -> 56% | Q26: =VLOOKUP($C26,'RECAP SECT'!$G$6:$DC$253,29,FALSE) -> 8 | R26: =VLOOKUP($C26,'RECAP SECT'!$G$6:$DC$253,30,FALSE) -> -126.2 | S26: =VLOOKUP($C26,'RECAP SECT'!$G$6:$DC$253,31,FALSE) -> -2.07 | T26: =VLOOKUP($C26,'RECAP SECT'!$G$6:$DC$253,32,FALSE) -> 26% | U26: =VLOOKUP($C26,'RECAP SECT'!$G$6:$DC$253,33,FALSE) -> 13 | V26: =VLOOKUP($C26,'RECAP SECT'!$G$6:$DC$253,34,FALSE) -> 37% | W26: =VLOOKUP($C26,'RECAP SECT'!$G$6:$DC$253,35,FALSE) -> 30% | X26: =VLOOKUP($C26,'RECAP SECT'!$G$6:$DC$253,36,FALSE) -> 14
A27: 80 | B27: VOSGES | C27: 55 | D27: SAINT DIE | E27: =VLOOKUP($C27,'RECAP SECT'!$G$6:$DC$253,3,FALSE) -> 47.1 | F27: =VLOOKUP($C27,'RECAP SECT'!$G$6:$DC$253,18,FALSE) -> 1,971 | G27: =VLOOKUP($C27,'RECAP SECT'!$G$6:$DC$253,19,FALSE) -> 41.87 | H27: =VLOOKUP($C27,'RECAP SECT'!$G$6:$DC$253,20,FALSE) -> 42% | I27: =VLOOKUP($C27,'RECAP SECT'!$G$6:$DC$253,21,FALSE) -> 14 | J27: =VLOOKUP($C27,'RECAP SECT'!$G$6:$DC$253,22,FALSE) -> 1,492 | K27: =VLOOKUP($C27,'RECAP SECT'!$G$6:$DC$253,23,FALSE) -> 31.69 | L27: =VLOOKUP($C27,'RECAP SECT'!$G$6:$DC$253,24,FALSE) -> 29% | M27: =VLOOKUP($C27,'RECAP SECT'!$G$6:$DC$253,25,FALSE) -> 15 | N27: =VLOOKUP($C27,'RECAP SECT'!$G$6:$DC$253,26,FALSE) -> 216 | O27: =VLOOKUP($C27,'RECAP SECT'!$G$6:$DC$253,27,FALSE) -> 4.59 | P27: =VLOOKUP($C27,'RECAP SECT'!$G$6:$DC$253,28,FALSE) -> 70% | Q27: =VLOOKUP($C27,'RECAP SECT'!$G$6:$DC$253,29,FALSE) -> 15 | R27: =VLOOKUP($C27,'RECAP SECT'!$G$6:$DC$253,30,FALSE) -> -91.4 | S27: =VLOOKUP($C27,'RECAP SECT'!$G$6:$DC$253,31,FALSE) -> -1.94 | T27: =VLOOKUP($C27,'RECAP SECT'!$G$6:$DC$253,32,FALSE) -> 18% | U27: =VLOOKUP($C27,'RECAP SECT'!$G$6:$DC$253,33,FALSE) -> 7 | V27: =VLOOKUP($C27,'RECAP SECT'!$G$6:$DC$253,34,FALSE) -> 40% | W27: =VLOOKUP($C27,'RECAP SECT'!$G$6:$DC$253,35,FALSE) -> 33% | X27: =VLOOKUP($C27,'RECAP SECT'!$G$6:$DC$253,36,FALSE) -> 15
A28: Total CEGEE Directions Régionales | E28: =SUM(E10:E27) -> 1140

Sheet SE_EPARGNE
B1: Accueil | F1: BAROMETRE BDD - TERRITOIRES
F2: EPARGNE
F3: =ACCUEIL!F7 -> 2021-08-29
F7: Excédent Epargne y/c DAV pondéré | J7: Ventes sur client non détenteur de l’univers | N7: Total Epargne
F8: =DATEMAJ!C14 -> au 29/08 | H8: coef | I8: ='RECAP DIRCOM'!AX4 -> 14% | J8: =DATEMAJ!C15 -> au 29/08 | L8: coef | M8: ='RECAP DIRCOM'!BB4 -> 6% | O8: coef | P8: ='RECAP DIRCOM'!BE4 -> 20%
A9: eds | B9: Direction | C9: eds | D9: Territoire | E9: ="ETP perf "&DATEMAJ!$C$28 -> ETP perf 30-juin | F9: Excédent | G9: Excédent / ETP | H9: % Ecart au 1er | I9: Rang | J9: VB | K9: VB / ETP | L9: % Ecart au 1er | M9: Rang | N9: Moyenne ecart au 1er | O9: % Ecart au 1er | P9: Rang CEGEE
A10: 50 | B10: AUBE HAUTE MARNE | C10: 21 | D10: CHAUMONT | E10: =VLOOKUP($C10,'RECAP SECT'!$G$6:$DC$253,3,FALSE) -> 33.9 | F10: =VLOOKUP($C10,'RECAP SECT'!$G$6:$DC$253,41,FALSE) -> 9,829 | G10: =VLOOKUP($C10,'RECAP SECT'!$G$6:$DC$253,42,FALSE) -> 289.86 | H10: =VLOOKUP($C10,'RECAP SECT'!$G$6:$DC$253,43,FALSE) -> 50% | I10: =VLOOKUP($C10,'RECAP SECT'!$G$6:$DC$253,44,FALSE) -> 15 | J10: =VLOOKUP($C10,'RECAP SECT'!$G$6:$DC$253,45,FALSE) -> 641 | K10: =VLOOKUP($C10,'RECAP SECT'!$G$6:$DC$253,46,FALSE) -> 18.90 | L10: =VLOOKUP($C10,'RECAP SECT'!$G$6:$DC$253,47,FALSE) -> 24% | M10: =VLOOKUP($C10,'RECAP SECT'!$G$6:$DC$253,48,FALSE) -> 8 | N10: =VLOOKUP($C10,'RECAP SECT'!$G$6:$DC$253,49,FALSE) -> 42% | O10: =VLOOKUP($C10,'RECAP SECT'!$G$6:$DC$253,50,FALSE) -> 34% | P10: =VLOOKUP($C10,'RECAP SECT'!$G$6:$DC$253,51,FALSE) -> 15
A11: 50 | B11: AUBE HAUTE MARNE | C11: 14 | D11: TROYES | E11: =VLOOKUP($C11,'RECAP SECT'!$G$6:$DC$253,3,FALSE) -> 67.1 | F11: =VLOOKUP($C11,'RECAP SECT'!$G$6:$DC$253,41,FALSE) -> 5,772 | G11: =VLOOKUP($C11,'RECAP SECT'!$G$6:$DC$253,42,FALSE) -> 86.06 | H11: =VLOOKUP($C11,'RECAP SECT'!$G$6:$DC$253,43,FALSE) -> 85% | I11: =VLOOKUP($C11,'RECAP SECT'!$G$6:$DC$253,44,FALSE) -> 18 | J11: =VLOOKUP($C11,'RECAP SECT'!$G$6:$DC$253,45,FALSE) -> 1,084 | K11: =VLOOKUP($C11,'RECAP SECT'!$G$6:$DC$253,46,FALSE) -> 16.16 | L11: =VLOOKUP($C11,'RECAP SECT'!$G$6:$DC$253,47,FALSE) -> 35% | M11: =VLOOKUP($C11,'RECAP SECT'!$G$6:$DC$253,48,FALSE) -> 15 | N11: =VLOOKUP($C11,'RECAP SECT'!$G$6:$DC$253,49,FALSE) -> 70% | O11: =VLOOKUP($C11,'RECAP SECT'!$G$6:$DC$253,50,FALSE) -> 62% | P11: =VLOOKUP($C11,'RECAP SECT'!$G$6:$DC$253,51,FALSE) -> 18
A12: 262 | B12: BAS-RHIN | C12: 5060 | D12: HAGUENAU | E12: =VLOOKUP($C12,'RECAP SECT'!$G$6:$DC$253,3,FALSE) -> 70.0 | F12: =VLOOKUP($C12,'RECAP SECT'!$G$6:$DC$253,41,FALSE) -> 29,500 | G12: =VLOOKUP($C12,'RECAP SECT'!$G$6:$DC$253,42,FALSE) -> 421.50 | H12: =VLOOKUP($C12,'RECAP SECT'!$G$6:$DC$253,43,FALSE) -> 27% | I12: =VLOOKUP($C12,'RECAP SECT'!$G$6:$DC$253,44,FALSE) -> 8 | J12: =VLOOKUP($C12,'RECAP SECT'!$G$6:$DC$253,45,FALSE) -> 1,304 | K12: =VLOOKUP($C12,'RECAP SECT'!$G$6:$DC$253,46,FALSE) -> 18.63 | L12: =VLOOKUP($C12,'RECAP SECT'!$G$6:$DC$253,47,FALSE) -> 25% | M12: =VLOOKUP($C12,'RECAP SECT'!$G$6:$DC$253,48,FALSE) -> 10 | N12: =VLOOKUP($C12,'RECAP SECT'!$G$6:$DC$253,49,FALSE) -> 26% | O12: =VLOOKUP($C12,'RECAP SECT'!$G$6:$DC$253,50,FALSE) -> 18% | P12: =VLOOKUP($C12,'RECAP SECT'!$G$6:$DC$253,51,FALSE) -> 7
A13: 262 | B13: BAS-RHIN | C13: 5101 | D13: SELESTAT | E13: =VLOOKUP($C13,'RECAP SECT'!$G$6:$DC$253,3,FALSE) -> 59.9 | F13: =VLOOKUP($C13,'RECAP SECT'!$G$6:$DC$253,41,FALSE) -> 31,428 | G13: =VLOOKUP($C13,'RECAP SECT'!$G$6:$DC$253,42,FALSE) -> 524.82 | H13: =VLOOKUP($C13,'RECAP SECT'!$G$6:$DC$253,43,FALSE) -> 9% | I13: =VLOOKUP($C13,'RECAP SECT'!$G$6:$DC$253,44,FALSE) -> 2 | J13: =VLOOKUP($C13,'RECAP SECT'!$G$6:$DC$253,45,FALSE) -> 1,286 | K13: =VLOOKUP($C13,'RECAP SECT'!$G$6:$DC$253,46,FALSE) -> 21.47 | L13: =VLOOKUP($C13,'RECAP SECT'!$G$6:$DC$253,47,FALSE) -> 13% | M13: =VLOOKUP($C13,'RECAP SECT'!$G$6:$DC$253,48,FALSE) -> 5 | N13: =VLOOKUP($C13,'RECAP SECT'!$G$6:$DC$253,49,FALSE) -> 10% | O13: =VLOOKUP($C13,'RECAP SECT'!$G$6:$DC$253,50,FALSE) -> 2% | P13: =VLOOKUP($C13,'RECAP SECT'!$G$6:$DC$253,51,FALSE) -> 3
A14: 262 | B14: BAS-RHIN | C14: 5006 | D14: STRASBOURG | E14: =VLOOKUP($C14,'RECAP SECT'!$G$6:$DC$253,3,FALSE) -> 75.2 | F14: =VLOOKUP($C14,'RECAP SECT'!$G$6:$DC$253,41,FALSE) -> 39,027 | G14: =VLOOKUP($C14,'RECAP SECT'!$G$6:$DC$253,42,FALSE) -> 518.80 | H14: =VLOOKUP($C14,'RECAP SECT'!$G$6:$DC$253,43,FALSE) -> 10% | I14: =VLOOKUP($C14,'RECAP SECT'!$G$6:$DC$253,44,FALSE) -> 3 | J14: =VLOOKUP($C14,'RECAP SECT'!$G$6:$DC$253,45,FALSE) -> 1,796 | K14: =VLOOKUP($C14,'RECAP SECT'!$G$6:$DC$253,46,FALSE) -> 23.87 | L14: =VLOOKUP($C14,'RECAP SECT'!$G$6:$DC$253,47,FALSE) -> 3% | M14: =VLOOKUP($C14,'RECAP SECT'!$G$6:$DC$253,48,FALSE) -> 2 | N14: =VLOOKUP($C14,'RECAP SECT'!$G$6:$DC$253,49,FALSE) -> 8% | O14: =VLOOKUP($C14,'RECAP SECT'!$G$6:$DC$253,50,FALSE) -> 0% | P14: =VLOOKUP($C14,'RECAP SECT'!$G$6:$DC$253,51,FALSE) -> 1
A15: 264 | B15: HAUT-RHIN | C15: 5130 | D15: COLMAR | E15: =VLOOKUP($C15,'RECAP SECT'!$G$6:$DC$253,3,FALSE) -> 61.5 | F15: =VLOOKUP($C15,'RECAP SECT'!$G$6:$DC$253,41,FALSE) -> 17,747 | G15: =VLOOKUP($C15,'RECAP SECT'!$G$6:$DC$253,42,FALSE) -> 288.39 | H15: =VLOOKUP($C15,'RECAP SECT'!$G$6:$DC$253,43,FALSE) -> 50% | I15: =VLOOKUP($C15,'RECAP SECT'!$G$6:$DC$253,44,FALSE) -> 16 | J15: =VLOOKUP($C15,'RECAP SECT'!$G$6:$DC$253,45,FALSE) -> 942 | K15: =VLOOKUP($C15,'RECAP SECT'!$G$6:$DC$253,46,FALSE) -> 15.31 | L15: =VLOOKUP($C15,'RECAP SECT'!$G$6:$DC$253,47,FALSE) -> 38% | M15: =VLOOKUP($C15,'RECAP SECT'!$G$6:$DC$253,48,FALSE) -> 16 | N15: =VLOOKUP($C15,'RECAP SECT'!$G$6:$DC$253,49,FALSE) -> 46% | O15: =VLOOKUP($C15,'RECAP SECT'!$G$6:$DC$253,50,FALSE) -> 38% | P15: =VLOOKUP($C15,'RECAP SECT'!$G$6:$DC$253,51,FALSE) -> 16
A16: 264 | B16: HAUT-RHIN | C16: 5169 | D16: MULHOUSE | E16: =VLOOKUP($C16,'RECAP SECT'!$G$6:$DC$253,3,FALSE) -> 61.1 | F16: =VLOOKUP($C16,'RECAP SECT'!$G$6:$DC$253,41,FALSE) -> 13,940 | G16: =VLOOKUP($C16,'RECAP SECT'!$G$6:$DC$253,42,FALSE) -> 228.02 | H16: =VLOOKUP($C16,'RECAP SECT'!$G$6:$DC$253,43,FALSE) -> 60% | I16: =VLOOKUP($C16,'RECAP SECT'!$G$6:$DC$253,44,FALSE) -> 17 | J16: =VLOOKUP($C16,'RECAP SECT'!$G$6:$DC$253,45,FALSE) -> 1,096 | K16: =VLOOKUP($C16,'RECAP SECT'!$G$6:$DC$253,46,FALSE) -> 17.93 | L16: =VLOOKUP($C16,'RECAP SECT'!$G$6:$DC$253,47,FALSE) -> 28% | M16: =VLOOKUP($C16,'RECAP SECT'!$G$6:$DC$253,48,FALSE) -> 14 | N16: =VLOOKUP($C16,'RECAP SECT'!$G$6:$DC$253,49,FALSE) -> 51% | O16: =VLOOKUP($C16,'RECAP SECT'!$G$6:$DC$253,50,FALSE) -> 43% | P16: =VLOOKUP($C16,'RECAP SECT'!$G$6:$DC$253,51,FALSE) -> 17
A17: 30 | B17: MARNE-ARDENNES | C17: 6 | D17: CHALONS EN CHAMPAGNE | E17: =VLOOKUP($C17,'RECAP SECT'!$G$6:$DC$253,3,FALSE) -> 44.7 | F17: =VLOOKUP($C17,'RECAP SECT'!$G$6:$DC$253,41,FALSE) -> 15,298 | G17: =VLOOKUP($C17,'RECAP SECT'!$G$6:$DC$253,42,FALSE) -> 342.47 | H17: =VLOOKUP($C17,'RECAP SECT'!$G$6:$DC$253,43,FALSE) -> 40% | I17: =VLOOKUP($C17,'RECAP SECT'!$G$6:$DC$253,44,FALSE) -> 13 | J17: =VLOOKUP($C17,'RECAP SECT'!$G$6:$DC$253,45,FALSE) -> 1,105 | K17: =VLOOKUP($C17,'RECAP SECT'!$G$6:$DC$253,46,FALSE) -> 24.74 | L17: =VLOOKUP($C17,'RECAP SECT'!$G$6:$DC$253,47,FALSE) -> 0% | M17: =VLOOKUP($C17,'RECAP SECT'!$G$6:$DC$253,48,FALSE) -> 1 | N17: =VLOOKUP($C17,'RECAP SECT'!$G$6:$DC$253,49,FALSE) -> 28% | O17: =VLOOKUP($C17,'RECAP SECT'!$G$6:$DC$253,50,FALSE) -> 20% | P17: =VLOOKUP($C17,'RECAP SECT'!$G$6:$DC$253,51,FALSE) -> 9
A18: 30 | B18: MARNE-ARDENNES | C18: 2 | D18: CHARLEVILLE MEZIERES | E18: =VLOOKUP($C18,'RECAP SECT'!$G$6:$DC$253,3,FALSE) -> 56.6 | F18: =VLOOKUP($C18,'RECAP SECT'!$G$6:$DC$253,41,FALSE) -> 26,235 | G18: =VLOOKUP($C18,'RECAP SECT'!$G$6:$DC$253,42,FALSE) -> 463.50 | H18: =VLOOKUP($C18,'RECAP SECT'!$G$6:$DC$253,43,FALSE) -> 19% | I18: =VLOOKUP($C18,'RECAP SECT'!$G$6:$DC$253,44,FALSE) -> 5 | J18: =VLOOKUP($C18,'RECAP SECT'!$G$6:$DC$253,45,FALSE) -> 1,308 | K18: =VLOOKUP($C18,'RECAP SECT'!$G$6:$DC$253,46,FALSE) -> 23.11 | L18: =VLOOKUP($C18,'RECAP SECT'!$G$6:$DC$253,47,FALSE) -> 7% | M18: =VLOOKUP($C18,'RECAP SECT'!$G$6:$DC$253,48,FALSE) -> 3 | N18: =VLOOKUP($C18,'RECAP SECT'!$G$6:$DC$253,49,FALSE) -> 16% | O18: =VLOOKUP($C18,'RECAP SECT'!$G$6:$DC$253,50,FALSE) -> 8% | P18: =VLOOKUP($C18,'RECAP SECT'!$G$6:$DC$253,51,FALSE) -> 5
A19: 30 | B19: MARNE-ARDENNES | C19: 11 | D19: REIMS | E19: =VLOOKUP($C19,'RECAP SECT'!$G$6:$DC$253,3,FALSE) -> 79.7 | F19: =VLOOKUP($C19,'RECAP SECT'!$G$6:$DC$253,41,FALSE) -> 32,922 | G19: =VLOOKUP($C19,'RECAP SECT'!$G$6:$DC$253,42,FALSE) -> 412.96 | H19: =VLOOKUP($C19,'RECAP SECT'!$G$6:$DC$253,43,FALSE) -> 28% | I19: =VLOOKUP($C19,'RECAP SECT'!$G$6:$DC$253,44,FALSE) -> 10 | J19: =VLOOKUP($C19,'RECAP SECT'!$G$6:$DC$253,45,FALSE) -> 1,486 | K19: =VLOOKUP($C19,'RECAP SECT'!$G$6:$DC$253,46,FALSE) -> 18.64 | L19: =VLOOKUP($C19,'RECAP SECT'!$G$6:$DC$253,47,FALSE) -> 25% | M19: =VLOOKUP($C19,'RECAP SECT'!$G$6:$DC$253,48,FALSE) -> 9 | N19: =VLOOKUP($C19,'RECAP SECT'!$G$6:$DC$253,49,FALSE) -> 27% | O19: =VLOOKUP($C19,'RECAP SECT'!$G$6:$DC$253,50,FALSE) -> 19% | P19: =VLOOKUP($C19,'RECAP SECT'!$G$6:$DC$253,51,FALSE) -> 8
A20: 110 | B20: MEURTHE ET MOSELLE MEUSE | C20: 26 | D20: NANCY | E20: =VLOOKUP($C20,'RECAP SECT'!$G$6:$DC$253,3,FALSE) -> 66.2 | F20: =VLOOKUP($C20,'RECAP SECT'!$G$6:$DC$253,41,FALSE) -> 33,596 | G20: =VLOOKUP($C20,'RECAP SECT'!$G$6:$DC$253,42,FALSE) -> 507.18 | H20: =VLOOKUP($C20,'RECAP SECT'!$G$6:$DC$253,43,FALSE) -> 12% | I20: =VLOOKUP($C20,'RECAP SECT'!$G$6:$DC$253,44,FALSE) -> 4 | J20: =VLOOKUP($C20,'RECAP SECT'!$G$6:$DC$253,45,FALSE) -> 1,528 | K20: =VLOOKUP($C20,'RECAP SECT'!$G$6:$DC$253,46,FALSE) -> 23.07 | L20: =VLOOKUP($C20,'RECAP SECT'!$G$6:$DC$253,47,FALSE) -> 7% | M20: =VLOOKUP($C20,'RECAP SECT'!$G$6:$DC$253,48,FALSE) -> 4 | N20: =VLOOKUP($C20,'RECAP SECT'!$G$6:$DC$253,49,FALSE) -> 10% | O20: =VLOOKUP($C20,'RECAP SECT'!$G$6:$DC$253,50,FALSE) -> 2% | P20: =VLOOKUP($C20,'RECAP SECT'!$G$6:$DC$253,51,FALSE) -> 4
A21: 110 | B21: MEURTHE ET MOSELLE MEUSE | C21: 27 | D21: PONT A MOUSSON | E21: =VLOOKUP($C21,'RECAP SECT'!$G$6:$DC$253,3,FALSE) -> 76.5 | F21: =VLOOKUP($C21,'RECAP SECT'!$G$6:$DC$253,41,FALSE) -> 43,996 | G21: =VLOOKUP($C21,'RECAP SECT'!$G$6:$DC$253,42,FALSE) -> 575.05 | H21: =VLOOKUP($C21,'RECAP SECT'!$G$6:$DC$253,43,FALSE) -> 0% | I21: =VLOOKUP($C21,'RECAP SECT'!$G$6:$DC$253,44,FALSE) -> 1 | J21: =VLOOKUP($C21,'RECAP SECT'!$G$6:$DC$253,45,FALSE) -> 1,390 | K21: =VLOOKUP($C21,'RECAP SECT'!$G$6:$DC$253,46,FALSE) -> 18.17 | L21: =VLOOKUP($C21,'RECAP SECT'!$G$6:$DC$253,47,FALSE) -> 27% | M21: =VLOOKUP($C21,'RECAP SECT'!$G$6:$DC$253,48,FALSE) -> 13 | N21: =VLOOKUP($C21,'RECAP SECT'!$G$6:$DC$253,49,FALSE) -> 8% | O21: =VLOOKUP($C21,'RECAP SECT'!$G$6:$DC$253,50,FALSE) -> 0% | P21: =VLOOKUP($C21,'RECAP SECT'!$G$6:$DC$253,51,FALSE) -> 2
A22: 110 | B22: MEURTHE ET MOSELLE MEUSE | C22: 31 | D22: VERDUN | E22: =VLOOKUP($C22,'RECAP SECT'!$G$6:$DC$253,3,FALSE) -> 55.1 | F22: =VLOOKUP($C22,'RECAP SECT'!$G$6:$DC$253,41,FALSE) -> 20,877 | G22: =VLOOKUP($C22,'RECAP SECT'!$G$6:$DC$253,42,FALSE) -> 378.75 | H22: =VLOOKUP($C22,'RECAP SECT'!$G$6:$DC$253,43,FALSE) -> 34% | I22: =VLOOKUP($C22,'RECAP SECT'!$G$6:$DC$253,44,FALSE) -> 12 | J22: =VLOOKUP($C22,'RECAP SECT'!$G$6:$DC$253,45,FALSE) -> 1,011 | K22: =VLOOKUP($C22,'RECAP SECT'!$G$6:$DC$253,46,FALSE) -> 18.34 | L22: =VLOOKUP($C22,'RECAP SECT'!$G$6:$DC$253,47,FALSE) -> 26% | M22: =VLOOKUP($C22,'RECAP SECT'!$G$6:$DC$253,48,FALSE) -> 11 | N22: =VLOOKUP($C22,'RECAP SECT'!$G$6:$DC$253,49,FALSE) -> 32% | O22: =VLOOKUP($C22,'RECAP SECT'!$G$6:$DC$253,50,FALSE) -> 24% | P22: =VLOOKUP($C22,'RECAP SECT'!$G$6:$DC$253,51,FALSE) -> 12
A23: 160 | B23: MOSELLE | C23: 45 | D23: METZ | E23: =VLOOKUP($C23,'RECAP SECT'!$G$6:$DC$253,3,FALSE) -> 88.4 | F23: =VLOOKUP($C23,'RECAP SECT'!$G$6:$DC$253,41,FALSE) -> 35,669 | G23: =VLOOKUP($C23,'RECAP SECT'!$G$6:$DC$253,42,FALSE) -> 403.27 | H23: =VLOOKUP($C23,'RECAP SECT'!$G$6:$DC$253,43,FALSE) -> 30% | I23: =VLOOKUP($C23,'RECAP SECT'!$G$6:$DC$253,44,FALSE) -> 11 | J23: =VLOOKUP($C23,'RECAP SECT'!$G$6:$DC$253,45,FALSE) -> 1,617 | K23: =VLOOKUP($C23,'RECAP SECT'!$G$6:$DC$253,46,FALSE) -> 18.28 | L23: =VLOOKUP($C23,'RECAP SECT'!$G$6:$DC$253,47,FALSE) -> 26% | M23: =VLOOKUP($C23,'RECAP SECT'!$G$6:$DC$253,48,FALSE) -> 12 | N23: =VLOOKUP($C23,'RECAP SECT'!$G$6:$DC$253,49,FALSE) -> 29% | O23: =VLOOKUP($C23,'RECAP SECT'!$G$6:$DC$253,50,FALSE) -> 21% | P23: =VLOOKUP($C23,'RECAP SECT'!$G$6:$DC$253,51,FALSE) -> 11
A24: 160 | B24: MOSELLE | C24: 42 | D24: MOSELLE EST | E24: =VLOOKUP($C24,'RECAP SECT'!$G$6:$DC$253,3,FALSE) -> 70.2 | F24: =VLOOKUP($C24,'RECAP SECT'!$G$6:$DC$253,41,FALSE) -> 23,529 | G24: =VLOOKUP($C24,'RECAP SECT'!$G$6:$DC$253,42,FALSE) -> 335.05 | H24: =VLOOKUP($C24,'RECAP SECT'!$G$6:$DC$253,43,FALSE) -> 42% | I24: =VLOOKUP($C24,'RECAP SECT'!$G$6:$DC$253,44,FALSE) -> 14 | J24: =VLOOKUP($C24,'RECAP SECT'!$G$6:$DC$253,45,FALSE) -> 1,500 | K24: =VLOOKUP($C24,'RECAP SECT'!$G$6:$DC$253,46,FALSE) -> 21.36 | L24: =VLOOKUP($C24,'RECAP SECT'!$G$6:$DC$253,47,FALSE) -> 14% | M24: =VLOOKUP($C24,'RECAP SECT'!$G$6:$DC$253,48,FALSE) -> 6 | N24: =VLOOKUP($C24,'RECAP SECT'!$G$6:$DC$253,49,FALSE) -> 33% | O24: =VLOOKUP($C24,'RECAP SECT'!$G$6:$DC$253,50,FALSE) -> 25% | P24: =VLOOKUP($C24,'RECAP SECT'!$G$6:$DC$253,51,FALSE) -> 14
A25: 160 | B25: MOSELLE | C25: 44 | D25: MOSELLE NORD | E25: =VLOOKUP($C25,'RECAP SECT'!$G$6:$DC$253,3,FALSE) -> 65.8 | F25: =VLOOKUP($C25,'RECAP SECT'!$G$6:$DC$253,41,FALSE) -> 30,075 | G25: =VLOOKUP($C25,'RECAP SECT'!$G$6:$DC$253,42,FALSE) -> 456.95 | H25: =VLOOKUP($C25,'RECAP SECT'!$G$6:$DC$253,43,FALSE) -> 21% | I25: =VLOOKUP($C25,'RECAP SECT'!$G$6:$DC$253,44,FALSE) -> 7 | J25: =VLOOKUP($C25,'RECAP SECT'!$G$6:$DC$253,45,FALSE) -> 1,403 | K25: =VLOOKUP($C25,'RECAP SECT'!$G$6:$DC$253,46,FALSE) -> 21.32 | L25: =VLOOKUP($C25,'RECAP SECT'!$G$6:$DC$253,47,FALSE) -> 14% | M25: =VLOOKUP($C25,'RECAP SECT'!$G$6:$DC$253,48,FALSE) -> 7 | N25: =VLOOKUP($C25,'RECAP SECT'!$G$6:$DC$253,49,FALSE) -> 19% | O25: =VLOOKUP($C25,'RECAP SECT'!$G$6:$DC$253,50,FALSE) -> 11% | P25: =VLOOKUP($C25,'RECAP SECT'!$G$6:$DC$253,51,FALSE) -> 6
A26: 80 | B26: VOSGES | C26: 57 | D26: EPINAL | E26: =VLOOKUP($C26,'RECAP SECT'!$G$6:$DC$253,3,FALSE) -> 61.1 | F26: =VLOOKUP($C26,'RECAP SECT'!$G$6:$DC$253,41,FALSE) -> 27,978 | G26: =VLOOKUP($C26,'RECAP SECT'!$G$6:$DC$253,42,FALSE) -> 457.99 | H26: =VLOOKUP($C26,'RECAP SECT'!$G$6:$DC$253,43,FALSE) -> 20% | I26: =VLOOKUP($C26,'RECAP SECT'!$G$6:$DC$253,44,FALSE) -> 6 | J26: =VLOOKUP($C26,'RECAP SECT'!$G$6:$DC$253,45,FALSE) -> 788 | K26: =VLOOKUP($C26,'RECAP SECT'!$G$6:$DC$253,46,FALSE) -> 12.90 | L26: =VLOOKUP($C26,'RECAP SECT'!$G$6:$DC$253,47,FALSE) -> 48% | M26: =VLOOKUP($C26,'RECAP SECT'!$G$6:$DC$253,48,FALSE) -> 18 | N26: =VLOOKUP($C26,'RECAP SECT'!$G$6:$DC$253,49,FALSE) -> 29% | O26: =VLOOKUP($C26,'RECAP SECT'!$G$6:$DC$253,50,FALSE) -> 21% | P26: =VLOOKUP($C26,'RECAP SECT'!$G$6:$DC$253,51,FALSE) -> 10
A27: 80 | B27: VOSGES | C27: 55 | D27: SAINT DIE | E27: =VLOOKUP($C27,'RECAP SECT'!$G$6:$DC$253,3,FALSE) -> 47.1 | F27: =VLOOKUP($C27,'RECAP SECT'!$G$6:$DC$253,41,FALSE) -> 19,690 | G27: =VLOOKUP($C27,'RECAP SECT'!$G$6:$DC$253,42,FALSE) -> 418.22 | H27: =VLOOKUP($C27,'RECAP SECT'!$G$6:$DC$253,43,FALSE) -> 27% | I27: =VLOOKUP($C27,'RECAP SECT'!$G$6:$DC$253,44,FALSE) -> 9 | J27: =VLOOKUP($C27,'RECAP SECT'!$G$6:$DC$253,45,FALSE) -> 669 | K27: =VLOOKUP($C27,'RECAP SECT'!$G$6:$DC$253,46,FALSE) -> 14.21 | L27: =VLOOKUP($C27,'RECAP SECT'!$G$6:$DC$253,47,FALSE) -> 43% | M27: =VLOOKUP($C27,'RECAP SECT'!$G$6:$DC$253,48,FALSE) -> 17 | N27: =VLOOKUP($C27,'RECAP SECT'!$G$6:$DC$253,49,FALSE) -> 32% | O27: =VLOOKUP($C27,'RECAP SECT'!$G$6:$DC$253,50,FALSE) -> 24% | P27: =VLOOKUP($C27,'RECAP SECT'!$G$6:$DC$253,51,FALSE) -> 13
A28: Total CEGEE Directions Régionales | E28: =SUM(E10:E27) -> 1140

Sheet SE_CREDIT
B1: Accueil | F1: BAROMETRE BDD - TERRITOIRES
F2: CREDITS
F3: =ACCUEIL!F7 -> 2021-08-29
F7: Engagements et ventes accessoires pondérés Immo | J7: Engagements et ventes accessoires pondérés Conso | N7: Ventes sur client non détenteur de l’univers | R7: Total Crédits
F8: =DATEMAJ!C18 -> au 29/08 | H8: coef | I8: ='RECAP DIRCOM'!BM4 -> 8% | J8: =DATEMAJ!C19 -> au 29/08 | L8: coef | M8: ='RECAP DIRCOM'!BQ4 -> 6% | N8: =DATEMAJ!C20 -> au 29/08 | P8: coef | Q8: ='RECAP DIRCOM'!BU4 -> 6% | S8: coef | T8: ='RECAP DIRCOM'!BX4 -> 20%
B9: Direction | C9: eds | D9: Territoire | E9: ="ETP perf "&DATEMAJ!$C$28 -> ETP perf 30-juin | F9: PNB | G9: PNB / ETP | H9: % Ecart au 1er | I9: Rang | J9: PNB | K9: PNB / ETP | L9: % Ecart au 1er | M9: Rang | N9: VB | O9: VB / ETP | P9: % Ecart au 1er | Q9: Rang | R9: Moyenne ecart au 1er | S9: % Ecart au 1er | T9: Rang CEGEE
A10: 50 | B10: AUBE HAUTE MARNE | C10: 21 | D10: CHAUMONT | E10: =VLOOKUP($C10,'RECAP SECT'!$G$6:$DC$253,3,FALSE) -> 33.9 | F10: =VLOOKUP($C10,'RECAP SECT'!$G$6:$DC$253,56,FALSE) -> 2,514 | G10: =VLOOKUP($C10,'RECAP SECT'!$G$6:$DC$253,57,FALSE) -> 74.13 | H10: =VLOOKUP($C10,'RECAP SECT'!$G$6:$DC$253,58,FALSE) -> 61% | I10: =VLOOKUP($C10,'RECAP SECT'!$G$6:$DC$253,59,FALSE) -> 15 | J10: =VLOOKUP($C10,'RECAP SECT'!$G$6:$DC$253,60,FALSE) -> 2,028 | K10: =VLOOKUP($C10,'RECAP SECT'!$G$6:$DC$253,61,FALSE) -> 59.82 | L10: =VLOOKUP($C10,'RECAP SECT'!$G$6:$DC$253,62,FALSE) -> 0% | M10: =VLOOKUP($C10,'RECAP SECT'!$G$6:$DC$253,63,FALSE) -> 1 | N10: =VLOOKUP($C10,'RECAP SECT'!$G$6:$DC$253,64,FALSE) -> 510 | O10: =VLOOKUP($C10,'RECAP SECT'!$G$6:$DC$253,65,FALSE) -> 15.04 | P10: =VLOOKUP($C10,'RECAP SECT'!$G$6:$DC$253,66,FALSE) -> 25% | Q10: =VLOOKUP($C10,'RECAP SECT'!$G$6:$DC$253,67,FALSE) -> 7 | R10: =VLOOKUP($C10,'RECAP SECT'!$G$6:$DC$253,68,FALSE) -> 32% | S10: =VLOOKUP($C10,'RECAP SECT'!$G$6:$DC$253,69,FALSE) -> 27% | T10: =VLOOKUP($C10,'RECAP SECT'!$G$6:$DC$253,70,FALSE) -> 8
A11: 50 | B11: AUBE HAUTE MARNE | C11: 14 | D11: TROYES | E11: =VLOOKUP($C11,'RECAP SECT'!$G$6:$DC$253,3,FALSE) -> 67.1 | F11: =VLOOKUP($C11,'RECAP SECT'!$G$6:$DC$253,56,FALSE) -> 6,082 | G11: =VLOOKUP($C11,'RECAP SECT'!$G$6:$DC$253,57,FALSE) -> 90.70 | H11: =VLOOKUP($C11,'RECAP SECT'!$G$6:$DC$253,58,FALSE) -> 52% | I11: =VLOOKUP($C11,'RECAP SECT'!$G$6:$DC$253,59,FALSE) -> 11 | J11: =VLOOKUP($C11,'RECAP SECT'!$G$6:$DC$253,60,FALSE) -> 3,207 | K11: =VLOOKUP($C11,'RECAP SECT'!$G$6:$DC$253,61,FALSE) -> 47.82 | L11: =VLOOKUP($C11,'RECAP SECT'!$G$6:$DC$253,62,FALSE) -> 20% | M11: =VLOOKUP($C11,'RECAP SECT'!$G$6:$DC$253,63,FALSE) -> 11 | N11: =VLOOKUP($C11,'RECAP SECT'!$G$6:$DC$253,64,FALSE) -> 882 | O11: =VLOOKUP($C11,'RECAP SECT'!$G$6:$DC$253,65,FALSE) -> 13.15 | P11: =VLOOKUP($C11,'RECAP SECT'!$G$6:$DC$253,66,FALSE) -> 34% | Q11: =VLOOKUP($C11,'RECAP SECT'!$G$6:$DC$253,67,FALSE) -> 12 | R11: =VLOOKUP($C11,'RECAP SECT'!$G$6:$DC$253,68,FALSE) -> 37% | S11: =VLOOKUP($C11,'RECAP SECT'!$G$6:$DC$253,69,FALSE) -> 32% | T11: =VLOOKUP($C11,'RECAP SECT'!$G$6:$DC$253,70,FALSE) -> 14
A12: 262 | B12: BAS-RHIN | C12: 5060 | D12: HAGUENAU | E12: =VLOOKUP($C12,'RECAP SECT'!$G$6:$DC$253,3,FALSE) -> 70.0 | F12: =VLOOKUP($C12,'RECAP SECT'!$G$6:$DC$253,56,FALSE) -> 5,870 | G12: =VLOOKUP($C12,'RECAP SECT'!$G$6:$DC$253,57,FALSE) -> 83.87 | H12: =VLOOKUP($C12,'RECAP SECT'!$G$6:$DC$253,58,FALSE) -> 56% | I12: =VLOOKUP($C12,'RECAP SECT'!$G$6:$DC$253,59,FALSE) -> 14 | J12: =VLOOKUP($C12,'RECAP SECT'!$G$6:$DC$253,60,FALSE) -> 3,501 | K12: =VLOOKUP($C12,'RECAP SECT'!$G$6:$DC$253,61,FALSE) -> 50.02 | L12: =VLOOKUP($C12,'RECAP SECT'!$G$6:$DC$253,62,FALSE) -> 16% | M12: =VLOOKUP($C12,'RECAP SECT'!$G$6:$DC$253,63,FALSE) -> 8 | N12: =VLOOKUP($C12,'RECAP SECT'!$G$6:$DC$253,64,FALSE) -> 742 | O12: =VLOOKUP($C12,'RECAP SECT'!$G$6:$DC$253,65,FALSE) -> 10.60 | P12: =VLOOKUP($C12,'RECAP SECT'!$G$6:$DC$253,66,FALSE) -> 47% | Q12: =VLOOKUP($C12,'RECAP SECT'!$G$6:$DC$253,67,FALSE) -> 16 | R12: =VLOOKUP($C12,'RECAP SECT'!$G$6:$DC$253,68,FALSE) -> 41% | S12: =VLOOKUP($C12,'RECAP SECT'!$G$6:$DC$253,69,FALSE) -> 36% | T12: =VLOOKUP($C12,'RECAP SECT'!$G$6:$DC$253,70,FALSE) -> 15
A13: 262 | B13: BAS-RHIN | C13: 5101 | D13: SELESTAT | E13: =VLOOKUP($C13,'RECAP SECT'!$G$6:$DC$253,3,FALSE) -> 59.9 | F13: =VLOOKUP($C13,'RECAP SECT'!$G$6:$DC$253,56,FALSE) -> 4,055 | G13: =VLOOKUP($C13,'RECAP SECT'!$G$6:$DC$253,57,FALSE) -> 67.71 | H13: =VLOOKUP($C13,'RECAP SECT'!$G$6:$DC$253,58,FALSE) -> 64% | I13: =VLOOKUP($C13,'RECAP SECT'!$G$6:$DC$253,59,FALSE) -> 17 | J13: =VLOOKUP($C13,'RECAP SECT'!$G$6:$DC$253,60,FALSE) -> 2,968 | K13: =VLOOKUP($C13,'RECAP SECT'!$G$6:$DC$253,61,FALSE) -> 49.57 | L13: =VLOOKUP($C13,'RECAP SECT'!$G$6:$DC$253,62,FALSE) -> 17% | M13: =VLOOKUP($C13,'RECAP SECT'!$G$6:$DC$253,63,FALSE) -> 9 | N13: =VLOOKUP($C13,'RECAP SECT'!$G$6:$DC$253,64,FALSE) -> 693 | O13: =VLOOKUP($C13,'RECAP SECT'!$G$6:$DC$253,65,FALSE) -> 11.57 | P13: =VLOOKUP($C13,'RECAP SECT'!$G$6:$DC$253,66,FALSE) -> 42% | Q13: =VLOOKUP($C13,'RECAP SECT'!$G$6:$DC$253,67,FALSE) -> 15 | R13: =VLOOKUP($C13,'RECAP SECT'!$G$6:$DC$253,68,FALSE) -> 43% | S13: =VLOOKUP($C13,'RECAP SECT'!$G$6:$DC$253,69,FALSE) -> 39% | T13: =VLOOKUP($C13,'RECAP SECT'!$G$6:$DC$253,70,FALSE) -> 16
A14: 262 | B14: BAS-RHIN | C14: 5006 | D14: STRASBOURG | E14: =VLOOKUP($C14,'RECAP SECT'!$G$6:$DC$253,3,FALSE) -> 75.2 | F14: =VLOOKUP($C14,'RECAP SECT'!$G$6:$DC$253,56,FALSE) -> 8,210 | G14: =VLOOKUP($C14,'RECAP SECT'!$G$6:$DC$253,57,FALSE) -> 109.14 | H14: =VLOOKUP($C14,'RECAP SECT'!$G$6:$DC$253,58,FALSE) -> 42% | I14: =VLOOKUP($C14,'RECAP SECT'!$G$6:$DC$253,59,FALSE) -> 8 | J14: =VLOOKUP($C14,'RECAP SECT'!$G$6:$DC$253,60,FALSE) -> 3,073 | K14: =VLOOKUP($C14,'RECAP SECT'!$G$6:$DC$253,61,FALSE) -> 40.85 | L14: =VLOOKUP($C14,'RECAP SECT'!$G$6:$DC$253,62,FALSE) -> 32% | M14: =VLOOKUP($C14,'RECAP SECT'!$G$6:$DC$253,63,FALSE) -> 18 | N14: =VLOOKUP($C14,'RECAP SECT'!$G$6:$DC$253,64,FALSE) -> 1,010 | O14: =VLOOKUP($C14,'RECAP SECT'!$G$6:$DC$253,65,FALSE) -> 13.43 | P14: =VLOOKUP($C14,'RECAP SECT'!$G$6:$DC$253,66,FALSE) -> 33% | Q14: =VLOOKUP($C14,'RECAP SECT'!$G$6:$DC$253,67,FALSE) -> 11 | R14: =VLOOKUP($C14,'RECAP SECT'!$G$6:$DC$253,68,FALSE) -> 36% | S14: =VLOOKUP($C14,'RECAP SECT'!$G$6:$DC$253,69,FALSE) -> 31% | T14: =VLOOKUP($C14,'RECAP SECT'!$G$6:$DC$253,70,FALSE) -> 12
A15: 264 | B15: HAUT-RHIN | C15: 5130 | D15: COLMAR | E15: =VLOOKUP($C15,'RECAP SECT'!$G$6:$DC$253,3,FALSE) -> 61.5 | F15: =VLOOKUP($C15,'RECAP SECT'!$G$6:$DC$253,56,FALSE) -> 3,586 | G15: =VLOOKUP($C15,'RECAP SECT'!$G$6:$DC$253,57,FALSE) -> 58.27 | H15: =VLOOKUP($C15,'RECAP SECT'!$G$6:$DC$253,58,FALSE) -> 69% | I15: =VLOOKUP($C15,'RECAP SECT'!$G$6:$DC$253,59,FALSE) -> 18 | J15: =VLOOKUP($C15,'RECAP SECT'!$G$6:$DC$253,60,FALSE) -> 2,595 | K15: =VLOOKUP($C15,'RECAP SECT'!$G$6:$DC$253,61,FALSE) -> 42.17 | L15: =VLOOKUP($C15,'RECAP SECT'!$G$6:$DC$253,62,FALSE) -> 29% | M15: =VLOOKUP($C15,'RECAP SECT'!$G$6:$DC$253,63,FALSE) -> 17 | N15: =VLOOKUP($C15,'RECAP SECT'!$G$6:$DC$253,64,FALSE) -> 600 | O15: =VLOOKUP($C15,'RECAP SECT'!$G$6:$DC$253,65,FALSE) -> 9.75 | P15: =VLOOKUP($C15,'RECAP SECT'!$G$6:$DC$253,66,FALSE) -> 51% | Q15: =VLOOKUP($C15,'RECAP SECT'!$G$6:$DC$253,67,FALSE) -> 18 | R15: =VLOOKUP($C15,'RECAP SECT'!$G$6:$DC$253,68,FALSE) -> 52% | S15: =VLOOKUP($C15,'RECAP SECT'!$G$6:$DC$253,69,FALSE) -> 47% | T15: =VLOOKUP($C15,'RECAP SECT'!$G$6:$DC$253,70,FALSE) -> 18
A16: 264 | B16: HAUT-RHIN | C16: 5169 | D16: MULHOUSE | E16: =VLOOKUP($C16,'RECAP SECT'!$G$6:$DC$253,3,FALSE) -> 61.1 | F16: =VLOOKUP($C16,'RECAP SECT'!$G$6:$DC$253,56,FALSE) -> 4,244 | G16: =VLOOKUP($C16,'RECAP SECT'!$G$6:$DC$253,57,FALSE) -> 69.42 | H16: =VLOOKUP($C16,'RECAP SECT'!$G$6:$DC$253,58,FALSE) -> 63% | I16: =VLOOKUP($C16,'RECAP SECT'!$G$6:$DC$253,59,FALSE) -> 16 | J16: =VLOOKUP($C16,'RECAP SECT'!$G$6:$DC$253,60,FALSE) -> 2,670 | K16: =VLOOKUP($C16,'RECAP SECT'!$G$6:$DC$253,61,FALSE) -> 43.68 | L16: =VLOOKUP($C16,'RECAP SECT'!$G$6:$DC$253,62,FALSE) -> 27% | M16: =VLOOKUP($C16,'RECAP SECT'!$G$6:$DC$253,63,FALSE) -> 16 | N16: =VLOOKUP($C16,'RECAP SECT'!$G$6:$DC$253,64,FALSE) -> 613 | O16: =VLOOKUP($C16,'RECAP SECT'!$G$6:$DC$253,65,FALSE) -> 10.03 | P16: =VLOOKUP($C16,'RECAP SECT'!$G$6:$DC$253,66,FALSE) -> 50% | Q16: =VLOOKUP($C16,'RECAP SECT'!$G$6:$DC$253,67,FALSE) -> 17 | R16: =VLOOKUP($C16,'RECAP SECT'!$G$6:$DC$253,68,FALSE) -> 48% | S16: =VLOOKUP($C16,'RECAP SECT'!$G$6:$DC$253,69,FALSE) -> 44% | T16: =VLOOKUP($C16,'RECAP SECT'!$G$6:$DC$253,70,FALSE) -> 17
A17: 30 | B17: MARNE-ARDENNES | C17: 6 | D17: CHALONS EN CHAMPAGNE | E17: =VLOOKUP($C17,'RECAP SECT'!$G$6:$DC$253,3,FALSE) -> 44.7 | F17: =VLOOKUP($C17,'RECAP SECT'!$G$6:$DC$253,56,FALSE) -> 5,587 | G17: =VLOOKUP($C17,'RECAP SECT'!$G$6:$DC$253,57,FALSE) -> 125.06 | H17: =VLOOKUP($C17,'RECAP SECT'!$G$6:$DC$253,58,FALSE) -> 34% | I17: =VLOOKUP($C17,'RECAP SECT'!$G$6:$DC$253,59,FALSE) -> 6 | J17: =VLOOKUP($C17,'RECAP SECT'!$G$6:$DC$253,60,FALSE) -> 2,178 | K17: =VLOOKUP($C17,'RECAP SECT'!$G$6:$DC$253,61,FALSE) -> 48.76 | L17: =VLOOKUP($C17,'RECAP SECT'!$G$6:$DC$253,62,FALSE) -> 18% | M17: =VLOOKUP($C17,'RECAP SECT'!$G$6:$DC$253,63,FALSE) -> 10 | N17: =VLOOKUP($C17,'RECAP SECT'!$G$6:$DC$253,64,FALSE) -> 699 | O17: =VLOOKUP($C17,'RECAP SECT'!$G$6:$DC$253,65,FALSE) -> 15.65 | P17: =VLOOKUP($C17,'RECAP SECT'!$G$6:$DC$253,66,FALSE) -> 22% | Q17: =VLOOKUP($C17,'RECAP SECT'!$G$6:$DC$253,67,FALSE) -> 6 | R17: =VLOOKUP($C17,'RECAP SECT'!$G$6:$DC$253,68,FALSE) -> 26% | S17: =VLOOKUP($C17,'RECAP SECT'!$G$6:$DC$253,69,FALSE) -> 21% | T17: =VLOOKUP($C17,'RECAP SECT'!$G$6:$DC$253,70,FALSE) -> 7
A18: 30 | B18: MARNE-ARDENNES | C18: 2 | D18: CHARLEVILLE MEZIERES | E18: =VLOOKUP($C18,'RECAP SECT'!$G$6:$DC$253,3,FALSE) -> 56.6 | F18: =VLOOKUP($C18,'RECAP SECT'!$G$6:$DC$253,56,FALSE) -> 8,587 | G18: =VLOOKUP($C18,'RECAP SECT'!$G$6:$DC$253,57,FALSE) -> 151.71 | H18: =VLOOKUP($C18,'RECAP SECT'!$G$6:$DC$253,58,FALSE) -> 20% | I18: =VLOOKUP($C18,'RECAP SECT'!$G$6:$DC$253,59,FALSE) -> 4 | J18: =VLOOKUP($C18,'RECAP SECT'!$G$6:$DC$253,60,FALSE) -> 2,653 | K18: =VLOOKUP($C18,'RECAP SECT'!$G$6:$DC$253,61,FALSE) -> 46.87 | L18: =VLOOKUP($C18,'RECAP SECT'!$G$6:$DC$253,62,FALSE) -> 22% | M18: =VLOOKUP($C18,'RECAP SECT'!$G$6:$DC$253,63,FALSE) -> 12 | N18: =VLOOKUP($C18,'RECAP SECT'!$G$6:$DC$253,64,FALSE) -> 954 | O18: =VLOOKUP($C18,'RECAP SECT'!$G$6:$DC$253,65,FALSE) -> 16.85 | P18: =VLOOKUP($C18,'RECAP SECT'!$G$6:$DC$253,66,FALSE) -> 16% | Q18: =VLOOKUP($C18,'RECAP SECT'!$G$6:$DC$253,67,FALSE) -> 4 | R18: =VLOOKUP($C18,'RECAP SECT'!$G$6:$DC$253,68,FALSE) -> 19% | S18: =VLOOKUP($C18,'RECAP SECT'!$G$6:$DC$253,69,FALSE) -> 14% | T18: =VLOOKUP($C18,'RECAP SECT'!$G$6:$DC$253,70,FALSE) -> 4
A19: 30 | B19: MARNE-ARDENNES | C19: 11 | D19: REIMS | E19: =VLOOKUP($C19,'RECAP SECT'!$G$6:$DC$253,3,FALSE) -> 79.7 | F19: =VLOOKUP($C19,'RECAP SECT'!$G$6:$DC$253,56,FALSE) -> 14,650 | G19: =VLOOKUP($C19,'RECAP SECT'!$G$6:$DC$253,57,FALSE) -> 183.76 | H19: =VLOOKUP($C19,'RECAP SECT'!$G$6:$DC$253,58,FALSE) -> 3% | I19: =VLOOKUP($C19,'RECAP SECT'!$G$6:$DC$253,59,FALSE) -> 2 | J19: =VLOOKUP($C19,'RECAP SECT'!$G$6:$DC$253,60,FALSE) -> 3,702 | K19: =VLOOKUP($C19,'RECAP SECT'!$G$6:$DC$253,61,FALSE) -> 46.43 | L19: =VLOOKUP($C19,'RECAP SECT'!$G$6:$DC$253,62,FALSE) -> 22% | M19: =VLOOKUP($C19,'RECAP SECT'!$G$6:$DC$253,63,FALSE) -> 13 | N19: =VLOOKUP($C19,'RECAP SECT'!$G$6:$DC$253,64,FALSE) -> 1,426 | O19: =VLOOKUP($C19,'RECAP SECT'!$G$6:$DC$253,65,FALSE) -> 17.89 | P19: =VLOOKUP($C19,'RECAP SECT'!$G$6:$DC$253,66,FALSE) -> 10% | Q19: =VLOOKUP($C19,'RECAP SECT'!$G$6:$DC$253,67,FALSE) -> 2 | R19: =VLOOKUP($C19,'RECAP SECT'!$G$6:$DC$253,68,FALSE) -> 11% | S19: =VLOOKUP($C19,'RECAP SECT'!$G$6:$DC$253,69,FALSE) -> 6% | T19: =VLOOKUP($C19,'RECAP SECT'!$G$6:$DC$253,70,FALSE) -> 3
A20: 110 | B20: MEURTHE ET MOSELLE MEUSE | C20: 26 | D20: NANCY | E20: =VLOOKUP($C20,'RECAP SECT'!$G$6:$DC$253,3,FALSE) -> 66.2 | F20: =VLOOKUP($C20,'RECAP SECT'!$G$6:$DC$253,56,FALSE) -> 12,563 | G20: =VLOOKUP($C20,'RECAP SECT'!$G$6:$DC$253,57,FALSE) -> 189.66 | H20: =VLOOKUP($C20,'RECAP SECT'!$G$6:$DC$253,58,FALSE) -> 0% | I20: =VLOOKUP($C20,'RECAP SECT'!$G$6:$DC$253,59,FALSE) -> 1 | J20: =VLOOKUP($C20,'RECAP SECT'!$G$6:$DC$253,60,FALSE) -> 3,323 | K20: =VLOOKUP($C20,'RECAP SECT'!$G$6:$DC$253,61,FALSE) -> 50.17 | L20: =VLOOKUP($C20,'RECAP SECT'!$G$6:$DC$253,62,FALSE) -> 16% | M20: =VLOOKUP($C20,'RECAP SECT'!$G$6:$DC$253,63,FALSE) -> 7 | N20: =VLOOKUP($C20,'RECAP SECT'!$G$6:$DC$253,64,FALSE) -> 1,322 | O20: =VLOOKUP($C20,'RECAP SECT'!$G$6:$DC$253,65,FALSE) -> 19.96 | P20: =VLOOKUP($C20,'RECAP SECT'!$G$6:$DC$253,66,FALSE) -> 0% | Q20: =VLOOKUP($C20,'RECAP SECT'!$G$6:$DC$253,67,FALSE) -> 1 | R20: =VLOOKUP($C20,'RECAP SECT'!$G$6:$DC$253,68,FALSE) -> 5% | S20: =VLOOKUP($C20,'RECAP SECT'!$G$6:$DC$253,69,FALSE) -> 0% | T20: =VLOOKUP($C20,'RECAP SECT'!$G$6:$DC$253,70,FALSE) -> 1
A21: 110 | B21: MEURTHE ET MOSELLE MEUSE | C21: 27 | D21: PONT A MOUSSON | E21: =VLOOKUP($C21,'RECAP SECT'!$G$6:$DC$253,3,FALSE) -> 76.5 | F21: =VLOOKUP($C21,'RECAP SECT'!$G$6:$DC$253,56,FALSE) -> 13,987 | G21: =VLOOKUP($C21,'RECAP SECT'!$G$6:$DC$253,57,FALSE) -> 182.82 | H21: =VLOOKUP($C21,'RECAP SECT'!$G$6:$DC$253,58,FALSE) -> 4% | I21: =VLOOKUP($C21,'RECAP SECT'!$G$6:$DC$253,59,FALSE) -> 3 | J21: =VLOOKUP($C21,'RECAP SECT'!$G$6:$DC$253,60,FALSE) -> 3,891 | K21: =VLOOKUP($C21,'RECAP SECT'!$G$6:$DC$253,61,FALSE) -> 50.86 | L21: =VLOOKUP($C21,'RECAP SECT'!$G$6:$DC$253,62,FALSE) -> 15% | M21: =VLOOKUP($C21,'RECAP SECT'!$G$6:$DC$253,63,FALSE) -> 5 | N21: =VLOOKUP($C21,'RECAP SECT'!$G$6:$DC$253,64,FALSE) -> 1,350 | O21: =VLOOKUP($C21,'RECAP SECT'!$G$6:$DC$253,65,FALSE) -> 17.65 | P21: =VLOOKUP($C21,'RECAP SECT'!$G$6:$DC$253,66,FALSE) -> 12% | Q21: =VLOOKUP($C21,'RECAP SECT'!$G$6:$DC$253,67,FALSE) -> 3 | R21: =VLOOKUP($C21,'RECAP SECT'!$G$6:$DC$253,68,FALSE) -> 9% | S21: =VLOOKUP($C21,'RECAP SECT'!$G$6:$DC$253,69,FALSE) -> 5% | T21: =VLOOKUP($C21,'RECAP SECT'!$G$6:$DC$253,70,FALSE) -> 2
A22: 110 | B22: MEURTHE ET MOSELLE MEUSE | C22: 31 | D22: VERDUN | E22: =VLOOKUP($C22,'RECAP SECT'!$G$6:$DC$253,3,FALSE) -> 55.1 | F22: =VLOOKUP($C22,'RECAP SECT'!$G$6:$DC$253,56,FALSE) -> 6,747 | G22: =VLOOKUP($C22,'RECAP SECT'!$G$6:$DC$253,57,FALSE) -> 122.39 | H22: =VLOOKUP($C22,'RECAP SECT'!$G$6:$DC$253,58,FALSE) -> 35% | I22: =VLOOKUP($C22,'RECAP SECT'!$G$6:$DC$253,59,FALSE) -> 7 | J22: =VLOOKUP($C22,'RECAP SECT'!$G$6:$DC$253,60,FALSE) -> 3,245 | K22: =VLOOKUP($C22,'RECAP SECT'!$G$6:$DC$253,61,FALSE) -> 58.87 | L22: =VLOOKUP($C22,'RECAP SECT'!$G$6:$DC$253,62,FALSE) -> 2% | M22: =VLOOKUP($C22,'RECAP SECT'!$G$6:$DC$253,63,FALSE) -> 2 | N22: =VLOOKUP($C22,'RECAP SECT'!$G$6:$DC$253,64,FALSE) -> 864 | O22: =VLOOKUP($C22,'RECAP SECT'!$G$6:$DC$253,65,FALSE) -> 15.67 | P22: =VLOOKUP($C22,'RECAP SECT'!$G$6:$DC$253,66,FALSE) -> 21% | Q22: =VLOOKUP($C22,'RECAP SECT'!$G$6:$DC$253,67,FALSE) -> 5 | R22: =VLOOKUP($C22,'RECAP SECT'!$G$6:$DC$253,68,FALSE) -> 21% | S22: =VLOOKUP($C22,'RECAP SECT'!$G$6:$DC$253,69,FALSE) -> 16% | T22: =VLOOKUP($C22,'RECAP SECT'!$G$6:$DC$253,70,FALSE) -> 5
A23: 160 | B23: MOSELLE | C23: 45 | D23: METZ | E23: =VLOOKUP($C23,'RECAP SECT'!$G$6:$DC$253,3,FALSE) -> 88.4 | F23: =VLOOKUP($C23,'RECAP SECT'!$G$6:$DC$253,56,FALSE) -> 8,953 | G23: =VLOOKUP($C23,'RECAP SECT'!$G$6:$DC$253,57,FALSE) -> 101.23 | H23: =VLOOKUP($C23,'RECAP SECT'!$G$6:$DC$253,58,FALSE) -> 47% | I23: =VLOOKUP($C23,'RECAP SECT'!$G$6:$DC$253,59,FALSE) -> 9 | J23: =VLOOKUP($C23,'RECAP SECT'!$G$6:$DC$253,60,FALSE) -> 4,057 | K23: =VLOOKUP($C23,'RECAP SECT'!$G$6:$DC$253,61,FALSE) -> 45.87 | L23: =VLOOKUP($C23,'RECAP SECT'!$G$6:$DC$253,62,FALSE) -> 23% | M23: =VLOOKUP($C23,'RECAP SECT'!$G$6:$DC$253,63,FALSE) -> 14 | N23: =VLOOKUP($C23,'RECAP SECT'!$G$6:$DC$253,64,FALSE) -> 1,135 | O23: =VLOOKUP($C23,'RECAP SECT'!$G$6:$DC$253,65,FALSE) -> 12.83 | P23: =VLOOKUP($C23,'RECAP SECT'!$G$6:$DC$253,66,FALSE) -> 36% | Q23: =VLOOKUP($C23,'RECAP SECT'!$G$6:$DC$253,67,FALSE) -> 13 | R23: =VLOOKUP($C23,'RECAP SECT'!$G$6:$DC$253,68,FALSE) -> 36% | S23: =VLOOKUP($C23,'RECAP SECT'!$G$6:$DC$253,69,FALSE) -> 32% | T23: =VLOOKUP($C23,'RECAP SECT'!$G$6:$DC$253,70,FALSE) -> 13
A24: 160 | B24: MOSELLE | C24: 42 | D24: MOSELLE EST | E24: =VLOOKUP($C24,'RECAP SECT'!$G$6:$DC$253,3,FALSE) -> 70.2 | F24: =VLOOKUP($C24,'RECAP SECT'!$G$6:$DC$253,56,FALSE) -> 6,350 | G24: =VLOOKUP($C24,'RECAP SECT'!$G$6:$DC$253,57,FALSE) -> 90.42 | H24: =VLOOKUP($C24,'RECAP SECT'!$G$6:$DC$253,58,FALSE) -> 52% | I24: =VLOOKUP($C24,'RECAP SECT'!$G$6:$DC$253,59,FALSE) -> 12 | J24: =VLOOKUP($C24,'RECAP SECT'!$G$6:$DC$253,60,FALSE) -> 3,867 | K24: =VLOOKUP($C24,'RECAP SECT'!$G$6:$DC$253,61,FALSE) -> 55.07 | L24: =VLOOKUP($C24,'RECAP SECT'!$G$6:$DC$253,62,FALSE) -> 8% | M24: =VLOOKUP($C24,'RECAP SECT'!$G$6:$DC$253,63,FALSE) -> 3 | N24: =VLOOKUP($C24,'RECAP SECT'!$G$6:$DC$253,64,FALSE) -> 876 | O24: =VLOOKUP($C24,'RECAP SECT'!$G$6:$DC$253,65,FALSE) -> 12.47 | P24: =VLOOKUP($C24,'RECAP SECT'!$G$6:$DC$253,66,FALSE) -> 37% | Q24: =VLOOKUP($C24,'RECAP SECT'!$G$6:$DC$253,67,FALSE) -> 14 | R24: =VLOOKUP($C24,'RECAP SECT'!$G$6:$DC$253,68,FALSE) -> 35% | S24: =VLOOKUP($C24,'RECAP SECT'!$G$6:$DC$253,69,FALSE) -> 30% | T24: =VLOOKUP($C24,'RECAP SECT'!$G$6:$DC$253,70,FALSE) -> 9
A25: 160 | B25: MOSELLE | C25: 44 | D25: MOSELLE NORD | E25: =VLOOKUP($C25,'RECAP SECT'!$G$6:$DC$253,3,FALSE) -> 65.8 | F25: =VLOOKUP($C25,'RECAP SECT'!$G$6:$DC$253,56,FALSE) -> 8,773 | G25: =VLOOKUP($C25,'RECAP SECT'!$G$6:$DC$253,57,FALSE) -> 133.30 | H25: =VLOOKUP($C25,'RECAP SECT'!$G$6:$DC$253,58,FALSE) -> 30% | I25: =VLOOKUP($C25,'RECAP SECT'!$G$6:$DC$253,59,FALSE) -> 5 | J25: =VLOOKUP($C25,'RECAP SECT'!$G$6:$DC$253,60,FALSE) -> 3,383 | K25: =VLOOKUP($C25,'RECAP SECT'!$G$6:$DC$253,61,FALSE) -> 51.41 | L25: =VLOOKUP($C25,'RECAP SECT'!$G$6:$DC$253,62,FALSE) -> 14% | M25: =VLOOKUP($C25,'RECAP SECT'!$G$6:$DC$253,63,FALSE) -> 4 | N25: =VLOOKUP($C25,'RECAP SECT'!$G$6:$DC$253,64,FALSE) -> 924 | O25: =VLOOKUP($C25,'RECAP SECT'!$G$6:$DC$253,65,FALSE) -> 14.04 | P25: =VLOOKUP($C25,'RECAP SECT'!$G$6:$DC$253,66,FALSE) -> 30% | Q25: =VLOOKUP($C25,'RECAP SECT'!$G$6:$DC$253,67,FALSE) -> 9 | R25: =VLOOKUP($C25,'RECAP SECT'!$G$6:$DC$253,68,FALSE) -> 25% | S25: =VLOOKUP($C25,'RECAP SECT'!$G$6:$DC$253,69,FALSE) -> 20% | T25: =VLOOKUP($C25,'RECAP SECT'!$G$6:$DC$253,70,FALSE) -> 6
A26: 80 | B26: VOSGES | C26: 57 | D26: EPINAL | E26: =VLOOKUP($C26,'RECAP SECT'!$G$6:$DC$253,3,FALSE) -> 61.1 | F26: =VLOOKUP($C26,'RECAP SECT'!$G$6:$DC$253,56,FALSE) -> 5,758 | G26: =VLOOKUP($C26,'RECAP SECT'!$G$6:$DC$253,57,FALSE) -> 94.25 | H26: =VLOOKUP($C26,'RECAP SECT'!$G$6:$DC$253,58,FALSE) -> 50% | I26: =VLOOKUP($C26,'RECAP SECT'!$G$6:$DC$253,59,FALSE) -> 10 | J26: =VLOOKUP($C26,'RECAP SECT'!$G$6:$DC$253,60,FALSE) -> 2,687 | K26: =VLOOKUP($C26,'RECAP SECT'!$G$6:$DC$253,61,FALSE) -> 43.99 | L26: =VLOOKUP($C26,'RECAP SECT'!$G$6:$DC$253,62,FALSE) -> 26% | M26: =VLOOKUP($C26,'RECAP SECT'!$G$6:$DC$253,63,FALSE) -> 15 | N26: =VLOOKUP($C26,'RECAP SECT'!$G$6:$DC$253,64,FALSE) -> 913 | O26: =VLOOKUP($C26,'RECAP SECT'!$G$6:$DC$253,65,FALSE) -> 14.95 | P26: =VLOOKUP($C26,'RECAP SECT'!$G$6:$DC$253,66,FALSE) -> 25% | Q26: =VLOOKUP($C26,'RECAP SECT'!$G$6:$DC$253,67,FALSE) -> 8 | R26: =VLOOKUP($C26,'RECAP SECT'!$G$6:$DC$253,68,FALSE) -> 36% | S26: =VLOOKUP($C26,'RECAP SECT'!$G$6:$DC$253,69,FALSE) -> 31% | T26: =VLOOKUP($C26,'RECAP SECT'!$G$6:$DC$253,70,FALSE) -> 10
A27: 80 | B27: VOSGES | C27: 55 | D27: SAINT DIE | E27: =VLOOKUP($C27,'RECAP SECT'!$G$6:$DC$253,3,FALSE) -> 47.1 | F27: =VLOOKUP($C27,'RECAP SECT'!$G$6:$DC$253,56,FALSE) -> 4,064 | G27: =VLOOKUP($C27,'RECAP SECT'!$G$6:$DC$253,57,FALSE) -> 86.33 | H27: =VLOOKUP($C27,'RECAP SECT'!$G$6:$DC$253,58,FALSE) -> 54% | I27: =VLOOKUP($C27,'RECAP SECT'!$G$6:$DC$253,59,FALSE) -> 13 | J27: =VLOOKUP($C27,'RECAP SECT'!$G$6:$DC$253,60,FALSE) -> 2,375 | K27: =VLOOKUP($C27,'RECAP SECT'!$G$6:$DC$253,61,FALSE) -> 50.44 | L27: =VLOOKUP($C27,'RECAP SECT'!$G$6:$DC$253,62,FALSE) -> 16% | M27: =VLOOKUP($C27,'RECAP SECT'!$G$6:$DC$253,63,FALSE) -> 6 | N27: =VLOOKUP($C27,'RECAP SECT'!$G$6:$DC$253,64,FALSE) -> 650 | O27: =VLOOKUP($C27,'RECAP SECT'!$G$6:$DC$253,65,FALSE) -> 13.81 | P27: =VLOOKUP($C27,'RECAP SECT'!$G$6:$DC$253,66,FALSE) -> 31% | Q27: =VLOOKUP($C27,'RECAP SECT'!$G$6:$DC$253,67,FALSE) -> 10 | R27: =VLOOKUP($C27,'RECAP SECT'!$G$6:$DC$253,68,FALSE) -> 36% | S27: =VLOOKUP($C27,'RECAP SECT'!$G$6:$DC$253,69,FALSE) -> 31% | T27: =VLOOKUP($C27,'RECAP SECT'!$G$6:$DC$253,70,FALSE) -> 11
A28: Total CEGEE Directions Régionales | E28: =SUM(E10:E27) -> 1140

Sheet SE_IARD
B1: Accueil | F1: BAROMETRE BDD - TERRITOIRES
F2: IARD ET PREVOYANCE
F3: =ACCUEIL!F7 -> 2021-08-29
F7: Ventes Nettes produits pondérés | J7: Ventes sur client non détenteur de l’univers | N7: Total IARD Prévoyance
F8: =DATEMAJ!C23 -> au 29/08 | H8: coef | I8: ='RECAP DIRCOM'!CF4 -> 14% | J8: =DATEMAJ!C24 -> au 29/08 | L8: coef | M8: ='RECAP DIRCOM'!CJ4 -> 6% | O8: coef | P8: ='RECAP DIRCOM'!CM4 -> 20%
B9: Direction | C9: eds | D9: Territoire | E9: ="ETP perf "&DATEMAJ!$C$28 -> ETP perf 30-juin | F9: VN | G9: VN / ETP | H9: % Ecart au 1er | I9: Rang | J9: VB | K9: VB / ETP | L9: % Ecart au 1er | M9: Rang | N9: Moyenne ecart au 1er | O9: % Ecart au 1er | P9: Rang CEGEE
A10: 50 | B10: AUBE HAUTE MARNE | C10: 21 | D10: CHAUMONT | E10: =VLOOKUP($C10,'RECAP SECT'!$G$6:$DC$253,3,FALSE) -> 33.9 | F10: =VLOOKUP($C10,'RECAP SECT'!$G$6:$DC$253,75,FALSE) -> 5,540 | G10: =VLOOKUP($C10,'RECAP SECT'!$G$6:$DC$253,76,FALSE) -> 163.39 | H10: =VLOOKUP($C10,'RECAP SECT'!$G$6:$DC$253,77,FALSE) -> 24% | I10: =VLOOKUP($C10,'RECAP SECT'!$G$6:$DC$253,78,FALSE) -> 9 | J10: =VLOOKUP($C10,'RECAP SECT'!$G$6:$DC$253,79,FALSE) -> 1,137 | K10: =VLOOKUP($C10,'RECAP SECT'!$G$6:$DC$253,80,FALSE) -> 33.53 | L10: =VLOOKUP($C10,'RECAP SECT'!$G$6:$DC$253,81,FALSE) -> 14% | M10: =VLOOKUP($C10,'RECAP SECT'!$G$6:$DC$253,82,FALSE) -> 4 | N10: =VLOOKUP($C10,'RECAP SECT'!$G$6:$DC$253,83,FALSE) -> 21% | O10: =VLOOKUP($C10,'RECAP SECT'!$G$6:$DC$253,84,FALSE) -> 18% | P10: =VLOOKUP($C10,'RECAP SECT'!$G$6:$DC$253,85,FALSE) -> 8
A11: 50 | B11: AUBE HAUTE MARNE | C11: 14 | D11: TROYES | E11: =VLOOKUP($C11,'RECAP SECT'!$G$6:$DC$253,3,FALSE) -> 67.1 | F11: =VLOOKUP($C11,'RECAP SECT'!$G$6:$DC$253,75,FALSE) -> 7,358 | G11: =VLOOKUP($C11,'RECAP SECT'!$G$6:$DC$253,76,FALSE) -> 109.71 | H11: =VLOOKUP($C11,'RECAP SECT'!$G$6:$DC$253,77,FALSE) -> 49% | I11: =VLOOKUP($C11,'RECAP SECT'!$G$6:$DC$253,78,FALSE) -> 17 | J11: =VLOOKUP($C11,'RECAP SECT'!$G$6:$DC$253,79,FALSE) -> 1,847 | K11: =VLOOKUP($C11,'RECAP SECT'!$G$6:$DC$253,80,FALSE) -> 27.54 | L11: =VLOOKUP($C11,'RECAP SECT'!$G$6:$DC$253,81,FALSE) -> 29% | M11: =VLOOKUP($C11,'RECAP SECT'!$G$6:$DC$253,82,FALSE) -> 15 | N11: =VLOOKUP($C11,'RECAP SECT'!$G$6:$DC$253,83,FALSE) -> 43% | O11: =VLOOKUP($C11,'RECAP SECT'!$G$6:$DC$253,84,FALSE) -> 40% | P11: =VLOOKUP($C11,'RECAP SECT'!$G$6:$DC$253,85,FALSE) -> 17
A12: 262 | B12: BAS-RHIN | C12: 5060 | D12: HAGUENAU | E12: =VLOOKUP($C12,'RECAP SECT'!$G$6:$DC$253,3,FALSE) -> 70.0 | F12: =VLOOKUP($C12,'RECAP SECT'!$G$6:$DC$253,75,FALSE) -> 8,859 | G12: =VLOOKUP($C12,'RECAP SECT'!$G$6:$DC$253,76,FALSE) -> 126.57 | H12: =VLOOKUP($C12,'RECAP SECT'!$G$6:$DC$253,77,FALSE) -> 41% | I12: =VLOOKUP($C12,'RECAP SECT'!$G$6:$DC$253,78,FALSE) -> 16 | J12: =VLOOKUP($C12,'RECAP SECT'!$G$6:$DC$253,79,FALSE) -> 1,761 | K12: =VLOOKUP($C12,'RECAP SECT'!$G$6:$DC$253,80,FALSE) -> 25.16 | L12: =VLOOKUP($C12,'RECAP SECT'!$G$6:$DC$253,81,FALSE) -> 35% | M12: =VLOOKUP($C12,'RECAP SECT'!$G$6:$DC$253,82,FALSE) -> 18 | N12: =VLOOKUP($C12,'RECAP SECT'!$G$6:$DC$253,83,FALSE) -> 39% | O12: =VLOOKUP($C12,'RECAP SECT'!$G$6:$DC$253,84,FALSE) -> 37% | P12: =VLOOKUP($C12,'RECAP SECT'!$G$6:$DC$253,85,FALSE) -> 16
A13: 262 | B13: BAS-RHIN | C13: 5101 | D13: SELESTAT | E13: =VLOOKUP($C13,'RECAP SECT'!$G$6:$DC$253,3,FALSE) -> 59.9 | F13: =VLOOKUP($C13,'RECAP SECT'!$G$6:$DC$253,75,FALSE) -> 9,744 | G13: =VLOOKUP($C13,'RECAP SECT'!$G$6:$DC$253,76,FALSE) -> 162.71 | H13: =VLOOKUP($C13,'RECAP SECT'!$G$6:$DC$253,77,FALSE) -> 24% | I13: =VLOOKUP($C13,'RECAP SECT'!$G$6:$DC$253,78,FALSE) -> 10 | J13: =VLOOKUP($C13,'RECAP SECT'!$G$6:$DC$253,79,FALSE) -> 1,689 | K13: =VLOOKUP($C13,'RECAP SECT'!$G$6:$DC$253,80,FALSE) -> 28.20 | L13: =VLOOKUP($C13,'RECAP SECT'!$G$6:$DC$253,81,FALSE) -> 28% | M13: =VLOOKUP($C13,'RECAP SECT'!$G$6:$DC$253,82,FALSE) -> 14 | N13: =VLOOKUP($C13,'RECAP SECT'!$G$6:$DC$253,83,FALSE) -> 25% | O13: =VLOOKUP($C13,'RECAP SECT'!$G$6:$DC$253,84,FALSE) -> 23% | P13: =VLOOKUP($C13,'RECAP SECT'!$G$6:$DC$253,85,FALSE) -> 10
A14: 262 | B14: BAS-RHIN | C14: 5006 | D14: STRASBOURG | E14: =VLOOKUP($C14,'RECAP SECT'!$G$6:$DC$253,3,FALSE) -> 75.2 | F14: =VLOOKUP($C14,'RECAP SECT'!$G$6:$DC$253,75,FALSE) -> 16,166 | G14: =VLOOKUP($C14,'RECAP SECT'!$G$6:$DC$253,76,FALSE) -> 214.90 | H14: =VLOOKUP($C14,'RECAP SECT'!$G$6:$DC$253,77,FALSE) -> 0% | I14: =VLOOKUP($C14,'RECAP SECT'!$G$6:$DC$253,78,FALSE) -> 1 | J14: =VLOOKUP($C14,'RECAP SECT'!$G$6:$DC$253,79,FALSE) -> 2,497 | K14: =VLOOKUP($C14,'RECAP SECT'!$G$6:$DC$253,80,FALSE) -> 33.19 | L14: =VLOOKUP($C14,'RECAP SECT'!$G$6:$DC$253,81,FALSE) -> 15% | M14: =VLOOKUP($C14,'RECAP SECT'!$G$6:$DC$253,82,FALSE) -> 5 | N14: =VLOOKUP($C14,'RECAP SECT'!$G$6:$DC$253,83,FALSE) -> 4% | O14: =VLOOKUP($C14,'RECAP SECT'!$G$6:$DC$253,84,FALSE) -> 2% | P14: =VLOOKUP($C14,'RECAP SECT'!$G$6:$DC$253,85,FALSE) -> 2
A15: 264 | B15: HAUT-RHIN | C15: 5130 | D15: COLMAR | E15: =VLOOKUP($C15,'RECAP SECT'!$G$6:$DC$253,3,FALSE) -> 61.5 | F15: =VLOOKUP($C15,'RECAP SECT'!$G$6:$DC$253,75,FALSE) -> 9,755 | G15: =VLOOKUP($C15,'RECAP SECT'!$G$6:$DC$253,76,FALSE) -> 158.51 | H15: =VLOOKUP($C15,'RECAP SECT'!$G$6:$DC$253,77,FALSE) -> 26% | I15: =VLOOKUP($C15,'RECAP SECT'!$G$6:$DC$253,78,FALSE) -> 12 | J15: =VLOOKUP($C15,'RECAP SECT'!$G$6:$DC$253,79,FALSE) -> 1,618 | K15: =VLOOKUP($C15,'RECAP SECT'!$G$6:$DC$253,80,FALSE) -> 26.29 | L15: =VLOOKUP($C15,'RECAP SECT'!$G$6:$DC$253,81,FALSE) -> 32% | M15: =VLOOKUP($C15,'RECAP SECT'!$G$6:$DC$253,82,FALSE) -> 16 | N15: =VLOOKUP($C15,'RECAP SECT'!$G$6:$DC$253,83,FALSE) -> 28% | O15: =VLOOKUP($C15,'RECAP SECT'!$G$6:$DC$253,84,FALSE) -> 26% | P15: =VLOOKUP($C15,'RECAP SECT'!$G$6:$DC$253,85,FALSE) -> 13
A16: 264 | B16: HAUT-RHIN | C16: 5169 | D16: MULHOUSE | E16: =VLOOKUP($C16,'RECAP SECT'!$G$6:$DC$253,3,FALSE) -> 61.1 | F16: =VLOOKUP($C16,'RECAP SECT'!$G$6:$DC$253,75,FALSE) -> 5,165 | G16: =VLOOKUP($C16,'RECAP SECT'!$G$6:$DC$253,76,FALSE) -> 84.49 | H16: =VLOOKUP($C16,'RECAP SECT'!$G$6:$DC$253,77,FALSE) -> 61% | I16: =VLOOKUP($C16,'RECAP SECT'!$G$6:$DC$253,78,FALSE) -> 18 | J16: =VLOOKUP($C16,'RECAP SECT'!$G$6:$DC$253,79,FALSE) -> 1,727 | K16: =VLOOKUP($C16,'RECAP SECT'!$G$6:$DC$253,80,FALSE) -> 28.25 | L16: =VLOOKUP($C16,'RECAP SECT'!$G$6:$DC$253,81,FALSE) -> 27% | M16: =VLOOKUP($C16,'RECAP SECT'!$G$6:$DC$253,82,FALSE) -> 13 | N16: =VLOOKUP($C16,'RECAP SECT'!$G$6:$DC$253,83,FALSE) -> 51% | O16: =VLOOKUP($C16,'RECAP SECT'!$G$6:$DC$253,84,FALSE) -> 48% | P16: =VLOOKUP($C16,'RECAP SECT'!$G$6:$DC$253,85,FALSE) -> 18
A17: 30 | B17: MARNE-ARDENNES | C17: 6 | D17: CHALONS EN CHAMPAGNE | E17: =VLOOKUP($C17,'RECAP SECT'!$G$6:$DC$253,3,FALSE) -> 44.7 | F17: =VLOOKUP($C17,'RECAP SECT'!$G$6:$DC$253,75,FALSE) -> 7,876 | G17: =VLOOKUP($C17,'RECAP SECT'!$G$6:$DC$253,76,FALSE) -> 176.31 | H17: =VLOOKUP($C17,'RECAP SECT'!$G$6:$DC$253,77,FALSE) -> 18% | I17: =VLOOKUP($C17,'RECAP SECT'!$G$6:$DC$253,78,FALSE) -> 5 | J17: =VLOOKUP($C17,'RECAP SECT'!$G$6:$DC$253,79,FALSE) -> 1,454 | K17: =VLOOKUP($C17,'RECAP SECT'!$G$6:$DC$253,80,FALSE) -> 32.55 | L17: =VLOOKUP($C17,'RECAP SECT'!$G$6:$DC$253,81,FALSE) -> 16% | M17: =VLOOKUP($C17,'RECAP SECT'!$G$6:$DC$253,82,FALSE) -> 6 | N17: =VLOOKUP($C17,'RECAP SECT'!$G$6:$DC$253,83,FALSE) -> 17% | O17: =VLOOKUP($C17,'RECAP SECT'!$G$6:$DC$253,84,FALSE) -> 15% | P17: =VLOOKUP($C17,'RECAP SECT'!$G$6:$DC$253,85,FALSE) -> 5
A18: 30 | B18: MARNE-ARDENNES | C18: 2 | D18: CHARLEVILLE MEZIERES | E18: =VLOOKUP($C18,'RECAP SECT'!$G$6:$DC$253,3,FALSE) -> 56.6 | F18: =VLOOKUP($C18,'RECAP SECT'!$G$6:$DC$253,75,FALSE) -> 11,361 | G18: =VLOOKUP($C18,'RECAP SECT'!$G$6:$DC$253,76,FALSE) -> 200.71 | H18: =VLOOKUP($C18,'RECAP SECT'!$G$6:$DC$253,77,FALSE) -> 7% | I18: =VLOOKUP($C18,'RECAP SECT'!$G$6:$DC$253,78,FALSE) -> 3 | J18: =VLOOKUP($C18,'RECAP SECT'!$G$6:$DC$253,79,FALSE) -> 1,715 | K18: =VLOOKUP($C18,'RECAP SECT'!$G$6:$DC$253,80,FALSE) -> 30.30 | L18: =VLOOKUP($C18,'RECAP SECT'!$G$6:$DC$253,81,FALSE) -> 22% | M18: =VLOOKUP($C18,'RECAP SECT'!$G$6:$DC$253,82,FALSE) -> 9 | N18: =VLOOKUP($C18,'RECAP SECT'!$G$6:$DC$253,83,FALSE) -> 11% | O18: =VLOOKUP($C18,'RECAP SECT'!$G$6:$DC$253,84,FALSE) -> 9% | P18: =VLOOKUP($C18,'RECAP SECT'!$G$6:$DC$253,85,FALSE) -> 4
A19: 30 | B19: MARNE-ARDENNES | C19: 11 | D19: REIMS | E19: =VLOOKUP($C19,'RECAP SECT'!$G$6:$DC$253,3,FALSE) -> 79.7 | F19: =VLOOKUP($C19,'RECAP SECT'!$G$6:$DC$253,75,FALSE) -> 15,437 | G19: =VLOOKUP($C19,'RECAP SECT'!$G$6:$DC$253,76,FALSE) -> 193.63 | H19: =VLOOKUP($C19,'RECAP SECT'!$G$6:$DC$253,77,FALSE) -> 10% | I19: =VLOOKUP($C19,'RECAP SECT'!$G$6:$DC$253,78,FALSE) -> 4 | J19: =VLOOKUP($C19,'RECAP SECT'!$G$6:$DC$253,79,FALSE) -> 2,870 | K19: =VLOOKUP($C19,'RECAP SECT'!$G$6:$DC$253,80,FALSE) -> 36.00 | L19: =VLOOKUP($C19,'RECAP SECT'!$G$6:$DC$253,81,FALSE) -> 8% | M19: =VLOOKUP($C19,'RECAP SECT'!$G$6:$DC$253,82,FALSE) -> 3 | N19: =VLOOKUP($C19,'RECAP SECT'!$G$6:$DC$253,83,FALSE) -> 9% | O19: =VLOOKUP($C19,'RECAP SECT'!$G$6:$DC$253,84,FALSE) -> 7% | P19: =VLOOKUP($C19,'RECAP SECT'!$G$6:$DC$253,85,FALSE) -> 3
A20: 110 | B20: MEURTHE ET MOSELLE MEUSE | C20: 26 | D20: NANCY | E20: =VLOOKUP($C20,'RECAP SECT'!$G$6:$DC$253,3,FALSE) -> 66.2 | F20: =VLOOKUP($C20,'RECAP SECT'!$G$6:$DC$253,75,FALSE) -> 13,709 | G20: =VLOOKUP($C20,'RECAP SECT'!$G$6:$DC$253,76,FALSE) -> 206.96 | H20: =VLOOKUP($C20,'RECAP SECT'!$G$6:$DC$253,77,FALSE) -> 4% | I20: =VLOOKUP($C20,'RECAP SECT'!$G$6:$DC$253,78,FALSE) -> 2 | J20: =VLOOKUP($C20,'RECAP SECT'!$G$6:$DC$253,79,FALSE) -> 2,580 | K20: =VLOOKUP($C20,'RECAP SECT'!$G$6:$DC$253,80,FALSE) -> 38.95 | L20: =VLOOKUP($C20,'RECAP SECT'!$G$6:$DC$253,81,FALSE) -> 0% | M20: =VLOOKUP($C20,'RECAP SECT'!$G$6:$DC$253,82,FALSE) -> 1 | N20: =VLOOKUP($C20,'RECAP SECT'!$G$6:$DC$253,83,FALSE) -> 3% | O20: =VLOOKUP($C20,'RECAP SECT'!$G$6:$DC$253,84,FALSE) -> 0% | P20: =VLOOKUP($C20,'RECAP SECT'!$G$6:$DC$253,85,FALSE) -> 1
A21: 110 | B21: MEURTHE ET MOSELLE MEUSE | C21: 27 | D21: PONT A MOUSSON | E21: =VLOOKUP($C21,'RECAP SECT'!$G$6:$DC$253,3,FALSE) -> 76.5 | F21: =VLOOKUP($C21,'RECAP SECT'!$G$6:$DC$253,75,FALSE) -> 12,629 | G21: =VLOOKUP($C21,'RECAP SECT'!$G$6:$DC$253,76,FALSE) -> 165.06 | H21: =VLOOKUP($C21,'RECAP SECT'!$G$6:$DC$253,77,FALSE) -> 23% | I21: =VLOOKUP($C21,'RECAP SECT'!$G$6:$DC$253,78,FALSE) -> 8 | J21: =VLOOKUP($C21,'RECAP SECT'!$G$6:$DC$253,79,FALSE) -> 2,755 | K21: =VLOOKUP($C21,'RECAP SECT'!$G$6:$DC$253,80,FALSE) -> 36.01 | L21: =VLOOKUP($C21,'RECAP SECT'!$G$6:$DC$253,81,FALSE) -> 8% | M21: =VLOOKUP($C21,'RECAP SECT'!$G$6:$DC$253,82,FALSE) -> 2 | N21: =VLOOKUP($C21,'RECAP SECT'!$G$6:$DC$253,83,FALSE) -> 18% | O21: =VLOOKUP($C21,'RECAP SECT'!$G$6:$DC$253,84,FALSE) -> 16% | P21: =VLOOKUP($C21,'RECAP SECT'!$G$6:$DC$253,85,FALSE) -> 6
A22: 110 | B22: MEURTHE ET MOSELLE MEUSE | C22: 31 | D22: VERDUN | E22: =VLOOKUP($C22,'RECAP SECT'!$G$6:$DC$253,3,FALSE) -> 55.1 | F22: =VLOOKUP($C22,'RECAP SECT'!$G$6:$DC$253,75,FALSE) -> 8,420 | G22: =VLOOKUP($C22,'RECAP SECT'!$G$6:$DC$253,76,FALSE) -> 152.75 | H22: =VLOOKUP($C22,'RECAP SECT'!$G$6:$DC$253,77,FALSE) -> 29% | I22: =VLOOKUP($C22,'RECAP SECT'!$G$6:$DC$253,78,FALSE) -> 13 | J22: =VLOOKUP($C22,'RECAP SECT'!$G$6:$DC$253,79,FALSE) -> 1,722 | K22: =VLOOKUP($C22,'RECAP SECT'!$G$6:$DC$253,80,FALSE) -> 31.24 | L22: =VLOOKUP($C22,'RECAP SECT'!$G$6:$DC$253,81,FALSE) -> 20% | M22: =VLOOKUP($C22,'RECAP SECT'!$G$6:$DC$253,82,FALSE) -> 8 | N22: =VLOOKUP($C22,'RECAP SECT'!$G$6:$DC$253,83,FALSE) -> 26% | O22: =VLOOKUP($C22,'RECAP SECT'!$G$6:$DC$253,84,FALSE) -> 24% | P22: =VLOOKUP($C22,'RECAP SECT'!$G$6:$DC$253,85,FALSE) -> 12
A23: 160 | B23: MOSELLE | C23: 45 | D23: METZ | E23: =VLOOKUP($C23,'RECAP SECT'!$G$6:$DC$253,3,FALSE) -> 88.4 | F23: =VLOOKUP($C23,'RECAP SECT'!$G$6:$DC$253,75,FALSE) -> 11,771 | G23: =VLOOKUP($C23,'RECAP SECT'!$G$6:$DC$253,76,FALSE) -> 133.08 | H23: =VLOOKUP($C23,'RECAP SECT'!$G$6:$DC$253,77,FALSE) -> 38% | I23: =VLOOKUP($C23,'RECAP SECT'!$G$6:$DC$253,78,FALSE) -> 15 | J23: =VLOOKUP($C23,'RECAP SECT'!$G$6:$DC$253,79,FALSE) -> 2,584 | K23: =VLOOKUP($C23,'RECAP SECT'!$G$6:$DC$253,80,FALSE) -> 29.21 | L23: =VLOOKUP($C23,'RECAP SECT'!$G$6:$DC$253,81,FALSE) -> 25% | M23: =VLOOKUP($C23,'RECAP SECT'!$G$6:$DC$253,82,FALSE) -> 10 | N23: =VLOOKUP($C23,'RECAP SECT'!$G$6:$DC$253,83,FALSE) -> 34% | O23: =VLOOKUP($C23,'RECAP SECT'!$G$6:$DC$253,84,FALSE) -> 32% | P23: =VLOOKUP($C23,'RECAP SECT'!$G$6:$DC$253,85,FALSE) -> 14
A24: 160 | B24: MOSELLE | C24: 42 | D24: MOSELLE EST | E24: =VLOOKUP($C24,'RECAP SECT'!$G$6:$DC$253,3,FALSE) -> 70.2 | F24: =VLOOKUP($C24,'RECAP SECT'!$G$6:$DC$253,75,FALSE) -> 11,238 | G24: =VLOOKUP($C24,'RECAP SECT'!$G$6:$DC$253,76,FALSE) -> 160.03 | H24: =VLOOKUP($C24,'RECAP SECT'!$G$6:$DC$253,77,FALSE) -> 26% | I24: =VLOOKUP($C24,'RECAP SECT'!$G$6:$DC$253,78,FALSE) -> 11 | J24: =VLOOKUP($C24,'RECAP SECT'!$G$6:$DC$253,79,FALSE) -> 2,051 | K24: =VLOOKUP($C24,'RECAP SECT'!$G$6:$DC$253,80,FALSE) -> 29.21 | L24: =VLOOKUP($C24,'RECAP SECT'!$G$6:$DC$253,81,FALSE) -> 25% | M24: =VLOOKUP($C24,'RECAP SECT'!$G$6:$DC$253,82,FALSE) -> 11 | N24: =VLOOKUP($C24,'RECAP SECT'!$G$6:$DC$253,83,FALSE) -> 25% | O24: =VLOOKUP($C24,'RECAP SECT'!$G$6:$DC$253,84,FALSE) -> 23% | P24: =VLOOKUP($C24,'RECAP SECT'!$G$6:$DC$253,85,FALSE) -> 11
A25: 160 | B25: MOSELLE | C25: 44 | D25: MOSELLE NORD | E25: =VLOOKUP($C25,'RECAP SECT'!$G$6:$DC$253,3,FALSE) -> 65.8 | F25: =VLOOKUP($C25,'RECAP SECT'!$G$6:$DC$253,75,FALSE) -> 11,272 | G25: =VLOOKUP($C25,'RECAP SECT'!$G$6:$DC$253,76,FALSE) -> 171.27 | H25: =VLOOKUP($C25,'RECAP SECT'!$G$6:$DC$253,77,FALSE) -> 20% | I25: =VLOOKUP($C25,'RECAP SECT'!$G$6:$DC$253,78,FALSE) -> 7 | J25: =VLOOKUP($C25,'RECAP SECT'!$G$6:$DC$253,79,FALSE) -> 2,068 | K25: =VLOOKUP($C25,'RECAP SECT'!$G$6:$DC$253,80,FALSE) -> 31.42 | L25: =VLOOKUP($C25,'RECAP SECT'!$G$6:$DC$253,81,FALSE) -> 19% | M25: =VLOOKUP($C25,'RECAP SECT'!$G$6:$DC$253,82,FALSE) -> 7 | N25: =VLOOKUP($C25,'RECAP SECT'!$G$6:$DC$253,83,FALSE) -> 20% | O25: =VLOOKUP($C25,'RECAP SECT'!$G$6:$DC$253,84,FALSE) -> 17% | P25: =VLOOKUP($C25,'RECAP SECT'!$G$6:$DC$253,85,FALSE) -> 7
A26: 80 | B26: VOSGES | C26: 57 | D26: EPINAL | E26: =VLOOKUP($C26,'RECAP SECT'!$G$6:$DC$253,3,FALSE) -> 61.1 | F26: =VLOOKUP($C26,'RECAP SECT'!$G$6:$DC$253,75,FALSE) -> 10,590 | G26: =VLOOKUP($C26,'RECAP SECT'!$G$6:$DC$253,76,FALSE) -> 173.36 | H26: =VLOOKUP($C26,'RECAP SECT'!$G$6:$DC$253,77,FALSE) -> 19% | I26: =VLOOKUP($C26,'RECAP SECT'!$G$6:$DC$253,78,FALSE) -> 6 | J26: =VLOOKUP($C26,'RECAP SECT'!$G$6:$DC$253,79,FALSE) -> 1,727 | K26: =VLOOKUP($C26,'RECAP SECT'!$G$6:$DC$253,80,FALSE) -> 28.27 | L26: =VLOOKUP($C26,'RECAP SECT'!$G$6:$DC$253,81,FALSE) -> 27% | M26: =VLOOKUP($C26,'RECAP SECT'!$G$6:$DC$253,82,FALSE) -> 12 | N26: =VLOOKUP($C26,'RECAP SECT'!$G$6:$DC$253,83,FALSE) -> 22% | O26: =VLOOKUP($C26,'RECAP SECT'!$G$6:$DC$253,84,FALSE) -> 19% | P26: =VLOOKUP($C26,'RECAP SECT'!$G$6:$DC$253,85,FALSE) -> 9
A27: 80 | B27: VOSGES | C27: 55 | D27: SAINT DIE | E27: =VLOOKUP($C27,'RECAP SECT'!$G$6:$DC$253,3,FALSE) -> 47.1 | F27: =VLOOKUP($C27,'RECAP SECT'!$G$6:$DC$253,75,FALSE) -> 6,330 | G27: =VLOOKUP($C27,'RECAP SECT'!$G$6:$DC$253,76,FALSE) -> 134.44 | H27: =VLOOKUP($C27,'RECAP SECT'!$G$6:$DC$253,77,FALSE) -> 37% | I27: =VLOOKUP($C27,'RECAP SECT'!$G$6:$DC$253,78,FALSE) -> 14 | J27: =VLOOKUP($C27,'RECAP SECT'!$G$6:$DC$253,79,FALSE) -> 1,201 | K27: =VLOOKUP($C27,'RECAP SECT'!$G$6:$DC$253,80,FALSE) -> 25.51 | L27: =VLOOKUP($C27,'RECAP SECT'!$G$6:$DC$253,81,FALSE) -> 35% | M27: =VLOOKUP($C27,'RECAP SECT'!$G$6:$DC$253,82,FALSE) -> 17 | N27: =VLOOKUP($C27,'RECAP SECT'!$G$6:$DC$253,83,FALSE) -> 37% | O27: =VLOOKUP($C27,'RECAP SECT'!$G$6:$DC$253,84,FALSE) -> 34% | P27: =VLOOKUP($C27,'RECAP SECT'!$G$6:$DC$253,85,FALSE) -> 15
A28: Total CEGEE Directions Régionales | E28: =SUM(E10:E27) -> 1140

Sheet SE_SATISFACTION
B1: Accueil | F1: BAROMETRE BDD - TERRITOIRES
F2: SATISFACTION
F3: =ACCUEIL!F7 -> 2021-08-29
F7: NPS à froid (SAE) | I7: NPS à chaud (QHD) | L7: Total Satisfaction Clients
F8: =DATEMAJ!E4 -> au 30/06 | G8: coef | H8: ='RECAP DIRCOM'!M4 -> 10% | I8: =DATEMAJ!C5 -> au 30/06 | J8: coef | K8: ='RECAP DIRCOM'!P4 -> 10% | M8: coef | N8: ='RECAP DIRCOM'!S4 -> 20%
B9: Direction | C9: eds | D9: Territoire | E9: ="ETP perf "&DATEMAJ!$C$28 -> ETP perf 30-juin | G9: % Ecart au 1er | H9: Rang | J9: % Ecart au 1er | K9: Rang | L9: Moyenne ecart au 1er | M9: % Ecart au 1er | N9: Rang CEGEE
A10: 50 | B10: AUBE HAUTE MARNE | C10: 21 | D10: CHAUMONT | E10: =VLOOKUP($C10,'RECAP SECT'!$G$6:$DC$253,3,FALSE) -> 33.9 | F10: =VLOOKUP($C10,'RECAP SECT'!$G$6:$DC$253,5,FALSE) -> 10 | G10: =VLOOKUP($C10,'RECAP SECT'!$G$6:$DC$253,6,FALSE) -> 58% | H10: =VLOOKUP($C10,'RECAP SECT'!$G$6:$DC$253,7,FALSE) -> 12 | I10: =VLOOKUP($C10,'RECAP SECT'!$G$6:$DC$253,8,FALSE) -> 62% | J10: =VLOOKUP($C10,'RECAP SECT'!$G$6:$DC$253,9,FALSE) -> 15% | K10: =VLOOKUP($C10,'RECAP SECT'!$G$6:$DC$253,10,FALSE) -> 6 | L10: =VLOOKUP($C10,'RECAP SECT'!$G$6:$DC$253,11,FALSE) -> 37% | M10: =VLOOKUP($C10,'RECAP SECT'!$G$6:$DC$253,12,FALSE) -> 33% | N10: =VLOOKUP($C10,'RECAP SECT'!$G$6:$DC$253,13,FALSE) -> 11
A11: 50 | B11: AUBE HAUTE MARNE | C11: 14 | D11: TROYES | E11: =VLOOKUP($C11,'RECAP SECT'!$G$6:$DC$253,3,FALSE) -> 67.1 | F11: =VLOOKUP($C11,'RECAP SECT'!$G$6:$DC$253,5,FALSE) -> 19 | G11: =VLOOKUP($C11,'RECAP SECT'!$G$6:$DC$253,6,FALSE) -> 21% | H11: =VLOOKUP($C11,'RECAP SECT'!$G$6:$DC$253,7,FALSE) -> 5 | I11: =VLOOKUP($C11,'RECAP SECT'!$G$6:$DC$253,8,FALSE) -> 53% | J11: =VLOOKUP($C11,'RECAP SECT'!$G$6:$DC$253,9,FALSE) -> 28% | K11: =VLOOKUP($C11,'RECAP SECT'!$G$6:$DC$253,10,FALSE) -> 13 | L11: =VLOOKUP($C11,'RECAP SECT'!$G$6:$DC$253,11,FALSE) -> 25% | M11: =VLOOKUP($C11,'RECAP SECT'!$G$6:$DC$253,12,FALSE) -> 21% | N11: =VLOOKUP($C11,'RECAP SECT'!$G$6:$DC$253,13,FALSE) -> 6
A12: 262 | B12: BAS-RHIN | C12: 5060 | D12: HAGUENAU | E12: =VLOOKUP($C12,'RECAP SECT'!$G$6:$DC$253,3,FALSE) -> 70.0 | F12: =VLOOKUP($C12,'RECAP SECT'!$G$6:$DC$253,5,FALSE) -> 10 | G12: =VLOOKUP($C12,'RECAP SECT'!$G$6:$DC$253,6,FALSE) -> 58% | H12: =VLOOKUP($C12,'RECAP SECT'!$G$6:$DC$253,7,FALSE) -> 12 | I12: =VLOOKUP($C12,'RECAP SECT'!$G$6:$DC$253,8,FALSE) -> 54% | J12: =VLOOKUP($C12,'RECAP SECT'!$G$6:$DC$253,9,FALSE) -> 27% | K12: =VLOOKUP($C12,'RECAP SECT'!$G$6:$DC$253,10,FALSE) -> 11 | L12: =VLOOKUP($C12,'RECAP SECT'!$G$6:$DC$253,11,FALSE) -> 42% | M12: =VLOOKUP($C12,'RECAP SECT'!$G$6:$DC$253,12,FALSE) -> 38% | N12: =VLOOKUP($C12,'RECAP SECT'!$G$6:$DC$253,13,FALSE) -> 13
A13: 262 | B13: BAS-RHIN | C13: 5101 | D13: SELESTAT | E13: =VLOOKUP($C13,'RECAP SECT'!$G$6:$DC$253,3,FALSE) -> 59.9 | F13: =VLOOKUP($C13,'RECAP SECT'!$G$6:$DC$253,5,FALSE) -> 10 | G13: =VLOOKUP($C13,'RECAP SECT'!$G$6:$DC$253,6,FALSE) -> 58% | H13: =VLOOKUP($C13,'RECAP SECT'!$G$6:$DC$253,7,FALSE) -> 12 | I13: =VLOOKUP($C13,'RECAP SECT'!$G$6:$DC$253,8,FALSE) -> 53% | J13: =VLOOKUP($C13,'RECAP SECT'!$G$6:$DC$253,9,FALSE) -> 27% | K13: =VLOOKUP($C13,'RECAP SECT'!$G$6:$DC$253,10,FALSE) -> 12 | L13: =VLOOKUP($C13,'RECAP SECT'!$G$6:$DC$253,11,FALSE) -> 43% | M13: =VLOOKUP($C13,'RECAP SECT'!$G$6:$DC$253,12,FALSE) -> 39% | N13: =VLOOKUP($C13,'RECAP SECT'!$G$6:$DC$253,13,FALSE) -> 14
A14: 262 | B14: BAS-RHIN | C14: 5006 | D14: STRASBOURG | E14: =VLOOKUP($C14,'RECAP SECT'!$G$6:$DC$253,3,FALSE) -> 75.2 | F14: =VLOOKUP($C14,'RECAP SECT'!$G$6:$DC$253,5,FALSE) -> 17 | G14: =VLOOKUP($C14,'RECAP SECT'!$G$6:$DC$253,6,FALSE) -> 29% | H14: =VLOOKUP($C14,'RECAP SECT'!$G$6:$DC$253,7,FALSE) -> 7 | I14: =VLOOKUP($C14,'RECAP SECT'!$G$6:$DC$253,8,FALSE) -> 52% | J14: =VLOOKUP($C14,'RECAP SECT'!$G$6:$DC$253,9,FALSE) -> 30% | K14: =VLOOKUP($C14,'RECAP SECT'!$G$6:$DC$253,10,FALSE) -> 15 | L14: =VLOOKUP($C14,'RECAP SECT'!$G$6:$DC$253,11,FALSE) -> 29% | M14: =VLOOKUP($C14,'RECAP SECT'!$G$6:$DC$253,12,FALSE) -> 25% | N14: =VLOOKUP($C14,'RECAP SECT'!$G$6:$DC$253,13,FALSE) -> 8
A15: 264 | B15: HAUT-RHIN | C15: 5130 | D15: COLMAR | E15: =VLOOKUP($C15,'RECAP SECT'!$G$6:$DC$253,3,FALSE) -> 61.5 | F15: =VLOOKUP($C15,'RECAP SECT'!$G$6:$DC$253,5,FALSE) -> 6 | G15: =VLOOKUP($C15,'RECAP SECT'!$G$6:$DC$253,6,FALSE) -> 75% | H15: =VLOOKUP($C15,'RECAP SECT'!$G$6:$DC$253,7,FALSE) -> 17 | I15: =VLOOKUP($C15,'RECAP SECT'!$G$6:$DC$253,8,FALSE) -> 47% | J15: =VLOOKUP($C15,'RECAP SECT'!$G$6:$DC$253,9,FALSE) -> 36% | K15: =VLOOKUP($C15,'RECAP SECT'!$G$6:$DC$253,10,FALSE) -> 17 | L15: =VLOOKUP($C15,'RECAP SECT'!$G$6:$DC$253,11,FALSE) -> 55% | M15: =VLOOKUP($C15,'RECAP SECT'!$G$6:$DC$253,12,FALSE) -> 51% | N15: =VLOOKUP($C15,'RECAP SECT'!$G$6:$DC$253,13,FALSE) -> 17
A16: 264 | B16: HAUT-RHIN | C16: 5169 | D16: MULHOUSE | E16: =VLOOKUP($C16,'RECAP SECT'!$G$6:$DC$253,3,FALSE) -> 61.1 | F16: =VLOOKUP($C16,'RECAP SECT'!$G$6:$DC$253,5,FALSE) -> 6 | G16: =VLOOKUP($C16,'RECAP SECT'!$G$6:$DC$253,6,FALSE) -> 75% | H16: =VLOOKUP($C16,'RECAP SECT'!$G$6:$DC$253,7,FALSE) -> 17 | I16: =VLOOKUP($C16,'RECAP SECT'!$G$6:$DC$253,8,FALSE) -> 32% | J16: =VLOOKUP($C16,'RECAP SECT'!$G$6:$DC$253,9,FALSE) -> 56% | K16: =VLOOKUP($C16,'RECAP SECT'!$G$6:$DC$253,10,FALSE) -> 18 | L16: =VLOOKUP($C16,'RECAP SECT'!$G$6:$DC$253,11,FALSE) -> 66% | M16: =VLOOKUP($C16,'RECAP SECT'!$G$6:$DC$253,12,FALSE) -> 62% | N16: =VLOOKUP($C16,'RECAP SECT'!$G$6:$DC$253,13,FALSE) -> 18
A17: 30 | B17: MARNE-ARDENNES | C17: 6 | D17: CHALONS EN CHAMPAGNE | E17: =VLOOKUP($C17,'RECAP SECT'!$G$6:$DC$253,3,FALSE) -> 44.7 | F17: =VLOOKUP($C17,'RECAP SECT'!$G$6:$DC$253,5,FALSE) -> 21 | G17: =VLOOKUP($C17,'RECAP SECT'!$G$6:$DC$253,6,FALSE) -> 13% | H17: =VLOOKUP($C17,'RECAP SECT'!$G$6:$DC$253,7,FALSE) -> 3 | I17: =VLOOKUP($C17,'RECAP SECT'!$G$6:$DC$253,8,FALSE) -> 74% | J17: =VLOOKUP($C17,'RECAP SECT'!$G$6:$DC$253,9,FALSE) -> 0% | K17: =VLOOKUP($C17,'RECAP SECT'!$G$6:$DC$253,10,FALSE) -> 1 | L17: =VLOOKUP($C17,'RECAP SECT'!$G$6:$DC$253,11,FALSE) -> 6% | M17: =VLOOKUP($C17,'RECAP SECT'!$G$6:$DC$253,12,FALSE) -> 2% | N17: =VLOOKUP($C17,'RECAP SECT'!$G$6:$DC$253,13,FALSE) -> 3
A18: 30 | B18: MARNE-ARDENNES | C18: 2 | D18: CHARLEVILLE MEZIERES | E18: =VLOOKUP($C18,'RECAP SECT'!$G$6:$DC$253,3,FALSE) -> 56.6 | F18: =VLOOKUP($C18,'RECAP SECT'!$G$6:$DC$253,5,FALSE) -> 21 | G18: =VLOOKUP($C18,'RECAP SECT'!$G$6:$DC$253,6,FALSE) -> 13% | H18: =VLOOKUP($C18,'RECAP SECT'!$G$6:$DC$253,7,FALSE) -> 3 | I18: =VLOOKUP($C18,'RECAP SECT'!$G$6:$DC$253,8,FALSE) -> 67% | J18: =VLOOKUP($C18,'RECAP SECT'!$G$6:$DC$253,9,FALSE) -> 9% | K18: =VLOOKUP($C18,'RECAP SECT'!$G$6:$DC$253,10,FALSE) -> 4 | L18: =VLOOKUP($C18,'RECAP SECT'!$G$6:$DC$253,11,FALSE) -> 11% | M18: =VLOOKUP($C18,'RECAP SECT'!$G$6:$DC$253,12,FALSE) -> 7% | N18: =VLOOKUP($C18,'RECAP SECT'!$G$6:$DC$253,13,FALSE) -> 4
A19: 30 | B19: MARNE-ARDENNES | C19: 11 | D19: REIMS | E19: =VLOOKUP($C19,'RECAP SECT'!$G$6:$DC$253,3,FALSE) -> 79.7 | F19: =VLOOKUP($C19,'RECAP SECT'!$G$6:$DC$253,5,FALSE) -> 10 | G19: =VLOOKUP($C19,'RECAP SECT'!$G$6:$DC$253,6,FALSE) -> 58% | H19: =VLOOKUP($C19,'RECAP SECT'!$G$6:$DC$253,7,FALSE) -> 12 | I19: =VLOOKUP($C19,'RECAP SECT'!$G$6:$DC$253,8,FALSE) -> 62% | J19: =VLOOKUP($C19,'RECAP SECT'!$G$6:$DC$253,9,FALSE) -> 16% | K19: =VLOOKUP($C19,'RECAP SECT'!$G$6:$DC$253,10,FALSE) -> 7 | L19: =VLOOKUP($C19,'RECAP SECT'!$G$6:$DC$253,11,FALSE) -> 37% | M19: =VLOOKUP($C19,'RECAP SECT'!$G$6:$DC$253,12,FALSE) -> 33% | N19: =VLOOKUP($C19,'RECAP SECT'!$G$6:$DC$253,13,FALSE) -> 12
A20: 110 | B20: MEURTHE ET MOSELLE MEUSE | C20: 26 | D20: NANCY | E20: =VLOOKUP($C20,'RECAP SECT'!$G$6:$DC$253,3,FALSE) -> 66.2 | F20: =VLOOKUP($C20,'RECAP SECT'!$G$6:$DC$253,5,FALSE) -> 14 | G20: =VLOOKUP($C20,'RECAP SECT'!$G$6:$DC$253,6,FALSE) -> 42% | H20: =VLOOKUP($C20,'RECAP SECT'!$G$6:$DC$253,7,FALSE) -> 9 | I20: =VLOOKUP($C20,'RECAP SECT'!$G$6:$DC$253,8,FALSE) -> 57% | J20: =VLOOKUP($C20,'RECAP SECT'!$G$6:$DC$253,9,FALSE) -> 23% | K20: =VLOOKUP($C20,'RECAP SECT'!$G$6:$DC$253,10,FALSE) -> 10 | L20: =VLOOKUP($C20,'RECAP SECT'!$G$6:$DC$253,11,FALSE) -> 32% | M20: =VLOOKUP($C20,'RECAP SECT'!$G$6:$DC$253,12,FALSE) -> 28% | N20: =VLOOKUP($C20,'RECAP SECT'!$G$6:$DC$253,13,FALSE) -> 10
A21: 110 | B21: MEURTHE ET MOSELLE MEUSE | C21: 27 | D21: PONT A MOUSSON | E21: =VLOOKUP($C21,'RECAP SECT'!$G$6:$DC$253,3,FALSE) -> 76.5 | F21: =VLOOKUP($C21,'RECAP SECT'!$G$6:$DC$253,5,FALSE) -> 11 | G21: =VLOOKUP($C21,'RECAP SECT'!$G$6:$DC$253,6,FALSE) -> 54% | H21: =VLOOKUP($C21,'RECAP SECT'!$G$6:$DC$253,7,FALSE) -> 11 | I21: =VLOOKUP($C21,'RECAP SECT'!$G$6:$DC$253,8,FALSE) -> 50% | J21: =VLOOKUP($C21,'RECAP SECT'!$G$6:$DC$253,9,FALSE) -> 32% | K21: =VLOOKUP($C21,'RECAP SECT'!$G$6:$DC$253,10,FALSE) -> 16 | L21: =VLOOKUP($C21,'RECAP SECT'!$G$6:$DC$253,11,FALSE) -> 43% | M21: =VLOOKUP($C21,'RECAP SECT'!$G$6:$DC$253,12,FALSE) -> 39% | N21: =VLOOKUP($C21,'RECAP SECT'!$G$6:$DC$253,13,FALSE) -> 15
A22: 110 | B22: MEURTHE ET MOSELLE MEUSE | C22: 31 | D22: VERDUN | E22: =VLOOKUP($C22,'RECAP SECT'!$G$6:$DC$253,3,FALSE) -> 55.1 | F22: =VLOOKUP($C22,'RECAP SECT'!$G$6:$DC$253,5,FALSE) -> 18 | G22: =VLOOKUP($C22,'RECAP SECT'!$G$6:$DC$253,6,FALSE) -> 25% | H22: =VLOOKUP($C22,'RECAP SECT'!$G$6:$DC$253,7,FALSE) -> 6 | I22: =VLOOKUP($C22,'RECAP SECT'!$G$6:$DC$253,8,FALSE) -> 62% | J22: =VLOOKUP($C22,'RECAP SECT'!$G$6:$DC$253,9,FALSE) -> 15% | K22: =VLOOKUP($C22,'RECAP SECT'!$G$6:$DC$253,10,FALSE) -> 5 | L22: =VLOOKUP($C22,'RECAP SECT'!$G$6:$DC$253,11,FALSE) -> 20% | M22: =VLOOKUP($C22,'RECAP SECT'!$G$6:$DC$253,12,FALSE) -> 16% | N22: =VLOOKUP($C22,'RECAP SECT'!$G$6:$DC$253,13,FALSE) -> 5
A23: 160 | B23: MOSELLE | C23: 45 | D23: METZ | E23: =VLOOKUP($C23,'RECAP SECT'!$G$6:$DC$253,3,FALSE) -> 88.4 | F23: =VLOOKUP($C23,'RECAP SECT'!$G$6:$DC$253,5,FALSE) -> 14 | G23: =VLOOKUP($C23,'RECAP SECT'!$G$6:$DC$253,6,FALSE) -> 42% | H23: =VLOOKUP($C23,'RECAP SECT'!$G$6:$DC$253,7,FALSE) -> 9 | I23: =VLOOKUP($C23,'RECAP SECT'!$G$6:$DC$253,8,FALSE) -> 58% | J23: =VLOOKUP($C23,'RECAP SECT'!$G$6:$DC$253,9,FALSE) -> 21% | K23: =VLOOKUP($C23,'RECAP SECT'!$G$6:$DC$253,10,FALSE) -> 9 | L23: =VLOOKUP($C23,'RECAP SECT'!$G$6:$DC$253,11,FALSE) -> 31% | M23: =VLOOKUP($C23,'RECAP SECT'!$G$6:$DC$253,12,FALSE) -> 27% | N23: =VLOOKUP($C23,'RECAP SECT'!$G$6:$DC$253,13,FALSE) -> 9
A24: 160 | B24: MOSELLE | C24: 42 | D24: MOSELLE EST | E24: =VLOOKUP($C24,'RECAP SECT'!$G$6:$DC$253,3,FALSE) -> 70.2 | F24: =VLOOKUP($C24,'RECAP SECT'!$G$6:$DC$253,5,FALSE) -> 15 | G24: =VLOOKUP($C24,'RECAP SECT'!$G$6:$DC$253,6,FALSE) -> 38% | H24: =VLOOKUP($C24,'RECAP SECT'!$G$6:$DC$253,7,FALSE) -> 8 | I24: =VLOOKUP($C24,'RECAP SECT'!$G$6:$DC$253,8,FALSE) -> 61% | J24: =VLOOKUP($C24,'RECAP SECT'!$G$6:$DC$253,9,FALSE) -> 17% | K24: =VLOOKUP($C24,'RECAP SECT'!$G$6:$DC$253,10,FALSE) -> 8 | L24: =VLOOKUP($C24,'RECAP SECT'!$G$6:$DC$253,11,FALSE) -> 27% | M24: =VLOOKUP($C24,'RECAP SECT'!$G$6:$DC$253,12,FALSE) -> 23% | N24: =VLOOKUP($C24,'RECAP SECT'!$G$6:$DC$253,13,FALSE) -> 7
A25: 160 | B25: MOSELLE | C25: 44 | D25: MOSELLE NORD | E25: =VLOOKUP($C25,'RECAP SECT'!$G$6:$DC$253,3,FALSE) -> 65.8 | F25: =VLOOKUP($C25,'RECAP SECT'!$G$6:$DC$253,5,FALSE) -> 9 | G25: =VLOOKUP($C25,'RECAP SECT'!$G$6:$DC$253,6,FALSE) -> 63% | H25: =VLOOKUP($C25,'RECAP SECT'!$G$6:$DC$253,7,FALSE) -> 16 | I25: =VLOOKUP($C25,'RECAP SECT'!$G$6:$DC$253,8,FALSE) -> 52% | J25: =VLOOKUP($C25,'RECAP SECT'!$G$6:$DC$253,9,FALSE) -> 29% | K25: =VLOOKUP($C25,'RECAP SECT'!$G$6:$DC$253,10,FALSE) -> 14 | L25: =VLOOKUP($C25,'RECAP SECT'!$G$6:$DC$253,11,FALSE) -> 46% | M25: =VLOOKUP($C25,'RECAP SECT'!$G$6:$DC$253,12,FALSE) -> 42% | N25: =VLOOKUP($C25,'RECAP SECT'!$G$6:$DC$253,13,FALSE) -> 16
A26: 80 | B26: VOSGES | C26: 57 | D26: EPINAL | E26: =VLOOKUP($C26,'RECAP SECT'!$G$6:$DC$253,3,FALSE) -> 61.1 | F26: =VLOOKUP($C26,'RECAP SECT'!$G$6:$DC$253,5,FALSE) -> 24 | G26: =VLOOKUP($C26,'RECAP SECT'!$G$6:$DC$253,6,FALSE) -> 0% | H26: =VLOOKUP($C26,'RECAP SECT'!$G$6:$DC$253,7,FALSE) -> 1 | I26: =VLOOKUP($C26,'RECAP SECT'!$G$6:$DC$253,8,FALSE) -> 68% | J26: =VLOOKUP($C26,'RECAP SECT'!$G$6:$DC$253,9,FALSE) -> 8% | K26: =VLOOKUP($C26,'RECAP SECT'!$G$6:$DC$253,10,FALSE) -> 3 | L26: =VLOOKUP($C26,'RECAP SECT'!$G$6:$DC$253,11,FALSE) -> 4% | M26: =VLOOKUP($C26,'RECAP SECT'!$G$6:$DC$253,12,FALSE) -> 0% | N26: =VLOOKUP($C26,'RECAP SECT'!$G$6:$DC$253,13,FALSE) -> 1
A27: 80 | B27: VOSGES | C27: 55 | D27: SAINT DIE | E27: =VLOOKUP($C27,'RECAP SECT'!$G$6:$DC$253,3,FALSE) -> 47.1 | F27: =VLOOKUP($C27,'RECAP SECT'!$G$6:$DC$253,5,FALSE) -> 23 | G27: =VLOOKUP($C27,'RECAP SECT'!$G$6:$DC$253,6,FALSE) -> 4% | H27: =VLOOKUP($C27,'RECAP SECT'!$G$6:$DC$253,7,FALSE) -> 2 | I27: =VLOOKUP($C27,'RECAP SECT'!$G$6:$DC$253,8,FALSE) -> 69% | J27: =VLOOKUP($C27,'RECAP SECT'!$G$6:$DC$253,9,FALSE) -> 7% | K27: =VLOOKUP($C27,'RECAP SECT'!$G$6:$DC$253,10,FALSE) -> 2 | L27: =VLOOKUP($C27,'RECAP SECT'!$G$6:$DC$253,11,FALSE) -> 5% | M27: =VLOOKUP($C27,'RECAP SECT'!$G$6:$DC$253,12,FALSE) -> 1% | N27: =VLOOKUP($C27,'RECAP SECT'!$G$6:$DC$253,13,FALSE) -> 2
A28: Total CEGEE Directions Régionales | E28: =SUM(E10:E27) -> 1140

Sheet AG_CLASS
B1: Accueil | H1: BAROMETRE BDD - AGENCES
H2: CLASSEMENTS
H3: =ACCUEIL!F7 -> 2021-08-29
H8: CLASSEMENT GENERAL | I8: CRITERE Satisfaction Clients | J8: NPS à froid (SAE) | K8: NPS à chaud (QHD) | L8: CRITERE BANCARISATION | M8: Ventes Nettes produits pondérés | N8: Ventes sur client non détenteur de l’univers | O8: Mobilité Macron | P8: Remises commerciales | Q8: CRITERE EPARGNE | R8: Excédent Epargne y/c DAV pondéré | S8: Ventes sur client non détenteur de l’univers | T8: CRITERE IARD PREVOYANCE | U8: Ventes Nettes produits pondérés | V8: Ventes sur client non détenteur de l’univers | W8: CRITERE CREDITS | X8: Engagements et ventes accessoires pondérés Immo | Y8: Engagements et ventes accessoires pondérés Conso | Z8: Ventes sur client non détenteur de l’univers
B9: Direction | C9: eds | D9: Territoire | E9: eds | F9: Agence | G9: ="ETP perf "&DATEMAJ!$C$28 -> ETP perf 30-juin | H9: Rang | I9: Rang | J9: Rang | K9: Rang | L9: Rang | M9: Rang | N9: Rang | O9: Rang | P9: Rang | Q9: Rang | R9: Rang | S9: Rang | T9: Rang | U9: Rang | V9: Rang | W9: Rang | X9: Rang | Y9: Rang | Z9: Rang
A10: 50 | B10: MEURTHE ET MOSELLE MEUSE | C10: 26 | D10: NANCY | E10: 454481 | F10: NANCY PLACE DOMBASLE | G10: 11.6 | H10: 1 | I10: 131 | J10: 131 | K10: 142 | L10: 1 | M10: 2 | N10: 2 | O10: 1 | P10: 241 | Q10: 16 | R10: 70 | S10: 5 | T10: 5 | U10: 7 | V10: 5 | W10: 3 | X10: 3 | Y10: 92 | Z10: 1
A11: 50 | B11: MEURTHE ET MOSELLE MEUSE | C11: 26 | D11: NANCY | E11: 554356 | F11: JARVILLE LA MALGRANGE | G11: 3.5 | H11: 2 | I11: 37 | J11: 47 | K11: 49 | L11: 3 | M11: 6 | N11: 4 | O11: 2 | P11: 140 | Q11: 53 | R11: 95 | S11: 18 | T11: 10 | U11: 12 | V11: 13 | W11: 5 | X11: 4 | Y11: 104 | Z11: 4
A12: 50 | B12: MEURTHE ET MOSELLE MEUSE | C12: 27 | D12: PONT A MOUSSON | E12: 554531 | F12: POMPEY | G12: 2.8 | H12: 3 | I12: 91 | J12: 102 | K12: 83 | L12: 2 | M12: 1 | N12: 19 | O12: 9 | P12: 97 | Q12: 6 | R12: 13 | S12: 4 | T12: 19 | U12: 21 | V12: 20 | W12: 10 | X12: 12 | Y12: 10 | Z12: 21
A13: 50 | B13: MARNE-ARDENNES | C13: 2 | D13: CHARLEVILLE MEZIERES | E13: 408822 | F13: CHARLEVILLE MEZIERES | G13: 3.7 | H13: 4 | I13: 109 | J13: 113 | K13: 125 | L13: 27 | M13: 83 | N13: 5 | O13: 3 | P13: 154 | Q13: 4 | R13: 16 | S13: 2 | T13: 7 | U13: 11 | V13: 9 | W13: 14 | X13: 9 | Y13: 186 | Z13: 8
A14: 50 | B14: MOSELLE | C14: 42 | D14: MOSELLE EST | E14: 457163 | F14: BEHREN LES FORBACH | G14: 2.4 | H14: 5 | I14: 3 | J14: 5 | K14: 20 | L14: 14 | M14: 39 | N14: 7 | O14: 20 | P14: 106 | Q14: 97 | R14: 158 | S14: 24 | T14: 51 | U14: 65 | V14: 27 | W14: 4 | X14: 10 | Y14: 5 | Z14: 3
A15: 50 | B15: MOSELLE | C15: 44 | D15: MOSELLE NORD | E15: 557508 | F15: NILVANGE | G15: 2.6 | H15: 6 | I15: 87 | J15: 85 | K15: 87 | L15: 8 | M15: 7 | N15: 44 | O15: 50 | P15: 134 | Q15: 25 | R15: 99 | S15: 3 | T15: 4 | U15: 6 | V15: 4 | W15: 24 | X15: 37 | Y15: 38 | Z15: 33
A16: 50 | B16: MARNE-ARDENNES | C16: 6 | D16: CHALONS EN CHAMPAGNE | E16: 451115 | F16: MOURMELON LE GRAND | G16: 2.9 | H16: 7 | I16: 50 | J16: 85 | K16: 13 | L16: 9 | M16: 10 | N16: 45 | O16: 4 | P16: 234 | Q16: 20 | R16: 144 | S16: 1 | T16: 28 | U16: 33 | V16: 28 | W16: 11 | X16: 25 | Y16: 3 | Z16: 14
A17: 50 | B17: MOSELLE | C17: 44 | D17: MOSELLE NORD | E17: 557113 | F17: AUDUN LE TICHE | G17: 2.0 | H17: 8 | I17: 59 | J17: 20 | K17: 174 | L17: 31 | M17: 40 | N17: 3 | O17: 229 | P17: 199 | Q17: 79 | R17: 111 | S17: 29 | T17: 34 | U17: 60 | V17: 16 | W17: 2 | X17: 2 | Y17: 27 | Z17: 5
A18: 50 | B18: BAS-RHIN | C18: 5101 | D18: SELESTAT | E18: 4113 | F18: BARR | G18: 2.9 | H18: 9 | I18: 56 | J18: 113 | K18: 7 | L18: 11 | M18: 20 | N18: 95 | O18: 17 | P18: 15 | Q18: 5 | R18: 5 | S18: 8 | T18: 32 | U18: 22 | V18: 126 | W18: 90 | X18: 46 | Y18: 232 | Z18: 74
A19: 50 | B19: MARNE-ARDENNES | C19: 2 | D19: CHARLEVILLE MEZIERES | E19: 508820 | F19: VOUZIERS | G19: 2.9 | H19: 10 | I19: 66 | J19: 64 | K19: 82 | L19: 77 | M19: 99 | N19: 21 | O19: 46 | P19: 180 | Q19: 124 | R19: 123 | S19: 141 | T19: 1 | U19: 1 | V19: 22 | W19: 31 | X19: 48 | Y19: 47 | Z19: 31
A20: 50 | B20: MARNE-ARDENNES | C20: 11 | D20: REIMS | E20: 551349 | F20: REIMS SAINT REMI | G20: 3.0 | H20: 11 | I20: 137 | J20: 173 | K20: 76 | L20: 33 | M20: 43 | N20: 17 | O20: 13 | P20: 215 | Q20: 22 | R20: 39 | S20: 11 | T20: 9 | U20: 10 | V20: 17 | W20: 19 | X20: 23 | Y20: 123 | Z20: 11
A21: 50 | B21: VOSGES | C21: 57 | D21: EPINAL | E21: 488288 | F21: EPINAL LEOPOLD BOURG | G21: 2.0 | H21: 12 | I21: 61 | J21: 78 | K21: 38 | L21: 25 | M21: 30 | N21: 27 | O21: 15 | P21: 205 | Q21: 21 | R21: 12 | S21: 112 | T21: 91 | U21: 72 | V21: 178 | W21: 6 | X21: 8 | Y21: 33 | Z21: 17
A22: 50 | B22: MARNE-ARDENNES | C22: 11 | D22: REIMS | E22: 451336 | F22: TINQUEUX | G22: 5.7 | H22: 13 | I22: 144 | J22: 173 | K22: 106 | L22: 56 | M22: 60 | N22: 31 | O22: 19 | P22: 230 | Q22: 1 | R22: 1 | S22: 121 | T22: 39 | U22: 37 | V22: 50 | W22: 32 | X22: 18 | Y22: 180 | Z22: 34
A23: 50 | B23: MARNE-ARDENNES | C23: 6 | D23: CHALONS EN CHAMPAGNE | E23: 551330 | F23: MONTMIRAIL | G23: 2.9 | H23: 14 | I23: 15 | J23: 23 | K23: 9 | L23: 71 | M23: 88 | N23: 165 | O23: 62 | P23: 49 | Q23: 15 | R23: 30 | S23: 10 | T23: 46 | U23: 46 | V23: 37 | W23: 53 | X23: 40 | Y23: 65 | Z23: 104
A24: 50 | B24: MEURTHE ET MOSELLE MEUSE | C24: 27 | D24: PONT A MOUSSON | E24: 454651 | F24: TOUL | G24: 10.4 | H24: 15 | I24: 228 | J24: 118 | K24: 260 | L24: 18 | M24: 15 | N24: 9 | O24: 8 | P24: 248 | Q24: 54 | R24: 47 | S24: 108 | T24: 56 | U24: 89 | V24: 15 | W24: 1 | X24: 1 | Y24: 44 | Z24: 2
A25: 50 | B25: MEURTHE ET MOSELLE MEUSE | C25: 31 | D25: VERDUN | E25: 554413 | F25: LONGWY BAS | G25: 3.6 | H25: 16 | I25: 42 | J25: 47 | K25: 61 | L25: 26 | M25: 28 | N25: 102 | O25: 201 | P25: 31 | Q25: 10 | R25: 22 | S25: 12 | T25: 110 | U25: 109 | V25: 119 | W25: 38 | X25: 35 | Y25: 25 | Z25: 137
A26: 50 | B26: MARNE-ARDENNES | C26: 11 | D26: REIMS | E26: 551367 | F26: AY CHAMPAGNE | G26: 2.5 | H26: 17 | I26: 36 | J26: 17 | K26: 146 | L26: 22 | M26: 65 | N26: 20 | O26: 5 | P26: 84 | Q26: 212 | R26: 208 | S26: 183 | T26: 43 | U26: 47 | V26: 34 | W26: 8 | X26: 5 | Y26: 131 | Z26: 9
A27: 50 | B27: MARNE-ARDENNES | C27: 11 | D27: REIMS | E27: 551340 | F27: BETHENY | G27: 3.0 | H27: 18 | I27: 112 | J27: 118 | K27: 118 | L27: 121 | M27: 132 | N27: 24 | O27: 12 | P27: 245 | Q27: 8 | R27: 11 | S27: 16 | T27: 68 | U27: 71 | V27: 67 | W27: 12 | X27: 11 | Y27: 76 | Z27: 6
A28: 50 | B28: BAS-RHIN | C28: 5060 | D28: HAGUENAU | E28: 4092 | F28: HOCHFELDEN | G28: 2.4 | H28: 19 | I28: 116 | J28: 152 | K28: 75 | L28: 5 | M28: 4 | N28: 54 | O28: 69 | P28: 55 | Q28: 205 | R28: 233 | S28: 42 | T28: 31 | U28: 35 | V28: 25 | W28: 17 | X28: 26 | Y28: 9 | Z28: 56
A29: 50 | B29: BAS-RHIN | C29: 5101 | D29: SELESTAT | E29: 4121 | F29: SCHIRMECK | G29: 3.2 | H29: 20 | I29: 10 | J29: 11 | K29: 32 | L29: 82 | M29: 100 | N29: 160 | O29: 101 | P29: 36 | Q29: 35 | R29: 63 | S29: 26 | T29: 67 | U29: 55 | V29: 112 | W29: 82 | X29: 97 | Y29: 88 | Z29: 63
A30: 50 | B30: MEURTHE ET MOSELLE MEUSE | C30: 26 | D30: NANCY | E30: 554476 | F30: NANCY ARTEM | G30: 2.7 | H30: 21 | I30: 97 | J30: 152 | K30: 30 | L30: 36 | M30: 26 | N30: 40 | O30: 11 | P30: 251 | Q30: 14 | R30: 10 | S30: 114 | T30: 64 | U30: 73 | V30: 46 | W30: 47 | X30: 66 | Y30: 106 | Z30: 16
A31: 262 | B31: BAS-RHIN | C31: 5101 | D31: SELESTAT | E31: 4126 | F31: MUTZIG | G31: 2.0 | H31: 22 | I31: 123 | J31: 131 | K31: 135 | L31: 39 | M31: 41 | N31: 37 | O31: 25 | P31: 212 | Q31: 23 | R31: 36 | S31: 13 | T31: 108 | U31: 156 | V31: 38 | W31: 9 | X31: 54 | Y31: 1 | Z31: 20
A32: 262 | B32: MOSELLE | C32: 42 | D32: MOSELLE EST | E32: 457165 | F32: BITCHE | G32: 2.1 | H32: 23 | I32: 147 | J32: 173 | K32: 112 | L32: 6 | M32: 8 | N32: 14 | O32: 114 | P32: 41 | Q32: 187 | R32: 251 | S32: 6 | T32: 13 | U32: 16 | V32: 2 | W32: 71 | X32: 141 | Y32: 14 | Z32: 100
A33: 262 | B33: MEURTHE ET MOSELLE MEUSE | C33: 31 | D33: VERDUN | E33: 454414 | F33: LONGWY HAUT | G33: 3.7 | H33: 24 | I33: 96 | J33: 69 | K33: 150 | L33: 84 | M33: 97 | N33: 64 | O33: 86 | P33: 109 | Q33: 9 | R33: 9 | S33: 46 | T33: 38 | U33: 45 | V33: 33 | W33: 57 | X33: 64 | Y33: 112 | Z33: 35
A34: 262 | B34: MOSELLE | C34: 45 | D34: METZ | E34: 557444 | F34: SAINT JULIEN LES METZ | G34: 4.9 | H34: 25 | I34: 143 | J34: 173 | K34: 103 | L34: 119 | M34: 114 | N34: 76 | O34: 145 | P34: 142 | Q34: 18 | R34: 19 | S34: 41 | T34: 12 | U34: 15 | V34: 8 | W34: 63 | X34: 91 | Y34: 19 | Z34: 122
A35: 262 | B35: MARNE-ARDENNES | C35: 2 | D35: CHARLEVILLE MEZIERES | E35: 508839 | F35: GIVET | G35: 3.7 | H35: 26 | I35: 60 | J35: 40 | K35: 105 | L35: 144 | M35: 206 | N35: 85 | O35: 105 | P35: 27 | Q35: 162 | R35: 200 | S35: 55 | T35: 3 | U35: 2 | V35: 71 | W35: 95 | X35: 139 | Y35: 35 | Z35: 133
A36: 262 | B36: BAS-RHIN | C36: 5006 | D36: STRASBOURG | E36: 4047 | F36: STRASBOURG CRONENBOURG | G36: 5.0 | H36: 27 | I36: 76 | J36: 102 | K36: 55 | L36: 115 | M36: 123 | N36: 26 | O36: 23 | P36: 239 | Q36: 36 | R36: 97 | S36: 9 | T36: 29 | U36: 23 | V36: 101 | W36: 40 | X36: 15 | Y36: 204 | Z36: 62
A37: 262 | B37: MEURTHE ET MOSELLE MEUSE | C37: 27 | D37: PONT A MOUSSON | E37: 554381 | F37: LAXOU ARISTIDE BRIAND | G37: 4.0 | H37: 28 | I37: 72 | J37: 47 | K37: 137 | L37: 13 | M37: 3 | N37: 90 | O37: 72 | P37: 235 | Q37: 88 | R37: 100 | S37: 65 | T37: 62 | U37: 66 | V37: 63 | W37: 103 | X37: 78 | Y37: 178 | Z37: 90
A38: 262 | B38: VOSGES | C38: 55 | D38: SAINT DIE | E38: 488246 | F38: CORNIMONT LA BRESSE | G38: 2.7 | H38: 29 | I38: 8 | J38: 14 | K38: 6 | L38: 173 | M38: 164 | N38: 127 | O38: 192 | P38: 146 | Q38: 125 | R38: 106 | S38: 210 | T38: 37 | U38: 29 | V38: 98 | W38: 51 | X38: 80 | Y38: 24 | Z38: 71
A39: 262 | B39: MARNE-ARDENNES | C39: 11 | D39: REIMS | E39: 551305 | F39: REIMS HIPPODROME | G39: 3.9 | H39: 30 | I39: 14 | J39: 28 | K39: 5 | L39: 196 | M39: 176 | N39: 25 | O39: 6 | P39: 262 | Q39: 132 | R39: 147 | S39: 87 | T39: 33 | U39: 31 | V39: 80 | W39: 22 | X39: 24 | Y39: 124 | Z39: 22
A40: 262 | B40: BAS-RHIN | C40: 5006 | D40: STRASBOURG | E40: 4010 | F40: STRASBOURG MEINAU | G40: 3.3 | H40: 31 | I40: 155 | J40: 137 | K40: 181 | L40: 19 | M40: 22 | N40: 8 | O40: 52 | P40: 182 | Q40: 117 | R40: 219 | S40: 7 | T40: 8 | U40: 9 | V40: 14 | W40: 133 | X40: 233 | Y40: 39 | Z40: 99
A41: 262 | B41: MOSELLE | C41: 42 | D41: MOSELLE EST | E41: 557305 | F41: FAULQUEMONT | G41: 2.4 | H41: 32 | I41: 29 | J41: 17 | K41: 117 | L41: 54 | M41: 69 | N41: 30 | O41: 41 | P41: 175 | Q41: 102 | R41: 142 | S41: 40 | T41: 72 | U41: 83 | V41: 51 | W41: 42 | X41: 39 | Y41: 51 | Z41: 60
A42: 262 | B42: MARNE-ARDENNES | C42: 2 | D42: CHARLEVILLE MEZIERES | E42: 508833 | F42: VILLERS SEMEUSE CORA | G42: 3.6 | H42: 33 | I42: 136 | J42: 152 | K42: 113 | L42: 35 | M42: 59 | N42: 10 | O42: 31 | P42: 158 | Q42: 48 | R42: 80 | S42: 25 | T42: 55 | U42: 49 | V42: 76 | W42: 34 | X42: 42 | Y42: 48 | Z42: 41
A43: 262 | B43: MARNE-ARDENNES | C43: 2 | D43: CHARLEVILLE MEZIERES | E43: 508815 | F43: CARIGNAN | G43: 2.8 | H43: 34 | I43: 79 | J43: 95 | K43: 67 | L43: 75 | M43: 139 | N43: 33 | O43: 133 | P43: 35 | Q43: 7 | R43: 7 | S43: 15 | T43: 140 | U43: 135 | V43: 154 | W43: 66 | X43: 55 | Y43: 108 | Z43: 80
A44: 262 | B44: MEURTHE ET MOSELLE MEUSE | C44: 27 | D44: PONT A MOUSSON | E44: 554533 | F44: PONT A MOUSSON BREUIL | G44: 2.8 | H44: 35 | I44: 185 | J44: 169 | K44: 196 | L44: 41 | M44: 68 | N44: 39 | O44: 32 | P44: 128 | Q44: 3 | R44: 3 | S44: 137 | T44: 148 | U44: 157 | V44: 121 | W44: 29 | X44: 22 | Y44: 101 | Z44: 50
A45: 262 | B45: MARNE-ARDENNES | C45: 2 | D45: CHARLEVILLE MEZIERES | E45: 408801 | F45: CHARLEVILLE JEAN JAURES | G45: 9.4 | H45: 36 | I45: 55 | J45: 47 | K45: 84 | L45: 63 | M45: 110 | N45: 52 | O45: 7 | P45: 162 | Q45: 84 | R45: 130 | S45: 23 | T45: 145 | U45: 148 | V45: 127 | W45: 16 | X45: 13 | Y45: 143 | Z45: 10
A46: 262 | B46: MARNE-ARDENNES | C46: 6 | D46: CHALONS EN CHAMPAGNE | E46: 451120 | F46: SARRY | G46: 2.5 | H46: 37 | I46: 16 | J46: 33 | K46: 4 | L46: 69 | M46: 153 | N46: 129 | O46: 43 | P46: 8 | Q46: 44 | R46: 54 | S46: 59 | T46: 113 | U46: 111 | V46: 122 | W46: 129 | X46: 90 | Y46: 167 | Z46: 128
A47: 262 | B47: MARNE-ARDENNES | C47: 11 | D47: REIMS | E47: 551310 | F47: REIMS CHATILLONS | G47: 4.1 | H47: 38 | I47: 149 | J47: 189 | K47: 88 | L47: 34 | M47: 61 | N47: 66 | O47: 18 | P47: 62 | Q47: 66 | R47: 78 | S47: 60 | T47: 61 | U47: 50 | V47: 95 | W47: 20 | X47: 16 | Y47: 118 | Z47: 36
A48: 262 | B48: MARNE-ARDENNES | C48: 11 | D48: REIMS | E48: 451350 | F48: REIMS CENTRE VILLE | G48: 7.3 | H48: 39 | I48: 158 | J48: 169 | K48: 158 | L48: 127 | M48: 135 | N48: 34 | O48: 22 | P48: 231 | Q48: 65 | R48: 65 | S48: 101 | T48: 49 | U48: 53 | V48: 36 | W48: 7 | X48: 7 | Y48: 61 | Z48: 15
A49: 262 | B49: MOSELLE | C49: 42 | D49: MOSELLE EST | E49: 557250 | F49: CREUTZWALD | G49: 2.7 | H49: 40 | I49: 148 | J49: 203 | K49: 51 | L49: 122 | M49: 179 | N49: 57 | O49: 152 | P49: 44 | Q49: 27 | R49: 46 | S49: 19 | T49: 21 | U49: 20 | V49: 43 | W49: 60 | X49: 138 | Y49: 7 | Z49: 126
A50: 262 | B50: MEURTHE ET MOSELLE MEUSE | C50: 27 | D50: PONT A MOUSSON | E50: 454535 | F50: PONT A MOUSSON CENTRALE | G50: 7.8 | H50: 41 | I50: 167 | J50: 118 | K50: 218 | L50: 12 | M50: 11 | N50: 29 | O50: 28 | P50: 173 | Q50: 52 | R50: 35 | S50: 130 | T50: 76 | U50: 87 | V50: 54 | W50: 65 | X50: 29 | Y50: 231 | Z50: 48
A51: 262 | B51: MEURTHE ET MOSELLE MEUSE | C51: 26 | D51: NANCY | E51: 554601 | F51: SAINT MAX | G51: 4.3 | H51: 42 | I51: 18 | J51: 9 | K51: 99 | L51: 95 | M51: 92 | N51: 215 | O51: 54 | P51: 88 | Q51: 96 | R51: 161 | S51: 17 | T51: 60 | U51: 62 | V51: 70 | W51: 151 | X51: 131 | Y51: 139 | Z51: 152
A52: 262 | B52: VOSGES | C52: 57 | D52: EPINAL | E52: 588631 | F52: THAON LES VOSGES | G52: 5.5 | H52: 43 | I52: 67 | J52: 95 | K52: 39 | L52: 73 | M52: 70 | N52: 68 | O52: 79 | P52: 164 | Q52: 100 | R52: 67 | S52: 237 | T52: 27 | U52: 30 | V52: 41 | W52: 116 | X52: 149 | Y52: 74 | Z52: 113
A53: 262 | B53: MARNE-ARDENNES | C53: 6 | D53: CHALONS EN CHAMPAGNE | E53: 551110 | F53: CHALONS ROOSEVELT | G53: 5.0 | H53: 44 | I53: 25 | J53: 47 | K53: 8 | L53: 99 | M53: 136 | N53: 80 | O53: 59 | P53: 93 | Q53: 76 | R53: 90 | S53: 54 | T53: 71 | U53: 61 | V53: 128 | W53: 119 | X53: 71 | Y53: 195 | Z53: 120
A54: 262 | B54: MARNE-ARDENNES | C54: 6 | D54: CHALONS EN CHAMPAGNE | E54: 551354 | F54: VERTUS | G54: 2.5 | H54: 45 | I54: 5 | J54: 20 | K54: 1 | L54: 205 | M54: 149 | N54: 211 | O54: 115 | P54: 229 | Q54: 71 | R54: 68 | S54: 105 | T54: 121 | U54: 129 | V54: 103 | W54: 92 | X54: 82 | Y54: 114 | Z54: 103
A55: 262 | B55: BAS-RHIN | C55: 5060 | D55: HAGUENAU | E55: 4079 | F55: SOULTZ SOUS FORETS | G55: 2.2 | H55: 46 | I55: 89 | J55: 102 | K55: 79 | L55: 23 | M55: 21 | N55: 169 | O55: 61 | P55: 66 | Q55: 142 | R55: 190 | S55: 38 | T55: 73 | U55: 81 | V55: 56 | W55: 69 | X55: 73 | Y55: 59 | Z55: 88
A56: 262 | B56: MARNE-ARDENNES | C56: 2 | D56: CHARLEVILLE MEZIERES | E56: 408862 | F56: REVIN | G56: 4.3 | H56: 47 | I56: 7 | J56: 5 | K56: 40 | L56: 129 | M56: 172 | N56: 112 | O56: 104 | P56: 46 | Q56: 89 | R56: 107 | S56: 57 | T56: 136 | U56: 124 | V56: 144 | W56: 140 | X56: 128 | Y56: 211 | Z56: 79
A57: 262 | B57: BAS-RHIN | C57: 5006 | D57: STRASBOURG | E57: 4037 | F57: MUNDOLSHEIM | G57: 4.0 | H57: 48 | I57: 179 | J57: 209 | K57: 115 | L57: 17 | M57: 12 | N57: 46 | O57: 47 | P57: 187 | Q57: 42 | R57: 43 | S57: 74 | T57: 54 | U57: 40 | V57: 96 | W57: 99 | X57: 104 | Y57: 122 | Z57: 77
A58: 262 | B58: MEURTHE ET MOSELLE MEUSE | C58: 31 | D58: VERDUN | E58: 555679 | F58: VERDUN MAZEL | G58: 3.8 | H58: 49 | I58: 11 | J58: 11 | K58: 41 | L58: 76 | M58: 82 | N58: 87 | O58: 88 | P58: 101 | Q58: 81 | R58: 115 | S58: 30 | T58: 193 | U58: 203 | V58: 165 | W58: 67 | X58: 75 | Y58: 63 | Z58: 81
A59: 262 | B59: AUBE HAUTE MARNE | C59: 21 | D59: CHAUMONT | E59: 451151 | F59: WASSY | G59: 2.0 | H59: 50 | I59: 24 | J59: 23 | K59: 54 | L59: 59 | M59: 66 | N59: 79 | O59: 151 | P59: 86 | Q59: 211 | R59: 249 | S59: 20 | T59: 87 | U59: 92 | V59: 90 | W59: 49 | X59: 140 | Y59: 2 | Z59: 109
A60: 262 | B60: MEURTHE ET MOSELLE MEUSE | C60: 26 | D60: NANCY | E60: 454426 | F60: LUNEVILLE CARNOT | G60: 10.0 | H60: 51 | I60: 156 | J60: 152 | K60: 166 | L60: 52 | M60: 51 | N60: 67 | O60: 56 | P60: 150 | Q60: 110 | R60: 93 | S60: 176 | T60: 41 | U60: 32 | V60: 73 | W60: 35 | X60: 33 | Y60: 66 | Z60: 46
A61: 262 | B61: AUBE HAUTE MARNE | C61: 21 | D61: CHAUMONT | E61: 510590 | F61: CHAUMONT REPUBLIQUE | G61: 4.4 | H61: 52 | I61: 99 | J61: 102 | K61: 109 | L61: 89 | M61: 162 | N61: 49 | O61: 64 | P61: 47 | Q61: 75 | R61: 64 | S61: 128 | T61: 52 | U61: 41 | V61: 77 | W61: 84 | X61: 164 | Y61: 18 | Z61: 111
A62: 262 | B62: BAS-RHIN | C62: 5006 | D62: STRASBOURG | E62: 4054 | F62: STRASBOURG MONTAGNE VERTE | G62: 2.4 | H62: 53 | I62: 130 | J62: 85 | K62: 186 | L62: 170 | M62: 214 | N62: 12 | O62: 138 | P62: 144 | Q62: 228 | R62: 224 | S62: 152 | T62: 2 | U62: 4 | V62: 1 | W62: 108 | X62: 166 | Y62: 99 | Z62: 53
A63: 262 | B63: MOSELLE | C63: 42 | D63: MOSELLE EST | E63: 457308 | F63: FORBACH CENTRALE | G63: 11.2 | H63: 54 | I63: 47 | J63: 47 | K63: 71 | L63: 46 | M63: 49 | N63: 120 | O63: 161 | P63: 60 | Q63: 93 | R63: 114 | S63: 62 | T63: 84 | U63: 69 | V63: 158 | W63: 144 | X63: 159 | Y63: 52 | Z63: 195
A64: 262 | B64: MEURTHE ET MOSELLE MEUSE | C64: 27 | D64: PONT A MOUSSON | E64: 554506 | F64: CHALIGNY NEUVES MAISONS | G64: 3.8 | H64: 55 | I64: 233 | J64: 217 | K64: 235 | L64: 4 | M64: 5 | N64: 13 | O64: 10 | P64: 94 | Q64: 213 | R64: 202 | S64: 219 | T64: 79 | U64: 91 | V64: 61 | W64: 13 | X64: 6 | Y64: 209 | Z64: 7
A65: 262 | B65: MEURTHE ET MOSELLE MEUSE | C65: 27 | D65: PONT A MOUSSON | E65: 554357 | F65: JOEUF | G65: 3.8 | H65: 56 | I65: 135 | J65: 173 | K65: 72 | L65: 97 | M65: 137 | N65: 47 | O65: 24 | P65: 163 | Q65: 247 | R65: 242 | S65: 208 | T65: 20 | U65: 27 | V65: 21 | W65: 15 | X65: 19 | Y65: 29 | Z65: 12
A66: 262 | B66: MARNE-ARDENNES | C66: 11 | D66: REIMS | E66: 551314 | F66: FISMES | G66: 3.0 | H66: 57 | I66: 51 | J66: 85 | K66: 14 | L66: 50 | M66: 89 | N66: 50 | O66: 16 | P66: 110 | Q66: 153 | R66: 191 | S66: 50 | T66: 135 | U66: 151 | V66: 81 | W66: 44 | X66: 38 | Y66: 138 | Z66: 29
A67: 262 | B67: MOSELLE | C67: 44 | D67: MOSELLE NORD | E67: 457348 | F67: HAGONDANGE | G67: 9.3 | H67: 58 | I67: 171 | J67: 192 | K67: 136 | L67: 32 | M67: 32 | N67: 196 | O67: 92 | P67: 50 | Q67: 74 | R67: 56 | S67: 153 | T67: 63 | U67: 43 | V67: 139 | W67: 58 | X67: 49 | Y67: 134 | Z67: 51
A68: 262 | B68: MEURTHE ET MOSELLE MEUSE | C68: 31 | D68: VERDUN | E68: 455676 | F68: VAUCOULEURS | G68: 1.8 | H68: 59 | I68: 246 | J68: 235 | K68: 244 | L68: 7 | M68: 13 | N68: 59 | O68: 30 | P68: 22 | Q68: 219 | R68: 184 | S68: 251 | T68: 17 | U68: 17 | V68: 12 | W68: 27 | X68: 81 | Y68: 22 | Z68: 18
A69: 262 | B69: MEURTHE ET MOSELLE MEUSE | C69: 31 | D69: VERDUN | E69: 455298 | F69: ETAIN | G69: 1.5 | H69: 60 | I69: 225 | J69: 217 | K69: 221 | L69: 94 | M69: 44 | N69: 103 | O69: 242 | P69: 228 | Q69: 50 | R69: 59 | S69: 63 | T69: 18 | U69: 18 | V69: 10 | W69: 52 | X69: 67 | Y69: 4 | Z69: 204
A70: 262 | B70: HAUT-RHIN | C70: 5130 | D70: COLMAR | E70: 4144 | F70: RIBEAUVILLE | G70: 2.9 | H70: 61 | I70: 101 | J70: 118 | K70: 80 | L70: 47 | M70: 62 | N70: 100 | O70: 142 | P70: 34 | Q70: 32 | R70: 28 | S70: 76 | T70: 48 | U70: 26 | V70: 207 | W70: 243 | X70: 218 | Y70: 207 | Z70: 249
A71: 262 | B71: MEURTHE ET MOSELLE MEUSE | C71: 31 | D71: VERDUN | E71: 555624 | F71: STENAY | G71: 2.8 | H71: 62 | I71: 48 | J71: 40 | K71: 86 | L71: 15 | M71: 25 | N71: 43 | O71: 147 | P71: 24 | Q71: 200 | R71: 232 | S71: 36 | T71: 117 | U71: 119 | V71: 110 | W71: 112 | X71: 150 | Y71: 54 | Z71: 125
A72: 262 | B72: MOSELLE | C72: 44 | D72: MOSELLE NORD | E72: 457306 | F72: FLORANGE | G72: 3.7 | H72: 63 | I72: 129 | J72: 85 | K72: 185 | L72: 60 | M72: 55 | N72: 123 | O72: 164 | P72: 95 | Q72: 29 | R72: 29 | S72: 68 | T72: 83 | U72: 80 | V72: 89 | W72: 110 | X72: 59 | Y72: 135 | Z72: 190
A73: 262 | B73: MEURTHE ET MOSELLE MEUSE | C73: 31 | D73: VERDUN | E73: 554412 | F73: LONGUYON | G73: 2.8 | H73: 64 | I73: 23 | J73: 28 | K73: 29 | L73: 152 | M73: 182 | N73: 114 | O73: 90 | P73: 100 | Q73: 175 | R73: 152 | S73: 215 | T73: 104 | U73: 100 | V73: 117 | W73: 41 | X73: 43 | Y73: 45 | Z73: 64
A74: 262 | B74: VOSGES | C74: 55 | D74: SAINT DIE | E74: 588666 | F74: VAGNEY | G74: 3.9 | H74: 65 | I74: 4 | J74: 3 | K74: 31 | L74: 143 | M74: 141 | N74: 197 | O74: 146 | P74: 85 | Q74: 70 | R74: 34 | S74: 222 | T74: 182 | U74: 146 | V74: 251 | W74: 169 | X74: 173 | Y74: 163 | Z74: 130
A75: 262 | B75: MOSELLE | C75: 44 | D75: MOSELLE NORD | E75: 557352 | F75: HETTANGE GRANDE | G75: 4.1 | H75: 66 | I75: 191 | J75: 173 | K75: 197 | L75: 21 | M75: 9 | N75: 81 | O75: 214 | P75: 188 | Q75: 134 | R75: 128 | S75: 147 | T75: 35 | U75: 28 | V75: 93 | W75: 68 | X75: 76 | Y75: 36 | Z75: 121
A76: 262 | B76: BAS-RHIN | C76: 5006 | D76: STRASBOURG | E76: 4019 | F76: STRASBOURG ANVERS | G76: 4.3 | H76: 67 | I76: 120 | J76: 64 | K76: 199 | L76: 43 | M76: 17 | N76: 41 | O76: 48 | P76: 261 | Q76: 24 | R76: 21 | S76: 64 | T76: 95 | U76: 97 | V76: 91 | W76: 176 | X76: 118 | Y76: 220 | Z76: 175
A77: 262 | B77: VOSGES | C77: 57 | D77: EPINAL | E77: 588716 | F77: XERTIGNY | G77: 2.9 | H77: 68 | I77: 159 | J77: 152 | K77: 178 | L77: 55 | M77: 67 | N77: 147 | O77: 179 | P77: 32 | Q77: 113 | R77: 112 | S77: 129 | T77: 15 | U77: 8 | V77: 116 | W77: 194 | X77: 211 | Y77: 160 | Z77: 160
A78: 262 | B78: MEURTHE ET MOSELLE MEUSE | C78: 27 | D78: PONT A MOUSSON | E78: 554416 | F78: LUDRES | G78: 3.8 | H78: 69 | I78: 32 | J78: 40 | K78: 46 | L78: 132 | M78: 126 | N78: 69 | O78: 36 | P78: 208 | Q78: 31 | R78: 26 | S78: 78 | T78: 221 | U78: 216 | V78: 223 | W78: 62 | X78: 60 | Y78: 144 | Z78: 42
A79: 264 | B79: VOSGES | C79: 57 | D79: EPINAL | E79: 588206 | F79: CHARMES | G79: 2.8 | H79: 70 | I79: 45 | J79: 64 | K79: 37 | L79: 154 | M79: 96 | N79: 131 | O79: 184 | P79: 217 | Q79: 224 | R79: 203 | S79: 253 | T79: 23 | U79: 19 | V79: 85 | W79: 87 | X79: 143 | Y79: 43 | Z79: 96
A80: 264 | B80: BAS-RHIN | C80: 5060 | D80: HAGUENAU | E80: 4082 | F80: BOUXWILLER | G80: 2.5 | H80: 71 | I80: 69 | J80: 78 | K80: 64 | L80: 126 | M80: 86 | N80: 115 | O80: 76 | P80: 207 | Q80: 78 | R80: 81 | S80: 71 | T80: 154 | U80: 190 | V80: 58 | W80: 48 | X80: 32 | Y80: 72 | Z80: 97
A81: 264 | B81: MEURTHE ET MOSELLE MEUSE | C81: 27 | D81: PONT A MOUSSON | E81: 554376 | F81: LAXOU BOUFFLERS | G81: 2.8 | H81: 72 | I81: 170 | J81: 196 | K81: 119 | L81: 68 | M81: 46 | N81: 28 | O81: 26 | P81: 257 | Q81: 73 | R81: 48 | S81: 184 | T81: 90 | U81: 110 | V81: 69 | W81: 28 | X81: 52 | Y81: 11 | Z81: 73
A82: 264 | B82: MOSELLE | C82: 45 | D82: METZ | E82: 557447 | F82: METZ SAINT MAXIMIN | G82: 3.1 | H82: 73 | I82: 166 | J82: 209 | K82: 85 | L82: 24 | M82: 134 | N82: 1 | O82: 14 | P82: 43 | Q82: 86 | R82: 79 | S82: 94 | T82: 155 | U82: 186 | V82: 65 | W82: 39 | X82: 30 | Y82: 132 | Z82: 38
A83: 264 | B83: MEURTHE ET MOSELLE MEUSE | C83: 26 | D83: NANCY | E83: 554636 | F83: TOMBLAINE | G83: 2.5 | H83: 74 | I83: 20 | J83: 28 | K83: 15 | L83: 225 | M83: 233 | N83: 110 | O83: 154 | P83: 174 | Q83: 85 | R83: 82 | S83: 92 | T83: 80 | U83: 117 | V83: 30 | W83: 136 | X83: 207 | Y83: 162 | Z83: 40
A84: 264 | B84: MARNE-ARDENNES | C84: 6 | D84: CHALONS EN CHAMPAGNE | E84: 451101 | F84: CHALONS VIVIERS | G84: 9.3 | H84: 75 | I84: 49 | J84: 78 | K84: 25 | L84: 101 | M84: 107 | N84: 108 | O84: 55 | P84: 143 | Q84: 123 | R84: 165 | S84: 44 | T84: 115 | U84: 137 | V84: 82 | W84: 77 | X84: 77 | Y84: 94 | Z84: 70
A85: 264 | B85: BAS-RHIN | C85: 5006 | D85: STRASBOURG | E85: 4048 | F85: STRASBOURG KOENIGSHOFFEN | G85: 2.0 | H85: 76 | I85: 211 | J85: 131 | K85: 249 | L85: 30 | M85: 29 | N85: 6 | O85: 117 | P85: 222 | Q85: 203 | R85: 235 | S85: 39 | T85: 11 | U85: 14 | V85: 7 | W85: 126 | X85: 145 | Y85: 53 | Z85: 176
A86: 264 | B86: VOSGES | C86: 57 | D86: EPINAL | E86: 488706 | F86: VITTEL | G86: 3.6 | H86: 77 | I86: 40 | J86: 69 | K86: 18 | L86: 231 | M86: 235 | N86: 201 | O86: 103 | P86: 155 | Q86: 43 | R86: 24 | S86: 195 | T86: 81 | U86: 56 | V86: 189 | W86: 111 | X86: 195 | Y86: 95 | Z86: 43
A87: 264 | B87: MARNE-ARDENNES | C87: 6 | D87: CHALONS EN CHAMPAGNE | E87: 551128 | F87: SAINTE MENEHOULD | G87: 3.2 | H87: 78 | I87: 62 | J87: 47 | K87: 102 | L87: 78 | M87: 93 | N87: 121 | O87: 85 | P87: 61 | Q87: 160 | R87: 197 | S87: 48 | T87: 40 | U87: 34 | V87: 59 | W87: 213 | X87: 227 | Y87: 166 | Z87: 189
A88: 264 | B88: VOSGES | C88: 57 | D88: EPINAL | E88: 588501 | F88: NEUFCHATEAU | G88: 5.2 | H88: 79 | I88: 9 | J88: 9 | K88: 65 | L88: 194 | M88: 215 | N88: 133 | O88: 38 | P88: 153 | Q88: 193 | R88: 193 | S88: 149 | T88: 141 | U88: 141 | V88: 150 | W88: 55 | X88: 92 | Y88: 84 | Z88: 23
A89: 264 | B89: VOSGES | C89: 55 | D89: SAINT DIE | E89: 488326 | F89: GERARDMER | G89: 5.1 | H89: 80 | I89: 38 | J89: 60 | K89: 36 | L89: 171 | M89: 95 | N89: 237 | O89: 150 | P89: 202 | Q89: 12 | R89: 4 | S89: 226 | T89: 215 | U89: 188 | V89: 246 | W89: 142 | X89: 125 | Y89: 109 | Z89: 169
A90: 264 | B90: BAS-RHIN | C90: 5101 | D90: SELESTAT | E90: 4120 | F90: WASSELONNE | G90: 4.4 | H90: 81 | I90: 202 | J90: 238 | K90: 108 | L90: 180 | M90: 108 | N90: 183 | O90: 246 | P90: 198 | Q90: 11 | R90: 15 | S90: 28 | T90: 47 | U90: 36 | V90: 68 | W90: 96 | X90: 209 | Y90: 13 | Z90: 117
A91: 264 | B91: VOSGES | C91: 57 | D91: EPINAL | E91: 588396 | F91: LE VAL D AJOL | G91: 2.9 | H91: 82 | I91: 1 | J91: 1 | K91: 2 | L91: 227 | M91: 217 | N91: 261 | O91: 223 | P91: 57 | Q91: 112 | R91: 69 | S91: 255 | T91: 157 | U91: 108 | V91: 244 | W91: 235 | X91: 160 | Y91: 259 | Z91: 207
A92: 264 | B92: BAS-RHIN | C92: 5006 | D92: STRASBOURG | E92: 4045 | F92: STRASBOURG FRANCS BOURGEOIS | G92: 4.6 | H92: 83 | I92: 182 | J92: 161 | K92: 203 | L92: 110 | M92: 106 | N92: 101 | O92: 139 | P92: 130 | Q92: 2 | R92: 2 | S92: 102 | T92: 220 | U92: 172 | V92: 260 | W92: 167 | X92: 95 | Y92: 221 | Z92: 184
A93: 264 | B93: VOSGES | C93: 55 | D93: SAINT DIE | E93: 488586 | F93: SAINT DIE | G93: 10.7 | H93: 84 | I93: 13 | J93: 11 | K93: 44 | L93: 163 | M93: 131 | N93: 154 | O93: 157 | P93: 170 | Q93: 108 | R93: 117 | S93: 95 | T93: 168 | U93: 147 | V93: 215 | W93: 146 | X93: 123 | Y93: 208 | Z93: 95
A94: 264 | B94: BAS-RHIN | C94: 5006 | D94: STRASBOURG | E94: 4038 | F94: OBERHAUSBERGEN | G94: 4.8 | H94: 85 | I94: 142 | J94: 196 | K94: 56 | L94: 116 | M94: 54 | N94: 92 | O94: 67 | P94: 250 | Q94: 37 | R94: 58 | S94: 32 | T94: 105 | U94: 82 | V94: 180 | W94: 85 | X94: 63 | Y94: 125 | Z94: 112
A95: 264 | B95: MEURTHE ET MOSELLE MEUSE | C95: 31 | D95: VERDUN | E95: 455456 | F95: MONTMEDY | G95: 1.8 | H95: 86 | I95: 104 | J95: 118 | K95: 94 | L95: 74 | M95: 94 | N95: 75 | O95: 177 | P95: 45 | Q95: 179 | R95: 180 | S95: 146 | T95: 103 | U95: 88 | V95: 156 | W95: 50 | X95: 107 | Y95: 15 | Z95: 52
A96: 264 | B96: MARNE-ARDENNES | C96: 2 | D96: CHARLEVILLE MEZIERES | E96: 508802 | F96: CHARLEVILLE NEVERS | G96: 3.0 | H96: 87 | I96: 52 | J96: 55 | K96: 66 | L96: 161 | M96: 211 | N96: 157 | O96: 37 | P96: 54 | Q96: 241 | R96: 252 | S96: 56 | T96: 24 | U96: 24 | V96: 64 | W96: 148 | X96: 142 | Y96: 64 | Z96: 216
A97: 264 | B97: MARNE-ARDENNES | C97: 11 | D97: REIMS | E97: 451301 | F97: REIMS HOTEL DE VILLE | G97: 7.8 | H97: 88 | I97: 124 | J97: 142 | K97: 110 | L97: 28 | M97: 27 | N97: 56 | O97: 29 | P97: 192 | Q97: 245 | R97: 236 | S97: 228 | T97: 59 | U97: 58 | V97: 72 | W97: 83 | X97: 51 | Y97: 191 | Z97: 87
A98: 264 | B98: MOSELLE | C98: 45 | D98: METZ | E98: 457453 | F98: MONTIGNY LES METZ | G98: 7.9 | H98: 89 | I98: 54 | J98: 85 | K98: 19 | L98: 118 | M98: 52 | N98: 209 | O98: 70 | P98: 233 | Q98: 60 | R98: 104 | S98: 22 | T98: 233 | U98: 211 | V98: 252 | W98: 70 | X98: 58 | Y98: 141 | Z98: 55
A99: 264 | B99: BAS-RHIN | C99: 5006 | D99: STRASBOURG | E99: 4006 | F99: STRASBOURG NEUDORF | G99: 8.6 | H99: 90 | I99: 28 | J99: 20 | K99: 98 | L99: 85 | M99: 78 | N99: 60 | O99: 94 | P99: 145 | Q99: 181 | R99: 168 | S99: 174 | T99: 82 | U99: 84 | V99: 84 | W99: 232 | X99: 176 | Y99: 261 | Z99: 178
A100: 264 | B100: BAS-RHIN | C100: 5101 | D100: SELESTAT | E100: 4107 | F100: VILLE | G100: 2.9 | H100: 91 | I100: 259 | J100: 262 | K100: 165 | L100: 16 | M100: 14 | N100: 182 | O100: 162 | P100: 11 | Q100: 51 | R100: 55 | S100: 75 | T100: 16 | U100: 3 | V100: 211 | W100: 182 | X100: 261 | Y100: 80 | Z100: 106
A101: 264 | B101: MARNE-ARDENNES | C101: 6 | D101: CHALONS EN CHAMPAGNE | E101: 551103 | F101: FAGNIERES LECLERC | G101: 3.1 | H101: 92 | I101: 27 | J101: 28 | K101: 57 | L101: 81 | M101: 119 | N101: 62 | O101: 51 | P101: 80 | Q101: 227 | R101: 218 | S101: 191 | T101: 156 | U101: 197 | V101: 55 | W101: 86 | X101: 122 | Y101: 71 | Z101: 75
A102: 264 | B102: MARNE-ARDENNES | C102: 2 | D102: CHARLEVILLE MEZIERES | E102: 508819 | F102: MOUZON | G102: 2.0 | H102: 93 | I102: 114 | J102: 113 | K102: 139 | L102: 242 | M102: 242 | N102: 94 | O102: 175 | P102: 223 | Q102: 72 | R102: 27 | S102: 259 | T102: 120 | U102: 158 | V102: 49 | W102: 18 | X102: 27 | Y102: 57 | Z102: 13
A103: 30 | B103: VOSGES | C103: 57 | D103: EPINAL | E103: 488281 | F103: ELOYES | G103: 4.7 | H103: 94 | I103: 22 | J103: 14 | K103: 70 | L103: 80 | M103: 103 | N103: 229 | O103: 206 | P103: 3 | Q103: 106 | R103: 84 | S103: 187 | T103: 232 | U103: 238 | V103: 198 | W103: 157 | X103: 135 | Y103: 151 | Z103: 172
A104: 30 | B104: BAS-RHIN | C104: 5006 | D104: STRASBOURG | E104: 4024 | F104: STRASBOURG AUSTERLITZ | G104: 2.3 | H104: 95 | I104: 256 | J104: 241 | K104: 250 | L104: 20 | M104: 16 | N104: 23 | O104: 53 | P104: 200 | Q104: 62 | R104: 77 | S104: 52 | T104: 30 | U104: 54 | V104: 11 | W104: 88 | X104: 79 | Y104: 193 | Z104: 49
A105: 30 | B105: BAS-RHIN | C105: 5006 | D105: STRASBOURG | E105: 4043 | F105: STRASBOURG HALLES | G105: 8.2 | H105: 96 | I105: 93 | J105: 69 | K105: 145 | L105: 198 | M105: 115 | N105: 18 | O105: 45 | P105: 264 | Q105: 47 | R105: 49 | S105: 81 | T105: 131 | U105: 132 | V105: 107 | W105: 94 | X105: 47 | Y105: 252 | Z105: 59
A106: 30 | B106: BAS-RHIN | C106: 5006 | D106: STRASBOURG | E106: 4023 | F106: STRASBOURG VOSGES | G106: 3.3 | H106: 97 | I106: 126 | J106: 33 | K106: 240 | L106: 66 | M106: 64 | N106: 88 | O106: 95 | P106: 131 | Q106: 30 | R106: 38 | S106: 33 | T106: 150 | U106: 96 | V106: 245 | W106: 201 | X106: 200 | Y106: 177 | Z106: 179
A107: 30 | B107: MOSELLE | C107: 42 | D107: MOSELLE EST | E107: 557210 | F107: CHATEAU SALINS | G107: 2.6 | H107: 98 | I107: 197 | J107: 244 | K107: 63 | L107: 29 | M107: 24 | N107: 184 | O107: 204 | P107: 39 | Q107: 63 | R107: 75 | S107: 58 | T107: 143 | U107: 138 | V107: 155 | W107: 101 | X107: 165 | Y107: 28 | Z107: 132
A108: 30 | B108: VOSGES | C108: 57 | D108: EPINAL | E108: 488561 | F108: REMIREMONT | G108: 6.7 | H108: 99 | I108: 86 | J108: 102 | K108: 62 | L108: 91 | M108: 90 | N108: 134 | O108: 97 | P108: 92 | Q108: 98 | R108: 87 | S108: 161 | T108: 147 | U108: 122 | V108: 201 | W108: 152 | X108: 105 | Y108: 228 | Z108: 92
A109: 30 | B109: AUBE HAUTE MARNE | C109: 21 | D109: CHAUMONT | E109: 451154 | F109: JOINVILLE | G109: 1.9 | H109: 100 | I109: 2 | J109: 3 | K109: 3 | L109: 238 | M109: 231 | N109: 107 | O109: 186 | P109: 220 | Q109: 257 | R109: 253 | S109: 256 | T109: 85 | U109: 125 | V109: 35 | W109: 135 | X109: 237 | Y109: 90 | Z109: 47
A110: 30 | B110: VOSGES | C110: 55 | D110: SAINT DIE | E110: 588386 | F110: LE THILLOT | G110: 2.5 | H110: 101 | I110: 110 | J110: 102 | K110: 143 | L110: 140 | M110: 190 | N110: 232 | O110: 171 | P110: 5 | Q110: 101 | R110: 133 | S110: 51 | T110: 58 | U110: 42 | V110: 109 | W110: 187 | X110: 230 | Y110: 78 | Z110: 192
A111: 30 | B111: VOSGES | C111: 57 | D111: EPINAL | E111: 588336 | F111: GOLBEY | G111: 3.1 | H111: 102 | I111: 134 | J111: 161 | K111: 89 | L111: 186 | M111: 189 | N111: 73 | O111: 81 | P111: 197 | Q111: 127 | R111: 102 | S111: 224 | T111: 93 | U111: 90 | V111: 106 | W111: 43 | X111: 50 | Y111: 149 | Z111: 19
A112: 30 | B112: MEURTHE ET MOSELLE MEUSE | C112: 31 | D112: VERDUN | E112: 455151 | F112: BAR LE DUC | G112: 8.9 | H112: 103 | I112: 121 | J112: 118 | K112: 140 | L112: 79 | M112: 73 | N112: 155 | O112: 96 | P112: 103 | Q112: 143 | R112: 109 | S112: 235 | T112: 114 | U112: 127 | V112: 94 | W112: 93 | X112: 155 | Y112: 62 | Z112: 68
A113: 30 | B113: MEURTHE ET MOSELLE MEUSE | C113: 26 | D113: NANCY | E113: 554266 | F113: DOMBASLE SUR MEURTHE | G113: 3.7 | H113: 104 | I113: 232 | J113: 232 | K113: 216 | L113: 159 | M113: 138 | N113: 65 | O113: 74 | P113: 225 | Q113: 28 | R113: 25 | S113: 69 | T113: 57 | U113: 74 | V113: 29 | W113: 54 | X113: 61 | Y113: 32 | Z113: 107
A114: 30 | B114: MOSELLE | C114: 45 | D114: METZ | E114: 457443 | F114: METZ REPUBLIQUE | G114: 4.2 | H114: 105 | I114: 6 | J114: 8 | K114: 21 | L114: 214 | M114: 218 | N114: 212 | O114: 198 | P114: 76 | Q114: 147 | R114: 113 | S114: 239 | T114: 244 | U114: 249 | V114: 172 | W114: 98 | X114: 88 | Y114: 156 | Z114: 78
A115: 30 | B115: MARNE-ARDENNES | C115: 11 | D115: REIMS | E115: 451370 | F115: EPERNAY | G115: 11.5 | H115: 106 | I115: 90 | J115: 131 | K115: 50 | L115: 87 | M115: 79 | N115: 146 | O115: 58 | P115: 132 | Q115: 156 | R115: 135 | S115: 200 | T115: 130 | U115: 102 | V115: 173 | W115: 143 | X115: 108 | Y115: 189 | Z115: 114
A116: 30 | B116: AUBE HAUTE MARNE | C116: 14 | D116: TROYES | E116: 510523 | F116: LA CHAPELLE ST LUC | G116: 5.6 | H116: 107 | I116: 164 | J116: 152 | K116: 182 | L116: 45 | M116: 58 | N116: 38 | O116: 109 | P116: 113 | Q116: 221 | R116: 237 | S116: 79 | T116: 25 | U116: 59 | V116: 3 | W116: 179 | X116: 169 | Y116: 173 | Z116: 173
A117: 30 | B117: MOSELLE | C117: 45 | D117: METZ | E117: 557439 | F117: METZ POMPIDOU | G117: 3.9 | H117: 108 | I117: 84 | J117: 40 | K117: 172 | L117: 206 | M117: 156 | N117: 210 | O117: 156 | P117: 214 | Q117: 49 | R117: 57 | S117: 67 | T117: 98 | U117: 142 | V117: 48 | W117: 199 | X117: 168 | Y117: 200 | Z117: 182
A118: 30 | B118: HAUT-RHIN | C118: 5130 | D118: COLMAR | E118: 4143 | F118: MUNSTER | G118: 5.0 | H118: 109 | I118: 133 | J118: 118 | K118: 157 | L118: 38 | M118: 42 | N118: 97 | O118: 87 | P118: 87 | Q118: 159 | R118: 145 | S118: 180 | T118: 125 | U118: 103 | V118: 166 | W118: 162 | X118: 203 | Y118: 56 | Z118: 193
A119: 30 | B119: MEURTHE ET MOSELLE MEUSE | C119: 31 | D119: VERDUN | E119: 554700 | F119: VILLERUPT | G119: 3.0 | H119: 110 | I119: 31 | J119: 17 | K119: 130 | L119: 134 | M119: 140 | N119: 145 | O119: 225 | P119: 52 | Q119: 116 | R119: 137 | S119: 80 | T119: 204 | U119: 196 | V119: 216 | W119: 154 | X119: 179 | Y119: 34 | Z119: 227
A120: 30 | B120: BAS-RHIN | C120: 5060 | D120: HAGUENAU | E120: 4030 | F120: BRUMATH | G120: 5.2 | H120: 111 | I120: 152 | J120: 118 | K120: 190 | L120: 113 | M120: 53 | N120: 148 | O120: 107 | P120: 237 | Q120: 34 | R120: 52 | S120: 34 | T120: 190 | U120: 176 | V120: 220 | W120: 79 | X120: 72 | Y120: 89 | Z120: 89
A121: 30 | B121: MEURTHE ET MOSELLE MEUSE | C121: 26 | D121: NANCY | E121: 554116 | F121: BACCARAT | G121: 2.6 | H121: 112 | I121: 64 | J121: 78 | K121: 48 | L121: 114 | M121: 120 | N121: 185 | O121: 140 | P121: 63 | Q121: 131 | R121: 118 | S121: 198 | T121: 162 | U121: 150 | V121: 174 | W121: 163 | X121: 151 | Y121: 111 | Z121: 187
A122: 30 | B122: BAS-RHIN | C122: 5006 | D122: STRASBOURG | E122: 4027 | F122: SCHILTIGHEIM CENTRE | G122: 3.7 | H122: 113 | I122: 175 | J122: 142 | K122: 204 | L122: 57 | M122: 72 | N122: 16 | O122: 35 | P122: 204 | Q122: 69 | R122: 89 | S122: 47 | T122: 164 | U122: 155 | V122: 169 | W122: 100 | X122: 56 | Y122: 222 | Z122: 91
A123: 30 | B123: VOSGES | C123: 57 | D123: EPINAL | E123: 488286 | F123: EPINAL ARISTIDE BRIAND | G123: 9.1 | H123: 114 | I123: 41 | J123: 33 | K123: 93 | L123: 133 | M123: 91 | N123: 70 | O123: 127 | P123: 221 | Q123: 185 | R123: 153 | S123: 236 | T123: 92 | U123: 79 | V123: 140 | W123: 219 | X123: 167 | Y123: 255 | Z123: 165
A124: 30 | B124: VOSGES | C124: 57 | D124: EPINAL | E124: 488451 | F124: MIRECOURT | G124: 4.7 | H124: 115 | I124: 39 | J124: 55 | K124: 47 | L124: 221 | M124: 219 | N124: 119 | O124: 93 | P124: 194 | Q124: 137 | R124: 129 | S124: 154 | T124: 118 | U124: 115 | V124: 123 | W124: 147 | X124: 154 | Y124: 181 | Z124: 84
A125: 30 | B125: AUBE HAUTE MARNE | C125: 14 | D125: TROYES | E125: 510570 | F125: NOGENT SUR SEINE | G125: 4.5 | H125: 116 | I125: 21 | J125: 28 | K125: 16 | L125: 146 | M125: 166 | N125: 172 | O125: 66 | P125: 118 | Q125: 186 | R125: 160 | S125: 218 | T125: 226 | U125: 192 | V125: 258 | W125: 104 | X125: 93 | Y125: 115 | Z125: 115
A126: 30 | B126: AUBE HAUTE MARNE | C126: 21 | D126: CHAUMONT | E126: 451156 | F126: SAINT DIZIER CENTRE | G126: 9.2 | H126: 117 | I126: 117 | J126: 102 | K126: 154 | L126: 148 | M126: 133 | N126: 74 | O126: 116 | P126: 189 | Q126: 120 | R126: 124 | S126: 119 | T126: 97 | U126: 118 | V126: 74 | W126: 124 | X126: 172 | Y126: 93 | Z126: 76
A127: 30 | B127: BAS-RHIN | C127: 5060 | D127: HAGUENAU | E127: 4066 | F127: NIEDERBRONN LES BAINS | G127: 6.1 | H127: 118 | I127: 44 | J127: 69 | K127: 28 | L127: 193 | M127: 193 | N127: 236 | O127: 185 | P127: 71 | Q127: 82 | R127: 45 | S127: 221 | T127: 167 | U127: 136 | V127: 232 | W127: 186 | X127: 186 | Y127: 86 | Z127: 233
A128: 30 | B128: MARNE-ARDENNES | C128: 11 | D128: REIMS | E128: 551309 | F128: REIMS EUROPE | G128: 2.7 | H128: 119 | I128: 92 | J128: 69 | K128: 141 | L128: 211 | M128: 230 | N128: 136 | O128: 120 | P128: 116 | Q128: 119 | R128: 122 | S128: 120 | T128: 65 | U128: 99 | V128: 18 | W128: 174 | X128: 158 | Y128: 175 | Z128: 164
A129: 30 | B129: MARNE-ARDENNES | C129: 11 | D129: REIMS | E129: 451361 | F129: PIERRY LECLERC | G129: 1.9 | H129: 120 | I129: 77 | J129: 118 | K129: 35 | L129: 100 | M129: 199 | N129: 71 | O129: 57 | P129: 10 | Q129: 209 | R129: 176 | S129: 247 | T129: 112 | U129: 106 | V129: 129 | W129: 149 | X129: 152 | Y129: 105 | Z129: 147
A130: 30 | B130: VOSGES | C130: 55 | D130: SAINT DIE | E130: 588186 | F130: BRUYERES | G130: 3.7 | H130: 121 | I130: 70 | J130: 95 | K130: 42 | L130: 131 | M130: 152 | N130: 89 | O130: 176 | P130: 77 | Q130: 260 | R130: 258 | S130: 240 | T130: 102 | U130: 126 | V130: 75 | W130: 45 | X130: 102 | Y130: 31 | Z130: 25
A131: 30 | B131: MEURTHE ET MOSELLE MEUSE | C131: 31 | D131: VERDUN | E131: 555406 | F131: LIGNY EN BARROIS | G131: 2.8 | H131: 122 | I131: 57 | J131: 55 | K131: 73 | L131: 168 | M131: 160 | N131: 151 | O131: 168 | P131: 139 | Q131: 158 | R131: 155 | S131: 145 | T131: 169 | U131: 152 | V131: 206 | W131: 125 | X131: 117 | Y131: 98 | Z131: 142
A132: 30 | B132: MEURTHE ET MOSELLE MEUSE | C132: 31 | D132: VERDUN | E132: 455231 | F132: COMMERCY | G132: 4.7 | H132: 123 | I132: 150 | J132: 142 | K132: 168 | L132: 136 | M132: 163 | N132: 106 | O132: 113 | P132: 90 | Q132: 115 | R132: 92 | S132: 201 | T132: 138 | U132: 107 | V132: 199 | W132: 74 | X132: 126 | Y132: 40 | Z132: 66
A133: 30 | B133: MOSELLE | C133: 44 | D133: MOSELLE NORD | E133: 457350 | F133: HAYANGE | G133: 7.3 | H133: 124 | I133: 145 | J133: 78 | K133: 222 | L133: 37 | M133: 45 | N133: 138 | O133: 134 | P133: 28 | Q133: 199 | R133: 245 | S133: 14 | T133: 137 | U133: 131 | V133: 142 | W133: 130 | X133: 83 | Y133: 157 | Z133: 158
A134: 30 | B134: MOSELLE | C134: 42 | D134: MOSELLE EST | E134: 457583 | F134: SAINT AVOLD | G134: 7.6 | H134: 125 | I134: 105 | J134: 102 | K134: 126 | L134: 145 | M134: 151 | N134: 153 | O134: 106 | P134: 125 | Q134: 141 | R134: 140 | S134: 148 | T134: 134 | U134: 140 | V134: 111 | W134: 131 | X134: 116 | Y134: 121 | Z134: 129
A135: 30 | B135: AUBE HAUTE MARNE | C135: 14 | D135: TROYES | E135: 510520 | F135: SAINT ANDRE LES VERGERS | G135: 4.1 | H135: 126 | I135: 128 | J135: 95 | K135: 177 | L135: 109 | M135: 148 | N135: 93 | O135: 128 | P135: 53 | Q135: 55 | R135: 51 | S135: 96 | T135: 246 | U135: 248 | V135: 194 | W135: 72 | X135: 132 | Y135: 30 | Z135: 82
A136: 30 | B136: MOSELLE | C136: 44 | D136: MOSELLE NORD | E136: 457632 | F136: THIONVILLE CENTRALE | G136: 11.8 | H136: 127 | I136: 108 | J136: 69 | K136: 175 | L136: 88 | M136: 105 | N136: 99 | O136: 205 | P136: 33 | Q136: 150 | R136: 177 | S136: 72 | T136: 128 | U136: 120 | V136: 125 | W136: 193 | X136: 170 | Y136: 129 | Z136: 220
A137: 30 | B137: MEURTHE ET MOSELLE MEUSE | C137: 31 | D137: VERDUN | E137: 455678 | F137: VERDUN CENTRALE | G137: 10.6 | H137: 128 | I137: 85 | J137: 95 | K137: 74 | L137: 86 | M137: 74 | N137: 104 | O137: 40 | P137: 178 | Q137: 237 | R137: 229 | S137: 171 | T137: 194 | U137: 208 | V137: 153 | W137: 56 | X137: 36 | Y137: 145 | Z137: 57
A138: 30 | B138: MARNE-ARDENNES | C138: 6 | D138: CHALONS EN CHAMPAGNE | E138: 451381 | F138: SEZANNE | G138: 6.5 | H138: 129 | I138: 95 | J138: 118 | K138: 69 | L138: 112 | M138: 147 | N138: 137 | O138: 49 | P138: 89 | Q138: 196 | R138: 207 | S138: 99 | T138: 129 | U138: 95 | V138: 181 | W138: 137 | X138: 114 | Y138: 203 | Z138: 86
A139: 30 | B139: MEURTHE ET MOSELLE MEUSE | C139: 26 | D139: NANCY | E139: 554166 | F139: BLAINVILLE | G139: 3.2 | H139: 130 | I139: 216 | J139: 173 | K139: 242 | L139: 70 | M139: 81 | N139: 48 | O139: 44 | P139: 160 | Q139: 114 | R139: 139 | S139: 70 | T139: 111 | U139: 164 | V139: 32 | W139: 59 | X139: 87 | Y139: 69 | Z139: 37
A140: 30 | B140: AUBE HAUTE MARNE | C140: 21 | D140: CHAUMONT | E140: 410560 | F140: BOURBONNE LES BAINS | G140: 2.0 | H140: 131 | I140: 30 | J140: 60 | K140: 11 | L140: 130 | M140: 85 | N140: 233 | O140: 196 | P140: 119 | Q140: 218 | R140: 210 | S140: 194 | T140: 124 | U140: 130 | V140: 105 | W140: 231 | X140: 236 | Y140: 120 | Z140: 247
A141: 30 | B141: MOSELLE | C141: 42 | D141: MOSELLE EST | E141: 457614 | F141: SARREBOURG | G141: 8.7 | H141: 132 | I141: 160 | J141: 142 | K141: 184 | L141: 117 | M141: 117 | N141: 193 | O141: 143 | P141: 65 | Q141: 67 | R141: 73 | S141: 82 | T141: 163 | U141: 134 | V141: 217 | W141: 122 | X141: 99 | Y141: 97 | Z141: 155
A142: 30 | B142: MOSELLE | C142: 45 | D142: METZ | E142: 557612 | F142: SAINTE MARIE AUX CHENES | G142: 3.9 | H142: 133 | I142: 17 | J142: 14 | K142: 45 | L142: 237 | M142: 246 | N142: 250 | O142: 243 | P142: 40 | Q142: 194 | R142: 222 | S142: 45 | T142: 122 | U142: 114 | V142: 133 | W142: 204 | X142: 210 | Y142: 233 | Z142: 108
A143: 30 | B143: MOSELLE | C143: 44 | D143: MOSELLE NORD | E143: 457158 | F143: YUTZ | G143: 4.6 | H143: 134 | I143: 138 | J143: 102 | K143: 189 | L143: 108 | M143: 76 | N143: 242 | O143: 234 | P143: 79 | Q143: 148 | R143: 125 | S143: 211 | T143: 96 | U143: 78 | V143: 159 | W143: 150 | X143: 103 | Y143: 161 | Z143: 163
A144: 110 | B144: MARNE-ARDENNES | C144: 11 | D144: REIMS | E144: 551365 | F144: DORMANS | G144: 2.6 | H144: 135 | I144: 53 | J144: 33 | K144: 124 | L144: 241 | M144: 241 | N144: 214 | O144: 42 | P144: 206 | Q144: 126 | R144: 150 | S144: 73 | T144: 183 | U144: 201 | V144: 132 | W144: 75 | X144: 57 | Y144: 148 | Z144: 67
A145: 110 | B145: MOSELLE | C145: 44 | D145: MOSELLE NORD | E145: 557347 | F145: GUENANGE | G145: 5.0 | H145: 136 | I145: 243 | J145: 244 | K145: 223 | L145: 103 | M145: 161 | N145: 96 | O145: 163 | P145: 25 | Q145: 61 | R145: 40 | S145: 158 | T145: 142 | U145: 160 | V145: 92 | W145: 23 | X145: 21 | Y145: 159 | Z145: 24
A146: 110 | B146: MEURTHE ET MOSELLE MEUSE | C146: 26 | D146: NANCY | E146: 554296 | F146: ESSEY LES NANCY | G146: 3.9 | H146: 137 | I146: 125 | J146: 137 | K146: 120 | L146: 107 | M146: 77 | N146: 143 | O146: 82 | P146: 185 | Q146: 105 | R146: 71 | S146: 230 | T146: 202 | U146: 195 | V146: 205 | W146: 113 | X146: 74 | Y146: 192 | Z146: 105
A147: 110 | B147: MARNE-ARDENNES | C147: 2 | D147: CHARLEVILLE MEZIERES | E147: 408840 | F147: RETHEL | G147: 5.3 | H147: 138 | I147: 63 | J147: 85 | K147: 33 | L147: 111 | M147: 150 | N147: 152 | O147: 125 | P147: 38 | Q147: 136 | R147: 126 | S147: 162 | T147: 181 | U147: 162 | V147: 229 | W147: 221 | X147: 130 | Y147: 257 | Z147: 213
A148: 110 | B148: MEURTHE ET MOSELLE MEUSE | C148: 27 | D148: PONT A MOUSSON | E148: 454355 | F148: JARNY | G148: 4.7 | H148: 139 | I148: 218 | J148: 241 | K148: 156 | L148: 58 | M148: 38 | N148: 175 | O148: 110 | P148: 181 | Q148: 146 | R148: 136 | S148: 168 | T148: 75 | U148: 86 | V148: 47 | W148: 114 | X148: 41 | Y148: 238 | Z148: 138
A149: 110 | B149: BAS-RHIN | C149: 5101 | D149: SELESTAT | E149: 4109 | F149: MARCKOLSHEIM | G149: 2.7 | H149: 140 | I149: 88 | J149: 85 | K149: 104 | L149: 153 | M149: 111 | N149: 170 | O149: 182 | P149: 166 | Q149: 155 | R149: 167 | S149: 91 | T149: 185 | U149: 210 | V149: 124 | W149: 107 | X149: 129 | Y149: 42 | Z149: 171
A150: 110 | B150: MEURTHE ET MOSELLE MEUSE | C150: 26 | D150: NANCY | E150: 454171 | F150: BLAMONT | G150: 1.5 | H150: 141 | I150: 257 | J150: 263 | K150: 100 | L150: 10 | M150: 19 | N150: 22 | O150: 83 | P150: 23 | Q150: 222 | R150: 195 | S150: 246 | T150: 53 | U150: 67 | V150: 31 | W150: 78 | X150: 62 | Y150: 205 | Z150: 45
A151: 110 | B151: MEURTHE ET MOSELLE MEUSE | C151: 27 | D151: PONT A MOUSSON | E151: 454696 | F151: VILLERS GENERAL LECLERC | G151: 6.1 | H151: 142 | I151: 68 | J151: 47 | K151: 129 | L151: 167 | M151: 155 | N151: 227 | O151: 112 | P151: 117 | Q151: 121 | R151: 119 | S151: 155 | T151: 174 | U151: 166 | V151: 185 | W151: 206 | X151: 185 | Y151: 187 | Z151: 198
A152: 110 | B152: AUBE HAUTE MARNE | C152: 14 | D152: TROYES | E152: 410571 | F152: ROMILLY SUR SEINE | G152: 6.9 | H152: 143 | I152: 83 | J152: 64 | K152: 128 | L152: 106 | M152: 102 | N152: 189 | O152: 91 | P152: 91 | Q152: 197 | R152: 192 | S152: 163 | T152: 189 | U152: 184 | V152: 203 | W152: 132 | X152: 112 | Y152: 128 | Z152: 135
A153: 110 | B153: MARNE-ARDENNES | C153: 11 | D153: REIMS | E153: 551369 | F153: DAMERY | G153: 2.3 | H153: 144 | I153: 208 | J153: 196 | K153: 208 | L153: 216 | M153: 203 | N153: 36 | O153: 27 | P153: 259 | Q153: 182 | R153: 178 | S153: 159 | T153: 45 | U153: 68 | V153: 19 | W153: 46 | X153: 34 | Y153: 79 | Z153: 65
A154: 110 | B154: MEURTHE ET MOSELLE MEUSE | C154: 27 | D154: PONT A MOUSSON | E154: 554321 | F154: FROUARD | G154: 3.0 | H154: 145 | I154: 252 | J154: 254 | K154: 176 | L154: 67 | M154: 116 | N154: 159 | O154: 60 | P154: 16 | Q154: 17 | R154: 6 | S154: 213 | T154: 146 | U154: 170 | V154: 78 | W154: 97 | X154: 53 | Y154: 213 | Z154: 110
A155: 110 | B155: MOSELLE | C155: 45 | D155: METZ | E155: 557437 | F155: METZ SARRE | G155: 3.9 | H155: 146 | I155: 173 | J155: 85 | K155: 246 | L155: 164 | M155: 170 | N155: 53 | O155: 208 | P155: 159 | Q155: 239 | R155: 230 | S155: 190 | T155: 14 | U155: 13 | V155: 23 | W155: 242 | X155: 223 | Y155: 179 | Z155: 246
A156: 110 | B156: AUBE HAUTE MARNE | C156: 14 | D156: TROYES | E156: 510513 | F156: TROYES 1ER MAI | G156: 3.2 | H156: 147 | I156: 184 | J156: 69 | K156: 251 | L156: 149 | M156: 210 | N156: 11 | O156: 100 | P156: 126 | Q156: 171 | R156: 188 | S156: 86 | T156: 158 | U156: 167 | V156: 115 | W156: 30 | X156: 28 | Y156: 116 | Z156: 28
A157: 110 | B157: MOSELLE | C157: 45 | D157: METZ | E157: 457574 | F157: ROMBAS | G157: 3.2 | H157: 148 | I157: 212 | J157: 235 | K157: 155 | L157: 49 | M157: 98 | N157: 111 | O157: 170 | P157: 1 | Q157: 38 | R157: 32 | S157: 83 | T157: 133 | U157: 121 | V157: 145 | W157: 244 | X157: 189 | Y157: 245 | Z157: 236
A158: 110 | B158: HAUT-RHIN | C158: 5130 | D158: COLMAR | E158: 4153 | F158: ROUFFACH | G158: 3.7 | H158: 149 | I158: 193 | J158: 227 | K158: 111 | L158: 218 | M158: 209 | N158: 105 | O158: 232 | P158: 168 | Q158: 173 | R158: 174 | S158: 132 | T158: 22 | U158: 25 | V158: 40 | W158: 160 | X158: 219 | Y158: 73 | Z158: 134
A159: 110 | B159: MOSELLE | C159: 45 | D159: METZ | E159: 557559 | F159: REMILLY | G159: 4.1 | H159: 150 | I159: 157 | J159: 173 | K159: 144 | L159: 210 | M159: 195 | N159: 234 | O159: 210 | P159: 112 | Q159: 68 | R159: 42 | S159: 193 | T159: 132 | U159: 128 | V159: 114 | W159: 139 | X159: 147 | Y159: 75 | Z159: 168
A160: 110 | B160: MOSELLE | C160: 45 | D160: METZ | E160: 557712 | F160: WOIPPY | G160: 5.4 | H160: 151 | I160: 102 | J160: 78 | K160: 149 | L160: 124 | M160: 145 | N160: 61 | O160: 153 | P160: 115 | Q160: 220 | R160: 205 | S160: 217 | T160: 99 | U160: 143 | V160: 44 | W160: 183 | X160: 133 | Y160: 234 | Z160: 156
A161: 110 | B161: BAS-RHIN | C161: 5060 | D161: HAGUENAU | E161: 4085 | F161: INGWILLER | G161: 3.2 | H161: 152 | I161: 103 | J161: 55 | K161: 191 | L161: 96 | M161: 34 | N161: 86 | O161: 263 | P161: 246 | Q161: 192 | R161: 209 | S161: 89 | T161: 170 | U161: 194 | V161: 97 | W161: 164 | X161: 235 | Y161: 12 | Z161: 251
A162: 110 | B162: MOSELLE | C162: 42 | D162: MOSELLE EST | E162: 557523 | F162: PHALSBOURG | G162: 2.2 | H162: 153 | I162: 177 | J162: 192 | K162: 152 | L162: 246 | M162: 224 | N162: 117 | O162: 71 | P162: 256 | Q162: 87 | R162: 76 | S162: 117 | T162: 149 | U162: 123 | V162: 202 | W162: 33 | X162: 109 | Y162: 6 | Z162: 39
A163: 110 | B163: MARNE-ARDENNES | C163: 2 | D163: CHARLEVILLE MEZIERES | E163: 408806 | F163: SEDAN | G163: 9.2 | H163: 154 | I163: 98 | J163: 161 | K163: 27 | L163: 204 | M163: 216 | N163: 203 | O163: 73 | P163: 121 | Q163: 95 | R163: 61 | S163: 233 | T163: 210 | U163: 182 | V163: 248 | W163: 120 | X163: 70 | Y163: 217 | Z163: 98
A164: 110 | B164: BAS-RHIN | C164: 5060 | D164: HAGUENAU | E164: 4057 | F164: BISCHWILLER | G164: 6.5 | H164: 155 | I164: 188 | J164: 169 | K164: 201 | L164: 72 | M164: 56 | N164: 181 | O164: 222 | P164: 69 | Q164: 189 | R164: 185 | S164: 156 | T164: 69 | U164: 57 | V164: 120 | W164: 200 | X164: 212 | Y164: 70 | Z164: 242
A165: 110 | B165: MEURTHE ET MOSELLE MEUSE | C165: 27 | D165: PONT A MOUSSON | E165: 554257 | F165: DIEULOUARD | G165: 3.4 | H165: 156 | I165: 26 | J165: 33 | K165: 34 | L165: 160 | M165: 204 | N165: 245 | O165: 149 | P165: 6 | Q165: 229 | R165: 211 | S165: 234 | T165: 224 | U165: 220 | V165: 225 | W165: 153 | X165: 101 | Y165: 110 | Z165: 209
A166: 110 | B166: MARNE-ARDENNES | C166: 11 | D166: REIMS | E166: 551341 | F166: REIMS JEAN JAURES | G166: 4.3 | H166: 157 | I166: 209 | J166: 227 | K166: 171 | L166: 62 | M166: 124 | N166: 130 | O166: 39 | P166: 14 | Q166: 144 | R166: 194 | S166: 35 | T166: 100 | U166: 139 | V166: 57 | W166: 145 | X166: 115 | Y166: 235 | Z166: 61
A167: 110 | B167: AUBE HAUTE MARNE | C167: 14 | D167: TROYES | E167: 410550 | F167: BAR SUR AUBE | G167: 5.9 | H167: 158 | I167: 65 | J167: 55 | K167: 95 | L167: 175 | M167: 180 | N167: 178 | O167: 235 | P167: 72 | Q167: 251 | R167: 243 | S167: 242 | T167: 101 | U167: 113 | V167: 87 | W167: 155 | X167: 239 | Y167: 46 | Z167: 141
A168: 110 | B168: MOSELLE | C168: 44 | D168: MOSELLE NORD | E168: 557622 | F168: SIERCK LES BAINS | G168: 1.3 | H168: 159 | I168: 181 | J168: 209 | K168: 127 | L168: 135 | M168: 232 | N168: 15 | O168: 123 | P168: 26 | Q168: 56 | R168: 31 | S168: 182 | T168: 239 | U168: 250 | V168: 135 | W168: 61 | X168: 45 | Y168: 226 | Z168: 26
A169: 110 | B169: BAS-RHIN | C169: 5006 | D169: STRASBOURG | E169: 4026 | F169: STRASBOURG DANUBE | G169: 4.5 | H169: 160 | I169: 169 | J169: 33 | K169: 258 | L169: 233 | M169: 168 | N169: 207 | O169: 255 | P169: 243 | Q169: 248 | R169: 259 | S169: 37 | T169: 6 | U169: 5 | V169: 52 | W169: 218 | X169: 226 | Y169: 100 | Z169: 243
A170: 110 | B170: MOSELLE | C170: 45 | D170: METZ | E170: 557434 | F170: MARLY | G170: 3.7 | H170: 161 | I170: 71 | J170: 78 | K170: 68 | L170: 123 | M170: 129 | N170: 144 | O170: 148 | P170: 81 | Q170: 122 | R170: 132 | S170: 111 | T170: 245 | U170: 245 | V170: 234 | W170: 168 | X170: 146 | Y170: 182 | Z170: 162
A171: 110 | B171: MEURTHE ET MOSELLE MEUSE | C171: 27 | D171: PONT A MOUSSON | E171: 554496 | F171: NANCY TROIS MAISONS | G171: 2.6 | H171: 162 | I171: 258 | J171: 256 | K171: 229 | L171: 40 | M171: 50 | N171: 180 | O171: 169 | P171: 13 | Q171: 39 | R171: 50 | S171: 53 | T171: 66 | U171: 93 | V171: 26 | W171: 158 | X171: 216 | Y171: 20 | Z171: 238
A172: 110 | B172: BAS-RHIN | C172: 5060 | D172: HAGUENAU | E172: 4031 | F172: TRUCHTERSHEIM | G172: 2.9 | H172: 163 | I172: 162 | J172: 203 | K172: 91 | L172: 65 | M172: 18 | N172: 249 | O172: 233 | P172: 211 | Q172: 19 | R172: 14 | S172: 77 | T172: 250 | U172: 229 | V172: 263 | W172: 233 | X172: 205 | Y172: 239 | Z172: 194
A173: 110 | B173: MOSELLE | C173: 42 | D173: MOSELLE EST | E173: 557503 | F173: NEUNKIRCH | G173: 3.8 | H173: 164 | I173: 34 | J173: 60 | K173: 23 | L173: 215 | M173: 213 | N173: 219 | O173: 247 | P173: 68 | Q173: 107 | R173: 62 | S173: 258 | T173: 231 | U173: 223 | V173: 237 | W173: 205 | X173: 244 | Y173: 77 | Z173: 215
A174: 110 | B174: BAS-RHIN | C174: 5101 | D174: SELESTAT | E174: 4007 | F174: ILLKIRCH CENTRE | G174: 7.3 | H174: 165 | I174: 201 | J174: 217 | K174: 164 | L174: 53 | M174: 23 | N174: 194 | O174: 124 | P174: 213 | Q174: 167 | R174: 179 | S174: 97 | T174: 89 | U174: 76 | V174: 149 | W174: 196 | X174: 171 | Y174: 168 | Z174: 202
A175: 110 | B175: MOSELLE | C175: 45 | D175: METZ | E175: 557178 | F175: BOULAY | G175: 3.9 | H175: 166 | I175: 35 | J175: 25 | K175: 101 | L175: 187 | M175: 201 | N175: 139 | O175: 174 | P175: 105 | Q175: 198 | R175: 201 | S175: 142 | T175: 199 | U175: 213 | V175: 151 | W175: 191 | X175: 208 | Y175: 81 | Z175: 219
A176: 110 | B176: MOSELLE | C176: 42 | D176: MOSELLE EST | E176: 457258 | F176: DIEUZE | G176: 3.2 | H176: 167 | I176: 118 | J176: 152 | K176: 78 | L176: 128 | M176: 175 | N176: 217 | O176: 194 | P176: 4 | Q176: 178 | R176: 162 | S176: 199 | T176: 119 | U176: 98 | V176: 163 | W176: 217 | X176: 247 | Y176: 150 | Z176: 196
A177: 110 | B177: MOSELLE | C177: 42 | D177: MOSELLE EST | E177: 557668 | F177: VALMONT | G177: 4.5 | H177: 168 | I177: 19 | J177: 25 | K177: 26 | L177: 240 | M177: 236 | N177: 258 | O177: 248 | P177: 82 | Q177: 154 | R177: 154 | S177: 138 | T177: 175 | U177: 163 | V177: 204 | W177: 246 | X177: 204 | Y177: 230 | Z177: 250
A178: 110 | B178: AUBE HAUTE MARNE | C178: 14 | D178: TROYES | E178: 510530 | F178: ARCIS SUR AUBE | G178: 3.9 | H178: 169 | I178: 33 | J178: 1 | K178: 233 | L178: 102 | M178: 109 | N178: 224 | O178: 130 | P178: 37 | Q178: 252 | R178: 255 | S178: 110 | T178: 178 | U178: 174 | V178: 186 | W178: 207 | X178: 232 | Y178: 170 | Z178: 148
A179: 110 | B179: BAS-RHIN | C179: 5101 | D179: SELESTAT | E179: 4116 | F179: MOLSHEIM | G179: 5.1 | H179: 170 | I179: 176 | J179: 161 | K179: 188 | L179: 195 | M179: 144 | N179: 216 | O179: 188 | P179: 190 | Q179: 13 | R179: 8 | S179: 116 | T179: 207 | U179: 198 | V179: 212 | W179: 198 | X179: 202 | Y179: 185 | Z179: 161
A180: 110 | B180: MEURTHE ET MOSELLE MEUSE | C180: 31 | D180: VERDUN | E180: 455566 | F180: REVIGNY SUR ORNAIN | G180: 3.4 | H180: 171 | I180: 100 | J180: 137 | K180: 58 | L180: 105 | M180: 154 | N180: 164 | O180: 181 | P180: 12 | Q180: 216 | R180: 213 | S180: 185 | T180: 165 | U180: 168 | V180: 130 | W180: 184 | X180: 224 | Y180: 91 | Z180: 180
A181: 110 | B181: MEURTHE ET MOSELLE MEUSE | C181: 27 | D181: PONT A MOUSSON | E181: 554184 | F181: BRIEY | G181: 4.6 | H181: 172 | I181: 119 | J181: 142 | K181: 96 | L181: 203 | M181: 240 | N181: 200 | O181: 178 | P181: 19 | Q181: 83 | R181: 60 | S181: 175 | T181: 227 | U181: 227 | V181: 226 | W181: 109 | X181: 136 | Y181: 50 | Z181: 145
A182: 110 | B182: BAS-RHIN | C182: 5060 | D182: HAGUENAU | E182: 4071 | F182: WISSEMBOURG | G182: 8.4 | H182: 173 | I182: 127 | J182: 196 | K182: 17 | L182: 176 | M182: 178 | N182: 177 | O182: 228 | P182: 83 | Q182: 77 | R182: 66 | S182: 125 | T182: 172 | U182: 173 | V182: 164 | W182: 223 | X182: 220 | Y182: 196 | Z182: 205
A183: 110 | B183: MOSELLE | C183: 45 | D183: METZ | E183: 557105 | F183: ARS SUR MOSELLE | G183: 3.6 | H183: 174 | I183: 132 | J183: 113 | K183: 163 | L183: 232 | M183: 192 | N183: 173 | O183: 89 | P183: 247 | Q183: 164 | R183: 151 | S183: 179 | T183: 192 | U183: 191 | V183: 191 | W183: 36 | X183: 20 | Y183: 155 | Z183: 58
A184: 110 | B184: HAUT-RHIN | C184: 5169 | D184: MULHOUSE | E184: 4195 | F184: CERNAY | G184: 2.4 | H184: 175 | I184: 187 | J184: 196 | K184: 160 | L184: 212 | M184: 248 | N184: 58 | O184: 84 | P184: 104 | Q184: 26 | R184: 18 | S184: 123 | T184: 241 | U184: 252 | V184: 113 | W184: 64 | X184: 65 | Y184: 119 | Z184: 44
A185: 110 | B185: MOSELLE | C185: 42 | D185: MOSELLE EST | E185: 457617 | F185: SARREGUEMINES | G185: 8.2 | H185: 176 | I185: 111 | J185: 113 | K185: 132 | L185: 158 | M185: 121 | N185: 225 | O185: 167 | P185: 147 | Q185: 169 | R185: 199 | S185: 66 | T185: 152 | U185: 144 | V185: 176 | W185: 190 | X185: 124 | Y185: 219 | Z185: 201
A186: 110 | B186: AUBE HAUTE MARNE | C186: 21 | D186: CHAUMONT | E186: 410541 | F186: LANGRES | G186: 6.7 | H186: 177 | I186: 190 | J186: 227 | K186: 107 | L186: 147 | M186: 112 | N186: 179 | O186: 119 | P186: 171 | Q186: 174 | R186: 186 | S186: 104 | T186: 88 | U186: 85 | V186: 118 | W186: 127 | X186: 180 | Y186: 96 | Z186: 72
A187: 110 | B187: HAUT-RHIN | C187: 5130 | D187: COLMAR | E187: 4157 | F187: NEUF BRISACH | G187: 3.6 | H187: 178 | I187: 107 | J187: 69 | K187: 173 | L187: 222 | M187: 229 | N187: 161 | O187: 237 | P187: 122 | Q187: 180 | R187: 166 | S187: 192 | T187: 86 | U187: 70 | V187: 167 | W187: 192 | X187: 191 | Y187: 113 | Z187: 210
A188: 110 | B188: VOSGES | C188: 55 | D188: SAINT DIE | E188: 588587 | F188: SAINT DIE CATHEDRALE | G188: 3.7 | H188: 179 | I188: 75 | J188: 131 | K188: 22 | L188: 197 | M188: 191 | N188: 218 | O188: 212 | P188: 96 | Q188: 118 | R188: 105 | S188: 188 | T188: 223 | U188: 235 | V188: 179 | W188: 170 | X188: 153 | Y188: 176 | Z188: 154
A189: 110 | B189: AUBE HAUTE MARNE | C189: 14 | D189: TROYES | E189: 410512 | F189: TROYES ZOLA | G189: 4.5 | H189: 180 | I189: 189 | J189: 131 | K189: 237 | L189: 139 | M189: 171 | N189: 122 | O189: 118 | P189: 74 | Q189: 59 | R189: 44 | S189: 135 | T189: 201 | U189: 207 | V189: 170 | W189: 166 | X189: 127 | Y189: 190 | Z189: 167
A190: 110 | B190: MOSELLE | C190: 45 | D190: METZ | E190: 557445 | F190: METZ SAINT LIVIER | G190: 2.9 | H190: 181 | I190: 140 | J190: 173 | K190: 97 | L190: 142 | M190: 130 | N190: 238 | O190: 193 | P190: 51 | Q190: 109 | R190: 85 | S190: 204 | T190: 200 | U190: 179 | V190: 227 | W190: 180 | X190: 134 | Y190: 250 | Z190: 123
A191: 110 | B191: MARNE-ARDENNES | C191: 6 | D191: CHALONS EN CHAMPAGNE | E191: 451166 | F191: VITRY LE FRANCOIS | G191: 6.8 | H191: 182 | I191: 122 | J191: 173 | K191: 53 | L191: 202 | M191: 208 | N191: 186 | O191: 34 | P191: 167 | Q191: 184 | R191: 172 | S191: 178 | T191: 171 | U191: 153 | V191: 208 | W191: 118 | X191: 68 | Y191: 229 | Z191: 83
A192: 160 | B192: HAUT-RHIN | C192: 5169 | D192: MULHOUSE | E192: 4181 | F192: WITTELSHEIM | G192: 3.3 | H192: 183 | I192: 168 | J192: 185 | K192: 151 | L192: 224 | M192: 222 | N192: 82 | O192: 132 | P192: 201 | Q192: 232 | R192: 223 | S192: 170 | T192: 123 | U192: 159 | V192: 53 | W192: 37 | X192: 96 | Y192: 17 | Z192: 32
A193: 160 | B193: MARNE-ARDENNES | C193: 11 | D193: REIMS | E193: 451308 | F193: REIMS SAINT THOMAS | G193: 7.3 | H193: 184 | I193: 213 | J193: 189 | K193: 232 | L193: 165 | M193: 128 | N193: 116 | O193: 68 | P193: 226 | Q193: 204 | R193: 189 | S193: 205 | T193: 166 | U193: 177 | V193: 104 | W193: 25 | X193: 14 | Y193: 126 | Z193: 54
A194: 160 | B194: AUBE HAUTE MARNE | C194: 21 | D194: CHAUMONT | E194: 410566 | F194: CHAUMONT HOTEL DE VILLE | G194: 7.7 | H194: 185 | I194: 161 | J194: 192 | K194: 116 | L194: 141 | M194: 158 | N194: 78 | O194: 111 | P194: 136 | Q194: 166 | R194: 173 | S194: 113 | T194: 184 | U194: 199 | V194: 146 | W194: 106 | X194: 163 | Y194: 41 | Z194: 124
A195: 160 | B195: MEURTHE ET MOSELLE MEUSE | C195: 26 | D195: NANCY | E195: 454671 | F195: VANDOEUVRE LES NANCY | G195: 4.6 | H195: 186 | I195: 210 | J195: 223 | K195: 180 | L195: 93 | M195: 113 | N195: 42 | O195: 33 | P195: 184 | Q195: 244 | R195: 228 | S195: 220 | T195: 173 | U195: 180 | V195: 141 | W195: 26 | X195: 17 | Y195: 164 | Z195: 30
A196: 160 | B196: VOSGES | C196: 55 | D196: SAINT DIE | E196: 588461 | F196: MOYENMOUTIER | G196: 2.5 | H196: 187 | I196: 231 | J196: 223 | K196: 225 | L196: 83 | M196: 71 | N196: 128 | O196: 245 | P196: 70 | Q196: 46 | R196: 17 | S196: 257 | T196: 217 | U196: 202 | V196: 222 | W196: 138 | X196: 215 | Y196: 26 | Z196: 181
A197: 160 | B197: HAUT-RHIN | C197: 5130 | D197: COLMAR | E197: 4141 | F197: HORBOURG WIHR | G197: 5.8 | H197: 188 | I197: 172 | J197: 137 | K197: 210 | L197: 247 | M197: 228 | N197: 163 | O197: 166 | P197: 244 | Q197: 64 | R197: 41 | S197: 177 | T197: 151 | U197: 149 | V197: 152 | W197: 121 | X197: 106 | Y197: 146 | Z197: 101
A198: 160 | B198: MEURTHE ET MOSELLE MEUSE | C198: 27 | D198: PONT A MOUSSON | E198: 554196 | F198: CHAMPIGNEULLES | G198: 3.6 | H198: 189 | I198: 199 | J198: 217 | K198: 161 | L198: 51 | M198: 33 | N198: 223 | O198: 136 | P198: 135 | Q198: 225 | R198: 231 | S198: 118 | T198: 107 | U198: 112 | V198: 108 | W198: 197 | X198: 157 | Y198: 165 | Z198: 217
A199: 160 | B199: MARNE-ARDENNES | C199: 2 | D199: CHARLEVILLE MEZIERES | E199: 508817 | F199: CHARLEVILLE MOHON | G199: 3.4 | H199: 190 | I199: 82 | J199: 102 | K199: 59 | L199: 178 | M199: 253 | N199: 125 | O199: 65 | P199: 7 | Q199: 217 | R199: 182 | S199: 254 | T199: 213 | U199: 218 | V199: 183 | W199: 156 | X199: 119 | Y199: 218 | Z199: 118
A200: 160 | B200: BAS-RHIN | C200: 5101 | D200: SELESTAT | E200: 4015 | F200: LINGOLSHEIM | G200: 4.4 | H200: 191 | I200: 165 | J200: 173 | K200: 159 | L200: 219 | M200: 197 | N200: 230 | O200: 236 | P200: 141 | Q200: 94 | R200: 83 | S200: 139 | T200: 94 | U200: 105 | V200: 79 | W200: 241 | X200: 249 | Y200: 147 | Z200: 245
A201: 160 | B201: VOSGES | C201: 55 | D201: SAINT DIE | E201: 588551 | F201: RAMBERVILLERS | G201: 3.5 | H201: 192 | I201: 58 | J201: 95 | K201: 12 | L201: 245 | M201: 205 | N201: 202 | O201: 99 | P201: 249 | Q201: 236 | R201: 214 | S201: 252 | T201: 179 | U201: 181 | V201: 177 | W201: 123 | X201: 111 | Y201: 107 | Z201: 127
A202: 160 | B202: MARNE-ARDENNES | C202: 11 | D202: REIMS | E202: 551306 | F202: REIMS SAINT MARCEAUX | G202: 4.5 | H202: 193 | I202: 226 | J202: 251 | K202: 60 | L202: 92 | M202: 80 | N202: 140 | O202: 21 | P202: 193 | Q202: 258 | R202: 260 | S202: 134 | T202: 42 | U202: 38 | V202: 45 | W202: 91 | X202: 44 | Y202: 197 | Z202: 119
A203: 160 | B203: BAS-RHIN | C203: 5006 | D203: STRASBOURG | E203: 4029 | F203: SCHILTIGHEIM KLEBER | G203: 2.9 | H203: 194 | I203: 239 | J203: 209 | K203: 247 | L203: 155 | M203: 118 | N203: 83 | O203: 172 | P203: 209 | Q203: 90 | R203: 88 | S203: 107 | T203: 36 | U203: 48 | V203: 24 | W203: 251 | X203: 201 | Y203: 263 | Z203: 231
A204: 160 | B204: MOSELLE | C204: 45 | D204: METZ | E204: 457446 | F204: METZ SAINT LOUIS | G204: 6.5 | H204: 195 | I204: 174 | J204: 142 | K204: 202 | L204: 185 | M204: 167 | N204: 221 | O204: 75 | P204: 172 | Q204: 111 | R204: 120 | S204: 90 | T204: 205 | U204: 217 | V204: 175 | W204: 115 | X204: 69 | Y204: 188 | Z204: 116
... 70 more rows

Sheet AG_FICHE
A1: Accueil
A2: BAROMETRE GRAND PUBLIC
A4: UNITE: | B4: Agence | E4: ETP perf : | F4: =VLOOKUP(A5,'RECAP AG'!$G$6:$DG$271,3,FALSE) -> 7.90
A5: =VLOOKUP(B5,LISTES!$C$6:$D$271,2,FALSE) -> 4189 | B5: ALTKIRCH
C6: Coefficient du critère | E6: Résultats | I6: Ecart au 1ier | K6: =IF(OR(A5=4017,A5=4022),"Rang estimé","Rang") -> Rang
E7: du 1ier | G7: de l'Agence | I7: Du mois
A9: RANG GRAND PUBLIC | K9: =VLOOKUP($A$5,'RECAP AG'!$G$6:$DG$271,104,FALSE) -> 258
A11: SATISFACTION CLIENTS | C11: 20% | K11: =VLOOKUP($A$5,'RECAP AG'!$G$6:$DG$271,13,FALSE) -> 224
B12: NPS à froid (SAE) | C12: 10% | E12: =+'RECAP AG'!K4 -> 46 | G12: =VLOOKUP($A$5,'RECAP AG'!$G$6:$DG$271,5,FALSE) -> 8.0 | I12: =VLOOKUP($A$5,'RECAP AG'!$G$6:$DG$271,6,FALSE) -> 72% | K12: =VLOOKUP($A$5,'RECAP AG'!$G$6:$DG$271,7,FALSE) -> 189
B13: NPS à chaud (QHD) | C13: 10% | E13: =+'RECAP AG'!M4 -> 10% | G13: =VLOOKUP($A$5,'RECAP AG'!$G$6:$DG$271,8,FALSE) -> 34% | I13: =VLOOKUP($A$5,'RECAP AG'!$G$6:$DG$271,9,FALSE) -> 62% | K13: =VLOOKUP($A$5,'RECAP AG'!$G$6:$DG$271,10,FALSE) -> 245
A15: BANCARISATION | C15: 20% | K15: =VLOOKUP($A$5,'RECAP AG'!$G$6:$DG$271,36,FALSE) -> 262
B16: Ventes Nettes produits pondérés | C16: 10% | E16: ='RECAP AG'!X4 -> 134.7 | G16: =VLOOKUP($A$5,'RECAP AG'!$G$6:$DG$271,19,FALSE) -> 5.5 | I16: =VLOOKUP($A$5,'RECAP AG'!$G$6:$DG$271,20,FALSE) -> 96% | K16: =VLOOKUP($A$5,'RECAP AG'!$G$6:$DG$271,21,FALSE) -> 260
B17: Ventes sur client non détenteur de l’univers | C17: 4% | E17: ='RECAP AG'!AB4 -> 74.6 | G17: =VLOOKUP($A$5,'RECAP AG'!$G$6:$DG$271,23,FALSE) -> 22.4 | I17: =VLOOKUP($A$5,'RECAP AG'!$G$6:$DG$271,24,FALSE) -> 70% | K17: =VLOOKUP($A$5,'RECAP AG'!$G$6:$DG$271,25,FALSE) -> 252
B18: Mobilité Macron | C18: 3% | E18: ='RECAP AG'!AF4 -> 36.7 | G18: =VLOOKUP($A$5,'RECAP AG'!$G$6:$DG$271,27,FALSE) -> 2.9 | I18: =VLOOKUP($A$5,'RECAP AG'!$G$6:$DG$271,28,FALSE) -> 92% | K18: =VLOOKUP($A$5,'RECAP AG'!$G$6:$DG$271,29,FALSE) -> 215
B19: Remises commerciales | C19: 3% | E19: ='RECAP AG'!AJ4 -> -0.5 | G19: =VLOOKUP($A$5,'RECAP AG'!$G$6:$DG$271,31,FALSE) -> -2.9 | I19: =VLOOKUP($A$5,'RECAP AG'!$G$6:$DG$271,32,FALSE) -> 98% | K19: =VLOOKUP($A$5,'RECAP AG'!$G$6:$DG$271,33,FALSE) -> 240
A21: EPARGNE | C21: 20% | K21: =VLOOKUP($A$5,'RECAP AG'!$G$6:$DG$271,51,FALSE) -> 215
B22: Excédent Epargne y/c DAV pondéré | C22: 14% | E22: ='RECAP AG'!AU4 -> 1968.7 | G22: =VLOOKUP($A$5,'RECAP AG'!$G$6:$DG$271,42,FALSE) -> 248.7 | I22: =VLOOKUP($A$5,'RECAP AG'!$G$6:$DG$271,43,FALSE) -> 73% | K22: =VLOOKUP($A$5,'RECAP AG'!$G$6:$DG$271,44,FALSE) -> 175
B23: Ventes sur client non détenteur de l’univers | C23: 6% | E23: ='RECAP AG'!AY4 -> 59.6 | G23: =VLOOKUP($A$5,'RECAP AG'!$G$6:$DG$271,46,FALSE) -> 7.6 | I23: =VLOOKUP($A$5,'RECAP AG'!$G$6:$DG$271,47,FALSE) -> 87% | K23: =VLOOKUP($A$5,'RECAP AG'!$G$6:$DG$271,48,FALSE) -> 261
A25: IARD PREVOYANCE | C25: 20% | K25: =VLOOKUP($A$5,'RECAP AG'!$G$6:$DG$271,85,FALSE) -> 258
B26: Ventes Nettes produits pondérés | C26: 14% | E26: ='RECAP AG'!CC4 -> 510.1 | G26: =VLOOKUP($A$5,'RECAP AG'!$G$6:$DG$271,76,FALSE) -> -2.8 | I26: =VLOOKUP($A$5,'RECAP AG'!$G$6:$DG$271,77,FALSE) -> 101% | K26: =VLOOKUP($A$5,'RECAP AG'!$G$6:$DG$271,78,FALSE) -> 260
B27: Ventes sur client non détenteur de l’univers | C27: 6% | E27: ='RECAP AG'!CG4 -> 63.5 | G27: =VLOOKUP($A$5,'RECAP AG'!$G$6:$DG$271,80,FALSE) -> 21.1 | I27: =VLOOKUP($A$5,'RECAP AG'!$G$6:$DG$271,81,FALSE) -> 67% | K27: =VLOOKUP($A$5,'RECAP AG'!$G$6:$DG$271,82,FALSE) -> 233
A29: CREDITS | C29: 20% | K29: =VLOOKUP($A$5,'RECAP AG'!$G$6:$DG$271,70,FALSE) -> 210
B30: Engagements et ventes accessoires pondérés Immo | C30: 8% | E30: ='RECAP AG'!BJ4 -> 422.2 | G30: =VLOOKUP($A$5,'RECAP AG'!$G$6:$DG$271,57,FALSE) -> 50.6 | I30: =VLOOKUP($A$5,'RECAP AG'!$G$6:$DG$271,58,FALSE) -> 88% | K30: =VLOOKUP($A$5,'RECAP AG'!$G$6:$DG$271,59,FALSE) -> 222
B31: Engagements et ventes accessoires pondérés Conso | C31: 6% | E31: ='RECAP AG'!BN4 -> 109.7 | G31: =VLOOKUP($A$5,'RECAP AG'!$G$6:$DG$271,61,FALSE) -> 54.2 | I31: =VLOOKUP($A$5,'RECAP AG'!$G$6:$DG$271,62,FALSE) -> 51% | K31: =VLOOKUP($A$5,'RECAP AG'!$G$6:$DG$271,63,FALSE) -> 87
B32: Ventes sur client non détenteur de l’univers | C32: 6% | E32: ='RECAP AG'!BR4 -> 34.3 | G32: =VLOOKUP($A$5,'RECAP AG'!$G$6:$DG$271,65,FALSE) -> 8.7 | I32: =VLOOKUP($A$5,'RECAP AG'!$G$6:$DG$271,66,FALSE) -> 75% | K32: =VLOOKUP($A$5,'RECAP AG'!$G$6:$DG$271,67,FALSE) -> 234

Sheet AG_TOTAL
B1: Accueil | H1: BAROMETRE BDD - AGENCES
H2: TOTAL GENERAL
H3: =ACCUEIL!F7 -> 2021-08-29
H7: TOTAL GENERAL | K7: Total Satisfaction Clients | N7: Total Bancarisation | Q7: Total Epargne | T7: Total IARD Prévoyance | W7: Total Crédits
I8: coef | J8: 100% | L8: coef | M8: =AG_SATISFACTION!P8 -> 20% | O8: coef | P8: =AG_BANCA!Z8 -> 20% | R8: coef | S8: =AG_EPARGNE!R8 -> 20% | U8: coef | V8: =AG_IARD!R8 -> 20% | X8: coef | Y8: =AG_CREDIT!V8 -> 20%
B9: Direction | C9: eds | D9: Territoire | E9: eds | F9: Agence | G9: ="ETP perf "&DATEMAJ!$C$28 -> ETP perf 30-juin | H9: Moyenne ecart au 1er | I9: % Ecart au 1er | J9: Rang CEGEE | K9: Moyenne ecart au 1er | L9: % Ecart au 1er | M9: Rang CEGEE | N9: Moyenne ecart au 1er | O9: % Ecart au 1er | P9: Rang CEGEE | Q9: Moyenne ecart au 1er | R9: % Ecart au 1er | S9: Rang CEGEE | T9: Moyenne ecart au 1er | U9: % Ecart au 1er | V9: Rang CEGEE | W9: Moyenne ecart au 1er | X9: % Ecart au 1er | Y9: Rang CEGEE
A10: 50 | B10: MEURTHE ET MOSELLE MEUSE | C10: 26 | D10: NANCY | E10: 454481 | F10: NANCY PLACE DOMBASLE | G10: 11.6 | H10: 18% | I10: 0% | J10: 1 | K10: 46% | L10: 44% | M10: 131 | N10: 17% | O10: 0% | P10: 1 | Q10: 48% | R10: 27% | S10: 16 | T10: 22% | U10: 14% | V10: 5 | W10: 20% | X10: 6% | Y10: 3
A11: 50 | B11: MEURTHE ET MOSELLE MEUSE | C11: 26 | D11: NANCY | E11: 554356 | F11: JARVILLE LA MALGRANGE | G11: 3.5 | H11: 22% | I11: 3% | J11: 2 | K11: 29% | L11: 27% | M11: 37 | N11: 25% | O11: 8% | P11: 3 | Q11: 57% | R11: 37% | S11: 53 | T11: 29% | U11: 21% | V11: 10 | W11: 29% | X11: 15% | Y11: 5
A12: 50 | B12: MEURTHE ET MOSELLE MEUSE | C12: 27 | D12: PONT A MOUSSON | E12: 554531 | F12: POMPEY | G12: 2.8 | H12: 22% | I12: 3% | J12: 3 | K12: 39% | L12: 37% | M12: 91 | N12: 20% | O12: 3% | P12: 2 | Q12: 36% | R12: 15% | S12: 6 | T12: 38% | U12: 30% | V12: 19 | W12: 37% | X12: 23% | Y12: 10
A13: 50 | B13: MARNE-ARDENNES | C13: 2 | D13: CHARLEVILLE MEZIERES | E13: 408822 | F13: CHARLEVILLE MEZIERES | G13: 3.7 | H13: 26% | I13: 7% | J13: 4 | K13: 43% | L13: 41% | M13: 109 | N13: 47% | O13: 30% | P13: 27 | Q13: 32% | R13: 11% | S13: 4 | T13: 28% | U13: 20% | V13: 7 | W13: 40% | X13: 26% | Y13: 14
A14: 50 | B14: MOSELLE | C14: 42 | D14: MOSELLE EST | E14: 457163 | F14: BEHREN LES FORBACH | G14: 2.4 | H14: 26% | I14: 8% | J14: 5 | K14: 10% | L14: 8% | M14: 3 | N14: 41% | O14: 24% | P14: 14 | Q14: 64% | R14: 43% | S14: 97 | T14: 50% | U14: 42% | V14: 51 | W14: 27% | X14: 13% | Y14: 4
A15: 50 | B15: MOSELLE | C15: 44 | D15: MOSELLE NORD | E15: 557508 | F15: NILVANGE | G15: 2.6 | H15: 27% | I15: 8% | J15: 6 | K15: 38% | L15: 36% | M15: 87 | N15: 37% | O15: 20% | P15: 8 | Q15: 50% | R15: 29% | S15: 25 | T15: 22% | U15: 14% | V15: 4 | W15: 49% | X15: 35% | Y15: 24
A16: 50 | B16: MARNE-ARDENNES | C16: 6 | D16: CHALONS EN CHAMPAGNE | E16: 451115 | F16: MOURMELON LE GRAND | G16: 2.9 | H16: 28% | I16: 9% | J16: 7 | K16: 31% | L16: 29% | M16: 50 | N16: 38% | O16: 21% | P16: 9 | Q16: 48% | R16: 27% | S16: 20 | T16: 45% | U16: 37% | V16: 28 | W16: 38% | X16: 24% | Y16: 11
A17: 50 | B17: MOSELLE | C17: 44 | D17: MOSELLE NORD | E17: 557113 | F17: AUDUN LE TICHE | G17: 2.0 | H17: 29% | I17: 11% | J17: 8 | K17: 32% | L17: 30% | M17: 59 | N17: 48% | O17: 31% | P17: 31 | Q17: 60% | R17: 40% | S17: 79 | T17: 47% | U17: 39% | V17: 34 | W17: 19% | X17: 5% | Y17: 2
A18: 50 | B18: BAS-RHIN | C18: 5101 | D18: SELESTAT | E18: 4113 | F18: BARR | G18: 2.9 | H18: 30% | I18: 11% | J18: 9 | K18: 32% | L18: 30% | M18: 56 | N18: 38% | O18: 21% | P18: 11 | Q18: 33% | R18: 13% | S18: 5 | T18: 46% | U18: 38% | V18: 32 | W18: 61% | X18: 47% | Y18: 90
A19: 50 | B19: MARNE-ARDENNES | C19: 2 | D19: CHARLEVILLE MEZIERES | E19: 508820 | F19: VOUZIERS | G19: 2.9 | H19: 31% | I19: 13% | J19: 10 | K19: 35% | L19: 33% | M19: 66 | N19: 57% | O19: 40% | P19: 77 | Q19: 67% | R19: 47% | S19: 124 | T19: 8% | U19: 0% | V19: 1 | W19: 50% | X19: 36% | Y19: 31
A20: 50 | B20: MARNE-ARDENNES | C20: 11 | D20: REIMS | E20: 551349 | F20: REIMS SAINT REMI | G20: 3.0 | H20: 32% | I20: 13% | J20: 11 | K20: 47% | L20: 45% | M20: 137 | N20: 49% | O20: 32% | P20: 33 | Q20: 49% | R20: 28% | S20: 22 | T20: 29% | U20: 21% | V20: 9 | W20: 46% | X20: 32% | Y20: 19
A21: 50 | B21: VOSGES | C21: 57 | D21: EPINAL | E21: 488288 | F21: EPINAL LEOPOLD BOURG | G21: 2.0 | H21: 32% | I21: 14% | J21: 12 | K21: 33% | L21: 31% | M21: 61 | N21: 46% | O21: 29% | P21: 25 | Q21: 49% | R21: 28% | S21: 21 | T21: 60% | U21: 51% | V21: 91 | W21: 35% | X21: 21% | Y21: 6
A22: 50 | B22: MARNE-ARDENNES | C22: 11 | D22: REIMS | E22: 451336 | F22: TINQUEUX | G22: 5.7 | H22: 32% | I22: 14% | J22: 13 | K22: 49% | L22: 47% | M22: 144 | N22: 55% | O22: 38% | P22: 56 | Q22: 21% | R22: 0% | S22: 1 | T22: 48% | U22: 40% | V22: 39 | W22: 50% | X22: 36% | Y22: 32
A23: 50 | B23: MARNE-ARDENNES | C23: 6 | D23: CHALONS EN CHAMPAGNE | E23: 551330 | F23: MONTMIRAIL | G23: 2.9 | H23: 33% | I23: 15% | J23: 14 | K23: 19% | L23: 17% | M23: 15 | N23: 57% | O23: 40% | P23: 71 | Q23: 47% | R23: 27% | S23: 15 | T23: 49% | U23: 41% | V23: 46 | W23: 55% | X23: 41% | Y23: 53
A24: 50 | B24: MEURTHE ET MOSELLE MEUSE | C24: 27 | D24: PONT A MOUSSON | E24: 454651 | F24: TOUL | G24: 10.4 | H24: 34% | I24: 16% | J24: 15 | K24: 68% | L24: 66% | M24: 228 | N24: 42% | O24: 25% | P24: 18 | Q24: 58% | R24: 37% | S24: 54 | T24: 52% | U24: 44% | V24: 56 | W24: 14% | X24: 0% | Y24: 1
A25: 50 | B25: MEURTHE ET MOSELLE MEUSE | C25: 31 | D25: VERDUN | E25: 554413 | F25: LONGWY BAS | G25: 3.6 | H25: 35% | I25: 16% | J25: 16 | K25: 30% | L25: 28% | M25: 42 | N25: 46% | O25: 29% | P25: 26 | Q25: 45% | R25: 24% | S25: 10 | T25: 62% | U25: 54% | V25: 110 | W25: 52% | X25: 38% | Y25: 38
A26: 50 | B26: MARNE-ARDENNES | C26: 11 | D26: REIMS | E26: 551367 | F26: AY CHAMPAGNE | G26: 2.5 | H26: 35% | I26: 16% | J26: 17 | K26: 29% | L26: 27% | M26: 36 | N26: 45% | O26: 28% | P26: 22 | Q26: 77% | R26: 57% | S26: 212 | T26: 49% | U26: 41% | V26: 43 | W26: 36% | X26: 22% | Y26: 8
A27: 50 | B27: MARNE-ARDENNES | C27: 11 | D27: REIMS | E27: 551340 | F27: BETHENY | G27: 3.0 | H27: 36% | I27: 17% | J27: 18 | K27: 44% | L27: 42% | M27: 112 | N27: 62% | O27: 45% | P27: 121 | Q27: 42% | R27: 21% | S27: 8 | T27: 55% | U27: 46% | V27: 68 | W27: 38% | X27: 24% | Y27: 12
A28: 50 | B28: BAS-RHIN | C28: 5060 | D28: HAGUENAU | E28: 4092 | F28: HOCHFELDEN | G28: 2.4 | H28: 36% | I28: 18% | J28: 19 | K28: 44% | L28: 42% | M28: 116 | N28: 32% | O28: 15% | P28: 5 | Q28: 76% | R28: 55% | S28: 205 | T28: 46% | U28: 38% | V28: 31 | W28: 45% | X28: 31% | Y28: 17
A29: 50 | B29: BAS-RHIN | C29: 5101 | D29: SELESTAT | E29: 4121 | F29: SCHIRMECK | G29: 3.2 | H29: 36% | I29: 18% | J29: 20 | K29: 18% | L29: 16% | M29: 10 | N29: 58% | O29: 41% | P29: 82 | Q29: 54% | R29: 33% | S29: 35 | T29: 54% | U29: 46% | V29: 67 | W29: 60% | X29: 46% | Y29: 82
A30: 50 | B30: MEURTHE ET MOSELLE MEUSE | C30: 26 | D30: NANCY | E30: 554476 | F30: NANCY ARTEM | G30: 2.7 | H30: 36% | I30: 18% | J30: 21 | K30: 41% | L30: 38% | M30: 97 | N30: 50% | O30: 33% | P30: 36 | Q30: 47% | R30: 27% | S30: 14 | T30: 54% | U30: 45% | V30: 64 | W30: 53% | X30: 39% | Y30: 47
A31: 262 | B31: BAS-RHIN | C31: 5101 | D31: SELESTAT | E31: 4126 | F31: MUTZIG | G31: 2.0 | H31: 36% | I31: 18% | J31: 22 | K31: 46% | L31: 44% | M31: 123 | N31: 51% | O31: 33% | P31: 39 | Q31: 50% | R31: 29% | S31: 23 | T31: 62% | U31: 54% | V31: 108 | W31: 37% | X31: 23% | Y31: 9
A32: 262 | B32: MOSELLE | C32: 42 | D32: MOSELLE EST | E32: 457165 | F32: BITCHE | G32: 2.1 | H32: 37% | I32: 18% | J32: 23 | K32: 50% | L32: 48% | M32: 147 | N32: 33% | O32: 16% | P32: 6 | Q32: 74% | R32: 53% | S32: 187 | T32: 31% | U32: 23% | V32: 13 | W32: 58% | X32: 44% | Y32: 71
A33: 262 | B33: MEURTHE ET MOSELLE MEUSE | C33: 31 | D33: VERDUN | E33: 454414 | F33: LONGWY HAUT | G33: 3.7 | H33: 37% | I33: 19% | J33: 24 | K33: 40% | L33: 38% | M33: 96 | N33: 58% | O33: 41% | P33: 84 | Q33: 43% | R33: 23% | S33: 9 | T33: 48% | U33: 40% | V33: 38 | W33: 56% | X33: 42% | Y33: 57
A34: 262 | B34: MOSELLE | C34: 45 | D34: METZ | E34: 557444 | F34: SAINT JULIEN LES METZ | G34: 4.9 | H34: 37% | I34: 19% | J34: 25 | K34: 49% | L34: 47% | M34: 143 | N34: 62% | O34: 45% | P34: 119 | Q34: 48% | R34: 27% | S34: 18 | T34: 30% | U34: 22% | V34: 12 | W34: 57% | X34: 43% | Y34: 63
A35: 262 | B35: MARNE-ARDENNES | C35: 2 | D35: CHARLEVILLE MEZIERES | E35: 508839 | F35: GIVET | G35: 3.7 | H35: 37% | I35: 19% | J35: 26 | K35: 32% | L35: 30% | M35: 60 | N35: 65% | O35: 48% | P35: 144 | Q35: 71% | R35: 50% | S35: 162 | T35: 18% | U35: 10% | V35: 3 | W35: 61% | X35: 47% | Y35: 95
A36: 262 | B36: BAS-RHIN | C36: 5006 | D36: STRASBOURG | E36: 4047 | F36: STRASBOURG CRONENBOURG | G36: 5.0 | H36: 38% | I36: 19% | J36: 27 | K36: 37% | L36: 35% | M36: 76 | N36: 62% | O36: 45% | P36: 115 | Q36: 54% | R36: 34% | S36: 36 | T36: 45% | U36: 37% | V36: 29 | W36: 52% | X36: 38% | Y36: 40
A37: 262 | B37: MEURTHE ET MOSELLE MEUSE | C37: 27 | D37: PONT A MOUSSON | E37: 554381 | F37: LAXOU ARISTIDE BRIAND | G37: 4.0 | H37: 38% | I37: 20% | J37: 28 | K37: 36% | L37: 33% | M37: 72 | N37: 39% | O37: 22% | P37: 13 | Q37: 62% | R37: 41% | S37: 88 | T37: 53% | U37: 45% | V37: 62 | W37: 62% | X37: 48% | Y37: 103
A38: 262 | B38: VOSGES | C38: 55 | D38: SAINT DIE | E38: 488246 | F38: CORNIMONT LA BRESSE | G38: 2.7 | H38: 38% | I38: 20% | J38: 29 | K38: 15% | L38: 13% | M38: 8 | N38: 67% | O38: 50% | P38: 173 | Q38: 67% | R38: 47% | S38: 125 | T38: 48% | U38: 40% | V38: 37 | W38: 54% | X38: 40% | Y38: 51
A39: 262 | B39: MARNE-ARDENNES | C39: 11 | D39: REIMS | E39: 551305 | F39: REIMS HIPPODROME | G39: 3.9 | H39: 38% | I39: 20% | J39: 30 | K39: 19% | L39: 17% | M39: 14 | N39: 70% | O39: 53% | P39: 196 | Q39: 68% | R39: 47% | S39: 132 | T39: 47% | U39: 39% | V39: 33 | W39: 48% | X39: 34% | Y39: 22
A40: 262 | B40: BAS-RHIN | C40: 5006 | D40: STRASBOURG | E40: 4010 | F40: STRASBOURG MEINAU | G40: 3.3 | H40: 38% | I40: 20% | J40: 31 | K40: 51% | L40: 49% | M40: 155 | N40: 42% | O40: 25% | P40: 19 | Q40: 66% | R40: 46% | S40: 117 | T40: 28% | U40: 20% | V40: 8 | W40: 65% | X40: 51% | Y40: 133
A41: 262 | B41: MOSELLE | C41: 42 | D41: MOSELLE EST | E41: 557305 | F41: FAULQUEMONT | G41: 2.4 | H41: 38% | I41: 20% | J41: 32 | K41: 27% | L41: 25% | M41: 29 | N41: 54% | O41: 37% | P41: 54 | Q41: 64% | R41: 44% | S41: 102 | T41: 56% | U41: 48% | V41: 72 | W41: 53% | X41: 39% | Y41: 42
A42: 262 | B42: MARNE-ARDENNES | C42: 2 | D42: CHARLEVILLE MEZIERES | E42: 508833 | F42: VILLERS SEMEUSE CORA | G42: 3.6 | H42: 39% | I42: 21% | J42: 33 | K42: 47% | L42: 45% | M42: 136 | N42: 50% | O42: 33% | P42: 35 | Q42: 56% | R42: 36% | S42: 48 | T42: 52% | U42: 44% | V42: 55 | W42: 51% | X42: 37% | Y42: 34
A43: 262 | B43: MARNE-ARDENNES | C43: 2 | D43: CHARLEVILLE MEZIERES | E43: 508815 | F43: CARIGNAN | G43: 2.8 | H43: 39% | I43: 21% | J43: 34 | K43: 37% | L43: 35% | M43: 79 | N43: 57% | O43: 40% | P43: 75 | Q43: 39% | R43: 18% | S43: 7 | T43: 66% | U43: 57% | V43: 140 | W43: 57% | X43: 43% | Y43: 66
A44: 262 | B44: MEURTHE ET MOSELLE MEUSE | C44: 27 | D44: PONT A MOUSSON | E44: 554533 | F44: PONT A MOUSSON BREUIL | G44: 2.8 | H44: 39% | I44: 21% | J44: 35 | K44: 57% | L44: 55% | M44: 185 | N44: 52% | O44: 35% | P44: 41 | Q44: 32% | R44: 11% | S44: 3 | T44: 67% | U44: 58% | V44: 148 | W44: 50% | X44: 36% | Y44: 29
A45: 262 | B45: MARNE-ARDENNES | C45: 2 | D45: CHARLEVILLE MEZIERES | E45: 408801 | F45: CHARLEVILLE JEAN JAURES | G45: 9.4 | H45: 39% | I45: 21% | J45: 36 | K45: 32% | L45: 30% | M45: 55 | N45: 56% | O45: 39% | P45: 63 | Q45: 61% | R45: 41% | S45: 84 | T45: 66% | U45: 58% | V45: 145 | W45: 43% | X45: 29% | Y45: 16
A46: 262 | B46: MARNE-ARDENNES | C46: 6 | D46: CHALONS EN CHAMPAGNE | E46: 451120 | F46: SARRY | G46: 2.5 | H46: 39% | I46: 21% | J46: 37 | K46: 20% | L46: 17% | M46: 16 | N46: 57% | O46: 40% | P46: 69 | Q46: 56% | R46: 35% | S46: 44 | T46: 62% | U46: 54% | V46: 113 | W46: 64% | X46: 50% | Y46: 129
A47: 262 | B47: MARNE-ARDENNES | C47: 11 | D47: REIMS | E47: 551310 | F47: REIMS CHATILLONS | G47: 4.1 | H47: 40% | I47: 21% | J47: 38 | K47: 50% | L47: 48% | M47: 149 | N47: 49% | O47: 32% | P47: 34 | Q47: 60% | R47: 39% | S47: 66 | T47: 53% | U47: 45% | V47: 61 | W47: 48% | X47: 34% | Y47: 20
A48: 262 | B48: MARNE-ARDENNES | C48: 11 | D48: REIMS | E48: 451350 | F48: REIMS CENTRE VILLE | G48: 7.3 | H48: 40% | I48: 21% | J48: 39 | K48: 53% | L48: 51% | M48: 158 | N48: 63% | O48: 46% | P48: 127 | Q48: 59% | R48: 39% | S48: 65 | T48: 50% | U48: 42% | V48: 49 | W48: 35% | X48: 21% | Y48: 7
A49: 262 | B49: MOSELLE | C49: 42 | D49: MOSELLE EST | E49: 557250 | F49: CREUTZWALD | G49: 2.7 | H49: 40% | I49: 22% | J49: 40 | K49: 50% | L49: 48% | M49: 148 | N49: 62% | O49: 45% | P49: 122 | Q49: 52% | R49: 31% | S49: 27 | T49: 41% | U49: 33% | V49: 21 | W49: 56% | X49: 42% | Y49: 60
A50: 262 | B50: MEURTHE ET MOSELLE MEUSE | C50: 27 | D50: PONT A MOUSSON | E50: 454535 | F50: PONT A MOUSSON CENTRALE | G50: 7.8 | H50: 40% | I50: 22% | J50: 41 | K50: 54% | L50: 52% | M50: 167 | N50: 38% | O50: 21% | P50: 12 | Q50: 57% | R50: 36% | S50: 52 | T50: 56% | U50: 48% | V50: 76 | W50: 57% | X50: 43% | Y50: 65
A51: 262 | B51: MEURTHE ET MOSELLE MEUSE | C51: 26 | D51: NANCY | E51: 554601 | F51: SAINT MAX | G51: 4.3 | H51: 40% | I51: 22% | J51: 42 | K51: 21% | L51: 18% | M51: 18 | N51: 60% | O51: 43% | P51: 95 | Q51: 64% | R51: 43% | S51: 96 | T51: 53% | U51: 45% | V51: 60 | W51: 67% | X51: 53% | Y51: 151
A52: 262 | B52: VOSGES | C52: 57 | D52: EPINAL | E52: 588631 | F52: THAON LES VOSGES | G52: 5.5 | H52: 40% | I52: 22% | J52: 43 | K52: 35% | L52: 33% | M52: 67 | N52: 57% | O52: 40% | P52: 73 | Q52: 64% | R52: 44% | S52: 100 | T52: 44% | U52: 36% | V52: 27 | W52: 64% | X52: 50% | Y52: 116
A53: 262 | B53: MARNE-ARDENNES | C53: 6 | D53: CHALONS EN CHAMPAGNE | E53: 551110 | F53: CHALONS ROOSEVELT | G53: 5.0 | H53: 41% | I53: 22% | J53: 44 | K53: 25% | L53: 22% | M53: 25 | N53: 60% | O53: 43% | P53: 99 | Q53: 60% | R53: 39% | S53: 76 | T53: 56% | U53: 48% | V53: 71 | W53: 64% | X53: 50% | Y53: 119
A54: 262 | B54: MARNE-ARDENNES | C54: 6 | D54: CHALONS EN CHAMPAGNE | E54: 551354 | F54: VERTUS | G54: 2.5 | H54: 41% | I54: 23% | J54: 45 | K54: 11% | L54: 9% | M54: 5 | N54: 71% | O54: 54% | P54: 205 | Q54: 60% | R54: 39% | S54: 71 | T54: 63% | U54: 55% | V54: 121 | W54: 61% | X54: 47% | Y54: 92
A55: 262 | B55: BAS-RHIN | C55: 5060 | D55: HAGUENAU | E55: 4079 | F55: SOULTZ SOUS FORETS | G55: 2.2 | H55: 41% | I55: 23% | J55: 46 | K55: 39% | L55: 37% | M55: 89 | N55: 45% | O55: 28% | P55: 23 | Q55: 69% | R55: 48% | S55: 142 | T55: 56% | U55: 48% | V55: 73 | W55: 58% | X55: 44% | Y55: 69
A56: 262 | B56: MARNE-ARDENNES | C56: 2 | D56: CHARLEVILLE MEZIERES | E56: 408862 | F56: REVIN | G56: 4.3 | H56: 41% | I56: 23% | J56: 47 | K56: 12% | L56: 10% | M56: 7 | N56: 63% | O56: 46% | P56: 129 | Q56: 62% | R56: 42% | S56: 89 | T56: 64% | U56: 56% | V56: 136 | W56: 66% | X56: 52% | Y56: 140
A57: 262 | B57: BAS-RHIN | C57: 5006 | D57: STRASBOURG | E57: 4037 | F57: MUNDOLSHEIM | G57: 4.0 | H57: 41% | I57: 23% | J57: 48 | K57: 56% | L57: 54% | M57: 179 | N57: 42% | O57: 25% | P57: 17 | Q57: 56% | R57: 35% | S57: 42 | T57: 52% | U57: 44% | V57: 54 | W57: 62% | X57: 48% | Y57: 99
A58: 262 | B58: MEURTHE ET MOSELLE MEUSE | C58: 31 | D58: VERDUN | E58: 555679 | F58: VERDUN MAZEL | G58: 3.8 | H58: 41% | I58: 23% | J58: 49 | K58: 19% | L58: 17% | M58: 11 | N58: 57% | O58: 40% | P58: 76 | Q58: 61% | R58: 40% | S58: 81 | T58: 73% | U58: 65% | V58: 193 | W58: 58% | X58: 44% | Y58: 67
A59: 262 | B59: AUBE HAUTE MARNE | C59: 21 | D59: CHAUMONT | E59: 451151 | F59: WASSY | G59: 2.0 | H59: 41% | I59: 23% | J59: 50 | K59: 24% | L59: 21% | M59: 24 | N59: 55% | O59: 38% | P59: 59 | Q59: 77% | R59: 56% | S59: 211 | T59: 59% | U59: 51% | V59: 87 | W59: 54% | X59: 40% | Y59: 49
A60: 262 | B60: MEURTHE ET MOSELLE MEUSE | C60: 26 | D60: NANCY | E60: 454426 | F60: LUNEVILLE CARNOT | G60: 10.0 | H60: 42% | I60: 23% | J60: 51 | K60: 51% | L60: 49% | M60: 156 | N60: 54% | O60: 37% | P60: 52 | Q60: 65% | R60: 45% | S60: 110 | T60: 49% | U60: 40% | V60: 41 | W60: 51% | X60: 37% | Y60: 35
A61: 262 | B61: AUBE HAUTE MARNE | C61: 21 | D61: CHAUMONT | E61: 510590 | F61: CHAUMONT REPUBLIQUE | G61: 4.4 | H61: 42% | I61: 23% | J61: 52 | K61: 41% | L61: 39% | M61: 99 | N61: 59% | O61: 42% | P61: 89 | Q61: 60% | R61: 39% | S61: 75 | T61: 51% | U61: 43% | V61: 52 | W61: 60% | X61: 46% | Y61: 84
A62: 262 | B62: BAS-RHIN | C62: 5006 | D62: STRASBOURG | E62: 4054 | F62: STRASBOURG MONTAGNE VERTE | G62: 2.4 | H62: 42% | I62: 23% | J62: 53 | K62: 46% | L62: 44% | M62: 130 | N62: 67% | O62: 50% | P62: 170 | Q62: 79% | R62: 59% | S62: 228 | T62: 15% | U62: 7% | V62: 2 | W62: 63% | X62: 49% | Y62: 108
A63: 262 | B63: MOSELLE | C63: 42 | D63: MOSELLE EST | E63: 457308 | F63: FORBACH CENTRALE | G63: 11.2 | H63: 42% | I63: 24% | J63: 54 | K63: 31% | L63: 29% | M63: 47 | N63: 52% | O63: 35% | P63: 46 | Q63: 63% | R63: 42% | S63: 93 | T63: 58% | U63: 50% | V63: 84 | W63: 66% | X63: 52% | Y63: 144
A64: 262 | B64: MEURTHE ET MOSELLE MEUSE | C64: 27 | D64: PONT A MOUSSON | E64: 554506 | F64: CHALIGNY NEUVES MAISONS | G64: 3.8 | H64: 42% | I64: 24% | J64: 55 | K64: 70% | L64: 68% | M64: 233 | N64: 28% | O64: 11% | P64: 4 | Q64: 77% | R64: 57% | S64: 213 | T64: 57% | U64: 49% | V64: 79 | W64: 39% | X64: 25% | Y64: 13
A65: 262 | B65: MEURTHE ET MOSELLE MEUSE | C65: 27 | D65: PONT A MOUSSON | E65: 554357 | F65: JOEUF | G65: 3.8 | H65: 42% | I65: 24% | J65: 56 | K65: 47% | L65: 45% | M65: 135 | N65: 60% | O65: 43% | P65: 97 | Q65: 84% | R65: 63% | S65: 247 | T65: 41% | U65: 32% | V65: 20 | W65: 40% | X65: 26% | Y65: 15
A66: 262 | B66: MARNE-ARDENNES | C66: 11 | D66: REIMS | E66: 551314 | F66: FISMES | G66: 3.0 | H66: 42% | I66: 24% | J66: 57 | K66: 31% | L66: 29% | M66: 51 | N66: 53% | O66: 36% | P66: 50 | Q66: 70% | R66: 49% | S66: 153 | T66: 64% | U66: 56% | V66: 135 | W66: 53% | X66: 39% | Y66: 44
A67: 262 | B67: MOSELLE | C67: 44 | D67: MOSELLE NORD | E67: 457348 | F67: HAGONDANGE | G67: 9.3 | H67: 42% | I67: 24% | J67: 58 | K67: 54% | L67: 52% | M67: 171 | N67: 49% | O67: 32% | P67: 32 | Q67: 60% | R67: 39% | S67: 74 | T67: 54% | U67: 45% | V67: 63 | W67: 56% | X67: 42% | Y67: 58
A68: 262 | B68: MEURTHE ET MOSELLE MEUSE | C68: 31 | D68: VERDUN | E68: 455676 | F68: VAUCOULEURS | G68: 1.8 | H68: 42% | I68: 24% | J68: 59 | K68: 76% | L68: 74% | M68: 246 | N68: 36% | O68: 19% | P68: 7 | Q68: 78% | R68: 57% | S68: 219 | T68: 35% | U68: 26% | V68: 17 | W68: 49% | X68: 35% | Y68: 27
A69: 262 | B69: MEURTHE ET MOSELLE MEUSE | C69: 31 | D69: VERDUN | E69: 455298 | F69: ETAIN | G69: 1.5 | H69: 42% | I69: 24% | J69: 60 | K69: 67% | L69: 65% | M69: 225 | N69: 60% | O69: 43% | P69: 94 | Q69: 57% | R69: 36% | S69: 50 | T69: 35% | U69: 26% | V69: 18 | W69: 55% | X69: 41% | Y69: 52
A70: 262 | B70: HAUT-RHIN | C70: 5130 | D70: COLMAR | E70: 4144 | F70: RIBEAUVILLE | G70: 2.9 | H70: 42% | I70: 24% | J70: 61 | K70: 41% | L70: 39% | M70: 101 | N70: 53% | O70: 36% | P70: 47 | Q70: 53% | R70: 32% | S70: 32 | T70: 50% | U70: 42% | V70: 48 | W70: 77% | X70: 63% | Y70: 243
A71: 262 | B71: MEURTHE ET MOSELLE MEUSE | C71: 31 | D71: VERDUN | E71: 555624 | F71: STENAY | G71: 2.8 | H71: 42% | I71: 24% | J71: 62 | K71: 31% | L71: 29% | M71: 48 | N71: 42% | O71: 25% | P71: 15 | Q71: 75% | R71: 54% | S71: 200 | T71: 63% | U71: 55% | V71: 117 | W71: 63% | X71: 49% | Y71: 112
A72: 262 | B72: MOSELLE | C72: 44 | D72: MOSELLE NORD | E72: 457306 | F72: FLORANGE | G72: 3.7 | H72: 43% | I72: 24% | J72: 63 | K72: 46% | L72: 44% | M72: 129 | N72: 55% | O72: 38% | P72: 60 | Q72: 52% | R72: 32% | S72: 29 | T72: 58% | U72: 50% | V72: 83 | W72: 63% | X72: 49% | Y72: 110
A73: 262 | B73: MEURTHE ET MOSELLE MEUSE | C73: 31 | D73: VERDUN | E73: 554412 | F73: LONGUYON | G73: 2.8 | H73: 43% | I73: 24% | J73: 64 | K73: 23% | L73: 21% | M73: 23 | N73: 66% | O73: 48% | P73: 152 | Q73: 72% | R73: 52% | S73: 175 | T73: 61% | U73: 53% | V73: 104 | W73: 53% | X73: 39% | Y73: 41
A74: 262 | B74: VOSGES | C74: 55 | D74: SAINT DIE | E74: 588666 | F74: VAGNEY | G74: 3.9 | H74: 43% | I74: 24% | J74: 65 | K74: 10% | L74: 8% | M74: 4 | N74: 65% | O74: 48% | P74: 143 | Q74: 60% | R74: 39% | S74: 70 | T74: 72% | U74: 64% | V74: 182 | W74: 69% | X74: 55% | Y74: 169
A75: 262 | B75: MOSELLE | C75: 44 | D75: MOSELLE NORD | E75: 557352 | F75: HETTANGE GRANDE | G75: 4.1 | H75: 43% | I75: 25% | J75: 66 | K75: 58% | L75: 56% | M75: 191 | N75: 45% | O75: 28% | P75: 21 | Q75: 68% | R75: 47% | S75: 134 | T75: 47% | U75: 39% | V75: 35 | W75: 58% | X75: 44% | Y75: 68
A76: 262 | B76: BAS-RHIN | C76: 5006 | D76: STRASBOURG | E76: 4019 | F76: STRASBOURG ANVERS | G76: 4.3 | H76: 43% | I76: 25% | J76: 67 | K76: 45% | L76: 43% | M76: 120 | N76: 52% | O76: 35% | P76: 43 | Q76: 50% | R76: 29% | S76: 24 | T76: 60% | U76: 52% | V76: 95 | W76: 70% | X76: 56% | Y76: 176
A77: 262 | B77: VOSGES | C77: 57 | D77: EPINAL | E77: 588716 | F77: XERTIGNY | G77: 2.9 | H77: 43% | I77: 25% | J77: 68 | K77: 53% | L77: 51% | M77: 159 | N77: 54% | O77: 37% | P77: 55 | Q77: 66% | R77: 45% | S77: 113 | T77: 33% | U77: 25% | V77: 15 | W77: 71% | X77: 57% | Y77: 194
A78: 262 | B78: MEURTHE ET MOSELLE MEUSE | C78: 27 | D78: PONT A MOUSSON | E78: 554416 | F78: LUDRES | G78: 3.8 | H78: 43% | I78: 25% | J78: 69 | K78: 28% | L78: 26% | M78: 32 | N78: 63% | O78: 46% | P78: 132 | Q78: 53% | R78: 32% | S78: 31 | T78: 77% | U78: 69% | V78: 221 | W78: 57% | X78: 43% | Y78: 62
A79: 264 | B79: VOSGES | C79: 57 | D79: EPINAL | E79: 588206 | F79: CHARMES | G79: 2.8 | H79: 43% | I79: 25% | J79: 70 | K79: 31% | L79: 29% | M79: 45 | N79: 66% | O79: 49% | P79: 154 | Q79: 79% | R79: 58% | S79: 224 | T79: 42% | U79: 34% | V79: 23 | W79: 61% | X79: 47% | Y79: 87
A80: 264 | B80: BAS-RHIN | C80: 5060 | D80: HAGUENAU | E80: 4082 | F80: BOUXWILLER | G80: 2.5 | H80: 43% | I80: 25% | J80: 71 | K80: 35% | L80: 33% | M80: 69 | N80: 63% | O80: 46% | P80: 126 | Q80: 60% | R80: 40% | S80: 78 | T80: 67% | U80: 59% | V80: 154 | W80: 54% | X80: 40% | Y80: 48
A81: 264 | B81: MEURTHE ET MOSELLE MEUSE | C81: 27 | D81: PONT A MOUSSON | E81: 554376 | F81: LAXOU BOUFFLERS | G81: 2.8 | H81: 44% | I81: 25% | J81: 72 | K81: 54% | L81: 52% | M81: 170 | N81: 57% | O81: 40% | P81: 68 | Q81: 60% | R81: 39% | S81: 73 | T81: 60% | U81: 51% | V81: 90 | W81: 50% | X81: 36% | Y81: 28
A82: 264 | B82: MOSELLE | C82: 45 | D82: METZ | E82: 557447 | F82: METZ SAINT MAXIMIN | G82: 3.1 | H82: 44% | I82: 25% | J82: 73 | K82: 54% | L82: 52% | M82: 166 | N82: 46% | O82: 29% | P82: 24 | Q82: 62% | R82: 41% | S82: 86 | T82: 67% | U82: 59% | V82: 155 | W82: 52% | X82: 38% | Y82: 39
A83: 264 | B83: MEURTHE ET MOSELLE MEUSE | C83: 26 | D83: NANCY | E83: 554636 | F83: TOMBLAINE | G83: 2.5 | H83: 44% | I83: 25% | J83: 74 | K83: 22% | L83: 20% | M83: 20 | N83: 75% | O83: 58% | P83: 225 | Q83: 62% | R83: 41% | S83: 85 | T83: 57% | U83: 49% | V83: 80 | W83: 65% | X83: 51% | Y83: 136
A84: 264 | B84: MARNE-ARDENNES | C84: 6 | D84: CHALONS EN CHAMPAGNE | E84: 451101 | F84: CHALONS VIVIERS | G84: 9.3 | H84: 44% | I84: 25% | J84: 75 | K84: 31% | L84: 29% | M84: 49 | N84: 61% | O84: 44% | P84: 101 | Q84: 67% | R84: 47% | S84: 123 | T84: 63% | U84: 54% | V84: 115 | W84: 59% | X84: 45% | Y84: 77
A85: 264 | B85: BAS-RHIN | C85: 5006 | D85: STRASBOURG | E85: 4048 | F85: STRASBOURG KOENIGSHOFFEN | G85: 2.0 | H85: 44% | I85: 26% | J85: 76 | K85: 63% | L85: 61% | M85: 211 | N85: 48% | O85: 31% | P85: 30 | Q85: 75% | R85: 55% | S85: 203 | T85: 30% | U85: 21% | V85: 11 | W85: 64% | X85: 50% | Y85: 126
A86: 264 | B86: VOSGES | C86: 57 | D86: EPINAL | E86: 488706 | F86: VITTEL | G86: 3.6 | H86: 44% | I86: 26% | J86: 77 | K86: 30% | L86: 28% | M86: 40 | N86: 76% | O86: 59% | P86: 231 | Q86: 56% | R86: 35% | S86: 43 | T86: 57% | U86: 49% | V86: 81 | W86: 63% | X86: 49% | Y86: 111
A87: 264 | B87: MARNE-ARDENNES | C87: 6 | D87: CHALONS EN CHAMPAGNE | E87: 551128 | F87: SAINTE MENEHOULD | G87: 3.2 | H87: 44% | I87: 26% | J87: 78 | K87: 33% | L87: 31% | M87: 62 | N87: 58% | O87: 41% | P87: 78 | Q87: 71% | R87: 50% | S87: 160 | T87: 48% | U87: 40% | V87: 40 | W87: 73% | X87: 59% | Y87: 213
A88: 264 | B88: VOSGES | C88: 57 | D88: EPINAL | E88: 588501 | F88: NEUFCHATEAU | G88: 5.2 | H88: 44% | I88: 26% | J88: 79 | K88: 18% | L88: 16% | M88: 9 | N88: 70% | O88: 53% | P88: 194 | Q88: 74% | R88: 54% | S88: 193 | T88: 66% | U88: 57% | V88: 141 | W88: 55% | X88: 41% | Y88: 55
A89: 264 | B89: VOSGES | C89: 55 | D89: SAINT DIE | E89: 488326 | F89: GERARDMER | G89: 5.1 | H89: 45% | I89: 26% | J89: 80 | K89: 30% | L89: 27% | M89: 38 | N89: 67% | O89: 50% | P89: 171 | Q89: 46% | R89: 26% | S89: 12 | T89: 76% | U89: 68% | V89: 215 | W89: 66% | X89: 52% | Y89: 142
A90: 264 | B90: BAS-RHIN | C90: 5101 | D90: SELESTAT | E90: 4120 | F90: WASSELONNE | G90: 4.4 | H90: 45% | I90: 26% | J90: 81 | K90: 61% | L90: 59% | M90: 202 | N90: 68% | O90: 51% | P90: 180 | Q90: 45% | R90: 24% | S90: 11 | T90: 49% | U90: 41% | V90: 47 | W90: 62% | X90: 48% | Y90: 96
A91: 264 | B91: VOSGES | C91: 57 | D91: EPINAL | E91: 588396 | F91: LE VAL D AJOL | G91: 2.9 | H91: 45% | I91: 26% | J91: 82 | K91: 2% | L91: 0% | M91: 1 | N91: 75% | O91: 58% | P91: 227 | Q91: 66% | R91: 45% | S91: 112 | T91: 68% | U91: 59% | V91: 157 | W91: 76% | X91: 62% | Y91: 235
A92: 264 | B92: BAS-RHIN | C92: 5006 | D92: STRASBOURG | E92: 4045 | F92: STRASBOURG FRANCS BOURGEOIS | G92: 4.6 | H92: 45% | I92: 27% | J92: 83 | K92: 57% | L92: 55% | M92: 182 | N92: 62% | O92: 45% | P92: 110 | Q92: 22% | R92: 2% | S92: 2 | T92: 77% | U92: 69% | V92: 220 | W92: 69% | X92: 55% | Y92: 167
A93: 264 | B93: VOSGES | C93: 55 | D93: SAINT DIE | E93: 488586 | F93: SAINT DIE | G93: 10.7 | H93: 45% | I93: 27% | J93: 84 | K93: 19% | L93: 17% | M93: 13 | N93: 66% | O93: 49% | P93: 163 | Q93: 65% | R93: 44% | S93: 108 | T93: 69% | U93: 61% | V93: 168 | W93: 66% | X93: 52% | Y93: 146
A94: 264 | B94: BAS-RHIN | C94: 5006 | D94: STRASBOURG | E94: 4038 | F94: OBERHAUSBERGEN | G94: 4.8 | H94: 45% | I94: 27% | J94: 85 | K94: 49% | L94: 47% | M94: 142 | N94: 62% | O94: 45% | P94: 116 | Q94: 55% | R94: 34% | S94: 37 | T94: 62% | U94: 53% | V94: 105 | W94: 60% | X94: 46% | Y94: 85
A95: 264 | B95: MEURTHE ET MOSELLE MEUSE | C95: 31 | D95: VERDUN | E95: 455456 | F95: MONTMEDY | G95: 1.8 | H95: 45% | I95: 27% | J95: 86 | K95: 42% | L95: 40% | M95: 104 | N95: 57% | O95: 40% | P95: 74 | Q95: 73% | R95: 52% | S95: 179 | T95: 61% | U95: 53% | V95: 103 | W95: 54% | X95: 40% | Y95: 50
A96: 264 | B96: MARNE-ARDENNES | C96: 2 | D96: CHARLEVILLE MEZIERES | E96: 508802 | F96: CHARLEVILLE NEVERS | G96: 3.0 | H96: 45% | I96: 27% | J96: 87 | K96: 31% | L96: 29% | M96: 52 | N96: 66% | O96: 49% | P96: 161 | Q96: 81% | R96: 61% | S96: 241 | T96: 43% | U96: 35% | V96: 24 | W96: 66% | X96: 52% | Y96: 148
A97: 264 | B97: MARNE-ARDENNES | C97: 11 | D97: REIMS | E97: 451301 | F97: REIMS HOTEL DE VILLE | G97: 7.8 | H97: 45% | I97: 27% | J97: 88 | K97: 46% | L97: 44% | M97: 124 | N97: 47% | O97: 30% | P97: 28 | Q97: 83% | R97: 62% | S97: 245 | T97: 53% | U97: 45% | V97: 59 | W97: 60% | X97: 46% | Y97: 83
A98: 264 | B98: MOSELLE | C98: 45 | D98: METZ | E98: 457453 | F98: MONTIGNY LES METZ | G98: 7.9 | H98: 45% | I98: 27% | J98: 89 | K98: 32% | L98: 30% | M98: 54 | N98: 62% | O98: 45% | P98: 118 | Q98: 58% | R98: 38% | S98: 60 | T98: 79% | U98: 71% | V98: 233 | W98: 58% | X98: 44% | Y98: 70
A99: 264 | B99: BAS-RHIN | C99: 5006 | D99: STRASBOURG | E99: 4006 | F99: STRASBOURG NEUDORF | G99: 8.6 | H99: 46% | I99: 27% | J99: 90 | K99: 26% | L99: 24% | M99: 28 | N99: 58% | O99: 41% | P99: 85 | Q99: 73% | R99: 52% | S99: 181 | T99: 58% | U99: 49% | V99: 82 | W99: 75% | X99: 61% | Y99: 232
A100: 264 | B100: BAS-RHIN | C100: 5101 | D100: SELESTAT | E100: 4107 | F100: VILLE | G100: 2.9 | H100: 46% | I100: 27% | J100: 91 | K100: 88% | L100: 86% | M100: 259 | N100: 42% | O100: 25% | P100: 16 | Q100: 57% | R100: 36% | S100: 51 | T100: 33% | U100: 25% | V100: 16 | W100: 70% | X100: 56% | Y100: 182
A101: 264 | B101: MARNE-ARDENNES | C101: 6 | D101: CHALONS EN CHAMPAGNE | E101: 551103 | F101: FAGNIERES LECLERC | G101: 3.1 | H101: 46% | I101: 27% | J101: 92 | K101: 26% | L101: 24% | M101: 27 | N101: 58% | O101: 41% | P101: 81 | Q101: 79% | R101: 58% | S101: 227 | T101: 67% | U101: 59% | V101: 156 | W101: 61% | X101: 47% | Y101: 86
A102: 264 | B102: MARNE-ARDENNES | C102: 2 | D102: CHARLEVILLE MEZIERES | E102: 508819 | F102: MOUZON | G102: 2.0 | H102: 46% | I102: 28% | J102: 93 | K102: 44% | L102: 42% | M102: 114 | N102: 79% | O102: 62% | P102: 242 | Q102: 60% | R102: 39% | S102: 72 | T102: 63% | U102: 55% | V102: 120 | W102: 45% | X102: 31% | Y102: 18
A103: 30 | B103: VOSGES | C103: 57 | D103: EPINAL | E103: 488281 | F103: ELOYES | G103: 4.7 | H103: 46% | I103: 28% | J103: 94 | K103: 22% | L103: 20% | M103: 22 | N103: 58% | O103: 41% | P103: 80 | Q103: 65% | R103: 44% | S103: 106 | T103: 79% | U103: 71% | V103: 232 | W103: 68% | X103: 54% | Y103: 157
A104: 30 | B104: BAS-RHIN | C104: 5006 | D104: STRASBOURG | E104: 4024 | F104: STRASBOURG AUSTERLITZ | G104: 2.3 | H104: 46% | I104: 28% | J104: 95 | K104: 82% | L104: 79% | M104: 256 | N104: 45% | O104: 28% | P104: 20 | Q104: 59% | R104: 38% | S104: 62 | T104: 46% | U104: 38% | V104: 30 | W104: 61% | X104: 47% | Y104: 88
A105: 30 | B105: BAS-RHIN | C105: 5006 | D105: STRASBOURG | E105: 4043 | F105: STRASBOURG HALLES | G105: 8.2 | H105: 46% | I105: 28% | J105: 96 | K105: 40% | L105: 38% | M105: 93 | N105: 70% | O105: 53% | P105: 198 | Q105: 56% | R105: 36% | S105: 47 | T105: 64% | U105: 55% | V105: 131 | W105: 61% | X105: 47% | Y105: 94
A106: 30 | B106: BAS-RHIN | C106: 5006 | D106: STRASBOURG | E106: 4023 | F106: STRASBOURG VOSGES | G106: 3.3 | H106: 46% | I106: 28% | J106: 97 | K106: 46% | L106: 44% | M106: 126 | N106: 56% | O106: 39% | P106: 66 | Q106: 53% | R106: 32% | S106: 30 | T106: 67% | U106: 59% | V106: 150 | W106: 72% | X106: 58% | Y106: 201
A107: 30 | B107: MOSELLE | C107: 42 | D107: MOSELLE EST | E107: 557210 | F107: CHATEAU SALINS | G107: 2.6 | H107: 46% | I107: 28% | J107: 98 | K107: 60% | L107: 58% | M107: 197 | N107: 47% | O107: 30% | P107: 29 | Q107: 59% | R107: 38% | S107: 63 | T107: 66% | U107: 58% | V107: 143 | W107: 62% | X107: 48% | Y107: 101
A108: 30 | B108: VOSGES | C108: 57 | D108: EPINAL | E108: 488561 | F108: REMIREMONT | G108: 6.7 | H108: 46% | I108: 28% | J108: 99 | K108: 38% | L108: 36% | M108: 86 | N108: 59% | O108: 42% | P108: 91 | Q108: 64% | R108: 43% | S108: 98 | T108: 66% | U108: 58% | V108: 147 | W108: 67% | X108: 53% | Y108: 152
A109: 30 | B109: AUBE HAUTE MARNE | C109: 21 | D109: CHAUMONT | E109: 451154 | F109: JOINVILLE | G109: 1.9 | H109: 47% | I109: 28% | J109: 100 | K109: 4% | L109: 2% | M109: 2 | N109: 77% | O109: 60% | P109: 238 | Q109: 90% | R109: 69% | S109: 257 | T109: 59% | U109: 51% | V109: 85 | W109: 65% | X109: 51% | Y109: 135
A110: 30 | B110: VOSGES | C110: 55 | D110: SAINT DIE | E110: 588386 | F110: LE THILLOT | G110: 2.5 | H110: 47% | I110: 28% | J110: 101 | K110: 44% | L110: 42% | M110: 110 | N110: 64% | O110: 47% | P110: 140 | Q110: 64% | R110: 44% | S110: 101 | T110: 53% | U110: 44% | V110: 58 | W110: 71% | X110: 57% | Y110: 187
A111: 30 | B111: VOSGES | C111: 57 | D111: EPINAL | E111: 588336 | F111: GOLBEY | G111: 3.1 | H111: 47% | I111: 28% | J111: 102 | K111: 47% | L111: 44% | M111: 134 | N111: 69% | O111: 52% | P111: 186 | Q111: 68% | R111: 47% | S111: 127 | T111: 60% | U111: 51% | V111: 93 | W111: 53% | X111: 39% | Y111: 43
A112: 30 | B112: MEURTHE ET MOSELLE MEUSE | C112: 31 | D112: VERDUN | E112: 455151 | F112: BAR LE DUC | G112: 8.9 | H112: 47% | I112: 28% | J112: 103 | K112: 45% | L112: 43% | M112: 121 | N112: 58% | O112: 41% | P112: 79 | Q112: 69% | R112: 48% | S112: 143 | T112: 63% | U112: 54% | V112: 114 | W112: 61% | X112: 47% | Y112: 93
A113: 30 | B113: MEURTHE ET MOSELLE MEUSE | C113: 26 | D113: NANCY | E113: 554266 | F113: DOMBASLE SUR MEURTHE | G113: 3.7 | H113: 47% | I113: 29% | J113: 104 | K113: 70% | L113: 68% | M113: 232 | N113: 66% | O113: 49% | P113: 159 | Q113: 52% | R113: 32% | S113: 28 | T113: 52% | U113: 44% | V113: 57 | W113: 55% | X113: 41% | Y113: 54
A114: 30 | B114: MOSELLE | C114: 45 | D114: METZ | E114: 457443 | F114: METZ REPUBLIQUE | G114: 4.2 | H114: 47% | I114: 29% | J114: 105 | K114: 12% | L114: 10% | M114: 6 | N114: 72% | O114: 55% | P114: 214 | Q114: 70% | R114: 49% | S114: 147 | T114: 81% | U114: 73% | V114: 244 | W114: 62% | X114: 48% | Y114: 98
A115: 30 | B115: MARNE-ARDENNES | C115: 11 | D115: REIMS | E115: 451370 | F115: EPERNAY | G115: 11.5 | H115: 47% | I115: 29% | J115: 106 | K115: 39% | L115: 37% | M115: 90 | N115: 58% | O115: 41% | P115: 87 | Q115: 70% | R115: 50% | S115: 156 | T115: 64% | U115: 55% | V115: 130 | W115: 66% | X115: 52% | Y115: 143
A116: 30 | B116: AUBE HAUTE MARNE | C116: 14 | D116: TROYES | E116: 510523 | F116: LA CHAPELLE ST LUC | G116: 5.6 | H116: 47% | I116: 29% | J116: 107 | K116: 54% | L116: 52% | M116: 164 | N116: 52% | O116: 35% | P116: 45 | Q116: 78% | R116: 57% | S116: 221 | T116: 44% | U116: 36% | V116: 25 | W116: 70% | X116: 56% | Y116: 179
A117: 30 | B117: MOSELLE | C117: 45 | D117: METZ | E117: 557439 | F117: METZ POMPIDOU | G117: 3.9 | H117: 47% | I117: 29% | J117: 108 | K117: 38% | L117: 36% | M117: 84 | N117: 72% | O117: 55% | P117: 206 | Q117: 57% | R117: 36% | S117: 49 | T117: 61% | U117: 53% | V117: 98 | W117: 71% | X117: 57% | Y117: 199
A118: 30 | B118: HAUT-RHIN | C118: 5130 | D118: COLMAR | E118: 4143 | F118: MUNSTER | G118: 5.0 | H118: 47% | I118: 29% | J118: 109 | K118: 47% | L118: 44% | M118: 133 | N118: 50% | O118: 33% | P118: 38 | Q118: 70% | R118: 50% | S118: 159 | T118: 63% | U118: 55% | V118: 125 | W118: 68% | X118: 54% | Y118: 162
A119: 30 | B119: MEURTHE ET MOSELLE MEUSE | C119: 31 | D119: VERDUN | E119: 554700 | F119: VILLERUPT | G119: 3.0 | H119: 47% | I119: 29% | J119: 110 | K119: 27% | L119: 25% | M119: 31 | N119: 63% | O119: 46% | P119: 134 | Q119: 66% | R119: 46% | S119: 116 | T119: 75% | U119: 67% | V119: 204 | W119: 67% | X119: 53% | Y119: 154
A120: 30 | B120: BAS-RHIN | C120: 5060 | D120: HAGUENAU | E120: 4030 | F120: BRUMATH | G120: 5.2 | H120: 47% | I120: 29% | J120: 111 | K120: 51% | L120: 49% | M120: 152 | N120: 62% | O120: 45% | P120: 113 | Q120: 54% | R120: 33% | S120: 34 | T120: 73% | U120: 65% | V120: 190 | W120: 59% | X120: 45% | Y120: 79
A121: 30 | B121: MEURTHE ET MOSELLE MEUSE | C121: 26 | D121: NANCY | E121: 554116 | F121: BACCARAT | G121: 2.6 | H121: 47% | I121: 29% | J121: 112 | K121: 34% | L121: 32% | M121: 64 | N121: 62% | O121: 45% | P121: 114 | Q121: 68% | R121: 47% | S121: 131 | T121: 68% | U121: 60% | V121: 162 | W121: 68% | X121: 54% | Y121: 163
A122: 30 | B122: BAS-RHIN | C122: 5006 | D122: STRASBOURG | E122: 4027 | F122: SCHILTIGHEIM CENTRE | G122: 3.7 | H122: 48% | I122: 29% | J122: 113 | K122: 55% | L122: 53% | M122: 175 | N122: 55% | O122: 38% | P122: 57 | Q122: 60% | R122: 39% | S122: 69 | T122: 68% | U122: 60% | V122: 164 | W122: 62% | X122: 48% | Y122: 100
A123: 30 | B123: VOSGES | C123: 57 | D123: EPINAL | E123: 488286 | F123: EPINAL ARISTIDE BRIAND | G123: 9.1 | H123: 48% | I123: 29% | J123: 114 | K123: 30% | L123: 28% | M123: 41 | N123: 63% | O123: 46% | P123: 133 | Q123: 73% | R123: 53% | S123: 185 | T123: 60% | U123: 51% | V123: 92 | W123: 74% | X123: 60% | Y123: 219
A124: 30 | B124: VOSGES | C124: 57 | D124: EPINAL | E124: 488451 | F124: MIRECOURT | G124: 4.7 | H124: 48% | I124: 30% | J124: 115 | K124: 30% | L124: 27% | M124: 39 | N124: 74% | O124: 57% | P124: 221 | Q124: 68% | R124: 48% | S124: 137 | T124: 63% | U124: 55% | V124: 118 | W124: 66% | X124: 52% | Y124: 147
A125: 30 | B125: AUBE HAUTE MARNE | C125: 14 | D125: TROYES | E125: 510570 | F125: NOGENT SUR SEINE | G125: 4.5 | H125: 48% | I125: 30% | J125: 116 | K125: 22% | L125: 20% | M125: 21 | N125: 65% | O125: 48% | P125: 146 | Q125: 73% | R125: 53% | S125: 186 | T125: 78% | U125: 70% | V125: 226 | W125: 62% | X125: 49% | Y125: 104
A126: 30 | B126: AUBE HAUTE MARNE | C126: 21 | D126: CHAUMONT | E126: 451156 | F126: SAINT DIZIER CENTRE | G126: 9.2 | H126: 48% | I126: 30% | J126: 117 | K126: 45% | L126: 42% | M126: 117 | N126: 65% | O126: 48% | P126: 148 | Q126: 67% | R126: 46% | S126: 120 | T126: 61% | U126: 52% | V126: 97 | W126: 64% | X126: 50% | Y126: 124
A127: 30 | B127: BAS-RHIN | C127: 5060 | D127: HAGUENAU | E127: 4066 | F127: NIEDERBRONN LES BAINS | G127: 6.1 | H127: 48% | I127: 30% | J127: 118 | K127: 30% | L127: 28% | M127: 44 | N127: 70% | O127: 53% | P127: 193 | Q127: 61% | R127: 41% | S127: 82 | T127: 69% | U127: 61% | V127: 167 | W127: 71% | X127: 57% | Y127: 186
A128: 30 | B128: MARNE-ARDENNES | C128: 11 | D128: REIMS | E128: 551309 | F128: REIMS EUROPE | G128: 2.7 | H128: 48% | I128: 30% | J128: 119 | K128: 40% | L128: 37% | M128: 92 | N128: 72% | O128: 55% | P128: 211 | Q128: 67% | R128: 46% | S128: 119 | T128: 54% | U128: 46% | V128: 65 | W128: 69% | X128: 55% | Y128: 174
A129: 30 | B129: MARNE-ARDENNES | C129: 11 | D129: REIMS | E129: 451361 | F129: PIERRY LECLERC | G129: 1.9 | H129: 48% | I129: 30% | J129: 120 | K129: 37% | L129: 35% | M129: 77 | N129: 61% | O129: 44% | P129: 100 | Q129: 76% | R129: 56% | S129: 209 | T129: 62% | U129: 54% | V129: 112 | W129: 66% | X129: 52% | Y129: 149
A130: 30 | B130: VOSGES | C130: 55 | D130: SAINT DIE | E130: 588186 | F130: BRUYERES | G130: 3.7 | H130: 48% | I130: 30% | J130: 121 | K130: 35% | L130: 33% | M130: 70 | N130: 63% | O130: 46% | P130: 131 | Q130: 91% | R130: 70% | S130: 260 | T130: 61% | U130: 53% | V130: 102 | W130: 53% | X130: 39% | Y130: 45
A131: 30 | B131: MEURTHE ET MOSELLE MEUSE | C131: 31 | D131: VERDUN | E131: 555406 | F131: LIGNY EN BARROIS | G131: 2.8 | H131: 48% | I131: 30% | J131: 122 | K131: 32% | L131: 30% | M131: 57 | N131: 67% | O131: 50% | P131: 168 | Q131: 70% | R131: 50% | S131: 158 | T131: 70% | U131: 61% | V131: 169 | W131: 64% | X131: 50% | Y131: 125
A132: 30 | B132: MEURTHE ET MOSELLE MEUSE | C132: 31 | D132: VERDUN | E132: 455231 | F132: COMMERCY | G132: 4.7 | H132: 48% | I132: 30% | J132: 123 | K132: 50% | L132: 48% | M132: 150 | N132: 64% | O132: 47% | P132: 136 | Q132: 66% | R132: 45% | S132: 115 | T132: 65% | U132: 57% | V132: 138 | W132: 58% | X132: 44% | Y132: 74
A133: 30 | B133: MOSELLE | C133: 44 | D133: MOSELLE NORD | E133: 457350 | F133: HAYANGE | G133: 7.3 | H133: 48% | I133: 30% | J133: 124 | K133: 50% | L133: 47% | M133: 145 | N133: 50% | O133: 33% | P133: 37 | Q133: 75% | R133: 54% | S133: 199 | T133: 65% | U133: 57% | V133: 137 | W133: 65% | X133: 51% | Y133: 130
A134: 30 | B134: MOSELLE | C134: 42 | D134: MOSELLE EST | E134: 457583 | F134: SAINT AVOLD | G134: 7.6 | H134: 49% | I134: 30% | J134: 125 | K134: 42% | L134: 40% | M134: 105 | N134: 65% | O134: 48% | P134: 145 | Q134: 69% | R134: 48% | S134: 141 | T134: 64% | U134: 56% | V134: 134 | W134: 65% | X134: 51% | Y134: 131
A135: 30 | B135: AUBE HAUTE MARNE | C135: 14 | D135: TROYES | E135: 510520 | F135: SAINT ANDRE LES VERGERS | G135: 4.1 | H135: 49% | I135: 30% | J135: 126 | K135: 46% | L135: 44% | M135: 128 | N135: 61% | O135: 44% | P135: 109 | Q135: 58% | R135: 37% | S135: 55 | T135: 82% | U135: 74% | V135: 246 | W135: 58% | X135: 44% | Y135: 72
A136: 30 | B136: MOSELLE | C136: 44 | D136: MOSELLE NORD | E136: 457632 | F136: THIONVILLE CENTRALE | G136: 11.8 | H136: 49% | I136: 30% | J136: 127 | K136: 43% | L136: 41% | M136: 108 | N136: 59% | O136: 42% | P136: 88 | Q136: 70% | R136: 49% | S136: 150 | T136: 63% | U136: 55% | V136: 128 | W136: 71% | X136: 57% | Y136: 193
A137: 30 | B137: MEURTHE ET MOSELLE MEUSE | C137: 31 | D137: VERDUN | E137: 455678 | F137: VERDUN CENTRALE | G137: 10.6 | H137: 49% | I137: 30% | J137: 128 | K137: 38% | L137: 36% | M137: 85 | N137: 58% | O137: 41% | P137: 86 | Q137: 81% | R137: 60% | S137: 237 | T137: 73% | U137: 65% | V137: 194 | W137: 56% | X137: 42% | Y137: 56
A138: 30 | B138: MARNE-ARDENNES | C138: 6 | D138: CHALONS EN CHAMPAGNE | E138: 451381 | F138: SEZANNE | G138: 6.5 | H138: 49% | I138: 30% | J138: 129 | K138: 40% | L138: 38% | M138: 95 | N138: 62% | O138: 45% | P138: 112 | Q138: 75% | R138: 54% | S138: 196 | T138: 64% | U138: 55% | V138: 129 | W138: 65% | X138: 51% | Y138: 137
A139: 30 | B139: MEURTHE ET MOSELLE MEUSE | C139: 26 | D139: NANCY | E139: 554166 | F139: BLAINVILLE | G139: 3.2 | H139: 49% | I139: 31% | J139: 130 | K139: 65% | L139: 63% | M139: 216 | N139: 57% | O139: 40% | P139: 70 | Q139: 66% | R139: 45% | S139: 114 | T139: 62% | U139: 54% | V139: 111 | W139: 56% | X139: 42% | Y139: 59
A140: 30 | B140: AUBE HAUTE MARNE | C140: 21 | D140: CHAUMONT | E140: 410560 | F140: BOURBONNE LES BAINS | G140: 2.0 | H140: 49% | I140: 31% | J140: 131 | K140: 27% | L140: 25% | M140: 30 | N140: 63% | O140: 46% | P140: 130 | Q140: 78% | R140: 57% | S140: 218 | T140: 63% | U140: 55% | V140: 124 | W140: 75% | X140: 61% | Y140: 231
A141: 30 | B141: MOSELLE | C141: 42 | D141: MOSELLE EST | E141: 457614 | F141: SARREBOURG | G141: 8.7 | H141: 49% | I141: 31% | J141: 132 | K141: 53% | L141: 51% | M141: 160 | N141: 62% | O141: 45% | P141: 117 | Q141: 60% | R141: 39% | S141: 67 | T141: 68% | U141: 60% | V141: 163 | W141: 64% | X141: 50% | Y141: 122
A142: 30 | B142: MOSELLE | C142: 45 | D142: METZ | E142: 557612 | F142: SAINTE MARIE AUX CHENES | G142: 3.9 | H142: 49% | I142: 31% | J142: 133 | K142: 20% | L142: 18% | M142: 17 | N142: 77% | O142: 60% | P142: 237 | Q142: 74% | R142: 54% | S142: 194 | T142: 63% | U142: 55% | V142: 122 | W142: 72% | X142: 58% | Y142: 204
A143: 30 | B143: MOSELLE | C143: 44 | D143: MOSELLE NORD | E143: 457158 | F143: YUTZ | G143: 4.6 | H143: 49% | I143: 31% | J143: 134 | K143: 49% | L143: 47% | M143: 138 | N143: 61% | O143: 44% | P143: 108 | Q143: 70% | R143: 49% | S143: 148 | T143: 60% | U143: 52% | V143: 96 | W143: 67% | X143: 53% | Y143: 150
A144: 110 | B144: MARNE-ARDENNES | C144: 11 | D144: REIMS | E144: 551365 | F144: DORMANS | G144: 2.6 | H144: 49% | I144: 31% | J144: 135 | K144: 32% | L144: 30% | M144: 53 | N144: 78% | O144: 61% | P144: 241 | Q144: 67% | R144: 47% | S144: 126 | T144: 72% | U144: 64% | V144: 183 | W144: 58% | X144: 44% | Y144: 75
A145: 110 | B145: MOSELLE | C145: 44 | D145: MOSELLE NORD | E145: 557347 | F145: GUENANGE | G145: 5.0 | H145: 49% | I145: 31% | J145: 136 | K145: 74% | L145: 72% | M145: 243 | N145: 61% | O145: 44% | P145: 103 | Q145: 59% | R145: 38% | S145: 61 | T145: 66% | U145: 58% | V145: 142 | W145: 49% | X145: 35% | Y145: 23
A146: 110 | B146: MEURTHE ET MOSELLE MEUSE | C146: 26 | D146: NANCY | E146: 554296 | F146: ESSEY LES NANCY | G146: 3.9 | H146: 49% | I146: 31% | J146: 137 | K146: 46% | L146: 44% | M146: 125 | N146: 61% | O146: 44% | P146: 107 | Q146: 65% | R146: 44% | S146: 105 | T146: 74% | U146: 66% | V146: 202 | W146: 63% | X146: 49% | Y146: 113
A147: 110 | B147: MARNE-ARDENNES | C147: 2 | D147: CHARLEVILLE MEZIERES | E147: 408840 | F147: RETHEL | G147: 5.3 | H147: 49% | I147: 31% | J147: 138 | K147: 33% | L147: 31% | M147: 63 | N147: 62% | O147: 45% | P147: 111 | Q147: 68% | R147: 48% | S147: 136 | T147: 72% | U147: 64% | V147: 181 | W147: 74% | X147: 60% | Y147: 221
A148: 110 | B148: MEURTHE ET MOSELLE MEUSE | C148: 27 | D148: PONT A MOUSSON | E148: 454355 | F148: JARNY | G148: 4.7 | H148: 49% | I148: 31% | J148: 139 | K148: 65% | L148: 63% | M148: 218 | N148: 55% | O148: 38% | P148: 58 | Q148: 70% | R148: 49% | S148: 146 | T148: 56% | U148: 48% | V148: 75 | W148: 63% | X148: 49% | Y148: 114
A149: 110 | B149: BAS-RHIN | C149: 5101 | D149: SELESTAT | E149: 4109 | F149: MARCKOLSHEIM | G149: 2.7 | H149: 50% | I149: 31% | J149: 140 | K149: 39% | L149: 37% | M149: 88 | N149: 66% | O149: 49% | P149: 153 | Q149: 70% | R149: 49% | S149: 155 | T149: 73% | U149: 64% | V149: 185 | W149: 63% | X149: 49% | Y149: 107
A150: 110 | B150: MEURTHE ET MOSELLE MEUSE | C150: 26 | D150: NANCY | E150: 454171 | F150: BLAMONT | G150: 1.5 | H150: 50% | I150: 31% | J150: 141 | K150: 84% | L150: 82% | M150: 257 | N150: 38% | O150: 21% | P150: 10 | Q150: 78% | R150: 57% | S150: 222 | T150: 51% | U150: 43% | V150: 53 | W150: 59% | X150: 45% | Y150: 78
A151: 110 | B151: MEURTHE ET MOSELLE MEUSE | C151: 27 | D151: PONT A MOUSSON | E151: 454696 | F151: VILLERS GENERAL LECLERC | G151: 6.1 | H151: 50% | I151: 32% | J151: 142 | K151: 35% | L151: 33% | M151: 68 | N151: 67% | O151: 50% | P151: 167 | Q151: 67% | R151: 46% | S151: 121 | T151: 70% | U151: 62% | V151: 174 | W151: 72% | X151: 58% | Y151: 206
A152: 110 | B152: AUBE HAUTE MARNE | C152: 14 | D152: TROYES | E152: 410571 | F152: ROMILLY SUR SEINE | G152: 6.9 | H152: 50% | I152: 32% | J152: 143 | K152: 38% | L152: 35% | M152: 83 | N152: 61% | O152: 44% | P152: 106 | Q152: 75% | R152: 54% | S152: 197 | T152: 73% | U152: 65% | V152: 189 | W152: 65% | X152: 51% | Y152: 132
A153: 110 | B153: MARNE-ARDENNES | C153: 11 | D153: REIMS | E153: 551369 | F153: DAMERY | G153: 2.3 | H153: 50% | I153: 32% | J153: 144 | K153: 63% | L153: 61% | M153: 208 | N153: 73% | O153: 56% | P153: 216 | Q153: 73% | R153: 52% | S153: 182 | T153: 49% | U153: 41% | V153: 45 | W153: 53% | X153: 39% | Y153: 46
A154: 110 | B154: MEURTHE ET MOSELLE MEUSE | C154: 27 | D154: PONT A MOUSSON | E154: 554321 | F154: FROUARD | G154: 3.0 | H154: 50% | I154: 32% | J154: 145 | K154: 79% | L154: 77% | M154: 252 | N154: 56% | O154: 39% | P154: 67 | Q154: 48% | R154: 27% | S154: 17 | T154: 66% | U154: 58% | V154: 146 | W154: 62% | X154: 48% | Y154: 97
A155: 110 | B155: MOSELLE | C155: 45 | D155: METZ | E155: 557437 | F155: METZ SARRE | G155: 3.9 | H155: 50% | I155: 32% | J155: 146 | K155: 55% | L155: 53% | M155: 173 | N155: 66% | O155: 49% | P155: 164 | Q155: 81% | R155: 60% | S155: 239 | T155: 33% | U155: 25% | V155: 14 | W155: 76% | X155: 62% | Y155: 242
A156: 110 | B156: AUBE HAUTE MARNE | C156: 14 | D156: TROYES | E156: 510513 | F156: TROYES 1ER MAI | G156: 3.2 | H156: 50% | I156: 32% | J156: 147 | K156: 57% | L156: 55% | M156: 184 | N156: 65% | O156: 48% | P156: 149 | Q156: 72% | R156: 51% | S156: 171 | T156: 68% | U156: 60% | V156: 158 | W156: 50% | X156: 36% | Y156: 30
A157: 110 | B157: MOSELLE | C157: 45 | D157: METZ | E157: 457574 | F157: ROMBAS | G157: 3.2 | H157: 50% | I157: 32% | J157: 148 | K157: 64% | L157: 61% | M157: 212 | N157: 53% | O157: 36% | P157: 49 | Q157: 55% | R157: 34% | S157: 38 | T157: 64% | U157: 56% | V157: 133 | W157: 77% | X157: 63% | Y157: 244
A158: 110 | B158: HAUT-RHIN | C158: 5130 | D158: COLMAR | E158: 4153 | F158: ROUFFACH | G158: 3.7 | H158: 50% | I158: 32% | J158: 149 | K158: 58% | L158: 56% | M158: 193 | N158: 73% | O158: 56% | P158: 218 | Q158: 72% | R158: 51% | S158: 173 | T158: 41% | U158: 33% | V158: 22 | W158: 68% | X158: 54% | Y158: 160
A159: 110 | B159: MOSELLE | C159: 45 | D159: METZ | E159: 557559 | F159: REMILLY | G159: 4.1 | H159: 50% | I159: 32% | J159: 150 | K159: 52% | L159: 50% | M159: 157 | N159: 72% | O159: 55% | P159: 210 | Q159: 60% | R159: 39% | S159: 68 | T159: 64% | U159: 55% | V159: 132 | W159: 65% | X159: 51% | Y159: 139
A160: 110 | B160: MOSELLE | C160: 45 | D160: METZ | E160: 557712 | F160: WOIPPY | G160: 5.4 | H160: 50% | I160: 32% | J160: 151 | K160: 41% | L160: 39% | M160: 102 | N160: 63% | O160: 46% | P160: 124 | Q160: 78% | R160: 57% | S160: 220 | T160: 61% | U160: 53% | V160: 99 | W160: 70% | X160: 56% | Y160: 183
A161: 110 | B161: BAS-RHIN | C161: 5060 | D161: HAGUENAU | E161: 4085 | F161: INGWILLER | G161: 3.2 | H161: 50% | I161: 32% | J161: 152 | K161: 42% | L161: 40% | M161: 103 | N161: 60% | O161: 43% | P161: 96 | Q161: 74% | R161: 54% | S161: 192 | T161: 70% | U161: 61% | V161: 170 | W161: 68% | X161: 54% | Y161: 164
A162: 110 | B162: MOSELLE | C162: 42 | D162: MOSELLE EST | E162: 557523 | F162: PHALSBOURG | G162: 2.2 | H162: 51% | I162: 32% | J162: 153 | K162: 56% | L162: 54% | M162: 177 | N162: 80% | O162: 63% | P162: 246 | Q162: 62% | R162: 41% | S162: 87 | T162: 67% | U162: 58% | V162: 149 | W162: 50% | X162: 36% | Y162: 33
A163: 110 | B163: MARNE-ARDENNES | C163: 2 | D163: CHARLEVILLE MEZIERES | E163: 408806 | F163: SEDAN | G163: 9.2 | H163: 51% | I163: 32% | J163: 154 | K163: 41% | L163: 39% | M163: 98 | N163: 71% | O163: 54% | P163: 204 | Q163: 63% | R163: 43% | S163: 95 | T163: 75% | U163: 67% | V163: 210 | W163: 64% | X163: 50% | Y163: 120
A164: 110 | B164: BAS-RHIN | C164: 5060 | D164: HAGUENAU | E164: 4057 | F164: BISCHWILLER | G164: 6.5 | H164: 51% | I164: 32% | J164: 155 | K164: 58% | L164: 56% | M164: 188 | N164: 57% | O164: 40% | P164: 72 | Q164: 74% | R164: 53% | S164: 189 | T164: 55% | U164: 47% | V164: 69 | W164: 72% | X164: 58% | Y164: 200
A165: 110 | B165: MEURTHE ET MOSELLE MEUSE | C165: 27 | D165: PONT A MOUSSON | E165: 554257 | F165: DIEULOUARD | G165: 3.4 | H165: 51% | I165: 32% | J165: 156 | K165: 25% | L165: 23% | M165: 26 | N165: 66% | O165: 49% | P165: 160 | Q165: 79% | R165: 59% | S165: 229 | T165: 78% | U165: 70% | V165: 224 | W165: 67% | X165: 53% | Y165: 153
A166: 110 | B166: MARNE-ARDENNES | C166: 11 | D166: REIMS | E166: 551341 | F166: REIMS JEAN JAURES | G166: 4.3 | H166: 51% | I166: 32% | J166: 157 | K166: 63% | L166: 61% | M166: 209 | N166: 55% | O166: 38% | P166: 62 | Q166: 69% | R166: 48% | S166: 144 | T166: 61% | U166: 53% | V166: 100 | W166: 66% | X166: 52% | Y166: 145
A167: 110 | B167: AUBE HAUTE MARNE | C167: 14 | D167: TROYES | E167: 410550 | F167: BAR SUR AUBE | G167: 5.9 | H167: 51% | I167: 32% | J167: 158 | K167: 34% | L167: 32% | M167: 65 | N167: 68% | O167: 51% | P167: 175 | Q167: 85% | R167: 64% | S167: 251 | T167: 61% | U167: 53% | V167: 101 | W167: 67% | X167: 53% | Y167: 155
A168: 110 | B168: MOSELLE | C168: 44 | D168: MOSELLE NORD | E168: 557622 | F168: SIERCK LES BAINS | G168: 1.3 | H168: 51% | I168: 32% | J168: 159 | K168: 56% | L168: 54% | M168: 181 | N168: 64% | O168: 47% | P168: 135 | Q168: 58% | R168: 37% | S168: 56 | T168: 81% | U168: 72% | V168: 239 | W168: 57% | X168: 43% | Y168: 61
A169: 110 | B169: BAS-RHIN | C169: 5006 | D169: STRASBOURG | E169: 4026 | F169: STRASBOURG DANUBE | G169: 4.5 | H169: 51% | I169: 32% | J169: 160 | K169: 54% | L169: 52% | M169: 169 | N169: 76% | O169: 59% | P169: 233 | Q169: 84% | R169: 63% | S169: 248 | T169: 27% | U169: 19% | V169: 6 | W169: 74% | X169: 60% | Y169: 218
A170: 110 | B170: MOSELLE | C170: 45 | D170: METZ | E170: 557434 | F170: MARLY | G170: 3.7 | H170: 51% | I170: 32% | J170: 161 | K170: 35% | L170: 33% | M170: 71 | N170: 62% | O170: 45% | P170: 123 | Q170: 67% | R170: 46% | S170: 122 | T170: 82% | U170: 74% | V170: 245 | W170: 69% | X170: 55% | Y170: 168
A171: 110 | B171: MEURTHE ET MOSELLE MEUSE | C171: 27 | D171: PONT A MOUSSON | E171: 554496 | F171: NANCY TROIS MAISONS | G171: 2.6 | H171: 51% | I171: 32% | J171: 162 | K171: 88% | L171: 85% | M171: 258 | N171: 51% | O171: 34% | P171: 40 | Q171: 55% | R171: 34% | S171: 39 | T171: 54% | U171: 46% | V171: 66 | W171: 68% | X171: 54% | Y171: 158
A172: 110 | B172: BAS-RHIN | C172: 5060 | D172: HAGUENAU | E172: 4031 | F172: TRUCHTERSHEIM | G172: 2.9 | H172: 51% | I172: 33% | J172: 163 | K172: 54% | L172: 51% | M172: 162 | N172: 56% | O172: 39% | P172: 65 | Q172: 48% | R172: 27% | S172: 19 | T172: 84% | U172: 76% | V172: 250 | W172: 75% | X172: 61% | Y172: 233
A173: 110 | B173: MOSELLE | C173: 42 | D173: MOSELLE EST | E173: 557503 | F173: NEUNKIRCH | G173: 3.8 | H173: 51% | I173: 33% | J173: 164 | K173: 28% | L173: 26% | M173: 34 | N173: 73% | O173: 56% | P173: 215 | Q173: 65% | R173: 44% | S173: 107 | T173: 79% | U173: 70% | V173: 231 | W173: 72% | X173: 58% | Y173: 205
A174: 110 | B174: BAS-RHIN | C174: 5101 | D174: SELESTAT | E174: 4007 | F174: ILLKIRCH CENTRE | G174: 7.3 | H174: 51% | I174: 33% | J174: 165 | K174: 61% | L174: 59% | M174: 201 | N174: 54% | O174: 37% | P174: 53 | Q174: 71% | R174: 51% | S174: 167 | T174: 59% | U174: 51% | V174: 89 | W174: 71% | X174: 57% | Y174: 196
A175: 110 | B175: MOSELLE | C175: 45 | D175: METZ | E175: 557178 | F175: BOULAY | G175: 3.9 | H175: 51% | I175: 33% | J175: 166 | K175: 28% | L175: 26% | M175: 35 | N175: 69% | O175: 52% | P175: 187 | Q175: 75% | R175: 54% | S175: 198 | T175: 74% | U175: 66% | V175: 199 | W175: 71% | X175: 57% | Y175: 191
A176: 110 | B176: MOSELLE | C176: 42 | D176: MOSELLE EST | E176: 457258 | F176: DIEUZE | G176: 3.2 | H176: 51% | I176: 33% | J176: 167 | K176: 45% | L176: 43% | M176: 118 | N176: 63% | O176: 46% | P176: 128 | Q176: 73% | R176: 52% | S176: 178 | T176: 63% | U176: 55% | V176: 119 | W176: 74% | X176: 60% | Y176: 217
A177: 110 | B177: MOSELLE | C177: 42 | D177: MOSELLE EST | E177: 557668 | F177: VALMONT | G177: 4.5 | H177: 51% | I177: 33% | J177: 168 | K177: 22% | L177: 20% | M177: 19 | N177: 77% | O177: 60% | P177: 240 | Q177: 70% | R177: 49% | S177: 154 | T177: 71% | U177: 63% | V177: 175 | W177: 78% | X177: 64% | Y177: 246
A178: 110 | B178: AUBE HAUTE MARNE | C178: 14 | D178: TROYES | E178: 510530 | F178: ARCIS SUR AUBE | G178: 3.9 | H178: 51% | I178: 33% | J178: 169 | K178: 28% | L178: 26% | M178: 33 | N178: 61% | O178: 44% | P178: 102 | Q178: 85% | R178: 65% | S178: 252 | T178: 71% | U178: 63% | V178: 178 | W178: 72% | X178: 58% | Y178: 207
A179: 110 | B179: BAS-RHIN | C179: 5101 | D179: SELESTAT | E179: 4116 | F179: MOLSHEIM | G179: 5.1 | H179: 51% | I179: 33% | J179: 170 | K179: 55% | L179: 53% | M179: 176 | N179: 70% | O179: 53% | P179: 195 | Q179: 46% | R179: 26% | S179: 13 | T179: 75% | U179: 67% | V179: 207 | W179: 71% | X179: 57% | Y179: 198
A180: 110 | B180: MEURTHE ET MOSELLE MEUSE | C180: 31 | D180: VERDUN | E180: 455566 | F180: REVIGNY SUR ORNAIN | G180: 3.4 | H180: 51% | I180: 33% | J180: 171 | K180: 41% | L180: 39% | M180: 100 | N180: 61% | O180: 44% | P180: 105 | Q180: 77% | R180: 57% | S180: 216 | T180: 69% | U180: 60% | V180: 165 | W180: 70% | X180: 57% | Y180: 184
A181: 110 | B181: MEURTHE ET MOSELLE MEUSE | C181: 27 | D181: PONT A MOUSSON | E181: 554184 | F181: BRIEY | G181: 4.6 | H181: 51% | I181: 33% | J181: 172 | K181: 45% | L181: 43% | M181: 119 | N181: 71% | O181: 54% | P181: 203 | Q181: 61% | R181: 41% | S181: 83 | T181: 78% | U181: 70% | V181: 227 | W181: 63% | X181: 49% | Y181: 109
A182: 110 | B182: BAS-RHIN | C182: 5060 | D182: HAGUENAU | E182: 4071 | F182: WISSEMBOURG | G182: 8.4 | H182: 51% | I182: 33% | J182: 173 | K182: 46% | L182: 44% | M182: 127 | N182: 68% | O182: 51% | P182: 176 | Q182: 60% | R182: 40% | S182: 77 | T182: 70% | U182: 62% | V182: 172 | W182: 75% | X182: 61% | Y182: 223
A183: 110 | B183: MOSELLE | C183: 45 | D183: METZ | E183: 557105 | F183: ARS SUR MOSELLE | G183: 3.6 | H183: 51% | I183: 33% | J183: 174 | K183: 47% | L183: 44% | M183: 132 | N183: 76% | O183: 59% | P183: 232 | Q183: 71% | R183: 50% | S183: 164 | T183: 73% | U183: 65% | V183: 192 | W183: 52% | X183: 38% | Y183: 36
A184: 110 | B184: HAUT-RHIN | C184: 5169 | D184: MULHOUSE | E184: 4195 | F184: CERNAY | G184: 2.4 | H184: 51% | I184: 33% | J184: 175 | K184: 58% | L184: 55% | M184: 187 | N184: 72% | O184: 55% | P184: 212 | Q184: 51% | R184: 31% | S184: 26 | T184: 81% | U184: 73% | V184: 241 | W184: 57% | X184: 43% | Y184: 64
A185: 110 | B185: MOSELLE | C185: 42 | D185: MOSELLE EST | E185: 457617 | F185: SARREGUEMINES | G185: 8.2 | H185: 51% | I185: 33% | J185: 176 | K185: 44% | L185: 42% | M185: 111 | N185: 66% | O185: 49% | P185: 158 | Q185: 72% | R185: 51% | S185: 169 | T185: 67% | U185: 59% | V185: 152 | W185: 71% | X185: 57% | Y185: 190
A186: 110 | B186: AUBE HAUTE MARNE | C186: 21 | D186: CHAUMONT | E186: 410541 | F186: LANGRES | G186: 6.7 | H186: 51% | I186: 33% | J186: 177 | K186: 58% | L186: 56% | M186: 190 | N186: 65% | O186: 48% | P186: 147 | Q186: 72% | R186: 52% | S186: 174 | T186: 59% | U186: 51% | V186: 88 | W186: 64% | X186: 50% | Y186: 127
A187: 110 | B187: HAUT-RHIN | C187: 5130 | D187: COLMAR | E187: 4157 | F187: NEUF BRISACH | G187: 3.6 | H187: 51% | I187: 33% | J187: 178 | K187: 42% | L187: 40% | M187: 107 | N187: 74% | O187: 57% | P187: 222 | Q187: 73% | R187: 52% | S187: 180 | T187: 59% | U187: 51% | V187: 86 | W187: 71% | X187: 57% | Y187: 192
A188: 110 | B188: VOSGES | C188: 55 | D188: SAINT DIE | E188: 588587 | F188: SAINT DIE CATHEDRALE | G188: 3.7 | H188: 52% | I188: 33% | J188: 179 | K188: 37% | L188: 35% | M188: 75 | N188: 70% | O188: 53% | P188: 197 | Q188: 67% | R188: 46% | S188: 118 | T188: 78% | U188: 69% | V188: 223 | W188: 69% | X188: 55% | Y188: 170
A189: 110 | B189: AUBE HAUTE MARNE | C189: 14 | D189: TROYES | E189: 410512 | F189: TROYES ZOLA | G189: 4.5 | H189: 52% | I189: 34% | J189: 180 | K189: 58% | L189: 56% | M189: 189 | N189: 64% | O189: 47% | P189: 139 | Q189: 58% | R189: 37% | S189: 59 | T189: 74% | U189: 66% | V189: 201 | W189: 68% | X189: 54% | Y189: 166
A190: 110 | B190: MOSELLE | C190: 45 | D190: METZ | E190: 557445 | F190: METZ SAINT LIVIER | G190: 2.9 | H190: 52% | I190: 34% | J190: 181 | K190: 49% | L190: 47% | M190: 140 | N190: 64% | O190: 47% | P190: 142 | Q190: 65% | R190: 45% | S190: 109 | T190: 74% | U190: 66% | V190: 200 | W190: 70% | X190: 56% | Y190: 180
A191: 110 | B191: MARNE-ARDENNES | C191: 6 | D191: CHALONS EN CHAMPAGNE | E191: 451166 | F191: VITRY LE FRANCOIS | G191: 6.8 | H191: 52% | I191: 34% | J191: 182 | K191: 45% | L191: 43% | M191: 122 | N191: 71% | O191: 54% | P191: 202 | Q191: 73% | R191: 53% | S191: 184 | T191: 70% | U191: 62% | V191: 171 | W191: 64% | X191: 50% | Y191: 118
A192: 160 | B192: HAUT-RHIN | C192: 5169 | D192: MULHOUSE | E192: 4181 | F192: WITTELSHEIM | G192: 3.3 | H192: 52% | I192: 34% | J192: 183 | K192: 54% | L192: 52% | M192: 168 | N192: 74% | O192: 57% | P192: 224 | Q192: 80% | R192: 59% | S192: 232 | T192: 63% | U192: 55% | V192: 123 | W192: 52% | X192: 38% | Y192: 37
A193: 160 | B193: MARNE-ARDENNES | C193: 11 | D193: REIMS | E193: 451308 | F193: REIMS SAINT THOMAS | G193: 7.3 | H193: 52% | I193: 34% | J193: 184 | K193: 64% | L193: 62% | M193: 213 | N193: 67% | O193: 50% | P193: 165 | Q193: 76% | R193: 55% | S193: 204 | T193: 69% | U193: 61% | V193: 166 | W193: 49% | X193: 35% | Y193: 25
A194: 160 | B194: AUBE HAUTE MARNE | C194: 21 | D194: CHAUMONT | E194: 410566 | F194: CHAUMONT HOTEL DE VILLE | G194: 7.7 | H194: 52% | I194: 34% | J194: 185 | K194: 53% | L194: 51% | M194: 161 | N194: 64% | O194: 47% | P194: 141 | Q194: 71% | R194: 51% | S194: 166 | T194: 72% | U194: 64% | V194: 184 | W194: 63% | X194: 49% | Y194: 106
A195: 160 | B195: MEURTHE ET MOSELLE MEUSE | C195: 26 | D195: NANCY | E195: 454671 | F195: VANDOEUVRE LES NANCY | G195: 4.6 | H195: 52% | I195: 34% | J195: 186 | K195: 63% | L195: 61% | M195: 210 | N195: 59% | O195: 42% | P195: 93 | Q195: 82% | R195: 61% | S195: 244 | T195: 70% | U195: 62% | V195: 173 | W195: 49% | X195: 35% | Y195: 26
A196: 160 | B196: VOSGES | C196: 55 | D196: SAINT DIE | E196: 588461 | F196: MOYENMOUTIER | G196: 2.5 | H196: 52% | I196: 34% | J196: 187 | K196: 69% | L196: 67% | M196: 231 | N196: 58% | O196: 41% | P196: 83 | Q196: 56% | R196: 35% | S196: 46 | T196: 76% | U196: 68% | V196: 217 | W196: 65% | X196: 51% | Y196: 138
A197: 160 | B197: HAUT-RHIN | C197: 5130 | D197: COLMAR | E197: 4141 | F197: HORBOURG WIHR | G197: 5.8 | H197: 53% | I197: 34% | J197: 188 | K197: 55% | L197: 52% | M197: 172 | N197: 80% | O197: 63% | P197: 247 | Q197: 59% | R197: 39% | S197: 64 | T197: 67% | U197: 59% | V197: 151 | W197: 64% | X197: 50% | Y197: 121
A198: 160 | B198: MEURTHE ET MOSELLE MEUSE | C198: 27 | D198: PONT A MOUSSON | E198: 554196 | F198: CHAMPIGNEULLES | G198: 3.6 | H198: 53% | I198: 35% | J198: 189 | K198: 61% | L198: 58% | M198: 199 | N198: 53% | O198: 36% | P198: 51 | Q198: 79% | R198: 58% | S198: 225 | T198: 62% | U198: 54% | V198: 107 | W198: 71% | X198: 57% | Y198: 197
A199: 160 | B199: MARNE-ARDENNES | C199: 2 | D199: CHARLEVILLE MEZIERES | E199: 508817 | F199: CHARLEVILLE MOHON | G199: 3.4 | H199: 53% | I199: 35% | J199: 190 | K199: 37% | L199: 35% | M199: 82 | N199: 68% | O199: 51% | P199: 178 | Q199: 77% | R199: 57% | S199: 217 | T199: 76% | U199: 67% | V199: 213 | W199: 68% | X199: 54% | Y199: 156
A200: 160 | B200: BAS-RHIN | C200: 5101 | D200: SELESTAT | E200: 4015 | F200: LINGOLSHEIM | G200: 4.4 | H200: 53% | I200: 35% | J200: 191 | K200: 54% | L200: 52% | M200: 165 | N200: 73% | O200: 56% | P200: 219 | Q200: 63% | R200: 42% | S200: 94 | T200: 60% | U200: 52% | V200: 94 | W200: 76% | X200: 62% | Y200: 241
A201: 160 | B201: VOSGES | C201: 55 | D201: SAINT DIE | E201: 588551 | F201: RAMBERVILLERS | G201: 3.5 | H201: 53% | I201: 35% | J201: 192 | K201: 32% | L201: 30% | M201: 58 | N201: 79% | O201: 62% | P201: 245 | Q201: 80% | R201: 60% | S201: 236 | T201: 72% | U201: 63% | V201: 179 | W201: 64% | X201: 50% | Y201: 123
A202: 160 | B202: MARNE-ARDENNES | C202: 11 | D202: REIMS | E202: 551306 | F202: REIMS SAINT MARCEAUX | G202: 4.5 | H202: 53% | I202: 35% | J202: 193 | K202: 68% | L202: 66% | M202: 226 | N202: 59% | O202: 42% | P202: 92 | Q202: 90% | R202: 69% | S202: 258 | T202: 49% | U202: 41% | V202: 42 | W202: 61% | X202: 47% | Y202: 91
A203: 160 | B203: BAS-RHIN | C203: 5006 | D203: STRASBOURG | E203: 4029 | F203: SCHILTIGHEIM KLEBER | G203: 2.9 | H203: 53% | I203: 35% | J203: 194 | K203: 73% | L203: 71% | M203: 239 | N203: 66% | O203: 49% | P203: 155 | Q203: 63% | R203: 42% | S203: 90 | T203: 48% | U203: 40% | V203: 36 | W203: 79% | X203: 65% | Y203: 251
... 71 more rows

Sheet AG_BANCA
B1: Accueil | H1: BAROMETRE BDD - AGENCES
H2: BANCARISATION
H3: =ACCUEIL!F7 -> 2021-08-29
H7: Ventes Nettes produits pondérés | L7: Ventes sur client non détenteur de l’univers | P7: Mobilité Macron | T7: Remises commerciales | X7: Total Bancarisation
H8: =DATEMAJ!C8 -> au 29/08 | J8: coef | K8: ='RECAP DIRCOM'!AA4 -> 10% | L8: =DATEMAJ!C9 -> au 29/08 | N8: coef | O8: ='RECAP DIRCOM'!AE4 -> 4% | P8: =DATEMAJ!C10 -> au 29/08 | R8: coef | S8: ='RECAP DIRCOM'!AI4 -> 3% | T8: =DATEMAJ!C11 -> au 30/06 | V8: coef | W8: ='RECAP DIRCOM'!AM4 -> 3% | Y8: coef | Z8: ='RECAP DIRCOM'!$AP$4 -> 20%
B9: Direction | C9: eds | D9: Territoire | E9: eds | F9: Agence | G9: ="ETP perf "&DATEMAJ!$C$28 -> ETP perf 30-juin | H9: VN | I9: VN / ETP | J9: % Ecart au 1er | K9: Rang | L9: VB | M9: VB / ETP | N9: % Ecart au 1er | O9: Rang | P9: Nb | Q9: Nb / ETP | R9: % Ecart au 1er | S9: Rang | T9: Montant | U9: Montant / ETP | V9: % Ecart au 1er | W9: Rang | X9: Moyenne ecart au 1er | Y9: % Ecart au 1er | Z9: Rang CEGEE
A10: 50 | B10: AUBE HAUTE MARNE | C10: 21 | D10: CHAUMONT | E10: 410560 | F10: BOURBONNE LES BAINS | G10: =VLOOKUP($E10,'RECAP AG'!$G$6:$DC$270,3,FALSE) -> 2.0 | H10: =VLOOKUP($E10,'RECAP AG'!$G$6:$DC$270,18,FALSE) -> 114.5 | I10: =VLOOKUP($E10,'RECAP AG'!$G$6:$DC$270,19,FALSE) -> 57.25 | J10: =VLOOKUP($E10,'RECAP AG'!$G$6:$DC$270,20,FALSE) -> 57% | K10: =VLOOKUP($E10,'RECAP AG'!$G$6:$DC$270,21,FALSE) -> 85 | L10: =VLOOKUP($E10,'RECAP AG'!$G$6:$DC$270,22,FALSE) -> 52 | M10: =VLOOKUP($E10,'RECAP AG'!$G$6:$DC$270,23,FALSE) -> 26.00 | N10: =VLOOKUP($E10,'RECAP AG'!$G$6:$DC$270,24,FALSE) -> 65% | O10: =VLOOKUP($E10,'RECAP AG'!$G$6:$DC$270,25,FALSE) -> 233 | P10: =VLOOKUP($E10,'RECAP AG'!$G$6:$DC$270,26,FALSE) -> 8 | Q10: =VLOOKUP($E10,'RECAP AG'!$G$6:$DC$270,27,FALSE) -> 4.00 | R10: =VLOOKUP($E10,'RECAP AG'!$G$6:$DC$270,28,FALSE) -> 89% | S10: =VLOOKUP($E10,'RECAP AG'!$G$6:$DC$270,29,FALSE) -> 196 | T10: =VLOOKUP($E10,'RECAP AG'!$G$6:$DC$270,30,FALSE) -> -3.59 | U10: =VLOOKUP($E10,'RECAP AG'!$G$6:$DC$270,31,FALSE) -> -1.80 | V10: =VLOOKUP($E10,'RECAP AG'!$G$6:$DC$270,32,FALSE) -> 52% | W10: =VLOOKUP($E10,'RECAP AG'!$G$6:$DC$270,33,FALSE) -> 119 | X10: =VLOOKUP($E10,'RECAP AG'!$G$6:$DC$270,34,FALSE) -> 63% | Y10: =VLOOKUP($E10,'RECAP AG'!$G$6:$DC$270,35,FALSE) -> 46% | Z10: =VLOOKUP($E10,'RECAP AG'!$G$6:$DC$270,36,FALSE) -> 130
A11: 50 | B11: AUBE HAUTE MARNE | C11: 21 | D11: CHAUMONT | E11: 410566 | F11: CHAUMONT HOTEL DE VILLE | G11: =VLOOKUP($E11,'RECAP AG'!$G$6:$DC$270,3,FALSE) -> 7.7 | H11: =VLOOKUP($E11,'RECAP AG'!$G$6:$DC$270,18,FALSE) -> 331.4 | I11: =VLOOKUP($E11,'RECAP AG'!$G$6:$DC$270,19,FALSE) -> 42.92 | J11: =VLOOKUP($E11,'RECAP AG'!$G$6:$DC$270,20,FALSE) -> 68% | K11: =VLOOKUP($E11,'RECAP AG'!$G$6:$DC$270,21,FALSE) -> 158 | L11: =VLOOKUP($E11,'RECAP AG'!$G$6:$DC$270,22,FALSE) -> 305 | M11: =VLOOKUP($E11,'RECAP AG'!$G$6:$DC$270,23,FALSE) -> 39.50 | N11: =VLOOKUP($E11,'RECAP AG'!$G$6:$DC$270,24,FALSE) -> 47% | O11: =VLOOKUP($E11,'RECAP AG'!$G$6:$DC$270,25,FALSE) -> 78 | P11: =VLOOKUP($E11,'RECAP AG'!$G$6:$DC$270,26,FALSE) -> 51 | Q11: =VLOOKUP($E11,'RECAP AG'!$G$6:$DC$270,27,FALSE) -> 6.61 | R11: =VLOOKUP($E11,'RECAP AG'!$G$6:$DC$270,28,FALSE) -> 82% | S11: =VLOOKUP($E11,'RECAP AG'!$G$6:$DC$270,29,FALSE) -> 111 | T11: =VLOOKUP($E11,'RECAP AG'!$G$6:$DC$270,30,FALSE) -> -14.82 | U11: =VLOOKUP($E11,'RECAP AG'!$G$6:$DC$270,31,FALSE) -> -1.92 | V11: =VLOOKUP($E11,'RECAP AG'!$G$6:$DC$270,32,FALSE) -> 57% | W11: =VLOOKUP($E11,'RECAP AG'!$G$6:$DC$270,33,FALSE) -> 136 | X11: =VLOOKUP($E11,'RECAP AG'!$G$6:$DC$270,34,FALSE) -> 64% | Y11: =VLOOKUP($E11,'RECAP AG'!$G$6:$DC$270,35,FALSE) -> 47% | Z11: =VLOOKUP($E11,'RECAP AG'!$G$6:$DC$270,36,FALSE) -> 141
A12: 50 | B12: AUBE HAUTE MARNE | C12: 21 | D12: CHAUMONT | E12: 510590 | F12: CHAUMONT REPUBLIQUE | G12: =VLOOKUP($E12,'RECAP AG'!$G$6:$DC$270,3,FALSE) -> 4.4 | H12: =VLOOKUP($E12,'RECAP AG'!$G$6:$DC$270,18,FALSE) -> 188.7 | I12: =VLOOKUP($E12,'RECAP AG'!$G$6:$DC$270,19,FALSE) -> 42.56 | J12: =VLOOKUP($E12,'RECAP AG'!$G$6:$DC$270,20,FALSE) -> 68% | K12: =VLOOKUP($E12,'RECAP AG'!$G$6:$DC$270,21,FALSE) -> 162 | L12: =VLOOKUP($E12,'RECAP AG'!$G$6:$DC$270,22,FALSE) -> 201 | M12: =VLOOKUP($E12,'RECAP AG'!$G$6:$DC$270,23,FALSE) -> 45.33 | N12: =VLOOKUP($E12,'RECAP AG'!$G$6:$DC$270,24,FALSE) -> 39% | O12: =VLOOKUP($E12,'RECAP AG'!$G$6:$DC$270,25,FALSE) -> 49 | P12: =VLOOKUP($E12,'RECAP AG'!$G$6:$DC$270,26,FALSE) -> 41 | Q12: =VLOOKUP($E12,'RECAP AG'!$G$6:$DC$270,27,FALSE) -> 9.25 | R12: =VLOOKUP($E12,'RECAP AG'!$G$6:$DC$270,28,FALSE) -> 75% | S12: =VLOOKUP($E12,'RECAP AG'!$G$6:$DC$270,29,FALSE) -> 64 | T12: =VLOOKUP($E12,'RECAP AG'!$G$6:$DC$270,30,FALSE) -> -6.19 | U12: =VLOOKUP($E12,'RECAP AG'!$G$6:$DC$270,31,FALSE) -> -1.40 | V12: =VLOOKUP($E12,'RECAP AG'!$G$6:$DC$270,32,FALSE) -> 36% | W12: =VLOOKUP($E12,'RECAP AG'!$G$6:$DC$270,33,FALSE) -> 47 | X12: =VLOOKUP($E12,'RECAP AG'!$G$6:$DC$270,34,FALSE) -> 59% | Y12: =VLOOKUP($E12,'RECAP AG'!$G$6:$DC$270,35,FALSE) -> 42% | Z12: =VLOOKUP($E12,'RECAP AG'!$G$6:$DC$270,36,FALSE) -> 89
A13: 50 | B13: AUBE HAUTE MARNE | C13: 21 | D13: CHAUMONT | E13: 451154 | F13: JOINVILLE | G13: =VLOOKUP($E13,'RECAP AG'!$G$6:$DC$270,3,FALSE) -> 1.9 | H13: =VLOOKUP($E13,'RECAP AG'!$G$6:$DC$270,18,FALSE) -> 45.0 | I13: =VLOOKUP($E13,'RECAP AG'!$G$6:$DC$270,19,FALSE) -> 23.96 | J13: =VLOOKUP($E13,'RECAP AG'!$G$6:$DC$270,20,FALSE) -> 82% | K13: =VLOOKUP($E13,'RECAP AG'!$G$6:$DC$270,21,FALSE) -> 231 | L13: =VLOOKUP($E13,'RECAP AG'!$G$6:$DC$270,22,FALSE) -> 70 | M13: =VLOOKUP($E13,'RECAP AG'!$G$6:$DC$270,23,FALSE) -> 37.27 | N13: =VLOOKUP($E13,'RECAP AG'!$G$6:$DC$270,24,FALSE) -> 50% | O13: =VLOOKUP($E13,'RECAP AG'!$G$6:$DC$270,25,FALSE) -> 107 | P13: =VLOOKUP($E13,'RECAP AG'!$G$6:$DC$270,26,FALSE) -> 8 | Q13: =VLOOKUP($E13,'RECAP AG'!$G$6:$DC$270,27,FALSE) -> 4.26 | R13: =VLOOKUP($E13,'RECAP AG'!$G$6:$DC$270,28,FALSE) -> 88% | S13: =VLOOKUP($E13,'RECAP AG'!$G$6:$DC$270,29,FALSE) -> 186 | T13: =VLOOKUP($E13,'RECAP AG'!$G$6:$DC$270,30,FALSE) -> -4.84 | U13: =VLOOKUP($E13,'RECAP AG'!$G$6:$DC$270,31,FALSE) -> -2.58 | V13: =VLOOKUP($E13,'RECAP AG'!$G$6:$DC$270,32,FALSE) -> 84% | W13: =VLOOKUP($E13,'RECAP AG'!$G$6:$DC$270,33,FALSE) -> 220 | X13: =VLOOKUP($E13,'RECAP AG'!$G$6:$DC$270,34,FALSE) -> 77% | Y13: =VLOOKUP($E13,'RECAP AG'!$G$6:$DC$270,35,FALSE) -> 60% | Z13: =VLOOKUP($E13,'RECAP AG'!$G$6:$DC$270,36,FALSE) -> 238
A14: 50 | B14: AUBE HAUTE MARNE | C14: 21 | D14: CHAUMONT | E14: 410541 | F14: LANGRES | G14: =VLOOKUP($E14,'RECAP AG'!$G$6:$DC$270,3,FALSE) -> 6.7 | H14: =VLOOKUP($E14,'RECAP AG'!$G$6:$DC$270,18,FALSE) -> 345.1 | I14: =VLOOKUP($E14,'RECAP AG'!$G$6:$DC$270,19,FALSE) -> 51.26 | J14: =VLOOKUP($E14,'RECAP AG'!$G$6:$DC$270,20,FALSE) -> 62% | K14: =VLOOKUP($E14,'RECAP AG'!$G$6:$DC$270,21,FALSE) -> 112 | L14: =VLOOKUP($E14,'RECAP AG'!$G$6:$DC$270,22,FALSE) -> 211 | M14: =VLOOKUP($E14,'RECAP AG'!$G$6:$DC$270,23,FALSE) -> 31.34 | N14: =VLOOKUP($E14,'RECAP AG'!$G$6:$DC$270,24,FALSE) -> 58% | O14: =VLOOKUP($E14,'RECAP AG'!$G$6:$DC$270,25,FALSE) -> 179 | P14: =VLOOKUP($E14,'RECAP AG'!$G$6:$DC$270,26,FALSE) -> 43 | Q14: =VLOOKUP($E14,'RECAP AG'!$G$6:$DC$270,27,FALSE) -> 6.39 | R14: =VLOOKUP($E14,'RECAP AG'!$G$6:$DC$270,28,FALSE) -> 83% | S14: =VLOOKUP($E14,'RECAP AG'!$G$6:$DC$270,29,FALSE) -> 119 | T14: =VLOOKUP($E14,'RECAP AG'!$G$6:$DC$270,30,FALSE) -> -14.76 | U14: =VLOOKUP($E14,'RECAP AG'!$G$6:$DC$270,31,FALSE) -> -2.19 | V14: =VLOOKUP($E14,'RECAP AG'!$G$6:$DC$270,32,FALSE) -> 69% | W14: =VLOOKUP($E14,'RECAP AG'!$G$6:$DC$270,33,FALSE) -> 171 | X14: =VLOOKUP($E14,'RECAP AG'!$G$6:$DC$270,34,FALSE) -> 65% | Y14: =VLOOKUP($E14,'RECAP AG'!$G$6:$DC$270,35,FALSE) -> 48% | Z14: =VLOOKUP($E14,'RECAP AG'!$G$6:$DC$270,36,FALSE) -> 147
A15: 50 | B15: AUBE HAUTE MARNE | C15: 21 | D15: CHAUMONT | E15: 451156 | F15: SAINT DIZIER CENTRE | G15: =VLOOKUP($E15,'RECAP AG'!$G$6:$DC$270,3,FALSE) -> 9.2 | H15: =VLOOKUP($E15,'RECAP AG'!$G$6:$DC$270,18,FALSE) -> 430.3 | I15: =VLOOKUP($E15,'RECAP AG'!$G$6:$DC$270,19,FALSE) -> 46.94 | J15: =VLOOKUP($E15,'RECAP AG'!$G$6:$DC$270,20,FALSE) -> 65% | K15: =VLOOKUP($E15,'RECAP AG'!$G$6:$DC$270,21,FALSE) -> 133 | L15: =VLOOKUP($E15,'RECAP AG'!$G$6:$DC$270,22,FALSE) -> 365 | M15: =VLOOKUP($E15,'RECAP AG'!$G$6:$DC$270,23,FALSE) -> 39.81 | N15: =VLOOKUP($E15,'RECAP AG'!$G$6:$DC$270,24,FALSE) -> 47% | O15: =VLOOKUP($E15,'RECAP AG'!$G$6:$DC$270,25,FALSE) -> 74 | P15: =VLOOKUP($E15,'RECAP AG'!$G$6:$DC$270,26,FALSE) -> 59 | Q15: =VLOOKUP($E15,'RECAP AG'!$G$6:$DC$270,27,FALSE) -> 6.44 | R15: =VLOOKUP($E15,'RECAP AG'!$G$6:$DC$270,28,FALSE) -> 82% | S15: =VLOOKUP($E15,'RECAP AG'!$G$6:$DC$270,29,FALSE) -> 116 | T15: =VLOOKUP($E15,'RECAP AG'!$G$6:$DC$270,30,FALSE) -> -21.28 | U15: =VLOOKUP($E15,'RECAP AG'!$G$6:$DC$270,31,FALSE) -> -2.32 | V15: =VLOOKUP($E15,'RECAP AG'!$G$6:$DC$270,32,FALSE) -> 74% | W15: =VLOOKUP($E15,'RECAP AG'!$G$6:$DC$270,33,FALSE) -> 189 | X15: =VLOOKUP($E15,'RECAP AG'!$G$6:$DC$270,34,FALSE) -> 65% | Y15: =VLOOKUP($E15,'RECAP AG'!$G$6:$DC$270,35,FALSE) -> 48% | Z15: =VLOOKUP($E15,'RECAP AG'!$G$6:$DC$270,36,FALSE) -> 148
A16: 50 | B16: AUBE HAUTE MARNE | C16: 21 | D16: CHAUMONT | E16: 451151 | F16: WASSY | G16: =VLOOKUP($E16,'RECAP AG'!$G$6:$DC$270,3,FALSE) -> 2.0 | H16: =VLOOKUP($E16,'RECAP AG'!$G$6:$DC$270,18,FALSE) -> 128.1 | I16: =VLOOKUP($E16,'RECAP AG'!$G$6:$DC$270,19,FALSE) -> 64.86 | J16: =VLOOKUP($E16,'RECAP AG'!$G$6:$DC$270,20,FALSE) -> 52% | K16: =VLOOKUP($E16,'RECAP AG'!$G$6:$DC$270,21,FALSE) -> 66 | L16: =VLOOKUP($E16,'RECAP AG'!$G$6:$DC$270,22,FALSE) -> 78 | M16: =VLOOKUP($E16,'RECAP AG'!$G$6:$DC$270,23,FALSE) -> 39.49 | N16: =VLOOKUP($E16,'RECAP AG'!$G$6:$DC$270,24,FALSE) -> 47% | O16: =VLOOKUP($E16,'RECAP AG'!$G$6:$DC$270,25,FALSE) -> 79 | P16: =VLOOKUP($E16,'RECAP AG'!$G$6:$DC$270,26,FALSE) -> 11 | Q16: =VLOOKUP($E16,'RECAP AG'!$G$6:$DC$270,27,FALSE) -> 5.57 | R16: =VLOOKUP($E16,'RECAP AG'!$G$6:$DC$270,28,FALSE) -> 85% | S16: =VLOOKUP($E16,'RECAP AG'!$G$6:$DC$270,29,FALSE) -> 151 | T16: =VLOOKUP($E16,'RECAP AG'!$G$6:$DC$270,30,FALSE) -> -3.27 | U16: =VLOOKUP($E16,'RECAP AG'!$G$6:$DC$270,31,FALSE) -> -1.66 | V16: =VLOOKUP($E16,'RECAP AG'!$G$6:$DC$270,32,FALSE) -> 46% | W16: =VLOOKUP($E16,'RECAP AG'!$G$6:$DC$270,33,FALSE) -> 86 | X16: =VLOOKUP($E16,'RECAP AG'!$G$6:$DC$270,34,FALSE) -> 55% | Y16: =VLOOKUP($E16,'RECAP AG'!$G$6:$DC$270,35,FALSE) -> 38% | Z16: =VLOOKUP($E16,'RECAP AG'!$G$6:$DC$270,36,FALSE) -> 59
A17: 50 | B17: AUBE HAUTE MARNE | C17: 14 | D17: TROYES | E17: 510530 | F17: ARCIS SUR AUBE | G17: =VLOOKUP($E17,'RECAP AG'!$G$6:$DC$270,3,FALSE) -> 3.9 | H17: =VLOOKUP($E17,'RECAP AG'!$G$6:$DC$270,18,FALSE) -> 203.5 | I17: =VLOOKUP($E17,'RECAP AG'!$G$6:$DC$270,19,FALSE) -> 51.66 | J17: =VLOOKUP($E17,'RECAP AG'!$G$6:$DC$270,20,FALSE) -> 62% | K17: =VLOOKUP($E17,'RECAP AG'!$G$6:$DC$270,21,FALSE) -> 109 | L17: =VLOOKUP($E17,'RECAP AG'!$G$6:$DC$270,22,FALSE) -> 107 | M17: =VLOOKUP($E17,'RECAP AG'!$G$6:$DC$270,23,FALSE) -> 27.17 | N17: =VLOOKUP($E17,'RECAP AG'!$G$6:$DC$270,24,FALSE) -> 64% | O17: =VLOOKUP($E17,'RECAP AG'!$G$6:$DC$270,25,FALSE) -> 224 | P17: =VLOOKUP($E17,'RECAP AG'!$G$6:$DC$270,26,FALSE) -> 24 | Q17: =VLOOKUP($E17,'RECAP AG'!$G$6:$DC$270,27,FALSE) -> 6.09 | R17: =VLOOKUP($E17,'RECAP AG'!$G$6:$DC$270,28,FALSE) -> 83% | S17: =VLOOKUP($E17,'RECAP AG'!$G$6:$DC$270,29,FALSE) -> 130 | T17: =VLOOKUP($E17,'RECAP AG'!$G$6:$DC$270,30,FALSE) -> -5.10 | U17: =VLOOKUP($E17,'RECAP AG'!$G$6:$DC$270,31,FALSE) -> -1.30 | V17: =VLOOKUP($E17,'RECAP AG'!$G$6:$DC$270,32,FALSE) -> 31% | W17: =VLOOKUP($E17,'RECAP AG'!$G$6:$DC$270,33,FALSE) -> 37 | X17: =VLOOKUP($E17,'RECAP AG'!$G$6:$DC$270,34,FALSE) -> 61% | Y17: =VLOOKUP($E17,'RECAP AG'!$G$6:$DC$270,35,FALSE) -> 44% | Z17: =VLOOKUP($E17,'RECAP AG'!$G$6:$DC$270,36,FALSE) -> 102
A18: 50 | B18: AUBE HAUTE MARNE | C18: 14 | D18: TROYES | E18: 410550 | F18: BAR SUR AUBE | G18: =VLOOKUP($E18,'RECAP AG'!$G$6:$DC$270,3,FALSE) -> 5.9 | H18: =VLOOKUP($E18,'RECAP AG'!$G$6:$DC$270,18,FALSE) -> 224.9 | I18: =VLOOKUP($E18,'RECAP AG'!$G$6:$DC$270,19,FALSE) -> 37.97 | J18: =VLOOKUP($E18,'RECAP AG'!$G$6:$DC$270,20,FALSE) -> 72% | K18: =VLOOKUP($E18,'RECAP AG'!$G$6:$DC$270,21,FALSE) -> 180 | L18: =VLOOKUP($E18,'RECAP AG'!$G$6:$DC$270,22,FALSE) -> 186 | M18: =VLOOKUP($E18,'RECAP AG'!$G$6:$DC$270,23,FALSE) -> 31.40 | N18: =VLOOKUP($E18,'RECAP AG'!$G$6:$DC$270,24,FALSE) -> 58% | O18: =VLOOKUP($E18,'RECAP AG'!$G$6:$DC$270,25,FALSE) -> 178 | P18: =VLOOKUP($E18,'RECAP AG'!$G$6:$DC$270,26,FALSE) -> 14 | Q18: =VLOOKUP($E18,'RECAP AG'!$G$6:$DC$270,27,FALSE) -> 2.36 | R18: =VLOOKUP($E18,'RECAP AG'!$G$6:$DC$270,28,FALSE) -> 94% | S18: =VLOOKUP($E18,'RECAP AG'!$G$6:$DC$270,29,FALSE) -> 235 | T18: =VLOOKUP($E18,'RECAP AG'!$G$6:$DC$270,30,FALSE) -> -9.39 | U18: =VLOOKUP($E18,'RECAP AG'!$G$6:$DC$270,31,FALSE) -> -1.58 | V18: =VLOOKUP($E18,'RECAP AG'!$G$6:$DC$270,32,FALSE) -> 43% | W18: =VLOOKUP($E18,'RECAP AG'!$G$6:$DC$270,33,FALSE) -> 72 | X18: =VLOOKUP($E18,'RECAP AG'!$G$6:$DC$270,34,FALSE) -> 68% | Y18: =VLOOKUP($E18,'RECAP AG'!$G$6:$DC$270,35,FALSE) -> 51% | Z18: =VLOOKUP($E18,'RECAP AG'!$G$6:$DC$270,36,FALSE) -> 175
A19: 50 | B19: AUBE HAUTE MARNE | C19: 14 | D19: TROYES | E19: 510556 | F19: BAR SUR SEINE | G19: =VLOOKUP($E19,'RECAP AG'!$G$6:$DC$270,3,FALSE) -> 3.5 | H19: =VLOOKUP($E19,'RECAP AG'!$G$6:$DC$270,18,FALSE) -> 143.6 | I19: =VLOOKUP($E19,'RECAP AG'!$G$6:$DC$270,19,FALSE) -> 41.12 | J19: =VLOOKUP($E19,'RECAP AG'!$G$6:$DC$270,20,FALSE) -> 69% | K19: =VLOOKUP($E19,'RECAP AG'!$G$6:$DC$270,21,FALSE) -> 169 | L19: =VLOOKUP($E19,'RECAP AG'!$G$6:$DC$270,22,FALSE) -> 127 | M19: =VLOOKUP($E19,'RECAP AG'!$G$6:$DC$270,23,FALSE) -> 36.37 | N19: =VLOOKUP($E19,'RECAP AG'!$G$6:$DC$270,24,FALSE) -> 51% | O19: =VLOOKUP($E19,'RECAP AG'!$G$6:$DC$270,25,FALSE) -> 118 | P19: =VLOOKUP($E19,'RECAP AG'!$G$6:$DC$270,26,FALSE) -> 29 | Q19: =VLOOKUP($E19,'RECAP AG'!$G$6:$DC$270,27,FALSE) -> 8.30 | R19: =VLOOKUP($E19,'RECAP AG'!$G$6:$DC$270,28,FALSE) -> 77% | S19: =VLOOKUP($E19,'RECAP AG'!$G$6:$DC$270,29,FALSE) -> 78 | T19: =VLOOKUP($E19,'RECAP AG'!$G$6:$DC$270,30,FALSE) -> -11.89 | U19: =VLOOKUP($E19,'RECAP AG'!$G$6:$DC$270,31,FALSE) -> -3.41 | V19: =VLOOKUP($E19,'RECAP AG'!$G$6:$DC$270,32,FALSE) -> 119% | W19: =VLOOKUP($E19,'RECAP AG'!$G$6:$DC$270,33,FALSE) -> 258 | X19: =VLOOKUP($E19,'RECAP AG'!$G$6:$DC$270,34,FALSE) -> 74% | Y19: =VLOOKUP($E19,'RECAP AG'!$G$6:$DC$270,35,FALSE) -> 57% | Z19: =VLOOKUP($E19,'RECAP AG'!$G$6:$DC$270,36,FALSE) -> 223
